Workbook

Sheet Sumário
A1: ARSAE-MG
A2: Gerência de Regulação Tarifária (GRT)
A3: =TODAY() -> 2023-11-28
A4: Cálculo do Índice de Reajuste Tarifário (IRT) e Efeito Tarifário Médio (ETM) - Reajuste Tarifário da Copasa - 2023
B7: Esta planilha contém cálculos referentes ao reajuste tarifário anual da Copasa - 2023 | R7: PR0: | S7: =EDATE(S8,-12) -> 2023-01-01 | T7: =EDATE(S7,11) -> 2023-12-01
R8: PR1: | S8: 2024-01-01 | T8: =EDATE(S8,11) -> 2024-12-01
B10: Conteúdo das abas principais:
B38: Conteúdo de abas complementares e/ou específicas do prestador:

Sheet 1 Anterior (IRT_2022)
A1: ARSAE-MG
A2: Gerência de Regulação Tarifária (GRT) | L2: WACC regulatório | N2: 0.07924041001
A3: Data: 09/05/2022 | L3: NCG (descasamento de prazos pgto/recebimento) | N3: 0.03175509143
A4: Cálculo do Índice de Reajuste Tarifário (IRT) e Efeito Tarifário Médio (ETM) - Reajuste Tarifário da Copasa - 2022 | L4: NCG (estoque de materiais de consumo) | N4: 0.01096441772
L5: Rendimento médio do caixa no PR0 | N5: 0.02232796405
L6: Custos operacionais resíduos sólidos
L7: Receita (-) custos do serviço de resíduos sólidos
L8: Autosserviços de água e esgoto | N8: 0.001781365871
L9: PIS/Pasep e Cofins | N9: 0.08445920764
L10: PDI | N10: 0.001
L11: Proteção de Mananciais | N11: 0.005 | P11: Receita para proteção de mananciais e PDI
L12: Receitas Irrecuperáveis | N12: 0.02861960197 | P12: RO 2021 sem resíduos sólidos | R12: 5609314519
B13: Legenda: | L13: Resultado análise de eficiência dos custos op. | N13: - | P13: Receita operacional 2022 | R13: 5891105821
B14: Entrada de dados | E14: RT0 base | F14: 5581937739 | G14: 0.01003586626 | L14: Incentivo atendimento telefônico | N14: -0.099317 | P14: RO 2022 sem resíduos sólidos | R14: 5891105821
B15: Destaque | E15: RT0 aplicação | F15: 5759546077 | G15: 0.01005156697 | L15: Fator de Qualidade (FQ) | N15: 0.009066410335 | P15: RO para aplicar 0,5% mananciais | R15: 5773692779
B16: Ajuste necessário | L16: Fator de incentivo à redução perdas (IP) | N16: -0.00766016495
B17: Cálculo diferente | L17: Fator de incentivo à universalização do serv. de tratamento de esgoto | N17: 0.01014175
E19: Etapas → | F19: A - Mercado | H19: B - Inflação | M19: C - Fator X (FP + IP + FQ) | U19: D - Componentes Fin.
C20: Grupo | E20: Subgrupo (classificação regulatória) | F20: RT0 base | G20: Peso RT base (rev. 2021) | H20: Ajuste índices itens não administráveis | I20: Valores ajustados | J20: Índices de inflação utilizados | K20: Inflação (%) | L20: Valores atualizados para preços de ago/21-jul/22 | M20: Fator de Incentivo ao Desempenho do Atendimento Telefônico (FD) | N20: Valores após FD | O20: Fator de Incentivo redução Perdas (IP) | P20: Valores após IP | Q20: Fator de Universalização do Serv. Trat. Esgoto | R20: Valores após FE | S20: Fator de Qualidade | T20: Valores após FQ (RT1 base) | U20: RT1 aplicação (com impacto dos CF) | X20: (%) RT base | Y20: (%) RT aplic
C21: Custos Operacionais (1) | D21: Custos impactados pelo Fator de Produtividade | E21: Energia Elétrica | F21: 481512361.9 | G21: 0.08626258199 | H21: 0.1994300422 | I21: 577540392.6 | J21: IEE | K21: -0.1307995861 | L21: 501998348.3 | M21: 0 | N21: 501998348.3 | O21: -0.00766016495 | P21: 498152958.1 | Q21: 0.01014175 | R21: 503244099.9 | S21: 0.009066410335 | T21: 507795422.9 | U21: 507795422.9 | X21: 0.08048984369 | Y21: 0.07620432106
E22: Pessoal | F22: 1431080182 | G22: 0.2563769517 | I22: 1431080182 | J22: INPC | K22: 0.1268168564 | L22: 1612565272 | M22: 0 | N22: 1612565272 | O22: -0.00766016495 | P22: 1600212756 | Q22: 0.01014175 | R22: 1616566990 | S22: 0.009066410335 | T22: 1631187168 | U22: 1631187168 | X22: 0.25855688 | Y22: 0.24479053
E23: Combustíveis e Lubrificantes | F23: 30961094.81 | G23: 0.005546657139 | H23: -0.04144015746 | I23: 29678062.17 | J23: IPCA BH Comb | K23: 0.2801489483 | L23: 37992340.07 | M23: 0 | N23: 37992340.07 | O23: -0.00766016495 | P23: 37701312.48 | Q23: 0.01014175 | R23: 38086621.29 | S23: 0.009066410335 | T23: 38431075.44 | U23: 38431075.44 | X23: 0.006091648557 | Y23: 0.005767310771
E24: Material de Tratamento | F24: 104303391.2 | G24: 0.01868587507 | H24: -0.004938097994 | I24: 103788330.9 | J24: IGP-M | K24: 0.1135050606 | L24: 115568831.7 | M24: 0 | N24: 115568831.7 | O24: -0.00766016495 | P24: 114683555.4 | Q24: 0.01014175 | R24: 115855625.6 | S24: 0.009066410335 | T24: 116903420 | U24: 116903420 | X24: 0.01853017491 | Y24: 0.01754357237
E25: Outros Materiais | F25: 15429577.29 | G25: 0.002764197311 | I25: 15429577.29 | J25: IGP-M | K25: 0.1135050606 | L25: 17180912.39 | M25: 0 | N25: 17180912.39 | O25: -0.00766016495 | P25: 17049303.77 | Q25: 0.01014175 | R25: 17223548.29 | S25: 0.009066410335 | T25: 17379317.49 | U25: 17379317.49 | X25: 0.002754767934 | Y25: 0.002608095761
E26: Serviços de Terceiros | F26: 141574878.8 | G26: 0.02536303439 | I26: 141574878.8 | J26: IPCA | K26: 0.1173782289 | L26: 158192687.4 | M26: 0 | N26: 158192687.4 | O26: -0.00766016495 | P26: 156980905.3 | Q26: 0.01014175 | R26: 158585256 | S26: 0.009066410335 | T26: 160019495.8 | U26: 160019495.8 | X26: 0.02536443541 | Y26: 0.02401395618
E27: Aluguel | F27: 61474236.97 | G27: 0.01101306389 | I27: 61474236.97 | J27: IGP-M | K27: 0.1135050606 | L27: 68451873.97 | M27: 0 | N27: 68451873.97 | O27: -0.00766016495 | P27: 67927521.32 | Q27: 0.01014175 | R27: 68621743.12 | S27: 0.009066410335 | T27: 69242355.89 | U27: 69242355.89 | X27: 0.01097549555 | Y27: 0.01039112698
E28: Comercialização | F28: 58285833.77 | G28: 0.01044186383 | I28: 58285833.77 | J28: IPCA | K28: 0.1173782289 | L28: 65127321.7 | M28: 0 | N28: 65127321.7 | O28: -0.00766016495 | P28: 64628435.68 | Q28: 0.01014175 | R28: 65288940.69 | S28: 0.009066410335 | T28: 65879411.71 | U28: 65879411.71 | X28: 0.01044244062 | Y28: 0.009886453512
E29: Telecomunicação | F29: 12121822.48 | G29: 0.002171615494 | H29: -0.00948542315 | I29: 12006841.87 | J29: IPCA BH Tel | K29: 0.02378474592 | L29: 12292421.55 | M29: 0 | N29: 12292421.55 | O29: -0.00766016495 | P29: 12198259.57 | Q29: 0.01014175 | R29: 12322926.24 | S29: 0.009066410335 | T29: 12434374.38 | U29: 12434374.38 | X29: 0.001970952877 | Y29: 0.001866013387
E30: Comunicação, Publicidade e Propaganda Legal | F30: 4101575.109 | G30: 0.0007347941344 | I30: 4101575.109 | J30: IPCA | K30: 0.1173782289 | L30: 4583010.731 | M30: 0 | N30: 4583010.731 | O30: -0.00766016495 | P30: 4547904.113 | Q30: 0.01014175 | R30: 4594383.862 | S30: 0.009066410335 | T30: 4635935.318 | U30: 4635935.318 | X30: 0.0007348347234 | Y30: 0.0006957099011
E31: Convênios | F31: 0 | G31: 0 | I31: 0 | J31: IPCA | K31: 0.1173782289 | L31: 0 | M31: 0 | N31: 0 | O31: -0.00766016495 | P31: 0 | Q31: 0.01014175 | R31: 0 | S31: 0.009066410335 | T31: 0 | U31: 0 | X31: 0 | Y31: 0
E32: Indenizações | F32: 654410.151 | G32: 0.0001172370925 | I32: 654410.151 | J32: IGP-M | K32: 0.1135050606 | L32: 728689.0149 | M32: 0 | N32: 728689.0149 | O32: -0.00766016495 | P32: 723107.1369 | Q32: 0.01014175 | R32: 730497.3187 | S32: 0.009066410335 | T32: 737103.9123 | U32: 737103.9123 | X32: 0.0001168371671 | Y32: 0.0001106164031
E33: Outros custos operacionais | F33: 7003340.991 | G33: 0.001254643337 | I33: 7003340.991 | J33: IPCA | K33: 0.1173782289 | L33: 7825380.752 | M33: 0 | N33: 7825380.752 | O33: -0.00766016495 | P33: 7765437.045 | Q33: 0.01014175 | R33: 7844800.1 | S33: 0.009066410335 | T33: 7915748.213 | U33: 7915748.213 | X33: 0.001254712641 | Y33: 0.001187907947
E34: Subtotal | F34: 2348502706 | G34: 0.4207325154 | H34: 0.04007445119 | I34: 2442617663 | K34: 0.06545822922 | L34: 2602507090 | M34: 0 | N34: 2602507090 | O34: -0.00766016495 | P34: 2582571456 | Q34: 0.01014175 | R34: 2608965432 | S34: 0.009066410335 | T34: 2632560829 | U34: 2632560829 | X34: 0.417283024 | Y34: 0.3950656143
E35: Atendimento Telefônico | F35: 10463424.99 | G35: 0.001874514816 | I35: 10463424.99 | J35: IPCA | K35: 0.1173782289 | L35: 11691603.29 | M35: -0.099317 | N35: 10530428.32 | O35: -0.00766016495 | P35: 10440868.71 | Q35: 0.01014175 | R35: 10559442.03 | S35: 0.009066410335 | T35: 10665442.9 | U35: 10665442.9 | X35: 0.001690562367 | Y35: 0.001600551716
E36: Autosserviços de Água e Esgoto | F36: 9943473.381 | G36: 0.001781365871 | H36: 0.0226730037 | I36: 10168921.79 | J36: Variação da receita | K36: 0.09336782285 | L36: 11118371.88 | M36: -0.0002108204449 | N36: 11116027.9 | O36: -0.00729672601 | P36: 11034917.29 | Q36: 0.00973158015 | R36: 11142304.47 | S36: 0.00861588502 | T36: 11238305.28 | U36: 11870316.84 | X36: 0.001781365871 | Y36: 0.001781365871
E37: Manutenção | F37: 406145935 | G37: 0.0727607426 | I37: 406145935 | J37: INCC-DI MS | K37: 0.1607270241 | L37: 471424562.5 | M37: 0 | N37: 471424562.5 | O37: -0.00766016495 | P37: 467813372.6 | Q37: 0.01014175 | R37: 472594442.7 | S37: 0.009066410335 | T37: 476868571.2 | U37: 476868571.2 | X37: 0.07558767768 | Y37: 0.0715631612
E38: Treinamento | F38: 1244364.77 | G38: 0.0002229270243 | I38: 1244364.77 | J38: IPCA | K38: 0.1173782289 | L38: 1390426.103 | M38: 0 | N38: 1390426.103 | O38: -0.00766016495 | P38: 1379775.209 | Q38: 0.01014175 | R38: 1393876.563 | S38: 0.009066410335 | T38: 1406482.737 | U38: 1406482.737 | X38: 0.0002229393384 | Y38: 0.000211069374
E39: Subtotal | F39: 427797198.2 | G39: 0.07663955031 | H39: 0.0005269983295 | I39: 428022646.6 | K39: 0.1579409822 | L39: 495624963.8 | M39: -0.002347579377 | N39: 494461444.8 | O39: -0.00766016495 | P39: 490668933.8 | Q39: 0.01014175 | R39: 495690065.7 | S39: 0.009066410335 | T39: 500178802.1 | U39: 500810813.7 | X39: 0.07928254526 | Y39: 0.07515614816
E40: Total de Custos Operacionais | F40: 2776299904 | G40: 0.4973720657 | H40: 0.03398062483 | I40: 2870640309 | K40: 0.07924773555 | L40: 3098132053 | M40: -0.0003755549872 | N40: 3096968534 | O40: -0.007661732545 | P40: 3073240390 | Q40: 0.01022214477 | R40: 3104655498 | S40: 0.00904581316 | T40: 3132739631 | U40: 3133371643 | X40: 0.4965655693 | Y40: 0.4702217624
C41: Tributos e Outras Obrigações (2) | E41: PIS/Pasep e Cofins | F41: 471446038.5 | G41: 0.08445920764 | H41: 0.0226730037 | I41: 482135136.3 | J41: Variação da receita | K41: 0.09336782285 | L41: 527151044.3 | M41: -0.0002108204449 | N41: 527039910.1 | O41: -0.00729672601 | P41: 523194244.2 | Q41: 0.00973158015 | R41: 528285751 | S41: 0.00861588502 | T41: 532837400.3 | U41: 562802718.5 | X41: 0.08445920764 | Y41: 0.08445920764
E42: TFAS | F42: 43429489.11 | G42: 0.007780360717 | I42: 43429489.11 | J42: Variação TFAS | K42: 0.2217552379 | L42: 53060205.8 | N42: 53060205.8 | P42: 53060205.8 | R42: 53060205.8 | T42: 53060205.8 | U42: 53060205.8 | X42: 0.008410488709 | Y42: 0.007962688863
E43: Outros Tributos e Taxas | F43: 7496283.251 | G43: 0.001342953577 | I43: 7496283.251 | J43: IPCA | K43: 0.1173782289 | L43: 8376183.702 | N43: 8376183.702 | P43: 8376183.702 | R43: 8376183.702 | T43: 8376183.702 | U43: 8376183.702 | X43: 0.001327695537 | Y43: 0.001257005013
E44: Total de Tributos e Outras Obrigações | F44: 522371810.9 | G44: 0.09358252193 | H44: 0.02046262366 | I44: 533060908.6 | K44: 0.104165442 | L44: 588587433.8 | M44: -0.0001888151383 | N44: 588476299.6 | O44: -0.006534954463 | P44: 584630633.7 | Q44: 0.008708929071 | R44: 589722140.5 | S44: 0.007718294728 | T44: 594273789.8 | U44: 624239108 | X44: 0.09419739188 | Y44: 0.09367890151
C45: Programas Especiais (3) | E45: Proteção de Mananciais | F45: 27814289.07 | G45: 0.004982909229 | I45: 27814289.07 | J45: Variação da ROL | K45: 0.0379004769 | L45: 28868463.89 | N45: 28868463.89 | P45: 28868463.89 | R45: 28868463.89 | T45: 28868463.89 | U45: 28868463.89 | X45: 0.004575894232 | Y45: 0.004332259788
E46: Programa de Pesquisa, Desenvolvimento e Inovação | F46: 0 | G46: 0 | I46: 0 | J46: Variação da ROL | K46: - | L46: 5773692.779 | N46: 5773692.779 | P46: 5773692.779 | R46: 5773692.779 | T46: 5773692.779 | U46: 5773692.779 | X46: 0.0009151788463 | Y46: 0.0008664519577
E47: Repasse a Fundos Municipais de Saneamento | F47: 148781888.3 | G47: 0.02665416478 | I47: 166350920 | J47: Variação do Repasse | K47: 0 | L47: 166350920 | N47: 166350920 | P47: 166350920 | R47: 166350920 | T47: 166350920 | U47: 166350920 | X47: 0.02636801937 | Y47: 0.0249641063
E48: Total Programas Especiais | F48: 176596177.3 | G48: 0.031637074 | I48: 194165209.1 | K48: 0.03516524733 | L48: 200993076.7 | N48: 200993076.7 | P48: 200993076.7 | Q48: 0 | R48: 200993076.7 | S48: 0 | T48: 200993076.7 | U48: 200993076.7 | X48: 0.03185909245 | Y48: 0.03016281805
C49: Custos de Capital (4) | E49: Remuneração da BRE | F49: 923255570.7 | G49: 0.1654005498 | I49: 923255570.7 | J49: IPCA | K49: 0.1173782289 | L49: 1031625674 | M49: 0 | N49: 1031625674 | O49: -0.00766016495 | P49: 1023723252 | Q49: 0.01014175 | R49: 1034185741 | S49: 0.009066410335 | T49: 1043538883 | U49: 1043538883 | X49: 0.1654096862 | Y49: 0.1566027745
E50: Amortização da BRE | F50: 826241430.1 | G50: 0.1480205385 | I50: 826241430.1 | J50: IPCA | K50: 0.1173782289 | L50: 923224185.9 | M50: 0 | N50: 923224185.9 | O50: -0.00766016495 | P50: 916152136.3 | Q50: 0.01014175 | R50: 925515245.2 | S50: 0.009066410335 | T50: 933885574.5 | U50: 933885574.5 | X50: 0.148028715 | Y50: 0.1401472186
E51: Anuidade da BRA | F51: 48477367.47 | G51: 0.008684684375 | I51: 48477367.47 | J51: IPCA | K51: 0.1173782289 | L51: 54167555 | M51: 0 | N51: 54167555 | O51: -0.00766016495 | P51: 53752622.6 | Q51: 0.01014175 | R51: 54301976.4 | S51: 0.009066410335 | T51: 54793081.68 | U51: 54793081.68 | X51: 0.008685164105 | Y51: 0.00822273971
E52: Remuneração do capital de giro | F52: 14937739.19 | G52: 0.00267608488 | H52: 0.0226730037 | I52: 15276422.6 | J52: Variação da receita | K52: 0.09336782285 | L52: 16702748.92 | M52: -0.0002108204449 | N52: 16699227.64 | O52: -0.00729672601 | P52: 16577377.95 | Q52: 0.00973158015 | R52: 16738702.03 | S52: 0.00861588502 | T52: 16882920.77 | U52: 17832370.06 | X52: 0.00267608488 | Y52: 0.00267608488
E53: Tributos sobre o lucro (IRPJ e CSLL) | F53: 306629333.7 | G53: 0.05493241738 | H53: 0 | I53: 306629333.7 | J53: IPCA | K53: 0.1173782289 | L53: 342620941.8 | M53: 0 | N53: 342620941.8 | O53: -0.00766016495 | P53: 339996408.9 | Q53: 0.01014175 | R53: 343471184.8 | S53: 0.009066410335 | T53: 346577526.9 | U53: 346577526.9 | X53: 0.05493545177 | Y53: 0.05201052223
E54: Total de Custos de Capital | F54: 2119541441 | G54: 0.3797142749 | H54: 0.0001597908912 | I54: 2119880125 | K54: 0.1172052035 | L54: 2368341106 | M54: -1.486813259e-06 | N54: 2368337585 | O54: -0.00765760233 | P54: 2350201797 | Q54: 0.01021659179 | R54: 2374212850 | S54: 0.009040948894 | T54: 2395677987 | U54: 2396627436 | X54: 0.379735102 | Y54: 0.3596593399
C55: RI (5) | E55: Receitas Irrecuperáveis | F55: 159752836.3 | G55: 0.02861960197 | H55: 0.0226730037 | I55: 163374913 | J55: Variação da receita | K55: 0.09336782285 | L55: 178628872.9 | M55: -0.0002108204449 | N55: 178591214.3 | O55: -0.00729672601 | P55: 177288083.1 | Q55: 0.00973158015 | R55: 179013376.3 | S55: 0.00861588502 | T55: 180555735 | U55: 190709695.8 | X55: 0.02861960197 | Y55: 0.02861960197
C56: RR | E56: Receita Requerida = (1) + (2) + (3) + (4) | F56: 5754562169 | G56: 1.030925539 | H56: 0.02199286259 | I56: 5881121465 | K56: 0.09412508847 | L56: 6434682543 | M56: -0.0002044907502 | N56: 6433366710 | O56: -0.00730764017 | P56: 6386353981 | Q56: 0.009746243424 | R56: 6448596941 | S56: 0.008628741889 | T56: 6504240220 | U56: 6545940960 | X56: 1.030976758 | Y56: 0.9823424239
C57: Outras Receitas (OR) | E57: Receitas Operacionais Indiretas | F57: 32715392.01 | G57: 0.005860938179 | I57: 32715392.01 | J57: INPC | K57: 0.1268168564 | L57: 36864255.18 | M57: 0 | N57: 36864255.18 | O57: -0.00766016495 | P57: 36581868.9 | Q57: 0.01014175 | R57: 36955736.96 | S57: 0.009066410335 | T57: 37289963.43 | U57: 37289963.43 | X57: 0.005910772709 | Y57: 0.0055960653
E58: Receitas Financeiras | F58: 50728288.86 | G58: 0.009087935272 | I58: 50728288.86 | J58: IPCA | K58: 0.1173782289 | L58: 56682685.57 | M58: 0 | N58: 56682685.57 | O58: -0.00766016495 | P58: 56248486.84 | Q58: 0.01014175 | R58: 56823348.47 | S58: 0.009066410335 | T58: 57337256.96 | U58: 57337256.96 | X58: 0.009088437276 | Y58: 0.008604541398
E59: Receita de Resíduos Sólidos | F59: 536043.4329 | G59: 9.603178285e-05 | I59: 536043.4329 | J59: IPCA | K59: 0.1173782289 | L59: 598963.2616 | M59: 0 | N59: 598963.2616 | O59: -0.00766016495 | P59: 594375.1042 | Q59: 0.01014175 | R59: 600449.6399 | S59: 0.009066410335 | T59: 605880.0866 | U59: 605880.0866 | X59: 9.603708751e-05 | Y59: 9.092378262e-05
E60: Receita de Indenizações e Ressarcimentos | F60: 2654167.723 | G60: 0.0004754921763 | I60: 2654167.723 | J60: IPCA | K60: 0.1173782289 | L60: 2965709.23 | M60: 0 | N60: 2965709.23 | O60: -0.00766016495 | P60: 2942991.408 | Q60: 0.01014175 | R60: 2973068.89 | S60: 0.009066410335 | T60: 2999957.226 | U60: 2999957.226 | X60: 0.0004755184418 | Y60: 0.0004502004023
E61: Outras Receitas Diversas | F61: 85990538.43 | G61: 0.01540514109 | I61: 85990538.43 | J61: IPCA | K61: 0.1173782289 | L61: 96083955.54 | M61: 0 | N61: 96083955.54 | O61: -0.00766016495 | P61: 95347936.59 | Q61: 0.01014175 | R61: 96322396.04 | S61: 0.009066410335 | T61: 97193532.61 | U61: 97193532.61 | X61: 0.01540599205 | Y61: 0.01458573045
E62: Total de Outras Receitas | F62: 172624430.5 | G62: 0.0309255385 | I62: 172624430.5 | K62: 0.1191670163 | L62: 193195568.8 | N62: 193195568.8 | O62: -0.00766016495 | P62: 191715658.8 | Q62: 0.01022003717 | R62: 193675000 | S62: 0.009043966962 | T62: 195426590.3 | U62: 195426590.3 | X62: 0.03097675756 | Y62: 0.02932746134
C63: RT base | E63: Receita Tarifária base = RR - OR | F63: 5581937739 | G63: 1 | H63: 0.0226730037 | I63: 5708497034 | K63: 0.09336782285 | L63: 6241486974 | M63: -0.0002108204449 | N63: 6240171141 | O63: -0.00729672601 | P63: 6194638322 | Q63: 0.00973158015 | R63: 6254921941 | S63: 0.00861588502 | T63: 6308813629 | U63: 6350514369 | X63: 1 | Y63: 0.9530149625
E64: Valores para cálculo circular | F64: 5581937739 | I64: 5708497034 | K64: 0.1181577556 | L64: 6241486974 | N64: 6240171141 | P64: 6194638322 | R64: 6254921941 | T64: 6308813629
C65: CF | E65: Componentes Financeiros | U65: 313089686.2 | Y65: 0.04698503746
C66: RT aplic | E66: RT1 aplicação = RT base + CF | U66: 6663604055 | Y66: 1
T70: IRT | U70: 0.1302192759
T71: ETM | U71: 0.1569668801

Sheet 2.IRT_2023
A1: ARSAE-MG
A2: Gerência de Regulação Tarifária (GRT)
A3: =TODAY() -> 2023-11-28
A4: =Sumário!A4 -> Cálculo do Índice de Reajuste Tarifário (IRT) e Efeito Tarifário Médio (ETM) - Reajuste Tarifário da Copasa - 2023
I5: Valores fixos
I6: WACC regulatório | K6: =VLOOKUP(I6,'1 Anterior (IRT_2022)'!$L$2:$N$17,3,FALSE) -> 0.07924041001
I7: NCG (descasamento de prazos pgto/recebimento) | K7: =VLOOKUP(I7,'1 Anterior (IRT_2022)'!$L$2:$N$17,3,FALSE) -> 0.03175509143 | M7: Receita para proteção do PPM e PDI
I8: NCG (estoque de materiais de consumo) | K8: =VLOOKUP(I8,'1 Anterior (IRT_2022)'!$L$2:$N$17,3,FALSE) -> 0.01096441772 | M8: ROL 2023 | O8: 6999206079
I9: Rendimento médio do caixa no PR0 | K9: =VLOOKUP(I9,'1 Anterior (IRT_2022)'!$L$2:$N$17,3,FALSE) -> 0.02232796405
I10: Autosserviços de água e esgoto | K10: =VLOOKUP(I10,'1 Anterior (IRT_2022)'!$L$2:$N$17,3,FALSE) -> 0.001781365871
I11: PIS/Pasep e Cofins | K11: =VLOOKUP(I11,'1 Anterior (IRT_2022)'!$L$2:$N$17,3,FALSE) -> 0.08445920764 | M11: Fator X
B12: Legenda: | I12: PDI | K12: 0.002 | M12: Incentivo atendimento telefônico (FD) | O12: -0.099367
B13: Entrada de dados | I13: Proteção de Mananciais | K13: =VLOOKUP(I13,'1 Anterior (IRT_2022)'!$L$2:$N$17,3,FALSE) -> 0.005 | M13: Fator de incentivo à redução perdas (IP) | O13: -0.00286017054
B14: Destaque | E14: RT0 base | F14: 6823088620 | G14: =F14/'1 Anterior (IRT_2022)'!copiar_RTbase_FQ-1 -> 0.08151690972 | I14: Receitas Irrecuperáveis | K14: =VLOOKUP(I14,'1 Anterior (IRT_2022)'!$L$2:$N$17,3,FALSE) -> 0.02861960197 | M14: Fator de incentivo à universalização do serv. de tratamento de esgoto | O14: 0.01026775424
B15: Valor previsto | E15: RT0 aplicação | F15: 7206942131 | G15: =F15/'1 Anterior (IRT_2022)'!copiar_RTaplic-1 -> 0.08153816923 | I15: Resultado análise de eficiência dos custos op. | K15: =VLOOKUP(I15,'1 Anterior (IRT_2022)'!$L$2:$N$17,3,FALSE) -> - | M15: Fator de Qualidade (FQ) | O15: 0.006366524246
B16: Cálculo diferente
E19: Etapas → | F19: A - Mercado | H19: B - Inflação | M19: C - Fator X (FD + IP + FE + FQ) | U19: D - Componentes Fin.
C20: Grupo | E20: Subgrupo (classificação regulatória) | F20: RT0 base | G20: Peso RT base (reaj. 2022) | H20: Ajuste índices itens não administráveis | I20: Valores ajustados | J20: Índices de inflação utilizados | K20: Inflação (%) | L20: Valores atualizados para preços de 31/12/2023 | M20: Fator de Incentivo ao Desempenho do Atendimento Telefônico (FD) | N20: Valores após FD | O20: Fator de Incentivo redução Perdas (IP) | P20: Valores após IP | Q20: Fator de Universalização do Serv. Trat. Esgoto | R20: Valores após FE | S20: Fator de Qualidade | T20: Valores após FQ (RT1 base) | U20: RT1 aplicação (com impacto dos CF) | X20: (%) RT base | Y20: (%) RT aplic
C21: Custos Operacionais (1) | D21: Custos impactados pelo Fator de Produtividade | E21: Energia Elétrica | F21: =G21*$F$14 -> 549189336.5 | G21: =VLOOKUP(E21,'1 Anterior (IRT_2022)'!$E$21:$Y$63,20,FALSE) -> 0.08048984369 | H21: ='3. Índices_inflação'!AY189 -> 0.004616291796 | I21: =F21*(1+H21) -> 551724554.7 | J21: IEE | K21: =HLOOKUP(J21,'3. Índices_inflação'!$A$1:$BA$162,162,FALSE) -> 0.2012367024 | L21: =I21*(1+K21) -> 662751784.7 | N21: =L21*(1+M21) -> 662751784.7 | O21: =$O$13 -> -0.00286017054 | P21: =(L21*O21)+N21 -> 660856201.6 | Q21: =$O$14 -> 0.01026775424 | R21: =(Q21*L21)+P21 -> 667661174.1 | S21: =$O$15 -> 0.006366524246 | T21: =R21+S21*L21 -> 671880599.4 | U21: =T21 -> 671880599.4 | X21: =T21/copiar_RTbase_FQ -> 0.09262277489 | Y21: =U21/copiar_RTaplic -> 0.08946191166
E22: Pessoal | F22: =G22*$F$14 -> 1764156505 | G22: =VLOOKUP(E22,'1 Anterior (IRT_2022)'!$E$21:$Y$63,20,FALSE) -> 0.25855688 | I22: =F22 -> 1764156505 | J22: INPC | K22: =HLOOKUP(J22,'3. Índices_inflação'!$A$1:$BA$162,162,FALSE) -> 0.03821136809 | L22: =I22*(1+K22) -> 1831567339 | N22: =L22*(1+M22) -> 1831567339 | O22: -0.00286017054 | P22: =(L22*O22)+N22 -> 1826328744 | Q22: 0.01026775424 | R22: =(Q22*L22)+P22 -> 1845134827 | S22: 0.006366524246 | T22: =R22+S22*L22 -> 1856795545 | U22: =T22 -> 1856795545 | X22: 0.2559704149 | Y22: 0.2472351177
E23: Combustíveis e Lubrificantes | F23: =G23*$F$14 -> 41563857.95 | G23: =VLOOKUP(E23,'1 Anterior (IRT_2022)'!$E$21:$Y$63,20,FALSE) -> 0.006091648557 | H23: ='3. Índices_inflação'!AS189 -> -0.1765686783 | I23: =F23*(1+H23) -> 34224982.48 | J23: IPCA BH Comb | K23: =HLOOKUP(J23,'3. Índices_inflação'!$A$1:$BA$162,162,FALSE) -> 0.02248264373 | L23: 34994450.57 | N23: 34994450.57 | O23: -0.00286017054 | P23: 34894360.47 | Q23: 0.01026775424 | R23: 35253674.89 | S23: 0.006366524246 | T23: 35476467.91 | U23: 35476467.91 | X23: 0.004890644117 | Y23: 0.004723745024
E24: Material de Tratamento | F24: 126433025.5 | G24: =VLOOKUP(E24,'1 Anterior (IRT_2022)'!$E$21:$Y$63,20,FALSE) -> 0.01853017491 | H24: ='3. Índices_inflação'!E189 -> -0.03821703704 | I24: 121601129.9 | J24: IGP-M | K24: =HLOOKUP(J24,'3. Índices_inflação'!$A$1:$BA$162,162,FALSE) -> -0.03602610428 | L24: 117220314.9 | N24: 117220314.9 | O24: -0.00286017054 | P24: 116885044.8 | Q24: 0.01026775424 | R24: 118088634.2 | S24: 0.006366524246 | T24: 118834920.2 | U24: 118834920.2 | X24: 0.01638210729 | Y24: 0.01582304824
E25: Outros Materiais | F25: 18796025.74 | G25: =VLOOKUP(E25,'1 Anterior (IRT_2022)'!$E$21:$Y$63,20,FALSE) -> 0.002754767934 | I25: 18796025.74 | J25: IGP-M | K25: =HLOOKUP(J25,'3. Índices_inflação'!$A$1:$BA$162,162,FALSE) -> -0.03602610428 | L25: 18118878.16 | N25: 18118878.16 | O25: -0.00286017054 | P25: 18067055.08 | Q25: 0.01026775424 | R25: 18253095.27 | S25: 0.006366524246 | T25: 18368449.54 | U25: 18368449.54 | X25: 0.002532201062 | Y25: 0.002445786665
E26: Serviços de Terceiros | F26: 173063790.6 | G26: =VLOOKUP(E26,'1 Anterior (IRT_2022)'!$E$21:$Y$63,20,FALSE) -> 0.02536443541 | I26: 173063790.6 | J26: IPCA | K26: =HLOOKUP(J26,'3. Índices_inflação'!$A$1:$BA$162,162,FALSE) -> 0.04617050125 | L26: 181054232.5 | N26: 181054232.5 | O26: -0.00286017054 | P26: 180536386.6 | Q26: 0.01026775424 | R26: 182395406.9 | S26: 0.006366524246 | T26: 183548093.1 | U26: 183548093.1 | X26: 0.02530320673 | Y26: 0.02443970447
E27: Aluguel | F27: 74886778.77 | G27: =VLOOKUP(E27,'1 Anterior (IRT_2022)'!$E$21:$Y$63,20,FALSE) -> 0.01097549555 | I27: 74886778.77 | J27: IGP-M | K27: =HLOOKUP(J27,'3. Índices_inflação'!$A$1:$BA$162,162,FALSE) -> -0.03602610428 | L27: =I27*(1+K27) -> 72188899.87 | N27: 72188899.87 | O27: -0.00286017054 | P27: 71982427.3 | Q27: 0.01026775424 | R27: 72723645.18 | S27: 0.006366524246 | T27: 73183237.56 | U27: 73183237.56 | X27: 0.01008874872 | Y27: 0.009744458078
E28: Comercialização | F28: 71249697.77 | G28: =VLOOKUP(E28,'1 Anterior (IRT_2022)'!$E$21:$Y$63,20,FALSE) -> 0.01044244062 | I28: 71249697.77 | J28: IPCA | K28: =HLOOKUP(J28,'3. Índices_inflação'!$A$1:$BA$162,162,FALSE) -> 0.04617050125 | L28: 74539332.03 | N28: 74539332.03 | O28: -0.00286017054 | P28: 74326136.83 | Q28: 0.01026775424 | R28: 75091488.37 | S28: 0.006366524246 | T28: 75566044.84 | U28: 75566044.84 | X28: 0.01041723301 | Y28: 0.01006173245
E29: Telecomunicação | F29: 13447986.15 | G29: =VLOOKUP(E29,'1 Anterior (IRT_2022)'!$E$21:$Y$63,20,FALSE) -> 0.001970952877 | H29: ='3. Índices_inflação'!AP189 -> -0.04092880569 | I29: 12897576.14 | J29: IPCA BH Tel | K29: =HLOOKUP(J29,'3. Índices_inflação'!$A$1:$BA$162,162,FALSE) -> 0.03617175405 | L29: 13364104.09 | N29: 13364104.09 | O29: -0.00286017054 | P29: 13325880.47 | Q29: 0.01026775424 | R29: 13463099.81 | S29: 0.006366524246 | T29: 13548182.7 | U29: 13548182.7 | X29: 0.001867698335 | Y29: 0.00180396089
E30: Comunicação, Publicidade e Propaganda Legal | F30: 5013842.439 | G30: =VLOOKUP(E30,'1 Anterior (IRT_2022)'!$E$21:$Y$63,20,FALSE) -> 0.0007348347234 | I30: 5013842.439 | J30: IPCA | K30: =HLOOKUP(J30,'3. Índices_inflação'!$A$1:$BA$162,162,FALSE) -> 0.04617050125 | L30: 5245334.057 | N30: 5245334.057 | O30: -0.00286017054 | P30: 5230331.508 | Q30: 0.01026775424 | R30: 5284189.309 | S30: 0.006366524246 | T30: 5317583.855 | U30: 5317583.855 | X30: 0.0007330608635 | Y30: 0.0007080442828
E31: Convênios | F31: 0 | G31: =VLOOKUP(E31,'1 Anterior (IRT_2022)'!$E$21:$Y$63,20,FALSE) -> 0 | I31: 0 | J31: IPCA | K31: =HLOOKUP(J31,'3. Índices_inflação'!$A$1:$BA$162,162,FALSE) -> 0.04617050125 | L31: 0 | N31: 0 | O31: -0.00286017054 | P31: 0 | Q31: 0.01026775424 | R31: 0 | S31: 0.006366524246 | T31: 0 | U31: 0 | X31: 0 | Y31: 0
E32: Indenizações | F32: 797190.3454 | G32: =VLOOKUP(E32,'1 Anterior (IRT_2022)'!$E$21:$Y$63,20,FALSE) -> 0.0001168371671 | I32: 797190.3454 | J32: IGP-M | K32: =HLOOKUP(J32,'3. Índices_inflação'!$A$1:$BA$162,162,FALSE) -> -0.03602610428 | L32: 768470.6829 | N32: 768470.6829 | O32: -0.00286017054 | P32: 766272.7256 | Q32: 0.01026775424 | R32: 774163.1938 | S32: 0.006366524246 | T32: 779055.681 | U32: 779055.681 | X32: 0.0001073975034 | Y32: 0.0001037324349
E33: Outros custos operacionais | F33: 8561015.546 | G33: =VLOOKUP(E33,'1 Anterior (IRT_2022)'!$E$21:$Y$63,20,FALSE) -> 0.001254712641 | I33: 8561015.546 | J33: IPCA | K33: =HLOOKUP(J33,'3. Índices_inflação'!$A$1:$BA$162,162,FALSE) -> 0.04617050125 | L33: 8956281.925 | N33: 8956281.925 | O33: -0.00286017054 | P33: =(L33*O33)+N33 -> 8930665.431 | Q33: 0.01026775424 | R33: 9022626.333 | S33: 0.006366524246 | T33: 9079646.719 | U33: 9079646.719 | X33: 0.001251683818 | Y33: 0.001208968608
E34: Subtotal | F34: =SUM(F21:F33) -> 2847159053 | G34: =F34/copiar_RTbase_ref -> 0.417283024 | H34: =I34/F34-1 -> -0.003577588283 | I34: =SUM(I21:I33) -> 2836973090 | K34: =L34/I34-1 -> 0.06478606843 | L34: =SUM(L21:L33) -> 3020769423 | N34: =SUM(N21:N33) -> 3020769423 | O34: -0.00286017054 | P34: =SUM(P21:P33) -> 3012129507 | Q34: 0.01026775424 | R34: =SUM(R21:R33) -> 3043146025 | S34: 0.006366524246 | T34: =SUM(T21:T33) -> 3062377827 | U34: =SUM(U21:U33) -> 3062377827 | X34: 0.4221671713 | Y34: 0.4077602105
E35: Atendimento Telefônico | F35: =G35*$F$14 -> 11534856.85 | G35: =VLOOKUP(E35,'1 Anterior (IRT_2022)'!$E$21:$Y$63,20,FALSE) -> 0.001690562367 | I35: =F35*(1+H35) -> 11534856.85 | J35: IPCA | K35: =HLOOKUP(J35,'3. Índices_inflação'!$A$1:$BA$162,162,FALSE) -> 0.04617050125 | L35: =I35*(1+K35) -> 12067426.97 | M35: =$O$12 -> -0.099367 | N35: =L35*(1+M35) -> 10868322.96 | O35: -0.00286017054 | P35: 10833808.06 | Q35: 0.01026775424 | R35: 10957713.43 | S35: 0.006366524246 | T35: 11034541 | U35: =T35 -> 11034541 | X35: 0.001521177733 | Y35: 0.001469265719
E36: Autosserviços de Água e Esgoto | F36: =G36*$F$14 -> 12154417.2 | G36: =VLOOKUP(E36,'1 Anterior (IRT_2022)'!$E$21:$Y$63,20,FALSE) -> 0.001781365871 | H36: =I36/F36-1 -> -0.001691703342 | I36: =$K$10*colar_RTbase_ajust -> 12133855.53 | J36: Variação da receita | K36: =L36/I36-1 -> 0.05134283596 | L36: =$K$10*colar_RTbase_inflac -> 12756842.09 | M36: =N36/L36-1 -> -0.0001897448232 | N36: =$K$10*colar_RTbase_AT -> 12754421.54 | O36: =P36/N36-1 -> -0.002727148396 | P36: =$K$10*colar_RTbase_IP -> 12719638.34 | Q36: =R36/P36-1 -> 0.00981698913 | R36: =$K$10*colar_RTbase_FE -> 12844506.89 | S36: =T36/R36-1 -> 0.006027851841 | T36: =$K$10*colar_RTbase_FQ -> 12921931.68 | U36: =$K$10*colar_RTaplic -> 13378488.64 | X36: 0.001781365871 | Y36: 0.001781365871
E37: Manutenção | F37: =G37*$F$14 -> 515741423.4 | G37: =VLOOKUP(E37,'1 Anterior (IRT_2022)'!$E$21:$Y$63,20,FALSE) -> 0.07558767768 | I37: =F37*(1+H37) -> 515741423.4 | J37: INCC-DI MS | K37: =HLOOKUP(J37,'3. Índices_inflação'!$A$1:$BA$162,162,FALSE) -> 0.00705676776 | L37: =I37*(1+K37) -> 519380890.9 | N37: =L37*(1+M37) -> 519380890.9 | O37: =$O$13 -> -0.00286017054 | P37: 517895373 | Q37: =$O$14 -> 0.01026775424 | R37: 523228248.3 | S37: =$O$15 -> 0.006366524246 | T37: 526534899.4 | U37: =T37 -> 526534899.4 | X37: 0.07258599742 | Y37: 0.07010891324
E38: Treinamento | F38: 1521134.863 | G38: =VLOOKUP(E38,'1 Anterior (IRT_2022)'!$E$21:$Y$63,20,FALSE) -> 0.0002229393384 | I38: =F38*(1+H38) -> 1521134.863 | J38: IPCA | K38: =HLOOKUP(J38,'3. Índices_inflação'!$A$1:$BA$162,162,FALSE) -> 0.04617050125 | L38: =I38*(1+K38) -> 1591366.422 | N38: 1591366.422 | O38: =$O$13 -> -0.00286017054 | P38: 1586814.843 | Q38: =$O$14 -> 0.01026775424 | R38: 1603154.602 | S38: =$O$15 -> 0.006366524246 | T38: 1613286.075 | U38: =T38 -> 1613286.075 | X38: 0.0002224011723 | Y38: 0.0002148114657
E39: Subtotal | F39: =SUM(F35:F38) -> 540951832.4 | G39: =F39/copiar_RTbase_ref -> 0.07928254526 | H39: =I39/F39-1 -> -3.801016462e-05 | I39: =SUM(I35:I38) -> 540931270.7 | K39: =L39/I39-1 -> 0.008994221538 | L39: =SUM(L35:L38) -> 545796526.4 | M39: =N39/L39-1 -> -0.002201414818 | N39: =SUM(N35:N38) -> 544595001.8 | O39: =$O$13 -> -0.00286017054 | P39: =SUM(P35:P38) -> 543035634.2 | Q39: =$O$14 -> 0.01026775424 | R39: =SUM(R35:R38) -> 548633623.2 | S39: =$O$15 -> 0.006366524246 | T39: =SUM(T35:T38) -> 552104658.1 | U39: =SUM(U35:U38) -> 552561215.1 | X39: 0.0761109422 | Y39: 0.0735743563
E40: Total de Custos Operacionais | F40: =F34+F39 -> 3388110885 | G40: =F40/copiar_RTbase_ref -> 0.4965655693 | H40: =I40/F40-1 -> -0.003012452922 | I40: =SUM(I21:I33)+SUM(I35:I38) -> 3377904361 | K40: =L40/I40-1 -> 0.05585166668 | L40: =SUM(L21:L33)+SUM(L35:L38) -> 3566565949 | M40: =N40/L40-1 -> -0.0003368855582 | N40: =SUM(N21:N33)+SUM(N35:N38) -> 3565364425 | O40: =P40/N40-1 -> -0.002860656612 | P40: =SUM(P21:P33)+SUM(P35:P38) -> 3555165141 | Q40: =R40/P40-1 -> 0.01029896098 | R40: =SUM(R21:R33)+SUM(R35:R38) -> 3591779648 | S40: =T40/R40-1 -> 0.006320776566 | T40: =SUM(T21:T33)+SUM(T35:T38) -> 3614482485 | U40: =SUM(U21:U33)+SUM(U35:U38) -> 3614939042 | X40: =X34+X39 -> 0.4982781135 | Y40: =Y34+Y39 -> 0.4813345668
C41: Tributos e Outras Obrigações (2) | E41: PIS/Pasep e Cofins | F41: =G41*$F$14 -> 576272658.5 | G41: =VLOOKUP(E41,'1 Anterior (IRT_2022)'!$E$21:$Y$63,20,FALSE) -> 0.08445920764 | H41: =I41/F41-1 -> -0.001691703342 | I41: =$K$11*colar_RTbase_ajust -> 575297776.1 | J41: Variação da receita | K41: =L41/I41-1 -> 0.05134283596 | L41: =$K$11*colar_RTbase_inflac -> 604835195.5 | M41: =N41/L41-1 -> -0.0001897448232 | N41: =$K$11*colar_RTbase_FP -> 604720431.1 | O41: =P41/N41-1 -> -0.002727148396 | P41: =$K$11*colar_RTbase_IP -> 603071268.8 | Q41: =R41/P41-1 -> 0.00981698913 | R41: =$K$11*colar_RTbase_FE -> 608991612.9 | S41: =T41/R41-1 -> 0.006027851841 | T41: =$K$11*colar_RTbase_FQ -> 612662524.1 | U41: =$K$11*colar_RTaplic -> 634309081.9 | X41: =T41/copiar_RTbase_FQ -> 0.08445920764 | Y41: =U41/copiar_RTaplic -> 0.08445920764
E42: TFAS | F42: 57385509.81 | G42: =VLOOKUP(E42,'1 Anterior (IRT_2022)'!$E$21:$Y$63,20,FALSE) -> 0.008410488709 | I42: =F42*(1+H42) -> 57385509.81 | J42: Variação TFAS | K42: =L42/I42-1 -> -0.009977660873 | L42: 56812936.65 | N42: =L42*(1+M42) -> 56812936.65 | P42: =N42*(1+O42) -> 56812936.65 | R42: =P42*(1+Q42) -> 56812936.65 | T42: 56812936.65 | U42: =T42 -> 56812936.65 | X42: =T42/copiar_RTbase_FQ -> 0.007832004447 | Y42: =U42/copiar_RTaplic -> 0.007564727906
E43: Outros Tributos e Taxas | F43: 9058984.313 | G43: =VLOOKUP(E43,'1 Anterior (IRT_2022)'!$E$21:$Y$63,20,FALSE) -> 0.001327695537 | I43: =F43*(1+H43) -> 9058984.313 | J43: IPCA | K43: =HLOOKUP(J43,'3. Índices_inflação'!$A$1:$BA$162,162,FALSE) -> 0.04617050125 | L43: =I43*(1+K43) -> 9477242.159 | N43: =L43*(1+M43) -> 9477242.159 | P43: =(L43*O43)+N43 -> 9477242.159 | R43: =(Q43*L43)+P43 -> 9477242.159 | T43: 9477242.159 | U43: =T43 -> 9477242.159 | X43: =T43/copiar_RTbase_FQ -> 0.001306494737 | Y43: =U43/copiar_RTaplic -> 0.001261909038
E44: Total de Tributos e Outras Obrigações | F44: =SUM(F41:F43) -> 642717152.6 | G44: =F44/copiar_RTbase_ref -> 0.09419739188 | H44: =I44/F44-1 -> -0.001516814011 | I44: =SUM(I41:I43) -> 641742270.2 | K44: =L44/I44-1 -> 0.04578645571 | L44: =SUM(L41:L43) -> 671125374.3 | M44: =N44/L44-1 -> -0.0001710028434 | N44: =SUM(N41:N43) -> 671010609.9 | O44: =P44/N44-1 -> -0.002457729177 | P44: =SUM(P41:P43) -> 669361447.6 | Q44: =R44/P44-1 -> 0.008844764083 | R44: =SUM(R41:R43) -> 675281791.7 | S44: =T44/R44-1 -> 0.005436117574 | T44: =SUM(T41:T43) -> 678952702.9 | U44: =SUM(U41:U43) -> 700599260.7 | X44: =SUM(X41:X43) -> 0.09359770682 | Y44: =SUM(Y41:Y43) -> 0.09328584458
C45: Programas Especiais (3) | E45: Proteção de Mananciais | F45: 31221731.86 | G45: =VLOOKUP(E45,'1 Anterior (IRT_2022)'!$E$21:$Y$63,20,FALSE) -> 0.004575894232 | I45: =F45*(1+H45) -> 31221731.86 | J45: Variação da ROL | K45: =L45/I45-1 -> 0.1208869051 | L45: =$K$13*O8 -> 34996030.4 | N45: =L45*(1+M45) -> 34996030.4 | P45: =N45*(1+O45) -> 34996030.4 | R45: 34996030.4 | T45: 34996030.4 | U45: =T45 -> 34996030.4 | X45: 0.004824412922 | Y45: =U45/copiar_RTaplic -> 0.004659774047
E46: Programa de Pesquisa, Desenvolvimento e Inovação | F46: 6244346.372 | G46: =VLOOKUP(E46,'1 Anterior (IRT_2022)'!$E$21:$Y$63,20,FALSE) -> 0.0009151788463 | I46: =F46*(1+H46) -> 6244346.372 | J46: Variação da ROL | K46: - | L46: =$K$12*O8 -> 13998412.16 | N46: 13998412.16 | P46: 13998412.16 | R46: 13998412.16 | T46: 13998412.16 | U46: =T46 -> 13998412.16 | X46: 0.001929765169 | Y46: =U46/copiar_RTaplic -> 0.001863909619
E47: Repasse a Fundos Municipais de Saneamento | F47: 179911332.9 | G47: =VLOOKUP(E47,'1 Anterior (IRT_2022)'!$E$21:$Y$63,20,FALSE) -> 0.02636801937 | I47: =F47*(1+H47) -> 179911332.9 | J47: Variação do Repasse | K47: =L47/I47-1 -> -0.0007755149441 | L47: 179771809 | N47: =L47 -> 179771809 | P47: 179771809 | R47: 179771809 | T47: 179771809 | U47: =T47 -> 179771809 | X47: 0.0247826233 | Y47: =U47/copiar_RTaplic -> 0.02393688657
E48: Total Programas Especiais | F48: =SUM(F45:F47) -> 217377411.2 | G48: =F48/copiar_RTbase_ref -> 0.03185909245 | I48: =SUM(I45:I47) -> 217377411.2 | K48: =L48/I48-1 -> 0.05239201413 | L48: =SUM(L45:L47) -> 228766251.6 | N48: =SUM(N45:N47) -> 228766251.6 | P48: =SUM(P45:P47) -> 228766251.6 | Q48: =R48/P48-1 -> 0 | R48: =SUM(R45:R47) -> 228766251.6 | S48: =T48/R48-1 -> 0 | T48: =SUM(T45:T47) -> 228766251.6 | U48: =SUM(U45:U47) -> 228766251.6 | X48: =SUM(X45:X47) -> 0.03153680139 | Y48: =SUM(Y45:Y47) -> 0.03046057024
C49: Custos de Capital (4) | E49: Remuneração da BRE | F49: =G49*$F$14 -> 1128604948 | G49: =VLOOKUP(E49,'1 Anterior (IRT_2022)'!$E$21:$Y$63,20,FALSE) -> 0.1654096862 | I49: =F49*(1+H49) -> 1128604948 | J49: IPCA | K49: =HLOOKUP(J49,'3. Índices_inflação'!$A$1:$BA$162,162,FALSE) -> 0.04617050125 | L49: =I49*(1+K49) -> 1180713204 | N49: =L49*(1+M49) -> 1180713204 | O49: =$O$13 -> -0.00286017054 | P49: =(L49*O49)+N49 -> 1177336163 | Q49: =$O$14 -> 0.01026775424 | R49: =(Q49*L49)+P49 -> 1189459436 | S49: =$O$15 -> 0.006366524246 | T49: 1196976475 | U49: =T49 -> 1196976475 | X49: =T49/copiar_RTbase_FQ -> 0.1650103943 | Y49: =U49/copiar_RTaplic -> 0.1593792168
E50: Amortização da BRE | F50: 1010013041 | G50: =VLOOKUP(E50,'1 Anterior (IRT_2022)'!$E$21:$Y$63,20,FALSE) -> 0.148028715 | I50: =F50*(1+H50) -> 1010013041 | J50: IPCA | K50: =HLOOKUP(J50,'3. Índices_inflação'!$A$1:$BA$162,162,FALSE) -> 0.04617050125 | L50: =I50*(1+K50) -> 1056645849 | N50: =L50*(1+M50) -> 1056645849 | O50: =$O$13 -> -0.00286017054 | P50: 1053623662 | Q50: =$O$14 -> 0.01026775424 | R50: 1064473041 | S50: =$O$15 -> 0.006366524246 | T50: 1071200203 | U50: =T50 -> 1071200203 | X50: =T50/copiar_RTbase_FQ -> 0.1476713799 | Y50: =U50/copiar_RTaplic -> 0.1426319171
E51: Anuidade da BRA | F51: 59259644.37 | G51: =VLOOKUP(E51,'1 Anterior (IRT_2022)'!$E$21:$Y$63,20,FALSE) -> 0.008685164105 | I51: =F51*(1+H51) -> 59259644.37 | J51: IPCA | K51: =HLOOKUP(J51,'3. Índices_inflação'!$A$1:$BA$162,162,FALSE) -> 0.04617050125 | L51: =I51*(1+K51) -> 61995691.85 | N51: =L51*(1+M51) -> 61995691.85 | O51: =$O$13 -> -0.00286017054 | P51: 61818373.6 | Q51: =$O$14 -> 0.01026775424 | R51: 62454930.13 | S51: =$O$15 -> 0.006366524246 | T51: 62849627.21 | U51: =T51 -> 62849627.21 | X51: =T51/copiar_RTbase_FQ -> 0.008664198487 | Y51: =U51/copiar_RTaplic -> 0.008368522327
E52: Remuneração do capital de giro | F52: 18259164.29 | G52: =VLOOKUP(E52,'1 Anterior (IRT_2022)'!$E$21:$Y$63,20,FALSE) -> 0.00267608488 | H52: =I52/F52-1 -> -0.001691703342 | I52: =$K$6*$K$8*colar_RTbase_ajust+($K$6-$K$9)*$K$7*colar_RTbase_ajust -> 18228275.21 | J52: Variação da receita | K52: =L52/I52-1 -> 0.05134283596 | L52: =($K$6*$K$8*colar_RTbase_inflac)+((($K$6-$K$9)*$K$7)*colar_RTbase_inflac) -> 19164166.55 | M52: =N52/L52-1 -> -0.0001897448232 | N52: =($K$6*$K$8*colar_RTbase_FP)+((($K$6-$K$9)*$K$7)*colar_RTbase_FP) -> 19160530.25 | O52: =P52/N52-1 -> -0.002727148396 | P52: =($K$6*$K$8*colar_RTbase_IP)+((($K$6-$K$9)*$K$7)*colar_RTbase_IP) -> 19108276.64 | Q52: =R52/P52-1 -> 0.00981698913 | R52: =($K$6*$K$8*colar_RTbase_FE)+((($K$6-$K$9)*$K$7)*colar_RTbase_FE) -> 19295862.38 | S52: =T52/R52-1 -> 0.006027851841 | T52: =($K$6*$K$8*colar_RTbase_FQ)+((($K$6-$K$9)*$K$7)*colar_RTbase_FQ) -> 19412174.98 | U52: =($K$6*$K$8*colar_RTaplic)+((($K$6-$K$9)*$K$7)*colar_RTaplic) -> 20098044.86 | X52: =T52/copiar_RTbase_FQ -> 0.00267608488 | Y52: =U52/copiar_RTaplic -> 0.00267608488
E53: Tributos sobre o lucro (IRPJ e CSLL) | F53: =G53*$F$14 -> 374829455.8 | G53: =VLOOKUP(E53,'1 Anterior (IRT_2022)'!$E$21:$Y$63,20,FALSE) -> 0.05493545177 | H53: =I53/F53-1 -> 0 | I53: =F53 -> 374829455.8 | J53: IPCA | K53: =HLOOKUP(J53,'3. Índices_inflação'!$A$1:$BA$162,162,FALSE) -> 0.04617050125 | L53: =I53*(1+K53) -> 392135519.7 | N53: =L53*(1+M53) -> 392135519.7 | O53: =$O$13 -> -0.00286017054 | P53: =(L53*O53)+N53 -> 391013945.2 | Q53: =$O$14 -> 0.01026775424 | R53: =(Q53*L53)+P53 -> 395040296.4 | S53: =$O$15 -> 0.006366524246 | T53: 397536836.7 | U53: =T53 -> 397536836.7 | X53: =T53/copiar_RTbase_FQ -> 0.05480283992 | Y53: =U53/copiar_RTaplic -> 0.05293262731
E54: Total de Custos de Capital | F54: =SUM(F49:F53) -> 2590966253 | G54: =F54/copiar_RTbase_ref -> 0.379735102 | H54: =I54/F54-1 -> -1.19218416e-05 | I54: =SUM(I49:I53) -> 2590935364 | K54: =L54/I54-1 -> 0.04620689071 | L54: =SUM(L49:L53) -> 2710654431 | M54: =N54/L54-1 -> -1.341484681e-06 | N54: =SUM(N49:N53) -> 2710650795 | O54: =P54/N54-1 -> -0.002859230259 | P54: =SUM(P49:P53) -> 2702900420 | Q54: =R54/P54-1 -> 0.01029381109 | R54: =SUM(R49:R53) -> 2730723566 | S54: =T54/R54-1 -> 0.006317648128 | T54: =SUM(T49:T53) -> 2747975317 | U54: =SUM(U49:U53) -> 2748661187 | X54: =SUM(X49:X53) -> 0.3788248975 | Y54: =SUM(Y49:Y53) -> 0.3659883683
C55: RI (5) | E55: Receitas Irrecuperáveis | F55: =G55*$F$14 -> 195274080.5 | G55: =VLOOKUP(E55,'1 Anterior (IRT_2022)'!$E$21:$Y$63,20,FALSE) -> 0.02861960197 | H55: =I55/F55-1 -> -0.001691703342 | I55: =$K$14*colar_RTbase_ajust -> 194943734.7 | J55: Variação da receita | K55: =L55/I55-1 -> 0.05134283596 | L55: =$K$14*colar_RTbase_inflac -> 204952698.9 | M55: =N55/L55-1 -> -0.0001897448232 | N55: =$K$14*colar_RTbase_FP -> 204913810.2 | O55: =P55/N55-1 -> -0.002727148396 | P55: =$K$14*colar_RTbase_IP -> 204354979.8 | Q55: =R55/P55-1 -> 0.00981698913 | R55: =$K$14*colar_RTbase_FE -> 206361130.4 | S55: =T55/R55-1 -> 0.006027851841 | T55: =$K$14*colar_RTbase_FQ -> 207605044.8 | U55: =$K$14*colar_RTaplic -> 214940134.5 | X55: =T55/copiar_RTbase_FQ -> 0.02861960197 | Y55: =U55/copiar_RTaplic -> 0.02861960197
C56: RR | E56: Receita Requerida = (1) + (2) + (3) + (4) | F56: =F40+F44+F54+F55+F48 -> 7034445782 | G56: =F56/copiar_RTbase_ref -> 1.030976758 | H56: =I56/F56-1 -> -0.001640874374 | I56: =I40+I44+I54+I55+I48 -> 7022903141 | K56: =L56/I56-1 -> 0.05114146629 | L56: =L40+L44+L54+L55+L48 -> 7382064705 | M56: =N56/L56-1 -> -0.0001840696305 | N56: =N40+N44+N54+N55+N48 -> 7380705891 | O56: =P56/N56-1 -> -0.002731127769 | P56: =P40+P44+P54+P55+P48 -> 7360548240 | Q56: =R56/P56-1 -> 0.009831353012 | R56: =R40+R44+R54+R55+R48 -> 7432912388 | S56: =T56/R56-1 -> 0.006036585722 | T56: =T40+T44+T54+T55+T48 -> 7477781801 | U56: =U40+U44+U54+U55+U48 -> 7507905875 | X56: =X40+X44+X54+X55+X48 -> 1.030857121 | Y56: =Y40+Y44+Y54+Y55+Y48 -> 0.9996889519
C57: Outras Receitas (OR) | E57: Receitas Operacionais Indiretas | F57: =G57*$F$14 -> 40329726.01 | G57: =VLOOKUP(E57,'1 Anterior (IRT_2022)'!$E$21:$Y$63,20,FALSE) -> 0.005910772709 | I57: =F57*(1+H57) -> 40329726.01 | J57: INPC | K57: =HLOOKUP(J57,'3. Índices_inflação'!$A$1:$BA$162,162,FALSE) -> 0.03821136809 | L57: =I57*(1+K57) -> 41870780.01 | N57: =L57*(1+M57) -> 41870780.01 | O57: =$O$13 -> -0.00286017054 | P57: =(L57*O57)+N57 -> 41751022.44 | Q57: =$O$14 -> 0.01026775424 | R57: =(Q57*L57)+P57 -> 42180941.32 | S57: =$O$15 -> 0.006366524246 | T57: =R57+S57*L57 -> 42447512.66 | U57: =T57 -> 42447512.66 | X57: =T57/copiar_RTbase_FQ -> 0.005851644493 | Y57: =U57/copiar_RTaplic -> 0.00565195011
E58: Receitas Financeiras | F58: =G58*$F$14 -> 62011212.96 | G58: =VLOOKUP(E58,'1 Anterior (IRT_2022)'!$E$21:$Y$63,20,FALSE) -> 0.009088437276 | I58: =F58*(1+H58) -> 62011212.96 | J58: IPCA | K58: =HLOOKUP(J58,'3. Índices_inflação'!$A$1:$BA$162,162,FALSE) -> 0.04617050125 | L58: =I58*(1+K58) -> 64874301.74 | N58: =L58*(1+M58) -> 64874301.74 | O58: =$O$13 -> -0.00286017054 | P58: 64688750.17 | Q58: =$O$14 -> 0.01026775424 | R58: 65354863.56 | S58: =$O$15 -> 0.006366524246 | T58: 65767887.38 | U58: =T58 -> 65767887.38 | X58: =T58/copiar_RTbase_FQ -> 0.009066498174 | Y58: =U58/copiar_RTaplic -> 0.008757093055
E59: Receita de Resíduos Sólidos | F59: =G59*$F$14 -> 655269.5589 | G59: =VLOOKUP(E59,'1 Anterior (IRT_2022)'!$E$21:$Y$63,20,FALSE) -> 9.603708751e-05 | I59: =F59*(1+H59) -> 655269.5589 | J59: IPCA | K59: =HLOOKUP(J59,'3. Índices_inflação'!$A$1:$BA$162,162,FALSE) -> 0.04617050125 | L59: =I59*(1+K59) -> 685523.6829 | N59: =L59*(1+M59) -> 685523.6829 | O59: =$O$13 -> -0.00286017054 | P59: 683562.9683 | Q59: =$O$14 -> 0.01026775424 | R59: 690601.757 | S59: =$O$15 -> 0.006366524246 | T59: 694966.1601 | U59: =T59 -> 694966.1601 | X59: =T59/copiar_RTbase_FQ -> 9.580525805e-05 | Y59: =U59/copiar_RTaplic -> 9.253578877e-05
E60: Receita de Indenizações e Ressarcimentos | F60: =G60*$F$14 -> 3244504.469 | G60: =VLOOKUP(E60,'1 Anterior (IRT_2022)'!$E$21:$Y$63,20,FALSE) -> 0.0004755184418 | I60: =F60 -> 3244504.469 | J60: IPCA | K60: =HLOOKUP(J60,'3. Índices_inflação'!$A$1:$BA$162,162,FALSE) -> 0.04617050125 | L60: =I60*(1+K60) -> 3394304.866 | N60: =L60*(1+M60) -> 3394304.866 | O60: =$O$13 -> -0.00286017054 | P60: 3384596.576 | Q60: =$O$14 -> 0.01026775424 | R60: 3419448.464 | S60: =$O$15 -> 0.006366524246 | T60: 3441058.388 | U60: =T60 -> 3441058.388 | X60: =T60/copiar_RTbase_FQ -> 0.0004743705604 | Y60: =U60/copiar_RTaplic -> 0.0004581820964
E61: Outras Receitas Diversas | F61: =G61*$F$14 -> 105116449 | G61: =VLOOKUP(E61,'1 Anterior (IRT_2022)'!$E$21:$Y$63,20,FALSE) -> 0.01540599205 | I61: =F61 -> 105116449 | J61: IPCA | K61: =HLOOKUP(J61,'3. Índices_inflação'!$A$1:$BA$162,162,FALSE) -> 0.04617050125 | L61: =I61*(1+K61) -> 109969728.2 | N61: =L61*(1+M61) -> 109969728.2 | O61: =$O$13 -> -0.00286017054 | P61: 109655196 | Q61: =$O$14 -> 0.01026775424 | R61: 110784338.1 | S61: =$O$15 -> 0.006366524246 | T61: 111484463.1 | U61: =T61 -> 111484463.1 | X61: =T61/copiar_RTbase_FQ -> 0.01536880264 | Y61: =U61/copiar_RTaplic -> 0.01484432382
E62: Total de Outras Receitas | F62: =SUM(F57:F61) -> 211357162 | G62: =F62/copiar_RTbase_ref -> 0.03097675756 | I62: =SUM(I57:I61) -> 211357162 | K62: =L62/I62-1 -> 0.04465179398 | L62: =SUM(L57:L61) -> 220794638.5 | N62: =SUM(N57:N61) -> 220794638.5 | O62: =P62/N62-1 -> -0.00286017054 | P62: =SUM(P57:P61) -> 220163128.2 | Q62: =R62/P62-1 -> 0.01029720601 | R62: =SUM(R57:R61) -> 222430193.2 | S62: =T62/R62-1 -> 0.006319710462 | T62: =SUM(T57:T61) -> 223835887.7 | U62: =SUM(U57:U61) -> 223835887.7 | X62: =SUM(X57:X61) -> 0.03085712112 | Y62: =SUM(Y57:Y61) -> 0.02980408487
C63: RT base | E63: Receita Tarifária base = RR - OR | F63: =F56-F62 -> 6823088620 | G63: =copiar_RTbase_ref/copiar_RTbase_ref -> 1 | H63: =I63/F63-1 -> -0.001691703342 | I63: =I56-I62 -> 6811545979 | K63: =L63/I63-1 -> 0.05134283596 | L63: =L56-L62 -> 7161270066 | M63: =N63/L63-1 -> -0.0001897448232 | N63: =N56-N62 -> 7159911252 | O63: =P63/N63-1 -> -0.002727148396 | P63: =P56-P62 -> 7140385112 | Q63: =R63/P63-1 -> 0.00981698913 | R63: =R56-R62 -> 7210482195 | S63: =T63/R63-1 -> 0.006027851841 | T63: =T56-T62 -> 7253945913 | U63: =U56-U62 -> 7284069988 | X63: =X56-X62 -> 1 | Y63: =Y56-Y62 -> 0.969884867
E64: Valores para cálculo circular | F64: 6823088620 | I64: 6811545979 | K64: =(1+H63)*(1+K63)-1 -> 0.04956427577 | L64: 7161270066 | N64: 7159911252 | P64: 7140385112 | R64: 7210482195 | T64: 7253945913
C65: CF | E65: Componentes Financeiros | U65: ='4.Componentes Financeiros'!F22 -> 226171934.2 | Y65: =U65/copiar_RTaplic -> 0.03011513298
C66: RT aplic | E66: RT1 aplicação = RT base + CF | U66: =U63+U65 -> 7510241922 | V66: =copiar_RTaplic/F15-1 -> 0.04208439388 | Y66: =Y63+Y65 -> 1
T67: RT1 aplicação p/ circular | U67: 7510241922 | V67: =colar_RTaplic/F15-1 -> 0.04208439388
U69: =(1+K64)*(1+H86)-1 -> 0.06314695835
T70: IRT | U70: =copiar_RTbase_FQ/F14-1 -> 0.06314695835
E71: Impactos sobre a Receita Tarifária base (desagregação do IRT) | T71: ETM | U71: =copiar_RTaplic/F15-1 -> 0.04208439388
E72: Aspectos | F72: Variação em R$ | G72: Impacto individual | H72: Impacto acumulado | U72: =IF(AND(V67-U71<0.00001,V67-U71>-0.00001),"VERDADEIRO","falso") -> VERDADEIRO
E73: Correção inflacionária | F73: =copiar_RTbase_inflac-copiar_RTbase_ref -> 338181446 | G73: =F73/$F$14 -> 0.04956427577 | H73: =F73/F14 -> 0.04956427577
E75: Fator de Desempenho Atend. Telefônico | F75: =N63-L63 -> -1358813.923 | G75: -0.000199149388 | H75: =F75/L63 -> -0.0001897448232
E76: Fator de Incentivo Redução de Perdas | F76: =copiar_RTbase_IP-copiar_RTbase_FP -> -19526140.49 | G76: -0.002861774422 | H76: =F76/colar_RTbase_FP -> -0.002727148396
E77: Fator de Incentivo à Universalização do Esgotamento | F77: =copiar_RTbase_FE-copiar_RTbase_IP -> 70097083.03 | G77: 0.01027351203 | H77: =F77/colar_RTbase_IP -> 0.00981698913
E78: Fator de Qualidade | F78: =copiar_RTbase_FQ-copiar_RTbase_FE -> 43463718.37 | G78: 0.006370094365 | H78: =F78/copiar_RTbase_FE -> 0.006027851841
E79: Total | F79: =SUM(F73:F78) -> 430857293 | G79: 0.06314695835 | H79: =((1+H73)*(1+H74)*(1+H75)*(1+H76)*(1+H77)*(1+H78))-1 -> 0.06314695835
E82: Aspectos | F82: Variação em R$ | G82: Impacto individual | H82: Impacto acumulado
E83: =E73 -> Correção inflacionária | F83: =F84+F85 -> 338181446 | G83: =G84+G85 -> 0.04956427577 | H83: =(1+H84)*(1+H85)-1 -> 0.04956427577
E84: Ajuste erro de previsão inflação p/ itens não administráveis | F84: =copiar_RTbase_ajust-copiar_RTbase_ref -> -11542641.82 | G84: =F84/$F$14 -> -0.001691703342 | H84: =F84/$F$14 -> -0.001691703342
E85: Correção inflacionária | F85: =copiar_RTbase_inflac-copiar_RTbase_ajust -> 349724087.8 | G85: =F85/$F$14 -> 0.05125597911 | H85: =F85/copiar_RTbase_ajust -> 0.05134283596
E86: Fator X | F86: =F87+F88+F89+F90 -> 92675846.99 | G86: =G87+G88+G90+G89 -> 0.01358268259 | H86: =(1+H87)*(1+H88)*(1+H89)*(1+H90)-1 -> 0.01294125848
E87: Fator de Desempenho Atendimento Telefônico | F87: =F75 -> -1358813.923 | G87: =F87/$F$14 -> -0.000199149388 | H87: =H75 -> -0.0001897448232
E88: Fator de Incentivo Redução de Perdas | F88: =F76 -> -19526140.49 | G88: =F88/$F$14 -> -0.002861774422 | H88: =H76 -> -0.002727148396
E89: Fator de Incentivo à Universalização do Esgotamento | F89: =F77 -> 70097083.03 | G89: =F89/$F$14 -> 0.01027351203 | H89: =H77 -> 0.00981698913
E90: Fator de Qualidade | F90: =F78 -> 43463718.37 | G90: =F90/$F$14 -> 0.006370094365 | H90: =H78 -> 0.006027851841
E91: Total | F91: =F83+F86 -> 430857293 | G91: =G83+G86 -> 0.06314695835 | H91: =((1+H83)*(1+H87)*(1+H88)*(1+H89)*(1+H90))-1 -> 0.06314695835
E94: resumido
E95: Aspectos | F95: Impacto acumulado | G95: Impacto individual
E96: Variação da Receita Tarifária base (IRT) | F96: =U70 -> 0.06314695835 | G96: =F96 -> 0.06314695835
E97: (-) Componentes Financeiros considerados no ano anterior | F97: =(F15-F14)/F14 -> 0.05625802793 | G97: =G96+G98-F99 -> 0.02106256447
E98: (+) Componentes Financeiros calculados neste reajuste | F98: =(copiar_RTaplic-copiar_RTbase_FQ)/copiar_RTbase_FQ -> 0.03533194369 | G98: =Y72 -> 0
E99: Total | F99: =(1+F96)/(1+F97)*(1+F98)-1 -> 0.04208439388 | G99: =G96-G97+G98 -> 0.04208439388
E101: completo
E102: Aspectos | F102: Impacto acumulado
E103: Correção inflacionária | F103: =H73 -> 0.04956427577
E104: Fator de Produtividade
E105: Fator de Desempenho Atend. Telefônico | F105: =H75 -> -0.0001897448232
E106: Fator de Qualidade | F106: =H78 -> 0.006027851841
E107: Fator de Incentivo Redução de Perdas | F107: =H76 -> -0.002727148396
E108: Fator de Incentivo à Universalização do Esgotamento | F108: =H77 -> 0.00981698913
E109: (-) Impacto Componentes Financeiros PR anterior | F109: =F97 -> 0.05625802793
E110: (+) Impacto dos novos Componentes Financeiros | F110: =F98 -> 0.03533194369
E111: Total | F111: =(1+F103)*(1+F105)*(1+F107)*(1+F106)*(1+F108)/(1+F109)*(1+F110)-1 -> 0.04208439388

Sheet 3. Índices_inflação
A1: Mês | B1: INPC | C1: Δ% | D1: Acum até dez/23 | E1: IGP-M | F1: Δ% | G1: Acum até dez/23 | H1: IGP-DI | I1: Δ% | J1: Acum até dez/23 | K1: INCC | L1: Δ% | M1: Acum até dez/23 | N1: INCC-DI MB | O1: Δ% | P1: Acum até dez/23 | Q1: INCC-DI MS | R1: Δ% | S1: Acum até dez/23 | T1: INCC-M | U1: Δ% | V1: Acum até dez/23 | W1: SELIC | X1: Δ% | Y1: Acum até dez/23 | Z1: IPCA | AA1: Δ% | AB1: Acum até dez/23 | AC1: IPCA 15 | AD1: Δ% | AE1: Acum até dez/23 | AF1: IPCA BH Fixo | AG1: Δ% | AH1: IPCA BH Cel | AI1: Δ% | AJ1: IPCA BH Int | AK1: Δ% | AL1: IPCA BH Gas | AM1: Δ% | AN1: IPCA BH Die | AO1: Δ% | AP1: IPCA BH Tel | AQ1: Δ% | AR1: Acum até dez/23 | AS1: IPCA BH Comb | AT1: Δ% | AU1: Acum até dez/23 | AV1: ETM | AW1: Δ% | AX1: Acum até dez/23 | AY1: IEE | AZ1: Δ% | BA1: Acum até dez/23
A2: 2012-12-01 | B2: 100 | E2: 100 | H2: 100 | K2: 100 | N2: 100 | Q2: 100 | T2: 100 | W2: 100 | Z2: 100 | AC2: 100 | AF2: 100 | AH2: 100 | AJ2: 100 | AL2: 100 | AN2: 100 | AP2: =AVERAGE(AF2,AH2,AJ2) -> 100 | AS2: =0.4*AN2+0.6*AL2 -> 100 | AV2: 100 | AY2: Cálculo mensal a partir de jan/17
A3: 2013-01-01 | B3: 100.92 | C3: =B3/B2-1 -> 0.0092 | D3: =B$134/B2-1 -> 0.8740912219 | E3: 100.34 | F3: =E3/E2-1 -> 0.0034 | G3: =E$134/E2-1 -> 1.194609292 | H3: 100.31 | I3: =H3/H2-1 -> 0.0031 | J3: =H$134/H2-1 -> 1.14679178 | K3: 100.65 | L3: =K3/K2-1 -> 0.0065 | M3: =K$134/K2-1 -> 1.086114109 | N3: 100.66 | O3: =N3/N2-1 -> 0.0066 | P3: =N$134/N2-1 -> 1.08616251 | Q3: 100.63 | R3: =Q3/Q2-1 -> 0.0063 | S3: =Q$134/Q2-1 -> 1.097473074 | T3: 100.39 | U3: =T3/T2-1 -> 0.0039 | V3: =T$134/T2-1 -> 1.079988932 | W3: 100.6 | X3: =W3/W2-1 -> 0.006 | Y3: =W$134/W2-1 -> 1.625916636 | Z3: 100.86 | AA3: =Z3/Z2-1 -> 0.0086 | AB3: =Z$134/Z2-1 -> 0.8801084202 | AC3: 100.88 | AD3: =AC3/AC2-1 -> 0.0088 | AE3: =AC$134/AC2-1 -> 0.895037016 | AF3: 100 | AG3: =AF3/AF2-1 -> 0 | AH3: 100 | AI3: 0 | AJ3: 100 | AK3: =AJ3/AJ2-1 -> 0 | AL3: 99.68 | AM3: =AL3/AL2-1 -> -0.0032 | AN3: 99.67 | AO3: =AN3/AN2-1 -> -0.0033 | AP3: 100 | AQ3: =AP3/AP2-1 -> 0 | AR3: =AP$134/AP2-1 -> 0.1284108079 | AS3: 99.676 | AT3: =AS3/AS2-1 -> -0.00324 | AU3: =AS$134/AS2-1 -> 1.314142363 | AV3: =AV2*(1+AW3) -> 100 | AW3: 0 | AX3: =AV$134/AV2-1 -> 1.112464174
A4: 2013-02-01 | B4: 101.444784 | C4: 0.0052 | D4: 0.8570067597 | E4: 100.630986 | F4: =E4/E3-1 -> 0.0029 | G4: 1.187172904 | H4: 100.51062 | I4: 0.002 | J4: 1.140157292 | K4: 101.2539 | L4: 0.006 | M4: 1.072641937 | N4: 101.435082 | O4: 0.0077 | P4: 1.072484115 | Q4: 101.072772 | R4: 0.0044 | S4: 1.084341721 | T4: 101.19312 | U4: 0.008 | V4: 1.071908489 | W4: 101.09294 | X4: 0.0049 | Y4: 1.610255105 | Z4: 101.46516 | AA4: 0.006 | AB4: 0.8640773549 | AC4: 101.565984 | AD4: 0.0068 | AE4: 0.8785061618 | AF4: 100.19 | AG4: 0.0019 | AH4: 100 | AI4: 0 | AJ4: 100 | AK4: 0 | AL4: 103.108992 | AM4: 0.0344 | AN4: 103.427559 | AO4: 0.0377 | AP4: 100.0633333 | AQ4: 0.0006333333333 | AR4: 0.1284108079 | AS4: =0.4*AN4+0.6*AL4 -> 103.2364188 | AT4: 0.03571992054 | AU4: 1.321664557 | AV4: =AV3*(1+AW4) -> 100 | AW4: 0 | AX4: 1.112464174
A5: 2013-03-01 | B5: 102.0534527 | C5: 0.006 | D5: 0.8474002783 | E5: 100.8423111 | F5: 0.0021 | G5: 1.180848444 | H5: 100.8222029 | I5: 0.0031 | J5: 1.135885521 | K5: 101.7601695 | L5: 0.005 | M5: 1.060280255 | N5: 101.9625444 | O5: 0.0052 | P5: 1.056647926 | Q5: 101.5579213 | R5: 0.0048 | S5: 1.075210794 | T5: 101.4764607 | U5: 0.0028 | V5: 1.05546477 | W5: 101.6489512 | X5: 0.0055 | Y5: 1.597527222 | Z5: 101.9420463 | AA5: 0.0047 | AB5: 0.8529595973 | AC5: 102.0636573 | AD5: 0.0049 | AE5: 0.8658185953 | AF5: 100.280171 | AG5: 0.0009 | AH5: 100 | AI5: 0 | AJ5: 100 | AK5: 0 | AL5: 103.1605465 | AM5: 0.0005 | AN5: 107.368149 | AO5: 0.0381 | AP5: 100.0933903 | AQ5: 0.0003003797595 | AR5: 0.1276966001 | AS5: 104.8435875 | AT5: 0.01556784626 | AU5: 1.241594963 | AV5: 100 | AW5: 0 | AX5: 1.112464174
A6: 2013-04-01 | B6: 102.6555681 | C6: 0.0059 | D6: 0.8363819864 | E6: 100.9935745 | F6: 0.0015 | G6: 1.176278259 | H6: 100.7617096 | I6: -0.0006 | J6: 1.129284739 | K6: 102.5131948 | L6: 0.0074 | M6: 1.050030105 | N6: 102.9311886 | O6: 0.0095 | P6: 1.046008681 | Q6: 102.0657109 | R6: 0.005 | S6: 1.065297367 | T6: 102.328863 | U6: 0.0084 | V6: 1.049725539 | W6: 102.2690098 | X6: 0.0061 | Y6: 1.583318967 | Z6: 102.5027275 | AA6: 0.0055 | AB6: 0.8442914276 | AC6: 102.584182 | AD6: 0.0051 | AE6: 0.8567206641 | AF6: 98.83613654 | AG6: -0.0144 | AH6: 100 | AI6: 0 | AJ6: 100 | AK6: 0 | AL6: 102.6447438 | AM6: -0.005 | AN6: 107.5077276 | AO6: 0.0013 | AP6: 99.61204551 | AQ6: -0.004808957107 | AR6: 0.1273579646 | AS6: 104.5899373 | AT6: -0.002419320133 | AU6: 1.207233097 | AV6: 100 | AW6: 0 | AX6: 1.112464174
A7: 2013-05-01 | B7: 103.0148626 | C7: 0.0035 | D7: 0.8256108822 | E7: 100.9935745 | F7: 0 | G7: 1.173018731 | H7: 101.0841471 | I7: 0.0032 | J7: 1.130563077 | K7: 104.8197416 | L7: 0.0225 | M7: 1.034971317 | N7: 106.8116944 | O7: 0.0377 | P7: 1.026754513 | Q7: 102.7189315 | R7: 0.0064 | S7: 1.055022255 | T7: 103.5977409 | U7: 0.0124 | V7: 1.032651268 | W7: 102.8826238 | X7: 0.006 | Y7: 1.567656264 | Z7: 102.8819876 | AA7: 0.0037 | AB7: 0.8342033094 | AC7: 103.0560692 | AD7: 0.0046 | AE7: 0.847299437 | AF7: 98.36172308 | AG7: -0.0048 | AH7: 100 | AI7: 0 | AJ7: 100 | AK7: 0 | AL7: 102.2752227 | AM7: -0.0036 | AN7: 108.8300726 | AO7: 0.0123 | AP7: 99.45390769 | AQ7: -0.001587537106 | AR7: 0.132805578 | AS7: 104.8971627 | AT7: 0.002937427645 | AU7: 1.212586051 | AV7: 105.25 | AW7: 0.0525 | AX7: 1.112464174
A8: 2013-06-01 | B8: 103.3033042 | C8: 0.0028 | D8: 0.8192435298 | E8: 101.7510263 | F8: 0.0075 | G8: 1.173018731 | H8: 101.8523866 | I8: 0.0076 | J8: 1.123767022 | K8: 106.0251687 | L8: 0.0115 | M8: 0.990191997 | N8: 108.6702179 | O8: 0.0174 | P8: 0.9531218204 | Q8: 103.2325261 | R8: 0.005 | S8: 1.041953751 | T8: 105.6282566 | U8: 0.0196 | V8: 1.007755105 | W8: 103.5102078 | X8: 0.0061 | Y8: 1.552342211 | Z8: 103.1494808 | AA8: 0.0026 | AB8: 0.8274417749 | AC8: 103.4476823 | AD8: 0.0038 | AE8: 0.8388407694 | AF8: 98.36172308 | AG8: 0 | AH8: 100.7 | AI8: 0.007 | AJ8: 100 | AK8: 0 | AL8: 101.5797512 | AM8: -0.0068 | AN8: 108.2097412 | AO8: -0.0057 | AP8: 99.68724103 | AQ8: 0.002346145453 | AR8: 0.1346068084 | AS8: 104.2317472 | AT8: -0.006343503077 | AU8: 1.206105775 | AV8: 105.25 | AW8: 0 | AX8: 1.007091852
A9: 2013-07-01 | B9: 103.1690099 | C9: -0.0013 | D9: 0.814163871 | E9: 102.015579 | F9: 0.0026 | G9: 1.156842413 | H9: 101.9949799 | I9: 0.0014 | J9: 1.107748136 | K9: 106.5340895 | L9: 0.0048 | M9: 0.9675649995 | N9: 109.2679041 | O9: 0.0055 | P9: 0.9197187148 | Q9: 103.6454562 | R9: 0.004 | S9: 1.031794777 | T9: 106.3993429 | U9: 0.0073 | V9: 0.9691595773 | W9: 104.2554813 | X9: 0.0072 | Y9: 1.53686732 | Z9: 103.1804256 | AA9: 0.0003 | AB9: 0.8227027477 | AC9: 103.5200957 | AD9: 0.0007 | AE9: 0.8318796268 | AF9: 98.36172308 | AG9: 0 | AH9: 103.2175 | AI9: 0.025 | AJ9: 100 | AK9: 0 | AL9: 100.9905886 | AM9: -0.0058 | AN9: 109.0213143 | AO9: 0.0075 | AP9: 100.5264077 | AQ9: 0.0084179947 | AR9: 0.1319510865 | AS9: 104.2028789 | AT9: -0.0002769627409 | AU9: 1.220189554 | AV9: 105.25 | AW9: 0 | AX9: 1.007091852
A10: 2013-08-01 | B10: 103.3340803 | C10: 0.0016 | D10: 0.8165253539 | E10: 102.1686024 | F10: 0.0015 | G10: 1.151249165 | H10: 102.4641568 | I10: 0.0046 | J10: 1.104801414 | K10: 106.8643452 | L10: 0.0031 | M10: 0.9581658037 | N10: 109.2679041 | O10: 0 | P10: 0.9092180157 | Q10: 104.3295162 | R10: 0.0066 | S10: 1.023699977 | T10: 106.7291809 | U10: 0.0031 | V10: 0.9548888884 | W10: 104.9956953 | X10: 0.0071 | Y10: 1.518732446 | Z10: 103.4280586 | AA10: 0.0024 | AB10: 0.8221561009 | AC10: 103.6857278 | AD10: 0.0016 | AE10: 0.8305982081 | AF10: 98.36172308 | AG10: 0 | AH10: 103.2175 | AI10: 0 | AJ10: 100 | AK10: 0 | AL10: 100.3846451 | AM10: -0.006 | AN10: 109.4573995 | AO10: 0.004 | AP10: 100.5264077 | AQ10: 0 | AR10: 0.1225018717 | AS10: 104.0137469 | AT10: -0.001815036381 | AU10: 1.220804634 | AV10: 105.25 | AW10: 0 | AX10: 1.007091852
A11: 2013-09-01 | B11: 103.6130823 | C11: 0.0027 | D11: 0.8136235562 | E11: 103.7011314 | F11: 0.015 | G11: 1.148027125 | H11: 103.8576694 | I11: 0.0136 | J11: 1.095163661 | K11: 107.3238618 | L11: 0.0043 | M11: 0.9521142495 | N11: 109.2679041 | O11: 0 | P11: 0.9092180157 | Q11: 105.2789148 | R11: 0.0091 | S11: 1.010431132 | T11: 107.1881163 | U11: 0.0043 | V11: 0.9488474613 | W11: 105.7411647 | X11: 0.0071 | Y11: 1.50097552 | Z11: 103.7900568 | AA11: 0.0035 | AB11: 0.8177933967 | AC11: 103.9656793 | AD11: 0.0027 | AE11: 0.8276739298 | AF11: 98.36172308 | AG11: 0 | AH11: 103.2175 | AI11: 0 | AJ11: 100 | AK11: 0 | AL11: 99.26033706 | AM11: -0.0112 | AN11: 109.3917251 | AO11: -0.0006 | AP11: 100.5264077 | AQ11: 0 | AR11: 0.1225018717 | AS11: 103.3128923 | AT11: -0.006738095799 | AU11: 1.224842805 | AV11: 105.25 | AW11: 0 | AX11: 1.007091852
A12: 2013-10-01 | B12: 104.2451221 | C12: 0.0061 | D12: 0.8087399584 | E12: 104.5929611 | F12: 0.0086 | G12: 1.116282881 | H12: 104.5119727 | I12: 0.0063 | J12: 1.067051757 | K12: 107.6029039 | L12: 0.0026 | M12: 0.9437560983 | N12: 109.2679041 | O12: 0 | P12: 0.9092180157 | Q12: 105.8579489 | R12: 0.0055 | S12: 0.9923011911 | T12: 107.5418371 | U12: 0.0033 | V12: 0.9405032971 | W12: 106.5976681 | X12: 0.0081 | Y12: 1.483343779 | Z12: 104.3816602 | AA12: 0.0057 | AB12: 0.8114533102 | AC12: 104.4647145 | AD12: 0.0048 | AE12: 0.8227524981 | AF12: 98.36172308 | AG12: 0 | AH12: 103.2175 | AI12: 0 | AJ12: 100 | AK12: 0 | AL12: 99.28018913 | AM12: 0.0002 | AN12: 109.8402312 | AO12: 0.0041 | AP12: 100.5264077 | AQ12: 0 | AR12: 0.1225018717 | AS12: 103.5042059 | AT12: 0.001851788924 | AU12: 1.239935706 | AV12: 105.25 | AW12: 0 | AX12: 1.007091852
A13: 2013-11-01 | B13: 104.8080458 | C13: 0.0054 | D13: 0.7977735398 | E13: 104.8962807 | F13: 0.0029 | G13: 1.098238034 | H13: 104.8046062 | I13: 0.0028 | J13: 1.054110859 | K13: 107.979514 | L13: 0.0035 | M13: 0.9387154381 | N13: 109.7596097 | O13: 0.0045 | P13: 0.9092180157 | Q13: 106.1120079 | R13: 0.0024 | S13: 0.9814034721 | T13: 107.8322001 | U13: 0.0027 | V13: 0.9341206988 | W13: 107.3651713 | X13: 0.0072 | Y13: 1.463390318 | Z13: 104.9453211 | AA13: 0.0054 | AB13: 0.8011865468 | AC13: 105.0601634 | AD13: 0.0057 | AE13: 0.8140450817 | AF13: 98.36172308 | AG13: 0 | AH13: 104.7244755 | AI13: 0.0146 | AJ13: 100 | AK13: 0 | AL13: 99.22062101 | AM13: -0.0006 | AN13: 110.4333684 | AO13: 0.0054 | AP13: 101.0287329 | AQ13: 0.004996947351 | AR13: 0.1225018717 | AS13: 103.70572 | AT13: 0.001946916354 | AU13: 1.235795485 | AV13: 105.25 | AW13: 0 | AX13: 1.007091852
A14: 2013-12-01 | B14: 105.5626637 | C14: 0.0072 | D14: 0.7881177042 | E14: 105.5256584 | F14: 0.006 | G14: 1.092170739 | H14: 105.527758 | I14: 0.0069 | J14: 1.048375408 | K14: 108.0874936 | L14: 0.001 | M14: 0.9319536005 | N14: 109.7596097 | O14: 0 | P14: 0.9006650231 | Q14: 106.3348432 | R14: 0.0021 | S14: 0.9766594893 | T14: 108.0694309 | U14: 0.0022 | V14: 0.9289126347 | W14: 108.2133562 | X14: 0.0079 | Y14: 1.445780697 | Z14: 105.9108181 | AA14: 0.0092 | AB14: 0.79151238 | AC14: 105.8481146 | AD14: 0.0075 | AE14: 0.803763629 | AF14: 98.36172308 | AG14: 0 | AH14: 104.7244755 | AI14: 0 | AJ14: 100 | AK14: 0 | AL14: 103.4374974 | AM14: 0.0425 | AN14: 116.0986002 | AO14: 0.0513 | AP14: 101.0287329 | AQ14: 0 | AR14: 0.1169206779 | AS14: 108.5019385 | AT14: 0.04624835117 | AU14: 1.231451037 | AV14: 105.25 | AW14: 0 | AX14: 1.007091852
A15: 2014-01-01 | B15: 106.2277085 | C15: 0.0063 | D15: 0.7753352901 | E15: 106.0321816 | F15: 0.0048 | G15: 1.079692584 | H15: 105.949869 | I15: 0.004 | J15: 1.034338472 | K15: 109.0386635 | L15: 0.0088 | M15: 0.9300235769 | N15: 111.065749 | O15: 0.0119 | P15: 0.9006650231 | Q15: 106.9090513 | R15: 0.0054 | S15: 0.9725172032 | T15: 108.8259169 | U15: 0.007 | V15: 0.9246783423 | W15: 109.1331697 | X15: 0.0085 | Y15: 1.426610474 | Z15: 106.4933276 | AA15: 0.0055 | AB15: 0.7751807174 | AC15: 106.557297 | AD15: 0.0067 | AE15: 0.7903361082 | AF15: 98.36172308 | AG15: 0 | AH15: 104.7244755 | AI15: 0 | AJ15: 100 | AK15: 0 | AL15: 103.9857161 | AM15: 0.0053 | AN15: 116.2379185 | AO15: 0.0012 | AP15: 101.0287329 | AQ15: 0 | AR15: 0.1169206779 | AS15: 108.8865971 | AT15: 0.003545176935 | AU15: 1.132811998 | AV15: 105.25 | AW15: 0 | AX15: 1.007091852
A16: 2014-02-01 | B16: 106.9075658 | C16: 0.0064 | D16: 0.7642206997 | E16: 106.4351039 | F16: 0.0038 | G16: 1.069757746 | H16: 106.8504429 | I16: 0.0085 | J16: 1.026233538 | K16: 109.3984911 | L16: 0.0033 | M16: 0.9131875267 | N16: 111.1323885 | O16: 0.0006 | P16: 0.8783130972 | Q16: 107.5718874 | R16: 0.0062 | S16: 0.9619228199 | T16: 109.304751 | U16: 0.0044 | V16: 0.9112992476 | W16: 109.9953218 | X16: 0.0079 | Y16: 1.40615813 | Z16: 107.2281315 | AA16: 0.0069 | AB16: 0.7654706289 | AC16: 107.3031981 | AD16: 0.007 | AE16: 0.7784206895 | AF16: 98.36172308 | AG16: 0 | AH16: 105.0595938 | AI16: 0.0032 | AJ16: 100 | AK16: 0 | AL16: 104.2352819 | AM16: 0.0024 | AN16: 117.1213267 | AO16: 0.0076 | AP16: 101.140439 | AQ16: 0.001105686512 | AR16: 0.1169206779 | AS16: 109.3896998 | AT16: 0.004620428198 | AU16: 1.125277514 | AV16: 105.25 | AW16: 0 | AX16: 1.007091852
A17: 2014-03-01 | B17: 107.7842079 | C17: 0.0082 | D17: 0.7530014901 | E17: 108.2125701 | F17: 0.0167 | G17: 1.061922441 | H17: 108.4318295 | I17: 0.0148 | J17: 1.009155715 | K17: 109.7048069 | L17: 0.0028 | M17: 0.906894774 | N17: 111.1435017 | O17: 0.0001 | P17: 0.8771867852 | Q17: 108.1850472 | R17: 0.0057 | S17: 0.9498338501 | T17: 109.5452214 | U17: 0.0022 | V17: 0.9029263715 | W17: 110.8422857 | X17: 0.0077 | Y17: 1.387298472 | Z17: 108.2146303 | AA17: 0.0092 | AB17: 0.7533723596 | AC17: 108.0865114 | AD17: 0.0073 | AE17: 0.7660582816 | AF17: 94.30922009 | AG17: -0.0412 | AH17: 106.3833447 | AI17: 0.0126 | AJ17: 100 | AK17: 0 | AL17: 104.7564583 | AM17: 0.005 | AN17: 117.1564631 | AO17: 0.0003 | AP17: 100.2308549 | AQ17: -0.008993277521 | AR17: 0.1156870777 | AS17: 109.7164602 | AT17: 0.002987122237 | AU17: 1.115502984 | AV17: 105.25 | AW17: 0 | AX17: 1.007091852
A18: 2014-04-01 | B18: 108.6249247 | C18: 0.0078 | D18: 0.738743791 | E18: 109.0566282 | F18: 0.0078 | G18: 1.02805394 | H18: 108.9197727 | I18: 0.0045 | J18: 0.9798538774 | K18: 110.6702092 | L18: 0.0088 | M18: 0.9015703769 | N18: 112.2438224 | O18: 0.0099 | P18: 0.8769990853 | Q18: 109.0180721 | R18: 0.0077 | S18: 0.9387827882 | T18: 110.2791744 | U18: 0.0067 | V18: 0.8987491235 | W18: 111.7511925 | X18: 0.0082 | Y18: 1.369056735 | Z18: 108.9396684 | AA18: 0.0067 | AB18: 0.7373883865 | AC18: 108.9295862 | AD18: 0.0078 | AE18: 0.7532594873 | AF18: 94.48840761 | AG18: 0.0019 | AH18: 106.7237714 | AI18: 0.0032 | AJ18: 100 | AK18: 0 | AL18: 104.7774096 | AM18: 0.0002 | AN18: 117.0393067 | AO18: -0.001 | AP18: 100.4040597 | AQ18: 0.001728058097 | AR18: 0.1258118158 | AS18: 109.6821684 | AT18: -0.0003125493676 | AU18: 1.109202538 | AV18: 105.25 | AW18: 0 | AX18: 1.007091852
A19: 2014-05-01 | B19: 109.2766742 | C19: 0.006 | D19: 0.7252865559 | E19: 108.9148545 | F19: -0.0013 | G19: 1.012357551 | H19: 108.4296337 | I19: -0.0045 | J19: 0.9709844473 | K19: 112.9389485 | L19: 0.0205 | M19: 0.8849825306 | N19: 116.0825611 | O19: 0.0342 | P19: 0.8585989556 | Q19: 109.6394751 | R19: 0.0057 | S19: 0.9239682328 | T19: 111.7899991 | U19: 0.0137 | V19: 0.8861121719 | W19: 112.7234278 | X19: 0.0087 | Y19: 1.34978847 | Z19: 109.4407908 | AA19: 0.0046 | AB19: 0.7258253566 | AC19: 109.5613778 | AD19: 0.0058 | AE19: 0.7396899061 | AF19: 94.83801472 | AG19: 0.0037 | AH19: 106.7237714 | AI19: 0 | AJ19: 100 | AK19: 0 | AL19: 104.6097657 | AM19: -0.0016 | AN19: 117.49576 | AO19: 0.0039 | AP19: 100.5205954 | AQ19: 0.001160667239 | AR19: 0.1238697037 | AS19: 109.7641634 | AT19: 0.0007475691483 | AU19: 1.109861974 | AV19: 111.75445 | AW19: 0.0618 | AX19: 1.007091852
A20: 2014-06-01 | B20: 109.5607936 | C20: 0.0026 | D20: 0.7149965765 | E20: 108.1088846 | F20: -0.0074 | G20: 1.014977022 | H20: 107.746527 | I20: -0.0063 | J20: 0.9798939702 | K20: 113.6843455 | L20: 0.0066 | M20: 0.8471166395 | N20: 117.2317784 | O20: 0.0099 | P20: 0.7971368745 | Q20: 109.9683935 | R20: 0.003 | S20: 0.9130637693 | T20: 113.1873741 | U20: 0.0125 | V20: 0.8606216552 | W20: 113.64776 | X20: 0.0082 | Y20: 1.329521632 | Z20: 109.878554 | AA20: 0.004 | AB20: 0.7179229112 | AC20: 110.0763163 | AD20: 0.0047 | AE20: 0.7296578903 | AF20: 94.83801472 | AG20: 0 | AH20: 106.7237714 | AI20: 0 | AJ20: 100 | AK20: 0 | AL20: 104.3377803 | AM20: -0.0026 | AN20: 117.5192591 | AO20: 0.0002 | AP20: 100.5205954 | AQ20: 0 | AR20: 0.1225667772 | AS20: 109.6103718 | AT20: -0.00140110915 | AU20: 1.108285885 | AV20: 111.75445 | AW20: 0 | AX20: 0.8902729816
A21: 2014-07-01 | B21: 109.7032226 | C21: 0.0013 | D21: 0.7105491487 | E21: 107.4494204 | F21: -0.0061 | G21: 1.029999014 | H21: 107.1539211 | I21: -0.0055 | J21: 0.9924463824 | K21: 114.5369781 | L21: 0.0075 | M21: 0.8350056025 | N21: 118.5330512 | O21: 0.0111 | P21: 0.7795196302 | Q21: 110.342286 | R21: 0.0034 | S21: 0.9073417441 | T21: 114.0928731 | U21: 0.008 | V21: 0.8376510175 | W21: 114.7274137 | X21: 0.0095 | Y21: 1.310574917 | Z21: 109.8895419 | AA21: 0.0001 | AB21: 0.7110785968 | AC21: 110.263446 | AD21: 0.0017 | AE21: 0.7215665276 | AF21: 94.83801472 | AG21: 0 | AH21: 106.7237714 | AI21: 0 | AJ21: 100 | AK21: 0 | AL21: 104.2543101 | AM21: -0.0008 | AN21: 117.3547321 | AO21: -0.0014 | AP21: 100.5205954 | AQ21: 0 | AR21: 0.1225667772 | AS21: 109.4944789 | AT21: -0.001057317092 | AU21: 1.111243968 | AV21: 111.75445 | AW21: 0 | AX21: 0.8902729816
A22: 2014-08-01 | B22: 109.9006884 | C22: 0.0018 | D22: 0.7083283218 | E22: 107.159307 | F22: -0.0027 | G22: 1.042458008 | H22: 107.2182135 | I22: 0.0006 | J22: 1.003465442 | K22: 114.6286077 | L22: 0.0008 | M22: 0.8213455112 | N22: 118.5330512 | O22: 0 | P22: 0.7599838099 | Q22: 110.5188337 | R22: 0.0016 | S22: 0.9008787563 | T22: 114.3096495 | U22: 0.0019 | V22: 0.8230664856 | W22: 115.7255422 | X22: 0.0087 | Y22: 1.288831023 | Z22: 110.1642657 | AA22: 0.0025 | AB22: 0.7109075061 | AC22: 110.4178148 | AD22: 0.0014 | AE22: 0.7186448314 | AF22: 94.83801472 | AG22: 0 | AH22: 107.1506665 | AI22: 0.004 | AJ22: 100 | AK22: 0 | AL22: 104.1083541 | AM22: -0.0014 | AN22: 117.6011771 | AO22: 0.0021 | AP22: 100.6628937 | AQ22: 0.001415613998 | AR22: 0.1225667772 | AS22: 109.5054833 | AT22: 0.0001005014557 | AU22: 1.113478585 | AV22: 111.75445 | AW22: 0 | AX22: 0.8902729816
A23: 2014-09-01 | B23: 110.4392018 | C23: 0.0049 | D23: 0.7052588559 | E23: 107.3736256 | F23: 0.002 | G23: 1.047987575 | H23: 107.2396571 | I23: 0.0002 | J23: 1.002264084 | K23: 114.8005506 | L23: 0.0015 | M23: 0.8198895995 | N23: 118.5330512 | O23: 0 | P23: 0.7599838099 | Q23: 110.8835458 | R23: 0.0033 | S23: 0.8978422087 | T23: 114.492545 | U23: 0.0016 | V23: 0.8196092281 | W23: 116.7786446 | X23: 0.0091 | Y23: 1.26908994 | Z23: 110.792202 | AA23: 0.0057 | AB23: 0.7066409038 | AC23: 110.8484443 | AD23: 0.0039 | AE23: 0.7162420925 | AF23: 95.13201256 | AG23: 0.0031 | AH23: 106.7220638 | AI23: -0.004 | AJ23: 100 | AK23: 0 | AL23: 103.1922005 | AM23: -0.0088 | AN23: 117.7775788 | AO23: 0.0015 | AP23: 100.6180255 | AQ23: -0.0004457280313 | AR23: 0.1209799024 | AS23: 109.0263519 | AT23: -0.004375410152 | AU23: 1.113266199 | AV23: 111.75445 | AW23: 0 | AX23: 0.8902729816
A24: 2014-10-01 | B24: 110.8588708 | C24: 0.0038 | D24: 0.6969438311 | E24: 107.6742717 | F24: 0.0028 | G24: 1.043899775 | H24: 107.8723711 | I24: 0.0059 | J24: 1.001863711 | K24: 114.9957115 | L24: 0.0017 | M24: 0.8171638538 | N24: 118.5330512 | O24: 0 | P24: 0.7599838099 | Q24: 111.293815 | R24: 0.0037 | S24: 0.891599929 | T24: 114.7215301 | U24: 0.002 | V24: 0.8167025041 | W24: 117.8880417 | X24: 0.0095 | Y24: 1.24862743 | Z24: 111.2575293 | AA24: 0.0042 | AB24: 0.6969681852 | AC24: 111.3805169 | AD24: 0.0048 | AE24: 0.7095747509 | AF24: 95.16055217 | AG24: 0.0003 | AH24: 106.7220638 | AI24: 0 | AJ24: 100 | AK24: 0 | AL24: 103.4914579 | AM24: 0.0029 | AN24: 117.6362458 | AO24: -0.0012 | AP24: 100.6275387 | AQ24: 9.45476838e-05 | AR24: 0.1214797774 | AS24: 109.1493731 | AT24: 0.001128361988 | AU24: 1.12255324 | AV24: 111.75445 | AW24: 0 | AX24: 0.8902729816
A25: 2014-11-01 | B25: 111.4464228 | C25: 0.0053 | D25: 0.6905198557 | E25: 108.7294796 | F25: 0.0098 | G25: 1.038192835 | H25: 109.1021161 | I25: 0.0114 | J25: 0.9901219914 | K25: 115.5016927 | L25: 0.0044 | M25: 0.8140799179 | N25: 119.0783032 | O25: 0.0046 | P25: 0.7599838099 | Q25: 111.761249 | R25: 0.0042 | S25: 0.8846268098 | T25: 115.0656947 | U25: 0.003 | V25: 0.8130763514 | W25: 118.8783013 | X25: 0.0084 | Y25: 1.227466499 | Z25: 111.8249427 | AA25: 0.0051 | AB25: 0.6898707281 | AC25: 111.8037628 | AD25: 0.0038 | AE25: 0.7014079926 | AF25: 95.16055217 | AG25: 0 | AH25: 107.2450019 | AI25: 0.0049 | AJ25: 100 | AK25: 0 | AL25: 105.0955755 | AM25: 0.0155 | AN25: 121.6005872 | AO25: 0.0337 | AP25: 100.8018514 | AQ25: 0.001732256463 | AR25: 0.1213737541 | AS25: =0.4*AN25+0.6*AL25 -> 111.6975802 | AT25: 0.02334605395 | AU25: 1.120160931 | AV25: 111.75445 | AW25: 0 | AX25: 0.8902729816
A26: 2014-12-01 | B26: 112.1373906 | C26: 0.0062 | D26: 0.6816073368 | E26: 109.4036024 | F26: 0.0062 | G26: 1.018412394 | H26: 109.5167042 | I26: 0.0038 | J26: 0.9676903217 | K26: 115.594094 | L26: 0.0008 | M26: 0.806132933 | N26: 119.0783032 | O26: 0 | P26: 0.7519249551 | Q26: 111.9624192 | R26: 0.0018 | S26: 0.876744483 | T26: 115.3533589 | U26: 0.0025 | V26: 0.8076533912 | W26: 120.019533 | X26: 0.0096 | Y26: 1.208911641 | Z26: 112.6971772 | AA26: 0.0078 | AB26: 0.6812961179 | AC26: 112.6870125 | AD26: 0.0079 | AE26: 0.6949671175 | AF26: 95.16055217 | AG26: 0 | AH26: 107.2450019 | AI26: 0 | AJ26: 100 | AK26: 0 | AL26: 106.3041746 | AM26: 0.0115 | AN26: 123.7407576 | AO26: 0.0176 | AP26: 100.8018514 | AQ26: 0 | AR26: 0.1194346062 | AS26: 113.2788078 | AT26: 0.01415632821 | AU26: 1.071792745 | AV26: 111.75445 | AW26: 0 | AX26: 0.8902729816
A27: 2015-01-01 | B27: 113.797024 | C27: 0.0148 | D27: 0.671245614 | E27: 110.2350698 | F27: 0.0076 | G27: 1.005975346 | H27: 110.2504661 | I27: 0.0067 | J27: 0.9602414044 | K27: 116.6575597 | L27: 0.0092 | M27: 0.8046891816 | N27: 120.1142845 | O27: 0.0087 | P27: 0.7519249551 | Q27: 113.0484547 | R27: 0.0097 | S27: 0.8733724126 | T27: 116.1608324 | U27: 0.007 | V27: 0.8031455274 | W27: 121.1477166 | X27: 0.0094 | Y27: 1.187907727 | Z27: 114.0946222 | AA27: 0.0124 | AB27: 0.6682835065 | AC27: 113.689927 | AD27: 0.0089 | AE27: 0.6816818311 | AF27: 95.16055217 | AG27: 0 | AH27: 108.5855645 | AI27: 0.0125 | AJ27: 100 | AK27: 0 | AL27: 106.5805655 | AM27: 0.0026 | AN27: 123.480902 | AO27: -0.0021 | AP27: 101.2487055 | AQ27: 0.004432995711 | AR27: 0.1194346062 | AS27: 113.3407001 | AT27: 0.0005463711816 | AU27: 1.042873162 | AV27: 111.75445 | AW27: 0 | AX27: 0.8902729816
A28: 2015-02-01 | B28: 115.1170695 | C28: 0.0116 | D28: 0.6468719097 | E28: 110.5327045 | F28: 0.0027 | G28: 0.990844925 | H28: 110.8347936 | I28: 0.0053 | J28: 0.9471951966 | K28: 117.0191981 | L28: 0.0031 | M28: 0.7882373976 | N28: 120.3665245 | O28: 0.0021 | P28: 0.7368146675 | Q28: 113.5232582 | R28: 0.0042 | S28: 0.8553752725 | T28: 116.7416366 | U28: 0.005 | V28: 0.7906112487 | W28: 122.1411279 | X28: 0.0082 | Y28: 1.167532917 | Z28: 115.4865766 | AA28: 0.0122 | AB28: 0.6478501645 | AC28: 115.202003 | AD28: 0.0133 | AE28: 0.6668468937 | AF28: 94.39926775 | AG28: -0.008 | AH28: 109.8560156 | AI28: 0.0117 | AJ28: 100 | AK28: 0 | AL28: 115.6825458 | AM28: 0.0854 | AN28: 129.778428 | AO28: 0.051 | AP28: 101.4184278 | AQ28: 0.001676290359 | AR28: 0.1144940588 | AS28: 121.3208987 | AT28: 0.07040894021 | AU28: 1.041757605 | AV28: 111.75445 | AW28: 0 | AX28: 0.8902729816
A29: 2015-03-01 | B29: 116.8553372 | C29: 0.0151 | D29: 0.6279872575 | E29: 111.615925 | F29: 0.0098 | G29: 0.9854841179 | H29: 112.1758946 | I29: 0.0121 | J29: 0.9369294704 | K29: 117.7447171 | L29: 0.0062 | M29: 0.7827109935 | N29: 121.004467 | O29: 0.0053 | P29: 0.733175 | Q29: 114.351978 | R29: 0.0073 | S29: 0.8476152883 | T29: 117.1619065 | U29: 0.0036 | V29: 0.781702735 | W29: 123.4113956 | X29: 0.0104 | Y29: 1.149903707 | Z29: 117.0109994 | AA29: 0.0132 | AB29: 0.6279887023 | AC29: 116.6305078 | AD29: 0.0124 | AE29: 0.6449688086 | AF29: 89.42442634 | AG29: -0.0527 | AH29: 109.8560156 | AI29: 0 | AJ29: 100 | AK29: 0 | AL29: 119.1067491 | AM29: 0.0296 | AN29: 131.8808385 | AO29: 0.0162 | AP29: 99.7601473 | AQ29: -0.01635087929 | AR29: 0.1126289696 | AS29: 124.2163849 | AT29: 0.02386634338 | AU29: 0.9074556725 | AV29: 111.75445 | AW29: 0 | AX29: 0.8902729816
A30: 2015-04-01 | B30: 117.6850101 | C30: 0.0071 | D30: 0.6037703256 | E30: 112.9218313 | F30: 0.0117 | G30: 0.9662152088 | H30: 113.2079128 | I30: 0.0092 | J30: 0.9137728193 | K30: 118.2863428 | L30: 0.0046 | M30: 0.7717262905 | N30: 121.137572 | O30: 0.0011 | P30: 0.7240376007 | Q30: 115.3125346 | R30: 0.0084 | S30: 0.8342254425 | T30: 117.9234589 | U30: 0.0065 | V30: 0.7753116132 | W30: 124.5838038 | X30: 0.0095 | Y30: 1.127774848 | Z30: 117.8417775 | AA30: 0.0071 | AB30: 0.6067792167 | AC30: 117.8784543 | AD30: 0.0107 | AE30: 0.6248210278 | AF30: 89.42442634 | AG30: 0 | AH30: 110.229526 | AI30: 0.0034 | AJ30: 100 | AK30: 0 | AL30: 119.5593548 | AM30: 0.0038 | AN30: 132.1446002 | AO30: 0.002 | AP30: 99.88465079 | AQ30: 0.001248028273 | AR30: 0.131123839 | AS30: 124.5934529 | AT30: 0.003035574246 | AU30: 0.8629928455 | AV30: 111.75445 | AW30: 0 | AX30: 0.8902729816
A31: 2015-05-01 | B31: 118.8500917 | C31: 0.0099 | D31: 0.5924638324 | E31: 113.3848108 | F31: 0.0041 | G31: 0.9434765334 | H31: 113.6607444 | I31: 0.004 | J31: 0.8963266144 | K31: 119.4100631 | L31: 0.0095 | M31: 0.7636136676 | N31: 122.5669953 | O31: 0.0118 | P31: 0.7221432431 | Q31: 116.1197223 | R31: 0.007 | S31: 0.8189462937 | T31: 118.4541144 | U31: 0.0045 | V31: 0.7638466102 | W31: 125.8171835 | X31: 0.0099 | Y31: 1.107751212 | Z31: 118.7138067 | AA31: 0.0074 | AB31: 0.5954515109 | AC31: 118.585725 | AD31: 0.006 | AE31: 0.6076194992 | AF31: 89.42442634 | AG31: 0 | AH31: 110.5932835 | AI31: 0.0033 | AJ31: 100 | AK31: 0 | AL31: 118.6626596 | AM31: -0.0075 | AN31: 131.8935255 | AO31: -0.0019 | AP31: 100.0059033 | AQ31: 0.001213925039 | AR31: 0.1297139241 | AS31: 123.955006 | AT31: -0.005124241905 | AU31: 0.8573547074 | AV31: 128.5623193 | AW31: 0.1504 | AX31: 0.8902729816
A32: 2015-06-01 | B32: 119.7652374 | C32: 0.0077 | D32: 0.5768529878 | E32: 114.144489 | F32: 0.0067 | G32: 0.9355408161 | H32: 114.4336375 | I32: 0.0068 | J32: 0.8887715283 | K32: 121.6072083 | L32: 0.0184 | M32: 0.7470170061 | N32: 126.5871927 | O32: 0.0328 | P32: 0.7020589475 | Q32: 116.3867977 | R32: 0.0023 | S32: 0.8063021784 | T32: 120.6692064 | U32: 0.0187 | V32: 0.7559448583 | W32: 127.1634274 | X32: 0.0107 | Y32: 1.087089031 | Z32: 119.6516458 | AA32: 0.0079 | AB32: 0.5837318949 | AC32: 119.7597237 | AD32: 0.0099 | AE32: 0.5980313113 | AF32: 90.30972816 | AG32: 0.0099 | AH32: 111.654979 | AI32: 0.0096 | AJ32: 100 | AK32: 0 | AL32: 119.0067813 | AM32: 0.0029 | AN32: 132.0913657 | AO32: 0.0015 | AP32: 100.6549024 | AQ32: 0.006489608041 | AR32: 0.1283441988 | AS32: 124.2406151 | AT32: 0.002304135608 | AU32: 0.8669212636 | AV32: 128.5623193 | AW32: 0 | AX32: 0.6431441078
A33: 2015-07-01 | B33: 120.4598758 | C33: 0.0058 | D33: 0.5648039971 | E33: 114.932086 | F33: 0.0069 | G33: 0.9226590007 | H33: 115.0973526 | I33: 0.0058 | J33: 0.8760146288 | K33: 122.2760479 | L33: 0.0055 | M33: 0.7154526768 | N33: 127.5998903 | O33: 0.008 | P33: 0.6480044031 | Q33: 116.6894034 | R33: 0.0026 | S33: 0.8021572168 | T33: 121.4656231 | U33: 0.0066 | V33: 0.7237114542 | W33: 128.6639558 | X33: 0.0118 | Y33: 1.064993599 | Z33: 120.393486 | AA33: 0.0062 | AB33: 0.5713184789 | AC33: 120.466306 | AD33: 0.0059 | AE33: 0.582365889 | AF33: 91.14960863 | AG33: 0.0093 | AH33: 112.6263773 | AI33: 0.0087 | AJ33: 100 | AK33: 0 | AL33: 118.0785284 | AM33: -0.0078 | AN33: 131.536582 | AO33: -0.0042 | AP33: 101.258662 | AQ33: 0.00599831287 | AR33: 0.121068901 | AS33: 123.4617499 | AT33: -0.00626900656 | AU33: 0.8626295126 | AV33: 128.5623193 | AW33: 0 | AX33: 0.6431441078
A34: 2015-08-01 | B34: 120.7610255 | C34: 0.0025 | D34: 0.5557804703 | E34: 115.2538958 | F34: 0.0028 | G34: 0.9094835642 | H34: 115.557742 | I34: 0.004 | J34: 0.8651964892 | K34: 122.9974766 | L34: 0.0059 | M34: 0.7060692957 | N34: 128.7100093 | O34: 0.0087 | P34: 0.6349250031 | Q34: 117.0044648 | R34: 0.0027 | S34: 0.797483759 | T34: 122.4373481 | U34: 0.008 | V34: 0.7124095511 | W34: 130.0921257 | X34: 0.0111 | Y34: 1.040910851 | Z34: 120.6583516 | AA34: 0.0022 | AB34: 0.5616363337 | AC34: 120.9843111 | AD34: 0.0043 | AE34: 0.5730846893 | AF34: 91.14960863 | AG34: 0 | AH34: 112.6263773 | AI34: 0 | AJ34: 100 | AK34: 0 | AL34: 117.8305635 | AM34: -0.0021 | AN34: 132.4047234 | AO34: 0.0066 | AP34: 101.258662 | AQ34: 0 | AR34: 0.1143844743 | AS34: 123.6602275 | AT34: 0.001607604224 | AU34: 0.8743800132 | AV34: 128.5623193 | AW34: 0 | AX34: 0.6431441078
A35: 2015-09-01 | B35: 121.3769067 | C35: 0.0051 | D35: 0.5519007185 | E35: 116.3488078 | F35: 0.0095 | G35: 0.9041519387 | H35: 117.198662 | I35: 0.0142 | J35: 0.8577654275 | K35: 123.268071 | L35: 0.0022 | M35: 0.6960625268 | N35: 128.7100093 | O35: 0 | P35: 0.6208238357 | Q35: 117.5543858 | R35: 0.0047 | S35: 0.7926436213 | T35: 122.7067103 | U35: 0.0022 | V35: 0.6988189991 | W35: 131.5361483 | X35: 0.0111 | Y35: 1.018505441 | Z35: 121.3099067 | AA35: 0.0054 | AB35: 0.5582082755 | AC35: 121.45615 | AD35: 0.0039 | AE35: 0.566349387 | AF35: 91.14960863 | AG35: 0 | AH35: 112.6263773 | AI35: 0 | AJ35: 100 | AK35: 0 | AL35: 117.9012619 | AM35: 0.0006 | AN35: 132.7489757 | AO35: 0.0026 | AP35: 101.258662 | AQ35: 0 | AR35: 0.1143844743 | AS35: 123.8403474 | AT35: 0.001456571113 | AU35: 0.8713715883 | AV35: 128.5623193 | AW35: 0 | AX35: 0.6431441078
A36: 2015-10-01 | B36: 122.3115089 | C36: 0.0077 | D36: 0.544026185 | E36: 118.5478003 | F36: 0.0189 | G36: 0.8862327278 | H36: 119.2613584 | I36: 0.0176 | J36: 0.8317545134 | K36: 123.7118361 | L36: 0.0036 | M36: 0.6923393801 | N36: 128.7100093 | O36: 0 | P36: 0.6208238357 | Q36: 118.4595545 | R36: 0.0077 | S36: 0.7842576105 | T36: 123.0380184 | U36: 0.0027 | V36: 0.6950898016 | W36: 132.9961996 | X36: 0.0111 | Y36: 0.996346 | Z36: 122.304648 | AA36: 0.0082 | AB36: 0.5498391441 | AC36: 122.2577606 | AD36: 0.0066 | AE36: 0.560264356 | AF36: 91.97907007 | AG36: 0.0091 | AH36: 113.7075905 | AI36: 0.0096 | AJ36: 100 | AK36: 0 | AL36: 124.8928067 | AM36: 0.0593 | AN36: 135.8022022 | AO36: 0.023 | AP36: 101.8955535 | AQ36: 0.006289748858 | AR36: 0.1143844743 | AS36: 129.2565649 | AT36: 0.04373548353 | AU36: 0.868649767 | AV36: 128.5623193 | AW36: 0 | AX36: 0.6431441078
A37: 2015-11-01 | B37: 123.6691666 | C37: 0.0111 | D37: 0.5322280292 | E37: 120.3497269 | F37: 0.0152 | G37: 0.8512442122 | H37: 120.6805686 | I37: 0.0119 | J37: 0.8000732246 | K37: 124.1324563 | L37: 0.0034 | M37: 0.6862688124 | N37: 128.7100093 | O37: 0 | P37: 0.6208238357 | Q37: 119.3124633 | R37: 0.0072 | S37: 0.7706238072 | T37: 123.5301705 | U37: 0.004 | V37: 0.690525383 | W37: 134.4059593 | X37: 0.0106 | Y37: 0.9744298289 | Z37: 123.5399249 | AA37: 0.0101 | AB37: 0.5372338267 | AC37: 123.2969515 | AD37: 0.0085 | AE37: 0.5500341307 | AF37: 92.77009007 | AG37: 0.0086 | AH37: 116.9823691 | AI37: 0.0288 | AJ37: 100 | AK37: 0 | AL37: 127.665427 | AM37: 0.0222 | AN37: 137.9342967 | AO37: 0.0157 | AP37: 103.2508197 | AQ37: 0.01330054312 | AR37: 0.1074190864 | AS37: 131.7729749 | AT37: 0.01946833429 | AU37: 0.7903480302 | AV37: 128.5623193 | AW37: 0 | AX37: 0.6431441078
A38: 2015-12-01 | B38: 124.7821891 | C38: 0.009 | D38: 0.5154070113 | E38: 120.9394405 | F38: 0.0049 | G38: 0.8235266078 | H38: 121.2115631 | I38: 0.0044 | J38: 0.7789042639 | K38: 124.2565888 | L38: 0.001 | M38: 0.6805549257 | N38: 128.7357513 | O38: 0.0002 | P38: 0.6208238357 | Q38: 119.5510882 | R38: 0.002 | S38: 0.7579664487 | T38: 123.6784067 | U38: 0.0012 | V38: 0.6837902221 | W38: 135.9650684 | X38: 0.0116 | Y38: 0.9537203928 | Z38: 124.7259082 | AA38: 0.0096 | AB38: 0.5218630103 | AC38: 124.7518555 | AD38: 0.0118 | AE38: 0.5369698867 | AF38: 92.77009007 | AG38: 0 | AH38: 116.9823691 | AI38: 0 | AJ38: 100 | AK38: 0 | AL38: 129.4910426 | AM38: 0.0143 | AN38: 138.5136208 | AO38: 0.0042 | AP38: 103.2508197 | AQ38: 0 | AR38: 0.09288314695 | AS38: 133.1000739 | AT38: 0.01007110133 | AU38: 0.7561585485 | AV38: 128.5623193 | AW38: 0 | AX38: 0.6431441078
A39: 2016-01-01 | B39: 126.6664002 | C39: 0.0151 | D39: 0.5018900013 | E39: 122.3181502 | F39: 0.0114 | G39: 0.8146348968 | H39: 123.0661 | I39: 0.0153 | J39: 0.7711113739 | K39: 124.7411895 | L39: 0.0039 | M39: 0.6788760496 | N39: 129.0833379 | O39: 0.0027 | P39: 0.6204997358 | Q39: 120.184709 | R39: 0.0053 | S39: 0.7544575337 | T39: 124.0741776 | U39: 0.0032 | V39: 0.6817720956 | W39: 137.4062981 | X39: 0.0106 | Y39: 0.9313171142 | Z39: 126.3099272 | AA39: 0.0127 | AB39: 0.5073920467 | AC39: 125.8995726 | AD39: 0.0092 | AE39: 0.5190451539 | AF39: 92.77009007 | AG39: 0 | AH39: 116.9823691 | AI39: 0 | AJ39: 100 | AK39: 0 | AL39: 130.8377495 | AM39: 0.0104 | AN39: 139.1646348 | AO39: 0.0047 | AP39: 103.2508197 | AQ39: 0 | AR39: 0.09288314695 | AS39: 134.1685036 | AT39: 0.008027266115 | AU39: 0.7386484439 | AV39: 128.5623193 | AW39: 0 | AX39: 0.6431441078
A40: 2016-02-01 | B40: 127.869731 | C40: 0.0095 | D40: 0.4795488142 | E40: 123.8960543 | F40: 0.0129 | G40: 0.7941812307 | H40: 124.0383222 | I40: 0.0079 | J40: 0.7444217215 | K40: 125.4147919 | L40: 0.0054 | M40: 0.6723538695 | N40: 129.8062046 | O40: 0.0056 | P40: 0.6161361681 | Q40: 120.797651 | R40: 0.0051 | S40: 0.7452079316 | T40: 124.7193633 | U40: 0.0052 | V40: 0.6764075913 | W40: 138.7803611 | X40: 0.01 | Y40: 0.9110598795 | Z40: 127.4467166 | AA40: 0.009 | AB40: 0.4884882459 | AC40: 127.6873465 | AD40: 0.0142 | AE40: 0.5051973384 | AF40: 94.14308741 | AG40: 0.0148 | AH40: 116.9823691 | AI40: 0 | AJ40: 100 | AK40: 0 | AL40: 133.1012425 | AM40: 0.0173 | AN40: 140.6954458 | AO40: 0.011 | AP40: 103.7084855 | AQ40: 0.00443256314 | AR40: 0.09288314695 | AS40: 136.1389238 | AT40: 0.01468616091 | AU40: 0.7248029913 | AV40: 128.5623193 | AW40: 0 | AX40: 0.6431441078
A41: 2016-03-01 | B41: 128.4323578 | C41: 0.0044 | D41: 0.4656253732 | E41: 124.5279242 | F41: 0.0051 | G41: 0.7713310601 | H41: 124.571687 | I41: 0.0043 | J41: 0.730748806 | K41: 126.2174466 | L41: 0.0064 | M41: 0.6633716626 | N41: 131.0653247 | O41: 0.0097 | P41: 0.6071362054 | Q41: 121.1117249 | R41: 0.0026 | S41: 0.7363525337 | T41: 125.7046463 | U41: 0.0079 | V41: 0.6677353674 | W41: 140.3902133 | X41: 0.0116 | Y41: 0.8921384946 | Z41: 127.9947375 | AA41: 0.0043 | AB41: 0.4752113438 | AC41: 128.2364021 | AD41: 0.0043 | AE41: 0.4841227947 | AF41: 90.59389301 | AG41: -0.0377 | AH41: 116.9823691 | AI41: 0 | AJ41: 100 | AK41: 0 | AL41: 133.7135082 | AM41: 0.0046 | AN41: 141.1597408 | AO41: 0.0033 | AP41: 102.5254207 | AQ41: -0.01140759883 | AR41: 0.08806025119 | AS41: 136.6920012 | AT41: 0.004062595783 | AU41: 0.6998388839 | AV41: 128.5623193 | AW41: 0 | AX41: 0.6431441078
A42: 2016-04-01 | B42: 129.2543249 | C42: 0.0064 | D42: 0.4592048717 | E42: 124.9388663 | F42: 0.0033 | G42: 0.7623431102 | H42: 125.020145 | I42: 0.0036 | J42: 0.7233384506 | K42: 126.9116425 | L42: 0.0055 | M42: 0.6527937824 | N42: 132.0089951 | O42: 0.0072 | P42: 0.5916967469 | Q42: 121.535616 | R42: 0.0035 | S42: 0.7318497244 | T42: 126.2200353 | U42: 0.0041 | V42: 0.6546635256 | W42: 141.8783496 | X42: 0.0106 | Y42: 0.8704413746 | Z42: 128.7755053 | AA42: 0.0061 | AB42: 0.4688950949 | AC42: 128.8904078 | AD42: 0.0051 | AE42: 0.4777683906 | AF42: 90.59389301 | AG42: 0 | AH42: 116.9823691 | AI42: 0 | AJ42: 100 | AK42: 0 | AL42: 133.2321396 | AM42: -0.0036 | AN42: 141.3714804 | AO42: 0.0015 | AP42: 102.5254207 | AQ42: 0 | AR42: 0.1006156328 | AS42: 136.4878759 | AT42: -0.001493323175 | AU42: 0.6929610674 | AV42: 128.5623193 | AW42: 0 | AX42: 0.6431441078
A43: 2016-05-01 | B43: 130.5210173 | C43: 0.0098 | D43: 0.4499253495 | E43: 125.963365 | F43: 0.0082 | G43: 0.7565465067 | H43: 126.4328727 | I43: 0.0113 | J43: 0.7171566865 | K43: 127.0131719 | L43: 0.0008 | M43: 0.6437531401 | N43: 132.1278032 | O43: 0.0009 | P43: 0.5803184541 | Q43: 121.6206909 | R43: 0.0007 | S43: 0.7258093916 | T43: 126.4598534 | U43: 0.0019 | V43: 0.6479071064 | W43: 143.4531992 | X43: 0.0111 | Y43: 0.8508226545 | Z43: 129.7799543 | AA43: 0.0078 | AB43: 0.459989161 | AC43: 129.9988653 | AD43: 0.0086 | AE43: 0.4702700135 | AF43: 90.59389301 | AG43: 0 | AH43: 116.9823691 | AI43: 0 | AJ43: 100 | AK43: 0 | AL43: 131.0204861 | AM43: -0.0166 | AN43: 137.8796048 | AO43: -0.0247 | AP43: 102.5254207 | AQ43: 0 | AR43: 0.1006156328 | AS43: 133.7641336 | AT43: -0.01995592882 | AU43: 0.6954929864 | AV43: 146.4324817 | AW43: 0.139 | AX43: 0.6431441078
A44: 2016-06-01 | B44: 131.1344661 | C44: 0.0047 | D44: 0.4358539805 | E44: 128.0921459 | F44: 0.0169 | G44: 0.7422599749 | H44: 128.4937285 | I44: 0.0163 | J44: 0.6979696297 | K44: 129.4645261 | L44: 0.0193 | M44: 0.6424391887 | N44: 136.6597868 | O44: 0.0343 | P44: 0.5788974464 | Q44: 121.9004185 | R44: 0.0023 | S44: 0.72460217 | T44: 128.3820432 | U44: 0.0152 | V44: 0.6447820206 | W44: 145.1172564 | X44: 0.0116 | Y44: 0.8305040594 | Z44: 130.2341841 | AA44: 0.0035 | AB44: 0.4486893839 | AC44: 130.5188608 | AD44: 0.004 | AE44: 0.4577335054 | AF44: 90.59389301 | AG44: 0 | AH44: 116.9823691 | AI44: 0 | AJ44: 100 | AK44: 0 | AL44: 130.7060369 | AM44: -0.0024 | AN44: 139.1480972 | AO44: 0.0092 | AP44: 102.5254207 | AQ44: 0 | AR44: 0.1006156328 | AS44: 134.082861 | AT44: 0.00238275715 | AU44: 0.7300170842 | AV44: 146.4324817 | AW44: 0 | AX44: 0.4426199366
A45: 2016-07-01 | B45: 131.9737266 | C45: 0.0064 | D45: 0.4291370364 | E45: 128.3227118 | F45: 0.0018 | G45: 0.7133051184 | H45: 127.992603 | I45: -0.0039 | J45: 0.6707366228 | K45: 130.0989022 | L45: 0.0049 | M45: 0.6113403205 | N45: 137.8897249 | O45: 0.009 | P45: 0.5265372197 | Q45: 121.9247986 | R45: 0.0002 | S45: 0.7206446873 | T45: 129.7814074 | U45: 0.0109 | V45: 0.6201556546 | W45: 146.7280579 | X45: 0.0111 | Y45: 0.8095137005 | Z45: 130.9114019 | AA45: 0.0052 | AB45: 0.4436366556 | AC45: 131.2236626 | AD45: 0.0054 | AE45: 0.4519258022 | AF45: 90.59389301 | AG45: 0 | AH45: 116.9823691 | AI45: 0 | AJ45: 100 | AK45: 0 | AL45: 129.9479419 | AM45: -0.0058 | AN45: 138.9532898 | AO45: -0.0014 | AP45: 102.5254207 | AQ45: 0 | AR45: 0.1006156328 | AS45: 133.5500811 | AT45: -0.003973512639 | AU45: 0.7259046725 | AV45: 146.4324817 | AW45: 0 | AX45: 0.4426199366
A46: 2016-08-01 | B46: 132.3828452 | C46: 0.0031 | D46: 0.4200487246 | E46: 128.5151958 | F46: 0.0015 | G46: 0.7102267104 | H46: 128.5429712 | I46: 0.0043 | J46: 0.677278007 | K46: 130.4761891 | L46: 0.0029 | M46: 0.6034832526 | N46: 138.3033941 | O46: 0.003 | P46: 0.5129209313 | Q46: 122.2783805 | R46: 0.0029 | S46: 0.7203006271 | T46: 130.1188391 | U46: 0.0026 | V46: 0.6026863732 | W46: 148.5181402 | X46: 0.0122 | Y46: 0.789648601 | Z46: 131.4874121 | AA46: 0.0044 | AB46: 0.436168579 | AC46: 131.8141691 | AD46: 0.0045 | AE46: 0.4441275136 | AF46: 90.59389301 | AG46: 0 | AH46: 116.9823691 | AI46: 0 | AJ46: 100 | AK46: 0 | AL46: 130.8315879 | AM46: 0.0068 | AN46: 139.9676489 | AO46: 0.0073 | AP46: 102.5254207 | AQ46: 0 | AR46: 0.1006156328 | AS46: 134.4860123 | AT46: 0.007008091659 | AU46: 0.7327899352 | AV46: 146.4324817 | AW46: 0 | AX46: 0.4426199366
A47: 2016-09-01 | B47: 132.4887515 | C47: 0.0008 | D47: 0.415660178 | E47: 128.7722262 | F47: 0.002 | G47: 0.7076652125 | H47: 128.581534 | I47: 0.0003 | J47: 0.6700965917 | K47: 130.9067605 | L47: 0.0033 | M47: 0.5988465975 | N47: 138.9672504 | O47: 0.0048 | P47: 0.5083957441 | Q47: 122.461798 | R47: 0.0015 | S47: 0.7153261812 | T47: 130.6002788 | U47: 0.0037 | V47: 0.5985301947 | W47: 150.1666916 | X47: 0.0111 | Y47: 0.7680780488 | Z47: 131.592602 | AA47: 0.0008 | AB47: 0.4298771196 | AC47: 132.1173417 | AD47: 0.0023 | AE47: 0.4376580524 | AF47: 91.44547561 | AG47: 0.0094 | AH47: 116.9823691 | AI47: 0 | AJ47: 100 | AK47: 0 | AL47: 128.2934551 | AM47: -0.0194 | AN47: 140.2895744 | AO47: 0.0023 | AP47: 102.8092816 | AQ47: 0.002768687637 | AR47: 0.1006156328 | AS47: 133.0919028 | AT47: -0.01036620406 | AU47: 0.7207308954 | AV47: 146.4324817 | AW47: 0 | AX47: 0.4426199366
A48: 2016-10-01 | B48: 132.7139823 | C48: 0.0017 | D48: 0.4145285552 | E48: 128.9782618 | F48: 0.0016 | G48: 0.7042566991 | H48: 128.74869 | I48: 0.0013 | J48: 0.6695957129 | K48: 131.1816647 | L48: 0.0021 | M48: 0.5935877579 | N48: 139.5092226 | O48: 0.0039 | P48: 0.5011900319 | Q48: 122.461798 | R48: 0 | S48: 0.7127570456 | T48: 130.8222993 | U48: 0.0017 | V48: 0.5926374362 | W48: 151.7434418 | X48: 0.0105 | Y48: 0.7486678359 | Z48: 131.9347428 | AA48: 0.0026 | AB48: 0.4287341323 | AC48: 132.3683646 | AD48: 0.0019 | AE48: 0.4343590266 | AF48: 92.0398712 | AG48: 0.0065 | AH48: 116.9823691 | AI48: 0 | AJ48: 100 | AK48: 0 | AL48: 130.9106416 | AM48: 0.0204 | AN48: 140.75253 | AO48: 0.0033 | AP48: 103.0074134 | AQ48: 0.00192717876 | AR48: 0.09757678552 | AS48: 134.847397 | AT48: 0.01319008964 | AU48: 0.7387551864 | AV48: 146.4324817 | AW48: 0 | AX48: 0.4426199366
A49: 2016-11-01 | B49: 132.8068821 | C49: 0.0007 | D49: 0.4121279377 | E49: 128.9395683 | F49: -0.0003 | G49: 0.7015342443 | H49: 128.8130644 | I49: 0.0005 | J49: 0.6674280565 | K49: 131.3915553 | L49: 0.0016 | M49: 0.5902482366 | N49: 140.0254068 | O49: 0.0037 | P49: 0.4953581352 | Q49: 122.3515824 | R49: -0.0009 | S49: 0.7127570456 | T49: 131.0446972 | U49: 0.0017 | V49: 0.5899345474 | W49: 153.3215736 | X49: 0.0104 | Y49: 0.7304976109 | Z49: 132.1722253 | AA49: 0.0018 | AB49: 0.4250290568 | AC49: 132.7125224 | AD49: 0.0026 | AE49: 0.4316389127 | AF49: 92.0398712 | AG49: 0 | AH49: 116.9823691 | AI49: 0 | AJ49: 100 | AK49: 0 | AL49: 131.002279 | AM49: 0.0007 | AN49: 139.8094881 | AO49: -0.0067 | AP49: 103.0074134 | AQ49: 0 | AR49: 0.09546562743 | AS49: 134.5251627 | AT49: -0.002389622034 | AU49: 0.7161194175 | AV49: 146.4324817 | AW49: 0 | AX49: 0.4426199366
A50: 2016-12-01 | B50: 132.9928118 | C50: 0.0014 | D50: 0.4111401396 | E50: 129.635842 | F50: 0.0054 | G50: 0.7020448578 | H50: 129.8822128 | I50: 0.0083 | J50: 0.6665947591 | K50: 131.8382866 | L50: 0.0034 | M50: 0.5877079039 | N50: 140.781544 | O50: 0.0054 | P50: 0.4898457061 | Q50: 122.4984043 | R50: 0.0012 | S50: 0.7142999156 | T50: 131.5164581 | U50: 0.0036 | V50: 0.5872362458 | W50: 155.0387752 | X50: 0.0112 | Y50: 0.7126856799 | Z50: 132.568742 | AA50: 0.003 | AB50: 0.4224686133 | AC50: 132.9646762 | AD50: 0.0019 | AE50: 0.4279263043 | AF50: 92.0398712 | AG50: 0 | AH50: 117.321618 | AI50: 0.0029 | AJ50: 100 | AK50: 0 | AL50: 133.4258212 | AM50: 0.0185 | AN50: 142.7734492 | AO50: 0.0212 | AP50: 103.1204964 | AQ50: 0.001097813769 | AR50: 0.09546562743 | AS50: 137.1648724 | AT50: 0.01962242382 | AU50: 0.7202301173 | AV50: 146.4324817 | AW50: 0 | AX50: 0.4426199366
A51: 2017-01-01 | B51: 133.5513816 | C51: 0.0042 | D51: 0.4091673054 | E51: 130.4655114 | F51: 0.0064 | G51: 0.6929031806 | H51: 130.4407063 | I51: 0.0043 | J51: 0.6528758892 | K51: 132.3788236 | L51: 0.0041 | M51: 0.5823279888 | N51: 141.1757323 | O51: 0.0028 | P51: 0.4818437499 | Q51: 123.1966452 | R51: 0.0057 | S51: 0.7122452213 | T51: 131.8978558 | U51: 0.0029 | V51: 0.5815426921 | W51: 156.7286979 | X51: 0.0109 | Y51: 0.69371606 | Z51: 133.0725032 | AA51: 0.0038 | AB51: 0.4182139714 | AC51: 133.3768667 | AD51: 0.0031 | AE51: 0.4252183893 | AF51: 92.0398712 | AG51: 0 | AH51: 119.1518352 | AI51: 0.0156 | AJ51: 100 | AK51: 0 | AL51: 136.4679299 | AM51: 0.0228 | AN51: 145.7574143 | AO51: 0.0209 | AP51: 103.7305688 | AQ51: 0.005916112072 | AR51: 0.09426432898 | AS51: 140.1837237 | AT51: 0.02200892413 | AU51: 0.6871246425 | AV51: 146.4324817 | AW51: 0 | AX51: 0.4426199366 | AY51: 100
A52: 2017-02-01 | B52: 133.8719049 | C52: 0.0024 | D52: 0.4032735564 | E52: 130.5698838 | F52: 0.0008 | G52: 0.6821375006 | H52: 130.5189708 | I52: 0.0006 | J52: 0.6457989537 | K52: 133.239286 | L52: 0.0065 | M52: 0.5758669343 | N52: 142.276903 | O52: 0.0078 | P52: 0.4777061726 | Q52: 123.8126285 | R52: 0.005 | S52: 0.7025407391 | T52: 132.5969144 | U52: 0.0053 | V52: 0.5769694806 | W52: 158.0922376 | X52: 0.0087 | Y52: 0.6754536156 | Z52: 133.5116424 | AA52: 0.0033 | AB52: 0.4128451597 | AC52: 134.0971017 | AD52: 0.0054 | AE52: 0.4208138663 | AF52: 92.0398712 | AG52: 0 | AH52: 120.7127243 | AI52: 0.0131 | AJ52: 100 | AK52: 0 | AL52: 135.3625397 | AM52: -0.0081 | AN52: 146.0197777 | AO52: 0.0018 | AP52: 104.2508652 | AQ52: 0.005015843962 | AR52: 0.08782861299 | AS52: 139.6254349 | AT52: -0.003982550802 | AU52: 0.6507924761 | AV52: 146.4324817 | AW52: 0 | AX52: 0.4426199366 | AY52: =AY51*(1+AZ52) -> 100.7499354 | AZ52: ='3.1 Índice_EE'!CN40 -> 0.007499353504 | BA52: =AY$134/AY51-1 -> 0.5842064995
A53: 2017-03-01 | B53: 134.300295 | C53: 0.0032 | D53: 0.3999137634 | E53: 130.5829408 | F53: 0.0001 | G53: 0.6807928663 | H53: 130.0229987 | I53: -0.0038 | J53: 0.6448120665 | K53: 133.4524688 | L53: 0.0016 | M53: 0.5656899497 | N53: 142.7464168 | O53: 0.0033 | P53: 0.4662692723 | Q53: 123.7631034 | R53: -0.0004 | S53: 0.6940703872 | T53: 133.0742633 | U53: 0.0036 | V53: 0.5686556059 | W53: 159.7522061 | X53: 0.0105 | Y53: 0.6610028904 | Z53: 133.8454216 | AA53: 0.0025 | AB53: 0.408198106 | AC53: 134.2982474 | AD53: 0.0015 | AE53: 0.4131826799 | AF53: 89.7480784 | AG53: -0.0249 | AH53: 120.7127243 | AI53: 0 | AJ53: 100 | AK53: 0 | AL53: 132.3710276 | AM53: -0.0221 | AN53: 144.9684353 | AO53: -0.0072 | AP53: 103.4869342 | AQ53: -0.007327813825 | AR53: 0.08239946617 | AS53: 137.4099907 | AT53: -0.01586705343 | AU53: 0.6573931285 | AV53: 146.4324817 | AW53: 0 | AX53: 0.4426199366 | AY53: 109.2667458 | AZ53: ='3.1 Índice_EE'!CN41 -> 0.08453415336 | BA53: 0.572414408
A54: 2017-04-01 | B54: 134.4077352 | C54: 0.0008 | D54: 0.3954483288 | E54: 129.1465284 | F54: -0.011 | G54: 0.6806248039 | H54: 128.4107135 | I54: -0.0124 | J54: 0.651086194 | K54: 133.4257783 | L54: -0.0002 | M54: 0.5631888475 | N54: 142.7464168 | O54: 0 | P54: 0.4614464988 | Q54: 123.7012219 | R54: -0.0005 | S54: 0.6947482865 | T54: 132.9678039 | U54: -0.0008 | V54: 0.5630287026 | W54: 161.0142485 | X54: 0.0079 | Y54: 0.6437435828 | Z54: 134.0328051 | AA54: 0.0014 | AB54: 0.40468639 | AC54: 134.5802737 | AD54: 0.0021 | AE54: 0.4110660808 | AF54: 87.59412452 | AG54: -0.024 | AH54: 122.2699184 | AI54: 0.0129 | AJ54: 100 | AK54: 0 | AL54: 128.7837727 | AM54: -0.0271 | AN54: 142.6634371 | AO54: -0.0159 | AP54: 103.2880143 | AQ54: -0.001922174179 | AR54: 0.09038963843 | AS54: 134.3356385 | AT54: -0.02237357082 | AU54: 0.6841150723 | AV54: 146.4324817 | AW54: 0 | AX54: 0.4426199366 | AY54: 96.73748844 | AZ54: ='3.1 Índice_EE'!CN42 -> -0.1146667022 | BA54: 0.4498523658
A55: 2017-05-01 | B55: 134.8916031 | C55: 0.0036 | D55: 0.3943328625 | E55: 127.9454657 | F55: -0.0093 | G55: 0.6993172941 | H55: 127.7558188 | I55: -0.0051 | J55: 0.6718167214 | K55: 134.2663607 | L55: 0.0063 | M55: 0.5635015478 | N55: 144.4022752 | O55: 0.0116 | P55: 0.4614464988 | Q55: 123.7012219 | R55: 0 | S55: 0.6955960845 | T55: 133.1406621 | U55: 0.0013 | V55: 0.5642801267 | W55: 162.511681 | X55: 0.0093 | Y55: 0.6308597905 | Z55: 134.4483068 | AA55: 0.0031 | AB55: 0.4027225784 | AC55: 134.9032664 | AD55: 0.0024 | AE55: 0.4081090517 | AF55: 86.945928 | AG55: -0.0074 | AH55: 122.2699184 | AI55: 0 | AJ55: 100 | AK55: 0 | AL55: 127.8951647 | AM55: -0.0069 | AN55: 143.8047446 | AO55: 0.008 | AP55: 103.0719488 | AQ55: -0.002091873956 | AR55: 0.09248959372 | AS55: 134.2589967 | AT55: -0.0005705248515 | AU55: 0.7226570621 | AV55: 146.4324817 | AW55: 0 | AX55: 0.4426199366 | AY55: 108.9312081 | AZ55: ='3.1 Índice_EE'!CN43 -> 0.1260495786 | BA55: 0.6376345149
A56: 2017-06-01 | B56: 134.4869283 | C56: -0.003 | D56: 0.3893312699 | E56: 127.0882311 | F56: -0.0067 | G56: 0.7152692986 | H56: 126.529363 | I56: -0.0096 | J56: 0.6803866935 | K56: 135.5150379 | L56: 0.0093 | M56: 0.5537131549 | N56: 146.8571139 | O56: 0.017 | P56: 0.4446881167 | Q56: 123.6888517 | R56: -0.0001 | S56: 0.6955960845 | T56: 134.9513751 | U56: 0.0136 | V56: 0.5622492027 | W56: 163.8280256 | X56: 0.0081 | Y56: 0.6158325478 | Z56: 134.1390757 | AA56: -0.0023 | AB56: 0.3983875769 | AC56: 135.1191116 | AD56: 0.0016 | AE56: 0.4047376813 | AF56: 86.945928 | AG56: 0 | AH56: 122.2699184 | AI56: 0 | AJ56: 101.04 | AK56: 0.0104 | AL56: 125.5163146 | AM56: -0.0186 | AN56: 143.1144819 | AO56: -0.0048 | AP56: 103.4186155 | AQ56: 0.003363346387 | AR56: 0.09477973494 | AS56: 132.5555815 | AT56: -0.01268753074 | AU56: 0.7236404418 | AV56: 146.4324817 | AW56: 0 | AX56: 0.4426199366 | AY56: 88.23535232 | AZ56: ='3.1 Índice_EE'!CN44 -> -0.1899901427 | BA56: 0.4543183054
A57: 2017-07-01 | B57: 134.715556 | C57: 0.0017 | D57: 0.3935118053 | E57: 126.1731958 | F57: -0.0072 | G57: 0.7268391207 | H57: 126.1497749 | I57: -0.003 | J57: 0.6966747713 | K57: 135.921583 | L57: 0.003 | M57: 0.539396765 | N57: 147.5767138 | O57: 0.0049 | P57: 0.4205389544 | Q57: 123.7754339 | R57: 0.0007 | S57: 0.6957656611 | T57: 135.2482681 | U57: 0.0022 | V57: 0.5412876901 | W57: 165.1386498 | X57: 0.008 | Y57: 0.6028494671 | Z57: 134.4610095 | AA57: 0.0024 | AB57: 0.4016112829 | AC57: 134.8758972 | AD57: -0.0018 | AE57: 0.4024936914 | AF57: 86.945928 | AG57: 0 | AH57: 122.2699184 | AI57: 0 | AJ57: 101.04 | AK57: 0 | AL57: 126.8718908 | AM57: 0.0108 | AN57: 139.6940458 | AO57: -0.0239 | AP57: 103.4186155 | AQ57: 0 | AR57: 0.09110995421 | AS57: 132.0007528 | AT57: -0.004185630824 | AU57: 0.7457902087 | AV57: 146.4324817 | AW57: 0 | AX57: 0.4426199366 | AY57: 98.03896155 | AZ57: ='3.1 Índice_EE'!CN45 -> 0.1111074981 | BA57: 0.7954328485
A58: 2017-08-01 | B58: 134.6751414 | C58: -0.0003 | D58: 0.3911468557 | E58: 126.299369 | F58: 0.001 | G58: 0.7393625309 | H58: 126.4525344 | I58: 0.0024 | J58: 0.7017801116 | K58: 136.4109007 | L58: 0.0036 | M58: 0.5347923879 | N58: 148.0637169 | O58: 0.0033 | P58: 0.4136122544 | Q58: 124.2581581 | R58: 0.0039 | S58: 0.6945794555 | T58: 135.7892612 | U58: 0.004 | V58: 0.5379043007 | W58: 166.459759 | X58: 0.008 | Y58: 0.5901284396 | Z58: 134.7164854 | AA58: 0.0019 | AB58: 0.3982554697 | AC58: 135.3479628 | AD58: 0.0035 | AE58: 0.4050227323 | AF58: 86.945928 | AG58: 0 | AH58: 122.2699184 | AI58: 0 | AJ58: 101.04 | AK58: 0 | AL58: 137.4403193 | AM58: 0.0833 | AN58: 147.0978302 | AO58: 0.053 | AP58: 103.4186155 | AQ58: 0 | AR58: 0.09110995421 | AS58: 141.3033237 | AT58: 0.07047361986 | AU58: 0.753128156 | AV58: 159.1574643 | AW58: 0.0869 | AX58: 0.4426199366 | AY58: 96.9214022 | AZ58: ='3.1 Índice_EE'!CN46 -> -0.01139913495 | BA58: 0.6158948181
A59: 2017-09-01 | B59: 134.6482063 | C59: -0.0002 | D59: 0.391564325 | E59: 126.892976 | F59: 0.0047 | G59: 0.737624906 | H59: 127.2365401 | I59: 0.0062 | J59: 0.6977056181 | K59: 136.4927472 | L59: 0.0006 | M59: 0.5292869548 | N59: 147.9452659 | O59: -0.0008 | P59: 0.4089626775 | Q59: 124.5563777 | R59: 0.0024 | S59: 0.68799627 | T59: 135.9793661 | U59: 0.0014 | V59: 0.5317771919 | W59: 167.5251015 | X59: 0.0064 | Y59: 0.5775083726 | Z59: 134.9320318 | AA59: 0.0016 | AB59: 0.3956038225 | AC59: 135.4968456 | AD59: 0.0011 | AE59: 0.4001223043 | AF59: 86.945928 | AG59: 0 | AH59: 123.8349734 | AI59: 0.0128 | AJ59: 101.04 | AK59: 0 | AL59: 141.1374639 | AM59: 0.0269 | AN59: 149.9221085 | AO59: 0.0192 | AP59: 103.9403005 | AQ59: 0.005044401174 | AR59: 0.09110995421 | AS59: 144.6513218 | AT59: 0.02369369667 | AU59: 0.6377126194 | AV59: 159.1574643 | AW59: 0 | AX59: 0.3272793602 | AY59: 94.04863904 | AZ59: ='3.1 Índice_EE'!CN47 -> -0.02964013202 | BA59: 0.6345270121
A60: 2017-10-01 | B60: 135.1464047 | C60: 0.0037 | D60: 0.3918426935 | E60: 127.146762 | F60: 0.002 | G60: 0.7294962735 | H60: 127.3637766 | I60: 0.001 | J60: 0.687244701 | K60: 136.9158748 | L60: 0.0031 | M60: 0.5283699329 | N60: 147.9600605 | O60: 0.0001 | P60: 0.4100907501 | Q60: 125.3909054 | R60: 0.0067 | S60: 0.6839547785 | T60: 136.2377269 | U60: 0.0019 | V60: 0.5296357019 | W60: 168.5972621 | X60: 0.0064 | Y60: 0.5674765229 | Z60: 135.4987463 | AA60: 0.0042 | AB60: 0.3933744234 | AC60: 135.9575349 | AD60: 0.0034 | AE60: 0.398583862 | AF60: 86.945928 | AG60: 0 | AH60: 125.3333766 | AI60: 0.0121 | AJ60: 101.04 | AK60: 0 | AL60: 141.6032176 | AM60: 0.0033 | AN60: 150.4618281 | AO60: 0.0036 | AP60: 104.4397682 | AQ60: 0.004805332713 | AR60: 0.08563358289 | AS60: 145.1466618 | AT60: 0.003424372545 | AU60: 0.5998072712 | AV60: 159.1574643 | AW60: 0 | AX60: 0.3272793602 | AY60: 101.9595814 | AZ60: ='3.1 Índice_EE'!CN48 -> 0.08411543635 | BA60: 0.6844544648
A61: 2017-11-01 | B61: 135.3896682 | C61: 0.0018 | D61: 0.3867118596 | E61: 127.8079252 | F61: 0.0052 | G61: 0.7260441851 | H61: 128.3826868 | I61: =H61/H60-1 -> 0.008 | J61: 0.6855591419 | K61: 137.340314 | L61: =K61/K60-1 -> 0.0031 | M61: 0.5236466283 | N61: 148.0340405 | O61: =N61/N60-1 -> 0.0005 | P61: 0.4099497552 | Q61: 126.1808681 | R61: 0.0063 | S61: 0.6727473712 | T61: 136.6191926 | U61: 0.0028 | V61: 0.5267349056 | W61: 169.5582665 | X61: 0.0057 | Y61: 0.5575084687 | Z61: 135.8781428 | AA61: 0.0028 | AB61: 0.3875467272 | AC61: 136.392599 | AD61: 0.0032 | AE61: 0.3938447897 | AF61: 86.73725777 | AG61: -0.0024 | AH61: 125.3333766 | AI61: 0 | AJ61: 101.04 | AK61: 0 | AL61: 141.0226444 | AM61: -0.0041 | AN61: 150.4166896 | AO61: -0.0003 | AP61: 104.3702114 | AQ61: -0.0006659986288 | AR61: 0.08044170104 | AS61: 144.7802624 | AT61: -0.002524338694 | AU61: 0.5943476309 | AV61: 159.1574643 | AW61: 0 | AX61: 0.3272793602 | AY61: 107.9737128 | AZ61: ='3.1 Índice_EE'!CN49 -> 0.05898544677 | BA61: 0.5537593215
A62: 2017-12-01 | B62: 135.7416814 | C62: 0.0026 | D62: 0.3842202631 | E62: 128.9454157 | F62: 0.0089 | G62: 0.7171151862 | H62: 129.3327187 | I62: =H62/H61-1 -> 0.0074 | J62: 0.6721816884 | K62: 137.4364522 | L62: =K62/K61-1 -> 0.0007 | M62: 0.5189379208 | N62: 148.1080575 | O62: 0.0005 | P62: 0.4092451326 | Q62: 126.3196671 | R62: 0.0011 | S62: 0.6622750384 | T62: 136.8104594 | U62: 0.0014 | V62: 0.522471984 | W62: 170.4738812 | X62: 0.0054 | Y62: 0.548680987 | Z62: 136.4760067 | AA62: 0.0044 | AB62: 0.3836724443 | AC62: 136.8699731 | AD62: 0.0035 | AE62: 0.3893987138 | AF62: 86.62449934 | AG62: -0.0013 | AH62: 125.3333766 | AI62: 0 | AJ62: 101.04 | AK62: 0 | AL62: 145.0135852 | AM62: 0.0283 | AN62: 152.9136066 | AO62: 0.0166 | AP62: 104.3326253 | AQ62: -0.0003601233007 | AR62: 0.08116175329 | AS62: 148.1735938 | AT62: 0.02343780335 | AU62: 0.5983824897 | AV62: 159.1574643 | AW62: 0 | AX62: 0.3272793602 | AY62: 100.0326176 | AZ62: ='3.1 Índice_EE'!CN50 -> -0.07354656041 | BA62: 0.4672149898
A63: 2018-01-01 | B63: 136.0538872 | C63: 0.0023 | D63: 0.3806306235 | E63: 129.9254008 | F63: =E63/E62-1 -> 0.0076 | G63: 0.7019676739 | H63: 130.0828485 | I63: =H63/H62-1 -> 0.0058 | J63: 0.6598984399 | K63: 137.8625052 | L63: =K63/K62-1 -> 0.0031 | M63: 0.517875408 | N63: 148.1080575 | O63: 0 | P63: 0.4085408622 | Q63: 127.1912728 | R63: 0.0069 | S63: 0.660448545 | T63: 137.1935287 | U63: 0.0028 | V63: 0.5203435031 | W63: 171.4626297 | X63: 0.0058 | Y63: 0.5403630267 | Z63: 136.8717871 | AA63: 0.0029 | AB63: 0.3776109561 | AC63: 137.403766 | AD63: 0.0039 | AE63: 0.3845527791 | AF63: 86.62449934 | AG63: =AF63/AF62-1 -> 0 | AH63: 125.3333766 | AI63: 0 | AJ63: 102.45456 | AK63: 0.014 | AL63: 154.1929451 | AM63: 0.0633 | AN63: 159.7182621 | AO63: 0.0445 | AP63: 104.8041453 | AQ63: 0.004519391692 | AR63: 0.08155124509 | AS63: 156.4030719 | AT63: 0.05553943827 | AU63: 0.5617778476 | AV63: 159.1574643 | AW63: 0 | AX63: 0.3272793602 | AY63: 88.67766321 | AZ63: ='3.1 Índice_EE'!CN51 -> -0.1135125191 | BA63: 0.5836899375
A64: 2018-02-01 | B64: 136.2987842 | C64: 0.0018 | D64: 0.3774624599 | E64: 130.0163486 | F64: =E64/E63-1 -> 0.0007 | G64: 0.6891302837 | H64: 130.2779727 | I64: =H64/H63-1 -> 0.0015 | J64: 0.6503265459 | K64: 138.0417264 | L64: =K64/K63-1 -> 0.0013 | M64: 0.5131845359 | N64: 148.1080575 | O64: 0 | P64: 0.4085408622 | Q64: 127.5474084 | R64: 0.0028 | S64: 0.6490699623 | T64: 137.3855997 | U64: 0.0014 | V64: 0.5160984275 | W64: 172.268504 | X64: 0.0047 | Y64: 0.5314804401 | Z64: 137.3097768 | AA64: =Z64/Z63-1 -> 0.0032 | AB64: 0.3736274365 | AC64: 137.9259003 | AD64: =AC64/AC63-1 -> 0.0038 | AE64: 0.3791740005 | AF64: 86.41660054 | AG64: =AF64/AF63-1 -> -0.0024 | AH64: 126.2483102 | AI64: 0.0073 | AJ64: 102.45456 | AK64: 0 | AL64: 157.0609339 | AM64: 0.0186 | AN64: 160.9321209 | AO64: 0.0076 | AP64: 105.0398236 | AQ64: 0.002248749635 | AR64: 0.07668528257 | AS64: 158.6094087 | AT64: 0.01410673561 | AU64: 0.4796016056 | AV64: 159.1574643 | AW64: 0 | AX64: 0.3272793602 | AY64: 88.42761084 | AZ64: ='3.1 Índice_EE'!CN52 -> -0.002819789797 | BA64: 0.7864774986
A65: 2018-03-01 | B65: =B64*(1+C65) -> 136.3941934 | C65: 0.0007 | D65: 0.3749874824 | E65: =E64*(1+F65) -> 130.8484533 | F65: 0.0064 | G65: 0.6879487196 | H65: =H64*(1+I65) -> 131.0075294 | I65: 0.0056 | J65: 0.6478547638 | K65: =K64*(1+L65) -> 138.3730266 | L65: 0.0024 | M65: 0.51121995 | N65: =N64*(1+O65) -> 148.1524899 | O65: 0.0003 | P65: 0.4085408622 | Q65: =Q64*(1+R65) -> 128.1851454 | R65: 0.005 | S65: 0.644465459 | T65: =T64*(1+U65) -> 137.7015865 | U65: 0.0023 | V65: 0.5139788571 | W65: =W64*(1+X65) -> 173.1815271 | X65: 0.0053 | Y65: 0.5243161542 | Z65: =Z64*(1+AA65) -> 137.4333556 | AA65: 0.0009 | AB65: 0.3692458498 | AC65: =AC64*(1+AD65) -> 138.0638262 | AD65: 0.001 | AE65: 0.3739529792 | AF65: =AF64*(1+AG65) -> 85.29318473 | AG65: -0.013 | AH65: =AH64*(1+AI65) -> 126.2483102 | AI65: 0 | AJ65: =AJ64*(1+AK65) -> 102.45456 | AK65: 0 | AL65: =AL64*(1+AM65) -> 157.752002 | AM65: 0.0044 | AN65: =AN64*(1+AO65) -> 160.481511 | AO65: -0.0028 | AP65: 104.6653516 | AQ65: -0.003565047264 | AR65: 0.07426951938 | AS65: 158.8438056 | AT65: 0.001477824626 | AU65: 0.4590196018 | AV65: 159.1574643 | AW65: 0 | AX65: 0.3272793602 | AY65: 91.79247203 | AZ65: ='3.1 Índice_EE'!CN53 -> 0.0380521554 | BA65: 0.7915292345
A66: 2018-04-01 | B66: 136.6806212 | C66: 0.0021 | D66: 0.3740256644 | E66: 131.5942894 | F66: 0.0057 | G66: 0.6772145465 | H66: 132.2258994 | I66: 0.0093 | J66: 0.6386781661 | K66: 138.7743084 | L66: 0.0029 | M66: 0.5076017059 | N66: 148.5525017 | O66: 0.0027 | P66: 0.4081184266 | Q66: 128.5825193 | R66: 0.0031 | S66: 0.6362840388 | T66: 138.087151 | U66: 0.0028 | V66: 0.5105046963 | W66: 174.082071 | X66: 0.0052 | Y66: 0.5162798709 | Z66: 137.735709 | AA66: 0.0022 | AB66: 0.3680146366 | AC66: 138.3537602 | AD66: 0.0021 | AE66: 0.3725803988 | AF66: 85.29318473 | AG66: 0 | AH66: 126.2483102 | AI66: 0 | AJ66: 102.45456 | AK66: 0 | AL66: 158.935142 | AM66: 0.0075 | AN66: 164.5737895 | AO66: 0.0255 | AP66: =AVERAGE(AF66,AH66,AJ66) -> 104.6653516 | AQ66: 0 | AR66: 0.07811304334 | AS66: =0.4*AN66+0.6*AL66 -> 161.190601 | AT66: 0.01477423317 | AU66: 0.4568666085 | AV66: 159.1574643 | AW66: 0 | AX66: 0.3272793602 | AY66: 91.62180873 | AZ66: ='3.1 Índice_EE'!CN54 -> -0.001859229748 | BA66: 0.7258566683
A67: 2018-05-01 | B67: 137.2683479 | C67: 0.0043 | D67: =B$134/B66-1 -> 0.3711462573 | E67: 133.4102906 | F67: 0.0138 | G67: =E$134/E66-1 -> 0.6677086074 | H67: 134.3944042 | I67: 0.0164 | J67: =H$134/H66-1 -> 0.6235788824 | K67: 139.0934893 | L67: 0.0023 | M67: =K$134/K66-1 -> 0.5032423032 | N67: 148.7010542 | O67: 0.001 | P67: =N$134/N66-1 -> 0.4043267444 | Q67: 129.0839912 | R67: 0.0039 | S67: =Q$134/Q66-1 -> 0.6312272344 | T67: 138.5014124 | U67: 0.003 | V67: =T$134/T66-1 -> 0.5062870925 | W67: 174.9872978 | X67: 0.0052 | Y67: =W$134/W66-1 -> 0.5084360037 | Z67: 138.2866518 | AA67: 0.004 | AB67: =Z$134/Z66-1 -> 0.3650116111 | AC67: 138.5474555 | AD67: 0.0014 | AE67: =AC$134/AC66-1 -> 0.3697040203 | AF67: 85.29318473 | AG67: 0 | AH67: 126.2483102 | AI67: 0 | AJ67: 102.45456 | AK67: 0 | AL67: 163.2263909 | AM67: 0.027 | AN67: 168.9679097 | AO67: 0.0267 | AP67: 104.6653516 | AQ67: =AP67/AP66-1 -> 0 | AR67: =AP$134/AP66-1 -> 0.07811304334 | AS67: 165.5229984 | AT67: =AS67/AS66-1 -> 0.02687748135 | AU67: =AS$134/AS66-1 -> 0.4356558936 | AV67: 159.1574643 | AW67: 0 | AX67: =AV$134/AV66-1 -> 0.3272793602 | AY67: 90.80396664 | AZ67: ='3.1 Índice_EE'!CN55 -> -0.008926281878 | BA67: 0.7290714093
A68: 2018-06-01 | B68: 139.2312852 | C68: 0.0143 | D68: 0.3652755723 | E68: 135.9050631 | F68: 0.0187 | G68: 0.6450075039 | H68: 136.3834413 | I68: 0.0148 | J68: 0.5973818206 | K68: 140.4426961 | L68: 0.0097 | M68: 0.4997927798 | N68: 150.366506 | O68: 0.0112 | P68: 0.4029238206 | Q68: 130.1037547 | R68: 0.0079 | S68: 0.6248901627 | T68: 139.5540232 | U68: 0.0076 | V68: 0.5017817472 | W68: 175.8972318 | X68: 0.0052 | Y68: 0.5006327136 | Z68: 140.0290636 | AA68: 0.0126 | AB68: 0.3595733178 | AC68: 140.0853322 | AD68: 0.0111 | AE68: 0.3677891156 | AF68: 85.42112451 | AG68: 0.0015 | AH68: 126.2483102 | AI68: 0 | AJ68: 102.45456 | AK68: 0 | AL68: 174.0972685 | AM68: 0.0666 | AN68: 164.8788863 | AO68: -0.0242 | AP68: 104.7079982 | AQ68: 0.0004074566387 | AR68: 0.07811304334 | AS68: 170.4099156 | AT68: 0.02952409793 | AU68: 0.39807905 | AV68: =AV67*(1+AW68) -> 159.1574643 | AW68: 0 | AX68: 0.3272793602 | AY68: 118.6381809 | AZ68: ='3.1 Índice_EE'!CN56 -> 0.3065308189 | BA68: 0.7446445988
A69: 2018-07-01 | B69: 139.5793635 | C69: 0.0025 | D69: 0.3460273808 | E69: 136.5981789 | F69: 0.0051 | G69: 0.6148105467 | H69: 136.9835285 | I69: 0.0044 | J69: 0.5740853573 | K69: 141.2993966 | L69: 0.0061 | M69: 0.4853845497 | N69: 150.7123489 | O69: 0.0023 | P69: 0.3873851074 | Q69: 131.5088753 | R69: 0.0108 | S69: 0.612154145 | T69: 140.5588121 | U69: 0.0072 | V69: 0.4904542946 | W69: 176.8470768 | X69: 0.0054 | Y69: 0.4928697907 | Z69: 140.4911595 | AA69: 0.0033 | AB69: 0.3426558541 | AC69: 140.9818784 | AD69: 0.0064 | AE69: 0.3527733316 | AF69: 85.43820873 | AG69: 0.0002 | AH69: 126.2483102 | AI69: 0 | AJ69: 102.45456 | AK69: 0 | AL69: 170.754601 | AM69: -0.0192 | AN69: 160.5260837 | AO69: -0.0264 | AP69: 104.713693 | AQ69: 5.438688285e-05 | AR69: 0.07767393794 | AS69: 166.663194 | AT69: -0.02198652325 | AU69: 0.3579857458 | AV69: 159.1574643 | AW69: 0 | AX69: 0.3272793602 | AY69: 126.1899025 | AZ69: ='3.1 Índice_EE'!CN57 -> 0.06365338326 | BA69: 0.3353260203
A70: 2018-08-01 | B70: 139.5793635 | C70: 0 | D70: 0.342670704 | E70: 137.5543661 | F70: 0.007 | G70: 0.606616801 | H70: 137.9150165 | I70: 0.0068 | J70: 0.5671897225 | K70: 141.5113457 | L70: 0.0015 | M70: 0.47637864 | N70: 150.7123489 | O70: 0 | P70: 0.3842014441 | Q70: 131.9428545 | R70: 0.0033 | S70: 0.5949289127 | T70: 140.9664327 | U70: 0.0029 | V70: 0.4797997365 | W70: 177.8551051 | X70: 0.0057 | Y70: 0.4848515921 | Z70: 140.3647175 | AA70: -0.0009 | AB70: 0.3382396632 | AC70: 141.1651548 | AD70: 0.0013 | AE70: 0.3441706395 | AF70: 85.43820873 | AG70: 0 | AH70: 126.2483102 | AI70: 0 | AJ70: 102.45456 | AK70: 0 | AL70: 168.4835648 | AM70: -0.0133 | AN70: 161.1842406 | AO70: 0.0041 | AP70: 104.713693 | AQ70: 0 | AR70: 0.0776153298 | AS70: 165.5638351 | AT70: -0.00659629107 | AU70: 0.3885143488 | AV70: 166.017151 | AW70: 0.0431 | AX70: 0.3272793602 | AY70: 129.2491564 | AZ70: ='3.1 Índice_EE'!CN58 -> 0.02424325435 | BA70: 0.2554146316
A71: 2018-09-01 | B71: 139.9981015 | C71: 0.003 | D71: 0.342670704 | E71: 139.6451925 | F71: 0.0152 | G71: 0.5954486604 | H71: 140.3836953 | I71: 0.0179 | J71: 0.5566048098 | K71: 141.8368218 | L71: 0.0023 | M71: 0.4741673889 | N71: 150.8027763 | O71: 0.0006 | P71: 0.3842014441 | Q71: 132.5234031 | R71: 0.0044 | S71: 0.589682959 | T71: 141.2060756 | U71: 0.0017 | V71: 0.4755207264 | W71: 178.6910241 | X71: 0.0047 | Y71: 0.4764359074 | Z71: 141.0384681 | AA71: 0.0048 | AB71: 0.3394451638 | AC71: 141.2922034 | AD71: 0.0009 | AE71: 0.3424254864 | AF71: 85.43820873 | AG71: 0 | AH71: 126.2483102 | AI71: 0 | AJ71: 102.45456 | AK71: 0 | AL71: 174.026674 | AM71: 0.0329 | AN71: 170.968124 | AO71: 0.0607 | AP71: 104.713693 | AQ71: 0 | AR71: 0.0776153298 | AS71: 172.803254 | AT71: 0.04372584705 | AU71: 0.3977342105 | AV71: 166.017151 | AW71: 0 | AX71: 0.2724373121 | AY71: 120.9805245 | AZ71: ='3.1 Índice_EE'!CN59 -> -0.06397435897 | BA71: 0.2256996824
A72: 2018-10-01 | B72: 140.5580939 | C72: 0.004 | D72: 0.3386547398 | E72: 140.8880347 | F72: 0.0089 | G72: 0.5715609342 | H72: 140.7486929 | I72: 0.0026 | J72: 0.5292315648 | K72: 142.3332506 | L72: 0.0035 | M72: 0.4707845844 | N72: 151.0440608 | O72: 0.0016 | P72: 0.3833714212 | Q72: 133.2787865 | R72: 0.0057 | S72: 0.5827189954 | T72: 141.6720557 | U72: 0.0033 | V72: 0.4730165982 | W72: 179.6559557 | X72: 0.0054 | Y72: 0.4695291205 | Z72: 141.6731412 | AA72: 0.0045 | AB72: 0.3330465404 | AC72: 142.1116982 | AD72: 0.0058 | AE72: 0.3412183898 | AF72: 85.43820873 | AG72: 0 | AH72: 126.2483102 | AI72: 0 | AJ72: 102.45456 | AK72: 0 | AL72: 176.2194101 | AM72: 0.0126 | AN72: 175.6868442 | AO72: 0.0276 | AP72: 104.713693 | AQ72: 0 | AR72: 0.0776153298 | AS72: 176.0063838 | AT72: 0.01853628141 | AU72: 0.3391775383 | AV72: 166.017151 | AW72: 0 | AX72: 0.2724373121 | AY72: 118.7128055 | AZ72: ='3.1 Índice_EE'!CN60 -> -0.01874449616 | BA72: 0.3094723357
A73: 2018-11-01 | B73: 140.2066987 | C73: -0.0025 | D73: 0.333321454 | E73: 140.1976834 | F73: -0.0049 | G73: 0.5576974271 | H73: 139.1441578 | I73: -0.0114 | J73: 0.5252658735 | K73: 142.5182839 | L73: 0.0013 | M73: 0.4656547926 | N73: 151.0440608 | O73: 0 | P73: 0.3811615627 | Q73: 133.665295 | R73: 0.0029 | S73: 0.5737486282 | T73: 142.040403 | U73: 0.0026 | V73: 0.4681716318 | W73: 180.5362699 | X73: 0.0049 | Y73: 0.4616362846 | Z73: 141.3756276 | AA73: -0.0021 | AB73: 0.3270747043 | AC73: 142.3817105 | AD73: 0.0019 | AE73: 0.3334841816 | AF73: 85.43820873 | AG73: 0 | AH73: 126.2483102 | AI73: 0 | AJ73: 102.45456 | AK73: 0 | AL73: 171.2500228 | AM73: -0.0282 | AN73: 174.4218989 | AO73: -0.0072 | AP73: 104.713693 | AQ73: 0 | AR73: 0.0776153298 | AS73: 172.5187732 | AT73: -0.0198152502 | AU73: 0.3148059257 | AV73: 166.017151 | AW73: 0 | AX73: 0.2724373121 | AY73: 111.8653867 | AZ73: ='3.1 Índice_EE'!CN61 -> -0.05768054057 | BA73: 0.3344866149
A74: 2018-12-01 | B74: 140.4029881 | C74: 0.0014 | D74: 0.3366631118 | E74: 138.6835484 | F74: -0.0108 | G74: 0.5653677289 | H74: 138.5180091 | I74: -0.0045 | J74: 0.5428544139 | K74: 142.7035576 | L74: 0.0013 | M74: 0.4637519151 | N74: 151.1346872 | O74: 0.0006 | P74: 0.3811615627 | Q74: 133.9727252 | R74: 0.0023 | S74: 0.5691979541 | T74: 142.2250556 | U74: 0.0013 | V74: 0.4643642846 | W74: 181.4208976 | X74: 0.0049 | Y74: 0.4545091896 | Z74: 141.5876911 | AA74: 0.0015 | AB74: 0.3298674259 | AC74: 142.1538997 | AD74: -0.0016 | AE74: 0.3309553664 | AF74: 85.43820873 | AG74: 0 | AH74: 126.2483102 | AI74: 0 | AJ74: 102.45456 | AK74: 0 | AL74: 164.4171469 | AM74: -0.0399 | AN74: 167.2182745 | AO74: -0.0413 | AP74: 104.713693 | AQ74: 0 | AR74: 0.0776153298 | AS74: 165.5375979 | AT74: -0.04046617759 | AU74: 0.3413858214 | AV74: 166.017151 | AW74: 0 | AX74: 0.2724373121 | AY74: 112.4153053 | AZ74: ='3.1 Índice_EE'!CN62 -> 0.0049158961 | BA74: 0.4161721925
A75: 2019-01-01 | B75: 140.9084388 | C75: 0.0036 | D75: 0.3347943996 | E75: 138.6974167 | F75: 0.0001 | G75: 0.5824582783 | H75: 138.6149717 | I75: 0.0007 | J75: 0.5498286427 | K75: 143.4028051 | L75: 0.0049 | M75: 0.4618515081 | N75: 151.739226 | O75: 0.004 | P75: 0.3803333627 | Q75: 134.7765615 | R75: 0.006 | S75: 0.5655970809 | T75: 142.7939558 | U75: 0.004 | V75: 0.4624630826 | W75: 182.4005704 | X75: 0.0054 | Y75: 0.447416847 | Z75: 142.0407717 | AA75: 0.0032 | AB75: 0.3278756124 | AC75: 142.5803614 | AD75: 0.003 | AE75: 0.3330883077 | AF75: 85.711611 | AG75: 0.0032 | AH75: 126.2483102 | AI75: 0 | AJ75: 102.45456 | AK75: 0 | AL75: 161.1616874 | AM75: -0.0198 | AN75: 163.4056979 | AO75: -0.0228 | AP75: 104.8048271 | AQ75: 0.0008703168299 | AR75: 0.0776153298 | AS75: 162.0592916 | AT75: -0.02101218341 | AU75: 0.3979557469 | AV75: 166.017151 | AW75: 0 | AX75: 0.2724373121 | AY75: 111.3165883 | AZ75: ='3.1 Índice_EE'!CN63 -> -0.009773731423 | BA75: 0.409244493
A76: 2019-02-01 | B76: 141.6693444 | C76: 0.0054 | D76: 0.3300063766 | E76: 139.917954 | F76: 0.0088 | G76: 0.5823000483 | H76: 140.3476588 | I76: 0.0125 | J76: 0.5487445216 | K76: 143.5318676 | L76: 0.0009 | M76: 0.4547233636 | N76: 151.7999217 | O76: 0.0004 | P76: 0.3748340266 | Q76: 134.9787264 | R76: 0.0015 | S76: 0.5562595237 | T76: 143.0652643 | U76: 0.0019 | V76: 0.4566365365 | W76: 183.2943332 | X76: 0.0049 | Y76: 0.439642776 | Z76: 142.651547 | AA76: 0.0043 | AB76: 0.3236399645 | AC76: 143.0651346 | AD76: 0.0034 | AE76: 0.3291010047 | AF76: 85.711611 | AG76: 0 | AH76: 126.2483102 | AI76: 0 | AJ76: 102.45456 | AK76: 0 | AL76: 160.3397628 | AM76: -0.0051 | AN76: 164.3534509 | AO76: 0.0058 | AP76: 104.8048271 | AQ76: 0 | AR76: 0.07667827857 | AS76: 161.945238 | AT76: -0.0007037766436 | AU76: 0.4279603108 | AV76: 166.017151 | AW76: 0 | AX76: 0.2724373121 | AY76: 113.4739454 | AZ76: ='3.1 Índice_EE'!CN64 -> 0.01938037396 | BA76: 0.4231540182
A77: 2019-03-01 | B77: 142.7601984 | C77: 0.0077 | D77: 0.3228629169 | E77: 141.6809202 | F77: 0.0126 | G77: 0.5684972723 | H77: 141.8493788 | I77: 0.0107 | J77: 0.5296242188 | K77: 143.9768164 | L77: 0.0031 | M77: 0.4534152899 | N77: 151.9820816 | O77: 0.0012 | P77: 0.3742843129 | Q77: 135.7076115 | R77: 0.0054 | S77: 0.5539286308 | T77: 143.3370883 | U77: 0.0019 | V77: 0.4538741756 | W77: 184.1558166 | X77: 0.0047 | Y77: 0.4326229237 | Z77: 143.7214336 | AA77: 0.0075 | AB77: 0.317972682 | AC77: 143.8376864 | AD77: 0.0054 | AE77: 0.3245973736 | AF77: 85.00020463 | AG77: -0.0083 | AH77: 126.2483102 | AI77: 0 | AJ77: 102.45456 | AK77: 0 | AL77: 164.4765286 | AM77: 0.0258 | AN77: 167.4268604 | AO77: 0.0187 | AP77: 104.5676916 | AQ77: -0.002262638695 | AR77: 0.07667827857 | AS77: 165.6566614 | AT77: 0.02291776767 | AU77: 0.4289659837 | AV77: 166.017151 | AW77: 0 | AX77: 0.2724373121 | AY77: 106.7296018 | AZ77: ='3.1 Índice_EE'!CN65 -> -0.0594351733 | BA77: 0.3960971336
A78: 2019-04-01 | B78: 143.6167596 | C78: 0.006 | D78: 0.3127547057 | E78: 142.9843847 | F78: 0.0092 | G78: 0.5489801228 | H78: 143.1260232 | I78: 0.009 | J78: 0.5134305124 | K78: 144.5239283 | L78: 0.0038 | M78: 0.4489236266 | N78: 152.2860457 | O78: 0.002 | P78: 0.3726371483 | Q78: 136.4947156 | R78: 0.0058 | S78: 0.5455824853 | T78: 144.03944 | U78: 0.0049 | V78: 0.4511170532 | W78: 185.1134268 | X78: 0.0052 | Y78: 0.4259210945 | Z78: 144.5406458 | AA78: 0.0057 | AB78: 0.308161471 | AC78: 144.8733177 | AD78: 0.0072 | AE78: 0.3174829656 | AF78: 85.00020463 | AG78: 0 | AH78: 126.2483102 | AI78: 0 | AJ78: 102.45456 | AK78: 0 | AL78: 168.5390989 | AM78: 0.0247 | AN78: 170.0387195 | AO78: 0.0156 | AP78: 104.5676916 | AQ78: 0 | AR78: 0.0791199371 | AS78: 169.1389471 | AT78: 0.02102110314 | AU78: 0.3969509856 | AV78: 166.017151 | AW78: 0 | AX78: 0.2724373121 | AY78: 106.79815 | AZ78: ='3.1 Índice_EE'!CN66 -> 0.0006422607579 | BA78: 0.4843178205
A79: 2019-05-01 | B79: 143.8321847 | C79: 0.0015 | D79: 0.3049251547 | E79: 143.6278144 | F79: 0.0045 | G79: 0.5348594162 | H79: 143.6985273 | I79: 0.004 | J79: 0.4999311322 | K79: 144.5672855 | L79: 0.0003 | M79: 0.4434385601 | N79: 152.3012743 | O79: 0.0001 | P79: 0.3698973536 | Q79: 136.5766125 | R79: 0.0006 | S79: 0.5366698005 | T79: 144.1690755 | U79: 0.0009 | V79: 0.444041251 | W79: 186.1130393 | X79: 0.0054 | Y79: 0.4185446623 | Z79: 144.7285486 | AA79: 0.0013 | AB79: 0.3007472119 | AC79: 145.3803743 | AD79: 0.0035 | AE79: 0.3080648983 | AF79: 85.00020463 | AG79: 0 | AH79: 126.2483102 | AI79: 0 | AJ79: 102.45456 | AK79: 0 | AL79: 173.3087554 | AM79: 0.0283 | AN79: 173.7285597 | AO79: 0.0217 | AP79: 104.5676916 | AQ79: 0 | AR79: 0.0791199371 | AS79: 173.4766771 | AT79: 0.02564595593 | AU79: 0.3681901199 | AV79: 166.017151 | AW79: 0 | AX79: 0.2724373121 | AY79: 109.0508936 | AZ79: ='3.1 Índice_EE'!CN67 -> 0.02109346953 | BA79: 0.4833651133
A80: 2019-06-01 | B80: 143.8465679 | C80: 0.0001 | D80: 0.3029706987 | E80: 144.7768369 | F80: 0.008 | G80: 0.5279834905 | H80: 144.603828 | I80: 0.0063 | J80: 0.4939553109 | K80: 145.8394776 | L80: 0.0088 | M80: 0.4430056584 | N80: 154.6924043 | O80: 0.0157 | P80: 0.3697603776 | Q80: 136.6995314 | R80: 0.0009 | S80: 0.5357483515 | T80: 144.8034195 | U80: 0.0044 | V80: 0.4427427825 | W80: 186.9877706 | X80: 0.0047 | Y80: 0.4109256637 | Z80: 144.7430215 | AA80: 0.0001 | AB80: 0.2990584359 | AC80: 145.4676025 | AD80: 0.0006 | AE80: 0.3035026391 | AF80: 85.00020463 | AG80: 0 | AH80: 126.2483102 | AI80: 0 | AJ80: 102.45456 | AK80: 0 | AL80: 168.8720512 | AM80: -0.0256 | AN80: 172.5298326 | AO80: -0.0069 | AP80: 104.5676916 | AQ80: 0 | AR80: 0.0791199371 | AS80: 170.3351638 | AT80: -0.01810913928 | AU80: 0.3339789545 | AV80: 166.017151 | AW80: 0 | AX80: 0.2724373121 | AY80: 117.4838348 | AZ80: ='3.1 Índice_EE'!CN68 -> 0.07733032657 | BA80: 0.4527221626
A81: 2019-07-01 | B81: 143.9904145 | C81: 0.001 | D81: 0.3028404146 | E81: 145.3559443 | F81: 0.004 | G81: 0.5158566374 | H81: 144.5893676 | I81: -0.0001 | J81: 0.4846023163 | K81: 146.6853465 | L81: 0.0058 | M81: 0.4304179802 | N81: 155.9918205 | O81: 0.0084 | P81: 0.348587553 | Q81: 137.0549502 | R81: 0.0026 | S81: 0.5343674208 | T81: 146.1211306 | U81: 0.0091 | V81: 0.4364225234 | W81: 188.0536009 | X81: 0.0057 | Y81: 0.4043253346 | Z81: 145.0180332 | AA81: 0.0019 | AB81: 0.2989285431 | AC81: 145.5985234 | AD81: 0.0009 | AE81: 0.3027210065 | AF81: 84.79620414 | AG81: -0.0024 | AH81: 128.5586543 | AI81: 0.0183 | AJ81: 102.45456 | AK81: 0 | AL81: 163.7214537 | AM81: -0.0305 | AN81: 169.2172598 | AO81: -0.0192 | AP81: 105.2698061 | AQ81: 0.00671444992 | AR81: 0.0791199371 | AS81: 165.9197761 | AT81: -0.02592176245 | AU81: 0.3585816997 | AV81: 166.017151 | AW81: 0 | AX81: 0.2724373121 | AY81: 125.4839575 | AZ81: ='3.1 Índice_EE'!CN69 -> 0.06809551885 | BA81: 0.3484463649
A82: 2019-08-01 | B82: 144.163203 | C82: 0.0012 | D82: 0.3015388758 | E82: 144.3820594 | F82: -0.0067 | G82: 0.5098173679 | H82: 143.8519618 | I82: -0.0051 | J82: 0.4847507914 | K82: 147.301425 | L82: 0.0042 | M82: 0.4221693977 | N82: 157.0681641 | O82: 0.0069 | P82: 0.3373537812 | Q82: 137.1920051 | R82: 0.001 | S82: 0.5303884109 | T82: 146.6179424 | U82: 0.0034 | V82: 0.4234689559 | W82: 188.9938689 | X82: 0.005 | Y82: 0.3963660482 | Z82: 145.1775531 | AA82: 0.0011 | AB82: 0.2964652591 | AC82: 145.7150022 | AD82: 0.0008 | AE82: 0.3015496118 | AF82: 84.08391603 | AG82: -0.0084 | AH82: 129.2143034 | AI82: 0.0051 | AJ82: 102.45456 | AK82: 0 | AL82: 162.739125 | AM82: -0.006 | AN82: 167.9142869 | AO82: -0.0077 | AP82: 105.2509265 | AQ82: -0.0001793454364 | AR82: 0.07192256671 | AS82: 164.8091897 | AT82: -0.006693514296 | AU82: 0.3947357074 | AV82: 179.9293883 | AW82: 0.0838 | AX82: 0.2724373121 | AY82: 125.8041789 | AZ82: ='3.1 Índice_EE'!CN70 -> 0.002551891375 | BA82: 0.2624773169
A83: 2019-09-01 | B83: 144.0911214 | C83: -0.0005 | D83: 0.2999789011 | E83: 144.3676212 | F83: -0.0001 | G83: 0.5200013771 | H83: 144.5712217 | I83: 0.005 | J83: 0.4923618368 | K83: 147.9790115 | L83: 0.0046 | M83: 0.4162212684 | N83: 158.0734003 | O83: 0.0064 | P83: 0.3281892752 | Q83: 137.5487043 | R83: 0.0026 | S83: 0.5288595514 | T83: 147.4976501 | U83: 0.006 | V83: 0.418645561 | W83: 189.8632407 | X83: 0.0046 | Y83: 0.3894189534 | Z83: 145.119482 | AA83: -0.0004 | AB83: 0.2950407143 | AC83: 145.8461457 | AD83: 0.0009 | AE83: 0.3005092044 | AF83: 84.34457617 | AG83: 0.0031 | AH83: 129.2143034 | AI83: 0 | AJ83: 102.45456 | AK83: 0 | AL83: 163.0157815 | AM83: 0.0017 | AN83: 172.9349241 | AO83: 0.0299 | AP83: 105.3378132 | AQ83: 0.0008255196997 | AR83: 0.07211484561 | AS83: 166.9834385 | AT83: 0.0131925215 | AU83: 0.4041343004 | AV83: 179.9293883 | AW83: 0 | AX83: 0.1740517734 | AY83: 124.0599664 | AZ83: ='3.1 Índice_EE'!CN71 -> -0.01386450362 | BA83: 0.2592638125
A84: 2019-10-01 | B84: 144.1487578 | C84: 0.0004 | D84: 0.3006292157 | E84: 145.3493211 | F84: 0.0068 | G84: 0.5201533925 | H84: 145.3663634 | I84: 0.0055 | J84: 0.484937151 | K84: 148.2453738 | L84: 0.0018 | M84: 0.4097364805 | N84: 158.0734003 | O84: 0 | P84: 0.3197429205 | Q84: 138.0988992 | R84: 0.004 | S84: 0.5248948248 | T84: 147.6746472 | U84: 0.0012 | V84: 0.4101844543 | W84: 190.7745843 | X84: 0.0048 | Y84: 0.3830568917 | Z84: 145.2646015 | AA84: 0.001 | AB84: 0.2955589379 | AC84: 145.9774072 | AD84: 0.0009 | AE84: 0.2993397986 | AF84: 84.34457617 | AG84: 0 | AH84: 129.2143034 | AI84: 0 | AJ84: 102.45456 | AK84: 0 | AL84: 165.2817008 | AM84: 0.0139 | AN84: 176.0304592 | AO84: 0.0179 | AP84: 105.3378132 | AQ84: 0 | AR84: 0.07123052371 | AS84: 169.5812042 | AT84: 0.01555702588 | AU84: 0.3858514257 | AV84: 179.9293883 | AW84: 0 | AX84: 0.1740517734 | AY84: 123.0901103 | AZ84: ='3.1 Índice_EE'!CN72 -> -0.007817639437 | BA84: 0.2769683447
A85: 2019-11-01 | B85: 144.9271611 | C85: 0.0054 | D85: 0.300109172 | E85: 145.785369 | F85: 0.003 | G85: 0.5098861665 | H85: 146.6019775 | I85: 0.0085 | J85: 0.4768146703 | K85: 148.3046719 | L85: 0.0004 | M85: 0.4072035142 | N85: 158.0734003 | O85: 0 | P85: 0.3197429205 | Q85: 138.2093783 | R85: 0.0008 | S85: 0.5188195467 | T85: 147.8961592 | U85: 0.0015 | V85: 0.4084942612 | W85: 191.4995277 | X85: 0.0038 | Y85: 0.376449932 | Z85: 146.005451 | AA85: 0.0051 | AB85: 0.2942646732 | AC85: 146.1817756 | AD85: 0.0014 | AE85: 0.2981714443 | AF85: 84.34457617 | AG85: 0 | AH85: 129.2143034 | AI85: 0 | AJ85: 102.45456 | AK85: 0 | AL85: 166.2568629 | AM85: 0.0059 | AN85: 176.1536806 | AO85: 0.0007 | AP85: 105.3378132 | AQ85: 0 | AR85: 0.07123052371 | AS85: 170.21559 | AT85: =AS85/AS84-1 -> 0.003740896596 | AU85: 0.3646219664 | AV85: 179.9293883 | AW85: 0 | AX85: 0.1740517734 | AY85: 129.4579611 | AZ85: ='3.1 Índice_EE'!CN73 -> 0.05173324476 | BA85: 0.2870298803
A86: 2019-12-01 | B86: 146.6952725 | C86: 0.0122 | D86: 0.2931262901 | E86: 148.8322832 | F86: 0.0209 | G86: 0.5053700564 | H86: 149.1528519 | I86: 0.0174 | J86: 0.4643675462 | K86: 148.6161117 | L86: 0.0021 | M86: 0.4066408579 | N86: 158.5792352 | O86: 0.0032 | P86: 0.3197429205 | Q86: 138.3061248 | R86: 0.0007 | S86: 0.5176054623 | T86: 148.1032138 | U86: 0.0014 | V86: 0.4063846842 | W86: 192.2080759 | X86: 0.0037 | Y86: 0.371239223 | Z86: 147.6845137 | AA86: 0.0115 | AB86: 0.2876974164 | AC86: 147.7166843 | AD86: 0.0105 | AE86: 0.2963565452 | AF86: 84.34457617 | AG86: 0 | AH86: 129.2143034 | AI86: 0 | AJ86: 102.45456 | AK86: 0 | AL86: 170.1638992 | AM86: 0.0235 | AN86: 177.9152174 | AO86: 0.01 | AP86: 105.3378132 | AQ86: 0 | AR86: 0.07123052371 | AS86: 173.2644264 | AT86: 0.0179116172 | AU86: 0.3595360825 | AV86: 179.9293883 | AW86: 0 | AX86: 0.1740517734 | AY86: 121.4011301 | AZ86: ='3.1 Índice_EE'!CN74 -> -0.06223511479 | BA86: 0.2237227326
A87: 2020-01-01 | B87: 146.9739935 | C87: 0.0019 | D87: 0.2775402984 | E87: 149.5466782 | F87: 0.0048 | G87: 0.4745519212 | H87: 149.2870894 | I87: 0.0009 | J87: 0.4393233204 | K87: 149.180853 | L87: 0.0038 | M87: 0.4036931024 | N87: 158.6743828 | O87: 0.0006 | P87: 0.3155332142 | Q87: 139.3572514 | R87: 0.0076 | S87: 0.5165438816 | T87: 148.4882822 | U87: 0.0026 | V87: 0.4044184983 | W87: 192.9384666 | X87: 0.0038 | Y87: 0.3661843409 | Z87: 147.9946512 | AA87: 0.0021 | AB87: 0.2730572579 | AC87: 148.7654727 | AD87: 0.0071 | AE87: 0.2828862397 | AF87: 84.34457617 | AG87: 0 | AH87: 129.2143034 | AI87: 0 | AJ87: 102.45456 | AK87: 0 | AL87: 171.3890792 | AM87: 0.0072 | AN87: 181.313398 | AO87: 0.0191 | AP87: 105.3378132 | AQ87: 0 | AR87: 0.07123052371 | AS87: 175.3588067 | AT87: 0.01208776867 | AU87: 0.3356130921 | AV87: 179.9293883 | AW87: 0 | AX87: 0.1740517734 | AY87: 121.4011301 | AZ87: ='3.1 Índice_EE'!CN75 -> 0 | BA87: 0.3049355461
A88: 2020-02-01 | B88: 147.2238493 | C88: 0.0017 | D88: 0.275117575 | E88: 149.4868595 | F88: -0.0004 | G88: 0.4675078834 | H88: 149.3020181 | I88: 0.0001 | J88: 0.4380290942 | K88: 149.6731498 | L88: 0.0033 | M88: 0.3983792612 | N88: 159.007599 | O88: 0.0021 | P88: 0.3147443676 | Q88: 140.0122305 | R88: 0.0047 | S88: 0.5051050829 | T88: 149.0079912 | U88: 0.0035 | V88: 0.4007764794 | W88: 193.4979882 | X88: 0.0029 | Y88: 0.3610124934 | Z88: 148.3646378 | AA88: 0.0025 | AB88: 0.2703894401 | AC88: 149.0927568 | AD88: 0.0022 | AE88: 0.2738419617 | AF88: 85.01089832 | AG88: 0.0079 | AH88: 129.2143034 | AI88: 0 | AJ88: 102.45456 | AK88: 0 | AL88: 170.5492727 | AM88: -0.0049 | AN88: 178.7931418 | AO88: -0.0139 | AP88: 105.5599206 | AQ88: 0.002108524728 | AR88: 0.07123052371 | AS88: 173.8468204 | AT88: -0.00862224381 | AU88: 0.3196613312 | AV88: 179.9293883 | AW88: 0 | AX88: 0.1740517734 | AY88: 119.0148057 | AZ88: ='3.1 Índice_EE'!CN76 -> -0.01965652487 | BA88: 0.3049355461
A89: 2020-03-01 | B89: 147.4888522 | C89: 0.0018 | D89: 0.272953554 | E89: 151.3404966 | F89: 0.0124 | G89: 0.4680951214 | H89: 151.7505712 | I89: 0.0164 | J89: 0.4378853057 | K89: 150.0623 | L89: 0.0026 | M89: 0.3937797879 | N89: 159.3415149 | O89: 0.0021 | P89: 0.3119891903 | Q89: 140.4462684 | R89: 0.0031 | S89: 0.4980641813 | T89: 149.5742216 | U89: 0.0038 | V89: 0.3958908614 | W89: 194.1558813 | X89: 0.0034 | Y89: 0.3570769702 | Z89: 148.468493 | AA89: 0.0007 | AB89: 0.2672213866 | AC89: 149.1225753 | AD89: 0.0002 | AE89: 0.2710456613 | AF89: 85.09590922 | AG89: 0.001 | AH89: 129.2143034 | AI89: 0 | AJ89: 102.45456 | AK89: 0 | AL89: 168.9802194 | AM89: -0.0092 | AN89: 173.339951 | AO89: -0.0305 | AP89: 105.5882575 | AQ89: 0.0002684443674 | AR89: 0.0689765602 | AS89: 170.724112 | AT89: -0.01796241259 | AU89: 0.3311387339 | AV89: 179.9293883 | AW89: 0 | AX89: 0.1740517734 | AY89: 118.8644812 | AZ89: ='3.1 Índice_EE'!CN77 -> -0.001263074025 | BA89: 0.3311003533
A90: 2020-04-01 | B90: 147.1496279 | C90: -0.0023 | D90: 0.2706663545 | E90: 152.5512206 | F90: 0.008 | G90: 0.4501137114 | H90: 151.8264465 | I90: 0.0005 | J90: 0.4146844802 | K90: 150.392437 | L90: 0.0022 | M90: 0.3901653579 | N90: 159.3415149 | O90: 0 | P90: 0.3092397868 | Q90: 141.1204105 | R90: 0.0048 | S90: 0.4934345342 | T90: 149.8434552 | U90: 0.0018 | V90: 0.3906065565 | W90: 194.6995178 | X90: 0.0028 | Y90: 0.3524785432 | Z90: 148.0082407 | AA90: -0.0031 | AB90: 0.2663349521 | AC90: 149.107663 | AD90: -0.0001 | AE90: 0.270791503 | AF90: 85.09590922 | AG90: 0 | AH90: 129.2143034 | AI90: 0 | AJ90: 102.45456 | AK90: 0 | AL90: 156.2053148 | AM90: -0.0756 | AN90: 164.4302775 | AO90: -0.0514 | AP90: 105.5882575 | AQ90: 0 | AR90: 0.06868967648 | AS90: 159.4952999 | AT90: -0.06577168281 | AU90: 0.3554865424 | AV90: 179.9293883 | AW90: 0 | AX90: 0.1740517734 | AY90: 117.7173567 | AZ90: ='3.1 Índice_EE'!CN78 -> -0.009650692372 | BA90: 0.3327837579
A91: 2020-05-01 | B91: 146.7817538 | C91: -0.0025 | D91: 0.2735956245 | E91: 152.978364 | F91: 0.0028 | G91: 0.4386048724 | H91: 153.4509895 | I91: 0.0107 | J91: 0.4139774915 | K91: 150.6932219 | L91: 0.002 | M91: 0.3871137078 | N91: 159.3415149 | O91: 0 | P91: 0.3092397868 | Q91: 141.7413403 | R91: 0.0044 | S91: 0.4863002928 | T91: 150.1581264 | U91: 0.0021 | V91: 0.3881079621 | W91: 195.1667967 | X91: 0.0024 | Y91: 0.3487021771 | Z91: 147.4458094 | AA91: -0.0038 | AB91: 0.2702727978 | AC91: 148.2279278 | AD91: -0.0059 | AE91: 0.2709185948 | AF91: 85.09590922 | AG91: 0 | AH91: 129.2143034 | AI91: 0 | AJ91: 102.45456 | AK91: 0 | AL91: 145.8801435 | AM91: -0.0661 | AN91: 152.262437 | AO91: -0.074 | AP91: 105.5882575 | AQ91: 0 | AR91: 0.06868967648 | AS91: 148.4330609 | AT91: -0.06935777422 | AU91: 0.4509157103 | AV91: 179.9293883 | AW91: 0 | AX91: 0.1740517734 | AY91: 117.534149 | AZ91: ='3.1 Índice_EE'!CN79 -> -0.00155633563 | BA91: 0.3457713835
A92: 2020-06-01 | B92: 147.2220991 | C92: 0.003 | D92: 0.2767875935 | E92: 155.3648265 | F92: 0.0156 | G92: 0.4345880259 | H92: 155.9062053 | I92: 0.016 | J92: 0.3990081048 | K92: 151.2055788 | L92: 0.0034 | M92: 0.3843450177 | N92: 159.3415149 | O92: 0 | P92: 0.3092397868 | Q92: 142.7902262 | R92: 0.0074 | S92: 0.4797892203 | T92: 150.6386324 | U92: 0.0032 | V92: 0.3851990442 | W92: 195.5766469 | X92: 0.0021 | Y92: 0.3454730418 | Z92: 147.8291685 | AA92: 0.0026 | AB92: 0.2751182471 | AC92: 148.2575734 | AD92: 0.0002 | AE92: 0.2784615178 | AF92: 85.09590922 | AG92: 0 | AH92: 129.2143034 | AI92: 0 | AJ92: 102.45456 | AK92: 0 | AL92: 147.6015292 | AM92: 0.0118 | AN92: 151.1965999 | AO92: -0.007 | AP92: 105.5882575 | AQ92: 0 | AR92: 0.06868967648 | AS92: 149.0395575 | AT92: 0.004085993976 | AU92: 0.5590477953 | AV92: 179.9293883 | AW92: 0 | AX92: 0.1740517734 | AY92: 117.7925406 | AZ92: ='3.1 Índice_EE'!CN80 -> 0.002198438694 | BA92: 0.3478691202
A93: 2020-07-01 | B93: 147.8698763 | C93: 0.0044 | D93: 0.2729686874 | E93: 158.8294621 | F93: 0.0223 | G93: 0.4125522114 | H93: 159.5544105 | I93: 0.0234 | J93: 0.3769764811 | K93: 152.9746841 | L93: 0.0117 | M93: 0.3796541935 | N93: 161.5244937 | O93: 0.0137 | P93: 0.3092397868 | Q93: 144.1324543 | R93: 0.0094 | S93: 0.468919218 | T93: 151.9039969 | U93: 0.0084 | V93: 0.3807805464 | W93: 195.9482426 | X93: 0.0019 | Y93: 0.3426534695 | Z93: 148.3613535 | AA93: 0.0036 | AB93: 0.2718115371 | AC93: 148.7023461 | AD93: 0.003 | AE93: 0.2782058766 | AF93: 85.15547635 | AG93: 0.0007 | AH93: 129.2143034 | AI93: 0 | AJ93: 102.45456 | AK93: 0 | AL93: 151.8672134 | AM93: 0.0289 | AN93: 160.4498318 | AO93: 0.0612 | AP93: 105.6081133 | AQ93: 0.0001880484877 | AR93: 0.06868967648 | AS93: 155.3002608 | AT93: 0.04200699054 | AU93: 0.5527034583 | AV93: 179.9293883 | AW93: 0 | AX93: 0.1740517734 | AY93: 117.5485974 | AZ93: ='3.1 Índice_EE'!CN81 -> -0.002070956138 | BA93: 0.3449124128
A94: 2020-08-01 | B94: 148.4022078 | C94: 0.0036 | D94: 0.2673921619 | E94: 163.1813893 | F94: 0.0274 | G94: 0.3817394223 | H94: 165.7291662 | I94: 0.0387 | J94: 0.345491969 | K94: 154.0761018 | L94: 0.0072 | M94: 0.3636989162 | N94: 161.7183231 | O94: 0.0012 | P94: 0.2915456119 | Q94: 146.1791352 | R94: 0.0142 | S94: 0.4552399624 | T94: 153.1496097 | U94: 0.0082 | V94: 0.3692786061 | W94: 196.2617597 | X94: 0.0016 | Y94: 0.3401072657 | Z94: 148.7174207 | AA94: 0.0024 | AB94: 0.2672494392 | AC94: 149.0443615 | AD94: 0.0023 | AE94: 0.2743827284 | AF94: 85.23211628 | AG94: 0.0009 | AH94: 129.2143034 | AI94: 0 | AJ94: 114.9335254 | AK94: 0.1218 | AL94: 157.0610721 | AM94: 0.0342 | AN94: 164.4450326 | AO94: 0.0249 | AP94: 109.793315 | AQ94: 0.03962954786 | AR94: 0.06848874878 | AS94: 160.0146563 | AT94: 0.03035664925 | AU94: 0.4901084853 | AV94: 179.9293883 | AW94: 0 | AX94: 0.1740517734 | AY94: 118.6112674 | AZ94: ='3.1 Índice_EE'!CN82 -> 0.009040260696 | BA94: 0.3477034475
A95: 2020-09-01 | B95: 149.6933071 | C95: 0.0087 | D95: 0.2628459166 | E95: 170.2634616 | F95: 0.0434 | G95: 0.3448894514 | H95: 171.1982287 | I95: 0.033 | J95: 0.2953614797 | K95: 155.8633846 | L95: 0.0116 | M95: 0.3539504728 | N95: 161.7183231 | O95: 0 | P95: 0.2899976148 | Q95: 149.8336136 | R95: 0.025 | S95: 0.4348648811 | T95: 154.9108302 | U95: 0.0115 | V95: 0.358141843 | W95: 196.5757786 | X95: 0.0016 | Y95: 0.3379665193 | Z95: 149.6692122 | AA95: 0.0064 | AB95: 0.2642153224 | AC95: 149.7150612 | AD95: 0.0045 | AE95: 0.2714583742 | AF95: 85.63270723 | AG95: 0.0047 | AH95: 129.2143034 | AI95: 0 | AJ95: 114.9335254 | AK95: 0 | AL95: 161.8671409 | AM95: 0.0306 | AN95: 169.0494935 | AO95: 0.028 | AP95: 109.9268454 | AQ95: 0.001216197138 | AR95: 0.02775911956 | AS95: 164.740082 | AT95: 0.02953120519 | AU95: 0.4462065018 | AV95: 179.9293883 | AW95: 0 | AX95: 0.1740517734 | AY95: 118.4029311 | AZ95: ='3.1 Índice_EE'!CN83 -> -0.001756463012 | BA95: 0.335629013
A96: 2020-10-01 | B96: 151.0255775 | C96: 0.0089 | D96: 0.2519539175 | E96: 175.7629715 | F96: 0.0323 | G96: 0.2889490621 | H96: 177.4983235 | I96: 0.0368 | J96: 0.2539801353 | K96: 158.5598212 | L96: 0.0173 | M96: 0.3384247457 | N96: 162.1387907 | O96: 0.0026 | P96: 0.2899976148 | Q96: 154.9129731 | R96: 0.0339 | S96: 0.3998681767 | T96: 157.5288232 | U96: 0.0169 | V96: 0.342700784 | W96: 196.8902998 | X96: 0.0016 | Y96: 0.3358291926 | Z96: 150.9563675 | AA96: 0.0086 | AB96: 0.2561757973 | AC96: 151.1223827 | AD96: 0.0094 | AE96: 0.2657624432 | AF96: 88.30444769 | AG96: 0.0312 | AH96: 127.5474389 | AI96: -0.0129 | AJ96: 114.9335254 | AK96: 0 | AL96: 163.3077585 | AM96: 0.0089 | AN96: 168.0351966 | AO96: -0.006 | AP96: 110.261804 | AQ96: 0.003047105094 | AR96: 0.02651068021 | AS96: 165.1987337 | AT96: 0.002784093237 | AU96: 0.4047233289 | AV96: 179.9293883 | AW96: 0 | AX96: 0.1740517734 | AY96: 118.811345 | AZ96: ='3.1 Índice_EE'!CN84 -> 0.003449357165 | BA96: 0.3379791239
A97: 2020-11-01 | B97: 152.4603205 | C97: 0.0095 | D97: 0.2409098201 | E97: 181.5279969 | F97: 0.0328 | G97: 0.2486186787 | H97: 182.1842793 | I97: 0.0264 | J97: 0.2094715811 | K97: 160.5893869 | L97: 0.0128 | M97: 0.3156637626 | N97: 162.4954961 | O97: 0.0022 | P97: 0.2866523187 | Q97: 158.6928496 | R97: 0.0244 | S97: 0.3539686398 | T97: 159.5609451 | U97: 0.0129 | V97: 0.3203862563 | W97: 197.1856353 | X97: 0.0015 | Y97: 0.3336952801 | Z97: 152.2998791 | AA97: 0.0089 | AB97: 0.2454648 | AC97: 152.346474 | AD97: 0.0081 | AE97: 0.2539750774 | AF97: 88.30444769 | AG97: 0 | AH97: 129.6902359 | AI97: 0.0168 | AJ97: 114.9335254 | AK97: 0 | AL97: 165.6920518 | AM97: 0.0146 | AN97: 171.5471322 | AO97: 0.0209 | AP97: 110.9760697 | AQ97: 0.006477906509 | AR97: 0.02339229633 | AS97: 168.0340839 | AT97: 0.01716326841 | AU97: 0.4008233062 | AV97: 185.3992417 | AW97: 0.0304 | AX97: 0.1740517734 | AY97: 118.7151252 | AZ97: ='3.1 Índice_EE'!CN85 -> -0.0008098538932 | BA97: 0.3333798206
A98: 2020-12-01 | B98: 154.6862412 | C98: 0.0146 | D98: 0.229232115 | E98: 183.2706657 | F98: 0.0096 | G98: 0.2089646386 | H98: 183.5688798 | I98: 0.0076 | J98: 0.1783628031 | K98: 161.7135126 | L98: 0.007 | M98: 0.2990361005 | N98: 162.6579915 | O98: 0.001 | P98: 0.2838278973 | Q98: 160.8193338 | R98: 0.0134 | S98: 0.3217187034 | T98: 160.9650814 | U98: 0.0088 | V98: 0.3035702007 | W98: 197.5011323 | X98: 0.0016 | Y98: 0.3316977335 | Z98: 154.3559275 | AA98: 0.0135 | AB98: 0.2344779463 | AC98: 153.9613467 | AD98: 0.0106 | AE98: 0.2438994916 | AF98: 88.30444769 | AG98: 0 | AH98: 129.6902359 | AI98: 0 | AJ98: 114.9335254 | AK98: 0 | AL98: 167.730064 | AM98: 0.0123 | AN98: 174.66929 | AO98: 0.0182 | AP98: 110.9760697 | AQ98: 0 | AR98: 0.0168055252 | AS98: 170.5057544 | AT98: 0.01470933995 | AU98: 0.3771862883 | AV98: 185.3992417 | AW98: 0 | AX98: 0.1394136 | AY98: 136.2013621 | AZ98: ='3.1 Índice_EE'!CN86 -> 0.1472957793 | BA98: 0.3344605387
A99: 2021-01-01 | B99: 155.103894 | C99: 0.0027 | D99: 0.2115435788 | E99: 187.9990489 | F99: 0.0258 | G99: 0.1974689368 | H99: 188.9107342 | I99: 0.0291 | J99: 0.1694747946 | K99: 163.1527629 | L99: 0.0089 | M99: 0.2900060581 | N99: 163.5526105 | O99: 0.0055 | P99: 0.282545352 | Q99: 162.8456574 | R99: 0.0126 | S99: 0.3042418625 | T99: 162.4620566 | U99: 0.0093 | V99: 0.2921988508 | W99: 197.797384 | X99: 0.0015 | Y99: 0.3295704208 | Z99: 154.7418173 | AA99: 0.0025 | AB99: 0.2180344808 | AC99: 155.1622452 | AD99: 0.0078 | AE99: 0.2308524555 | AF99: 88.30444769 | AG99: 0 | AH99: 129.6902359 | AI99: 0 | AJ99: 114.9335254 | AK99: 0 | AL99: 171.9065426 | AM99: 0.0249 | AN99: 179.0534892 | AO99: 0.0251 | AP99: 110.9760697 | AQ99: 0 | AR99: 0.0168055252 | AS99: 174.7653212 | AT99: 0.0249819535 | AU99: 0.357222442 | AV99: 185.3992417 | AW99: 0 | AX99: 0.1394136 | AY99: 123.0448775 | AZ99: ='3.1 Índice_EE'!CN87 -> -0.09659583723 | BA99: 0.1631355774
A100: 2021-02-01 | B100: 156.3757459 | C100: 0.0082 | D100: 0.2082812195 | E100: 192.7554248 | F100: 0.0253 | G100: 0.1673512739 | H100: 194.0302151 | I100: 0.0271 | J100: 0.1364053976 | K100: 166.2363501 | L100: 0.0189 | M100: 0.2786262842 | N100: 163.7488736 | O100: 0.0012 | P100: 0.2755299373 | Q100: 168.9523695 | R100: 0.0375 | S100: 0.2880128999 | T100: 164.2004006 | U100: 0.0107 | V100: 0.2802921339 | W100: 198.0545206 | X100: 0.0013 | Y100: 0.3275790523 | Z100: 156.072597 | AA100: 0.0086 | AB100: 0.2149969883 | AC100: 155.9070239 | AD100: 0.0048 | AE100: 0.2213261119 | AF100: 88.30444769 | AG100: 0 | AH100: 129.6902359 | AI100: 0 | AJ100: 114.9335254 | AK100: 0 | AL100: 182.0490286 | AM100: 0.059 | AN100: 188.6507562 | AO100: 0.0536 | AP100: 110.9760697 | AQ100: 0 | AR100: 0.0168055252 | AS100: 184.6897196 | AT100: 0.05678700068 | AU100: 0.3241427689 | AV100: 185.3992417 | AW100: 0 | AX100: 0.1394136 | AY100: 122.6060575 | AZ100: ='3.1 Índice_EE'!CN88 -> -0.003566340798 | BA100: 0.2875030085
A101: 2021-03-01 | B101: 157.7205774 | C101: 0.0086 | D101: 0.1984538975 | E101: 198.4224343 | F101: 0.0294 | G101: 0.1385460586 | H101: 198.2406708 | I101: 0.0217 | J101: 0.1064213782 | K101: 168.3974226 | L101: 0.013 | M101: 0.2549085133 | N101: 164.0108718 | O101: 0.0016 | P101: 0.274001136 | Q101: 173.1085978 | R101: 0.0246 | S101: 0.2414582168 | T101: 167.4844087 | U101: 0.02 | V101: 0.2667380369 | W101: 198.4506296 | X101: 0.002 | Y101: 0.3258554402 | Z101: 157.5240721 | AA101: 0.0093 | AB101: 0.2046371092 | AC101: 157.3569593 | AD101: 0.0093 | AE101: 0.2154917514 | AF101: 88.30444769 | AG101: 0 | AH101: 129.6902359 | AI101: 0 | AJ101: 114.9335254 | AK101: 0 | AL101: 206.2615494 | AM101: 0.133 | AN101: 205.1765624 | AO101: 0.0876 | AP101: 110.9760697 | AQ101: 0 | AR101: 0.0168055252 | AS101: 205.8275546 | AT101: 0.1144505229 | AU101: 0.2529892666 | AV101: 185.3992417 | AW101: 0 | AX101: 0.1394136 | AY101: 122.2249561 | AZ101: ='3.1 Índice_EE'!CN89 -> -0.003108341307 | BA101: 0.2921111171
A102: 2021-04-01 | B102: 158.3199155 | C102: 0.0038 | D102: 0.1882350759 | E102: 201.4186131 | F102: 0.0151 | G102: 0.1060288116 | H102: 202.6416137 | I102: 0.0222 | J102: 0.08292197144 | K102: 169.9129994 | L102: 0.009 | M102: 0.2388040605 | N102: 164.0108718 | O102: 0 | P102: 0.2719659904 | Q102: 176.2072417 | R102: 0.0179 | S102: 0.2116515877 | T102: 169.0755105 | U102: 0.0095 | V102: 0.2419000362 | W102: 198.8673759 | X102: 0.0021 | Y102: 0.3232090221 | Z102: 158.0123967 | AA102: 0.0031 | AB102: 0.1935372131 | AC102: 158.301101 | AD102: 0.006 | AE102: 0.2042918374 | AF102: 88.30444769 | AG102: 0 | AH102: 129.6902359 | AI102: 0 | AJ102: 114.9335254 | AK102: 0 | AL102: 207.004091 | AM102: 0.0036 | AN102: 201.5654549 | AO102: -0.0176 | AP102: 110.9760697 | AQ102: 0 | AR102: 0.0168055252 | AS102: 204.8286366 | AT102: -0.004853179423 | AU102: 0.1243112555 | AV102: 185.3992417 | AW102: 0 | AX102: 0.1394136 | AY102: 123.3600098 | AZ102: ='3.1 Índice_EE'!CN90 -> 0.009286595714 | BA102: 0.2961399624
A103: 2021-05-01 | B103: 159.8397867 | C103: 0.0096 | D103: 0.1837368757 | E103: 209.6767762 | F103: 0.041 | G103: 0.0895762108 | H103: 209.5314285 | I103: 0.034 | J103: 0.05940321996 | K103: 173.685068 | L103: 0.0222 | M103: 0.2277542721 | N103: 167.1598806 | O103: 0.0192 | P103: 0.2719659904 | Q103: 180.6300435 | R103: 0.0251 | S103: 0.1903444226 | T103: 172.1188697 | U103: 0.018 | V103: 0.2302130126 | W103: 199.4043179 | X103: 0.0027 | Y103: 0.3204361063 | Z103: 159.3238996 | AA103: 0.0083 | AB103: 0.1898486822 | AC103: 158.9976259 | AD103: 0.0044 | AE103: 0.1971091823 | AF103: 88.2073128 | AG103: -0.0011 | AH103: 129.6902359 | AI103: 0 | AJ103: 114.9335254 | AK103: 0 | AL103: 210.5231605 | AM103: 0.017 | AN103: 210.8374659 | AO103: 0.046 | AP103: 110.9436914 | AQ103: -0.0002917592738 | AR103: 0.0168055252 | AS103: 210.6488827 | AT103: 0.02841519719 | AU103: 0.1297943502 | AV103: 185.3992417 | AW103: 0 | AX103: 0.1394136 | AY103: 130.2951476 | AZ103: ='3.1 Índice_EE'!CN91 -> 0.05621868689 | BA103: 0.2842139863
A104: 2021-06-01 | B104: 160.7988255 | C104: 0.006 | D104: 0.1724810576 | E104: 210.9348368 | F104: 0.006 | G104: 0.04666302671 | H104: 209.7619131 | I104: 0.0011 | J104: 0.02456791099 | K104: 177.4366655 | L104: 0.0216 | M104: 0.2010900725 | N104: 171.6564814 | O104: 0.0269 | P104: 0.2480043077 | Q104: 183.5923762 | R104: 0.0164 | S104: 0.1611983441 | T104: 176.0776037 | U104: 0.023 | V104: 0.2084607196 | W104: 200.0224712 | X104: 0.0031 | Y104: 0.3168805289 | Z104: 160.1683163 | AA104: 0.0053 | AB104: 0.1800542321 | AC104: 160.3173062 | AD104: 0.0083 | AE104: 0.1918649764 | AF104: 88.11028476 | AG104: -0.0011 | AH104: 129.6902359 | AI104: 0 | AJ104: 114.9335254 | AK104: 0 | AL104: 211.9126134 | AM104: 0.0066 | AN104: 215.1596339 | AO104: 0.0205 | AP104: 110.9113487 | AQ104: -0.0002915233932 | AR104: 0.01710227422 | AS104: 213.2114216 | AT104: 0.01216497758 | AU104: 0.09857803863 | AV104: 185.3992417 | AW104: 0 | AX104: 0.1394136 | AY104: 142.0042388 | AZ104: ='3.1 Índice_EE'!CN92 -> 0.08986590398 | BA104: 0.2158599372
A105: 2021-07-01 | B105: 162.4389735 | C105: 0.0102 | D105: 0.1654881288 | E105: 212.5801286 | F105: 0.0078 | G105: 0.04042050368 | H105: 212.8034608 | I105: 0.0145 | J105: 0.02344212465 | K105: 178.9448771 | L105: 0.0085 | M105: 0.1756950592 | N105: 172.4804325 | O105: 0.0048 | P105: 0.215312404 | Q105: 185.813844 | R105: 0.0121 | S105: 0.1424619679 | T105: 178.260966 | U105: 0.0124 | V105: 0.181291026 | W105: 200.7425521 | X105: 0.0036 | Y105: 0.3128108154 | Z105: 161.7059321 | AA105: 0.0096 | AB105: 0.1738329176 | AC105: 161.4715908 | AD105: 0.0072 | AE105: 0.1820539288 | AF105: 88.11028476 | AG105: 0 | AH105: 129.6902359 | AI105: 0 | AJ105: 114.9335254 | AK105: 0 | AL105: 213.0569415 | AM105: 0.0054 | AN105: 217.1821345 | AO105: 0.0094 | AP105: 110.9113487 | AQ105: 0 | AR105: 0.01739886979 | AS105: 214.7070187 | AT105: 0.007014619947 | AU105: 0.08537448238 | AV105: 185.3992417 | AW105: 0 | AX105: 0.1394136 | AY105: 151.1864734 | AZ105: ='3.1 Índice_EE'!CN93 -> 0.064661694 | BA105: 0.1156050784
A106: 2021-08-01 | B106: 163.8684364 | C106: 0.0088 | D106: 0.1537201829 | E106: 213.9831574 | F106: 0.0066 | G106: 0.03236803303 | H106: 212.505536 | I106: -0.0014 | J106: 0.008814317051 | K106: 179.7680236 | L106: 0.0046 | M106: 0.1657858792 | N106: 172.4804325 | O106: 0 | P106: 0.2095067715 | Q106: 187.5233313 | R106: 0.0092 | S106: 0.1288034462 | T106: 179.2592274 | U106: 0.0056 | V106: 0.1668224279 | W106: 201.6057451 | X106: 0.0043 | Y106: 0.3081016494 | Z106: 163.1127737 | AA106: 0.0087 | AB106: 0.1626712734 | AC106: 162.9086879 | AD106: 0.0089 | AE106: 0.1736039801 | AF106: 88.82397806 | AG106: 0.0081 | AH106: 129.6902359 | AI106: 0 | AJ106: 114.9335254 | AK106: 0 | AL106: 218.9373131 | AM106: 0.0276 | AN106: 217.5296259 | AO106: 0.0016 | AP106: 111.1492464 | AQ106: 0.002144936219 | AR106: 0.01739886979 | AS106: 218.3742382 | AT106: 0.01708011009 | AU106: 0.07781402661 | AV106: 182.5811732 | AW106: -1,52% | AX106: 0.1394136 | AY106: 151.4520242 | AZ106: ='3.1 Índice_EE'!CN94 -> 0.001756445246 | BA106: 0.04784936347
A107: 2021-09-01 | B107: 165.8348577 | C107: 0.012 | D107: 0.1436560101 | E107: 212.6136652 | F107: -0.0064 | G107: 0.0255990791 | H107: 211.3367555 | I107: -0.0055 | J107: 0.01022863714 | K107: 180.6848405 | L107: 0.0051 | M107: 0.1604478192 | N107: 173.1186101 | O107: 0.0037 | P107: 0.2095067715 | Q107: 188.742233 | R107: 0.0065 | S107: 0.1185131254 | T107: 180.2630791 | U107: 0.0056 | V107: 0.1603246101 | W107: 202.4928104 | X107: 0.0044 | Y107: 0.3025008956 | Z107: 165.0048819 | AA107: 0.0116 | AB107: 0.1526432769 | AC107: 164.765847 | AD107: 0.0114 | AE107: 0.1632510458 | AF107: 90.45833926 | AG107: 0.0184 | AH107: 129.6902359 | AI107: 0 | AJ107: 114.9335254 | AK107: 0 | AL107: 226.2060319 | AM107: 0.0332 | AN107: 220.7490643 | AO107: 0.0148 | AP107: 111.6940335 | AQ107: 0.00490140134 | AR107: 0.01522128489 | AS107: 224.0232449 | AT107: 0.02586846648 | AU107: 0.05971399491 | AV107: 182.5811732 | AW107: 0 | AX107: 0.157 | AY107: 163.6465923 | AZ107: ='3.1 Índice_EE'!CN95 -> 0.0805176964 | BA107: 0.04601210049
A108: 2021-10-01 | B108: 167.758542 | C108: 0.0116 | D108: 0.1300948716 | E108: 213.9743927 | F108: 0.0064 | G108: 0.03220519233 | H108: 214.7181436 | I108: 0.016 | J108: 0.01581562307 | K108: 182.2387301 | L108: 0.0086 | M108: 0.1545595654 | N108: 173.1186101 | O108: 0 | P108: 0.2050480936 | Q108: 191.9131025 | R108: 0.0168 | S108: 0.1112897421 | T108: 181.7051837 | U108: 0.008 | V108: 0.1538629774 | W108: 203.4850252 | X108: 0.0049 | Y108: 0.2967949976 | Z108: 167.0674429 | AA108: 0.0125 | AB108: 0.139425936 | AC108: 166.7430371 | AD108: 0.012 | AE108: 0.150139456 | AF108: 98.80764397 | AG108: 0.0923 | AH108: 129.6902359 | AI108: 0 | AJ108: 114.9335254 | AK108: 0 | AL108: 232.6529038 | AM108: 0.0285 | AN108: 233.331761 | AO108: 0.057 | AP108: 114.4771351 | AQ108: 0.02491719104 | AR108: 0.01026954837 | AS108: 232.9244467 | AT108: 0.03973338489 | AU108: 0.03299207406 | AV108: 182.5811732 | AW108: 0 | AX108: 0.157 | AY108: 164.1072975 | AZ108: ='3.1 Índice_EE'!CN96 -> 0.00281524476 | BA108: -0.03193431817
A109: 2021-11-01 | B109: 169.1677138 | C109: 0.0084 | D109: 0.1171360929 | E109: 214.0171875 | F109: 0.0002 | G109: 0.02564108936 | H109: 213.4727784 | I109: -0.0058 | J109: -0.0001814733567 | K109: 183.4597296 | L109: 0.0067 | M109: 0.1447150163 | N109: 173.7764608 | O109: 0.0038 | P109: 0.2050480936 | Q109: 193.736277 | R109: 0.0095 | S109: 0.09292854257 | T109: 182.9952905 | U109: 0.0071 | V109: 0.1447053348 | W109: 204.6855868 | X109: 0.0059 | Y109: 0.2904716863 | Z109: 168.6545836 | AA109: 0.0095 | AB109: 0.1253589491 | AC109: 168.6939307 | AD109: 0.0117 | AE109: 0.1365014387 | AF109: 98.80764397 | AG109: 0 | AH109: 129.6902359 | AI109: 0 | AJ109: 114.9335254 | AK109: 0 | AL109: 249.496974 | AM109: 0.0724 | AN109: 247.3083335 | AO109: 0.0599 | AP109: 114.4771351 | AQ109: 0 | AR109: -0.01429153769 | AS109: 248.6215178 | AT109: 0.06739125651 | AU109: -0.006483691805 | AV109: 182.5811732 | AW109: 0 | AX109: 0.157 | AY109: 164.4336451 | AZ109: ='3.1 Índice_EE'!CN97 -> 0.001988623452 | BA109: -0.03465200904
A110: 2021-12-01 | B110: 170.4026381 | C110: 0.0073 | D110: 0.1078303182 | E110: 215.8791371 | F110: 0.0087 | G110: 0.02543600216 | H110: 216.1411881 | I110: 0.0125 | J110: 0.005651304208 | K110: 184.1018387 | L110: 0.0035 | M110: 0.13709647 | N110: 173.7764608 | O110: 0 | P110: 0.2004862458 | Q110: 195.03431 | R110: 0.0067 | S110: 0.08264342998 | T110: 183.5442764 | U110: 0.003 | V110: 0.1366352247 | W110: 206.2616658 | X110: 0.0077 | Y110: 0.2829025612 | Z110: 169.8857621 | AA110: 0.0073 | AB110: 0.114768647 | AC110: 170.0097433 | AD110: 0.0078 | AE110: 0.1233581484 | AF110: 98.80764397 | AG110: 0 | AH110: 129.6902359 | AI110: 0 | AJ110: 114.9335254 | AK110: 0 | AL110: 248.7235334 | AM110: -0.0031 | AN110: 246.0717918 | AO110: -0.005 | AP110: 114.4771351 | AQ110: 0 | AR110: -0.01429153769 | AS110: 247.6628368 | AT110: -0.003855985786 | AU110: -0.06921074898 | AV110: 182.5811732 | AW110: 0 | AX110: 0.157 | AY110: 162.8394115 | AZ110: ='3.1 Índice_EE'!CN98 -> -0.009695300717 | BA110: -0.03656791269
A111: 2022-01-01 | B111: 171.5443358 | C111: 0.0067 | D111: 0.09980176536 | E111: 219.8081374 | F111: 0.0182 | G111: 0.01659165477 | H111: 220.485626 | I111: 0.0201 | J111: -0.006764143992 | K111: 185.4089617 | L111: 0.0071 | M111: 0.1331305132 | N111: 174.2282796 | O111: 0.0026 | P111: 0.2004862458 | Q111: 197.2381977 | R111: 0.0113 | S111: 0.07543799541 | T111: 184.7189598 | U111: 0.0064 | V111: 0.1332355181 | W111: 207.767376 | X111: 0.0073 | Y111: 0.2730996936 | Z111: 170.8031452 | AA111: 0.0054 | AB111: 0.1066898114 | AC111: 170.9957998 | AD111: 0.0058 | AE111: 0.114663771 | AF111: 98.80764397 | AG111: 0 | AH111: 129.6902359 | AI111: 0 | AJ111: 114.9335254 | AK111: 0 | AL111: 249.4945763 | AM111: 0.0031 | AN111: 252.9864092 | AO111: 0.0281 | AP111: 114.4771351 | AQ111: 0 | AR111: -0.01429153769 | AS111: 250.8913095 | AT111: 0.01303575762 | AU111: -0.06560774573 | AV111: 182.5811732 | AW111: 0 | AX111: 0.157 | AY111: 164.3940249 | AZ111: ='3.1 Índice_EE'!CN99 -> 0.00954691131 | BA111: -0.02713570075
A112: 2022-02-01 | B112: 173.2597791 | C112: 0.01 | D112: 0.09248213506 | E112: 223.8306263 | F112: 0.0183 | G112: -0.001579596576 | H112: 223.7929104 | I112: 0.015 | J112: -0.02633481423 | K112: 186.1135158 | L112: 0.0038 | M112: 0.1251420049 | N112: 174.6638503 | O112: 0.0025 | P112: 0.1973730758 | Q112: 198.2441125 | R112: 0.0051 | S112: 0.06342133434 | T112: 185.6056108 | U112: 0.0048 | V112: 0.1260289329 | W112: 209.346408 | X112: 0.0076 | Y112: 0.2638734176 | Z112: 172.528257 | AA112: 0.0101 | AB112: 0.1007457841 | AC112: 172.6886583 | AD112: 0.0099 | AE112: 0.1082360022 | AF112: 98.80764397 | AG112: 0 | AH112: 129.6902359 | AI112: 0 | AJ112: 114.9335254 | AK112: 0 | AL112: 249.3947785 | AM112: -0.0004 | AN112: 259.5640558 | AO112: 0.026 | AP112: 114.4771351 | AQ112: 0 | AR112: -0.01429153769 | AS112: 253.4624894 | AT112: 0.01024818262 | AU112: -0.0776315177 | AV112: 182.5811732 | AW112: 0 | AX112: 0.157 | AY112: 163.0467978 | AZ112: ='3.1 Índice_EE'!CN100 -> -0.008195109663 | BA112: -0.03633571818
A113: 2022-03-01 | B113: 176.2225213 | C113: 0.0171 | D113: 0.08166548025 | E113: 227.7252792 | F113: 0.0174 | G113: -0.01952233779 | H113: 229.0968024 | I113: 0.0237 | J113: -0.0407239549 | K113: 187.714092 | L113: 0.0086 | M113: 0.1208826509 | N113: 176.7772829 | O113: 0.0121 | P113: 0.1943871081 | Q113: 199.2948063 | R113: 0.0053 | S113: 0.05802540477 | T113: 186.9605317 | U113: 0.0073 | V113: 0.1206498138 | W113: 211.2933296 | X113: 0.0093 | Y113: 0.2543404303 | Z113: 175.3232147 | AA113: 0.0162 | AB113: 0.08973941604 | AC113: 174.3292005 | AD113: 0.0095 | AE113: 0.09737201918 | AF113: 99.84512423 | AG113: 0.0105 | AH113: 129.6902359 | AI113: 0 | AJ113: 114.9335254 | AK113: 0 | AL113: 264.2337678 | AM113: 0.0595 | AN113: 292.5546473 | AO113: 0.1271 | AP113: 114.8229618 | AQ113: 0.003020924254 | AR113: -0.01429153769 | AS113: 275.5621196 | AT113: 0.08719093007 | AU113: -0.08698822907 | AV113: 182.5811732 | AW113: 0 | AX113: 0.157 | AY113: 164.6930351 | AZ113: ='3.1 Índice_EE'!CN101 -> 0.01009671653 | BA113: -0.02837312942
A114: 2022-04-01 | B114: 178.0552356 | C114: 0.0104 | D114: 0.06347997272 | E114: 230.9362056 | F114: 0.0141 | G114: -0.03629087654 | H114: 230.0360993 | I114: 0.0041 | J114: -0.0629324557 | K114: 189.4973759 | L114: 0.0095 | M114: 0.1113252537 | N114: 177.1485152 | O114: 0.0021 | P114: 0.1801078036 | Q114: 202.5433117 | R114: 0.0163 | S114: 0.05244743337 | T114: 188.5870884 | U114: 0.0087 | V114: 0.1125283568 | W114: 213.0470643 | X114: 0.0083 | Y114: 0.2427825526 | Z114: 177.1816408 | AA114: 0.0106 | AB114: 0.07236706952 | AC114: 177.3450957 | AD114: 0.0173 | AE114: 0.08704509082 | AF114: 99.84512423 | AG114: 0 | AH114: 129.6902359 | AI114: 0 | AJ114: 114.9335254 | AK114: 0 | AL114: 272.5042848 | AM114: 0.0313 | AN114: 305.5440737 | AO114: 0.0444 | AP114: 114.8229618 | AQ114: 0 | AR114: -0.01726031983 | AS114: 285.7202003 | AT114: 0.0368631244 | AU114: -0.1602102761 | AV114: 182.5811732 | AW114: 0 | AX114: 0.157 | AY114: 123.6724752 | AZ114: ='3.1 Índice_EE'!CN102 -> -0.2490728273 | BA114: -0.03808530938
A115: 2022-05-01 | B115: 178.8564841 | C115: 0.0045 | D115: 0.05253362304 | E115: 232.1370739 | F115: 0.0052 | G115: -0.0496902441 | H115: 231.6233483 | I115: 0.0069 | J115: -0.06675874485 | K115: 193.8179161 | L115: 0.0228 | M115: 0.100867017 | N115: 182.6046894 | O115: 0.0308 | P115: 0.1776347706 | Q115: 205.7029874 | R115: 0.0156 | S115: 0.03556768019 | T115: 191.397036 | U115: 0.0149 | V115: 0.1029328411 | W115: 215.241449 | X115: 0.0103 | Y115: 0.232552368 | Z115: 178.0143945 | AA115: 0.0047 | AB115: 0.06111920593 | AC115: 178.3914317 | AD115: 0.0059 | AE115: 0.06855901978 | AF115: 99.83513972 | AG115: -0.0001 | AH115: 132.4007618 | AI115: 0.0209 | AJ115: 114.9335254 | AK115: 0 | AL115: 272.9947925 | AM115: 0.0018 | AN115: 313.3354475 | AO115: 0.0255 | AP115: 115.7231423 | AQ115: 0.007839725243 | AR115: -0.01726031983 | AS115: 289.1310545 | AT115: 0.0119377425 | AU115: -0.1900669393 | AV115: 182.5811732 | AW115: 0 | AX115: 0.157 | AY115: 123.9890672 | AZ115: ='3.1 Índice_EE'!CN103 -> 0.002559922381 | BA115: =AY$134/AY114-1 -> 0.2809693478
A116: 2022-06-01 | B116: 179.9653943 | C116: 0.0062 | D116: 0.04781844006 | E116: 233.5066826 | F116: 0.0059 | G116: -0.05460629139 | H116: 233.0594131 | I116: 0.0062 | J116: -0.07315398237 | K116: 197.9656195 | L116: 0.0214 | M116: 0.07632676673 | N116: 188.7219465 | O116: 0.0335 | P116: 0.142447391 | Q116: 207.7805875 | R116: 0.0101 | S116: 0.01966096907 | T116: 196.7752927 | U116: 0.0281 | V116: 0.08674040902 | W116: 217.4369118 | X116: 0.0102 | Y116: 0.2199865069 | Z116: 179.207091 | AA116: 0.0067 | AB116: 0.05615527614 | AC116: 179.6223326 | AD116: 0.0069 | AE116: 0.06229149993 | AF116: 101.5123701 | AG116: 0.0168 | AH116: 132.4007618 | AI116: 0 | AJ116: 114.9335254 | AK116: 0 | AL116: 270.6470373 | AM116: -0.0086 | AN116: 331.195568 | AO116: 0.057 | AP116: 116.2822191 | AQ116: 0.00483115798 | AR116: -0.0249047983 | AS116: 294.8664496 | AT116: 0.01983666225 | AU116: -0.19962165 | AV116: 182.5811732 | AW116: 0 | AX116: 0.157 | AY116: =AY115*(1+AZ116) -> 124.0152457 | AZ116: ='3.1 Índice_EE'!CN104 -> 0.0002111357883 | BA116: 0.2776985387
A117: 2022-07-01 | B117: 178.885602 | C117: -0.006 | D117: 0.04136199569 | E117: 233.9970467 | F117: 0.0021 | G117: -0.06015139814 | H117: 232.1737873 | I117: -0.0038 | J117: -0.07886501925 | K117: 199.6681238 | L117: 0.0086 | M117: 0.05377596116 | N117: 191.288565 | O117: 0.0136 | P117: 0.1054159564 | Q117: 208.5909318 | R117: 0.0039 | S117: 0.009465368845 | T117: 199.0578861 | U117: 0.0116 | V117: 0.05703765103 | W117: 219.676512 | X117: 0.0103 | Y117: 0.2076682904 | Z117: 177.9884828 | AA117: -0.0068 | AB117: 0.04912613106 | AC117: 179.8558417 | AD117: 0.0013 | AE117: 0.0550119177 | AF117: 101.5123701 | AG117: 0 | AH117: 132.4007618 | AI117: 0 | AJ117: 114.9335254 | AK117: 0 | AL117: 222.255347 | AM117: -0.1788 | AN117: 347.5897487 | AO117: 0.0495 | AP117: 116.2822191 | AQ117: 0 | AR117: -0.02959298788 | AS117: 272.3891077 | AT117: -0.07622888919 | AU117: -0.2151896675 | AV117: 182.5811732 | AW117: 0 | AX117: 0.157 | AY117: 131.8159291 | AZ117: ='3.1 Índice_EE'!CN105 -> 0.0629010035 | BA117: 0.2774288277
A118: 2022-08-01 | B118: 178.3310566 | C118: -0.0031 | D118: 0.04764788298 | E118: 232.3590673 | F118: -0.007 | G118: -0.06212094415 | H118: 230.8968315 | I118: -0.0055 | J118: -0.0753513544 | K118: 199.8478251 | L118: 0.0009 | M118: 0.04479076062 | N118: 191.824173 | O118: 0.0028 | P118: 0.09058401385 | Q118: 208.3823409 | R118: -0.001 | S118: 0.005543748227 | T118: 199.7346908 | U118: 0.0033 | V118: 0.04491661826 | W118: 222.2467272 | X118: 0.0117 | Y118: 0.1953561223 | Z118: 177.3477242 | AA118: -0.0036 | AB118: 0.05630903248 | AC118: 178.542894 | AD118: -0.0073 | AE118: 0.05364218286 | AF118: 91.76718254 | AG118: -0.096 | AH118: 128.7597409 | AI118: -0.0275 | AJ118: 114.9335254 | AK118: 0 | AL118: 192.9398667 | AM118: -0.1319 | AN118: 334.5898921 | AO118: -0.0374 | AP118: 111.8201496 | AQ118: -0.038373 | AR118: -0.02959298788 | AS118: 249.5998769 | AT118: -0.083664 | AU118: -0.150427716 | AV118: 182.5811732 | AW118: 0 | AX118: 0.157 | AY118: 131.8202044 | AZ118: ='3.1 Índice_EE'!CN106 -> 3.243388909e-05 | BA118: 0.2018323659
A119: 2022-09-01 | B119: 177.7603972 | C119: -0.0032 | D119: 0.05090569063 | E119: 230.1516562 | F119: -0.0095 | G119: -0.05550951073 | H119: 228.0798902 | I119: -0.0122 | J119: -0.07023766154 | K119: 200.0276882 | L119: 0.0009 | M119: 0.04385129446 | N119: 192.5722873 | O119: 0.0039 | P119: 0.08753890492 | Q119: 207.9655762 | R119: -0.002 | S119: 0.006550298525 | T119: 199.9344255 | U119: 0.001 | V119: 0.04137589867 | W119: 224.6247672 | X119: 0.0107 | Y119: 0.1815321956 | Z119: 176.8334158 | AA119: -0.0029 | AB119: 0.06012548422 | AC119: 177.8822853 | AD119: -0.0037 | AE119: 0.06139033228 | AF119: 91.2441096 | AG119: -0.0057 | AH119: 128.3219577 | AI119: -0.0034 | AJ119: 102.3483044 | AK119: -0.1095 | AL119: 176.5013901 | AM119: -0.0852 | AN119: 318.6299542 | AO119: -0.0477 | AP119: 107.3047906 | AQ119: -0.040380549 | AR119: 0.009130118281 | AS119: 233.3528157 | AT119: -0.06509242445 | AU119: -0.07285917264 | AV119: 182.5811732 | AW119: 0 | AX119: 0.157 | AY119: 131.0328809 | AZ119: ='3.1 Índice_EE'!CN107 -> -0.005972707256 | BA119: 0.201793387
A120: 2022-10-01 | B120: 178.5958711 | C120: 0.0047 | D120: 0.05427938466 | E120: 227.9191851 | F120: -0.0097 | G120: -0.04645079327 | H120: 226.6657948 | I120: -0.0062 | J120: -0.05875446602 | K120: 200.2677214 | L120: 0.0012 | M120: 0.04291267305 | N120: 193.0922324 | O120: 0.0027 | P120: 0.0833139804 | Q120: 207.9239831 | R120: -0.0002 | S120: 0.008567433392 | T120: 200.0143993 | U120: 0.0004 | V120: 0.0403355631 | W120: 226.9159398 | X120: 0.0102 | Y120: 0.1690236426 | Z120: 177.876733 | AA120: 0.0059 | AB120: 0.06320878971 | AC120: 178.166897 | AD120: 0.0016 | AE120: 0.06533206091 | AF120: 100.6969994 | AG120: 0.1036 | AH120: 124.998419 | AI120: -0.0259 | AJ120: 100.1478158 | AK120: -0.0215 | AL120: 174.0480208 | AM120: -0.0139 | AN120: 307.5734948 | AO120: -0.0347 | AP120: 108.6144114 | AQ120: 0.0122046819 | AR120: 0.05159406391 | AS120: 227.4582104 | AT120: -0.02526048524 | AU120: -0.008307503744 | AV120: 182.5811732 | AW120: 0 | AX120: 0.157 | AY120: 130.7368286 | AZ120: ='3.1 Índice_EE'!CN108 -> -0.002259374517 | BA120: 0.2090144766
A121: 2022-11-01 | B121: 179.2745354 | C121: 0.0038 | D121: 0.04934745163 | E121: 226.6428377 | F121: -0.0056 | G121: -0.03711076771 | H121: 226.2577964 | I121: -0.0018 | J121: -0.05288233651 | K121: 200.9886852 | L121: 0.0036 | M121: 0.04166267784 | N121: 194.2314766 | O121: 0.0059 | P121: 0.08039690874 | Q121: 208.2150767 | R121: 0.0014 | S121: 0.008769187229 | T121: 200.2944195 | U121: 0.0014 | V121: 0.03991959526 | W121: 229.2304824 | X121: 0.0102 | Y121: 0.1572199987 | Z121: 178.6060276 | AA121: 0.0041 | AB121: 0.05697265107 | AC121: 179.1111815 | AD121: 0.0053 | AE121: 0.06363025251 | AF121: 100.6969994 | AG121: 0 | AH121: 125.8609081 | AI121: 0.0069 | AJ121: 100.1478158 | AK121: 0 | AL121: 177.1286707 | AM121: 0.0177 | AN121: 307.3889507 | AO121: -0.0006 | AP121: 108.9019078 | AQ121: 0.002646944913 | AR121: 0.03891444361 | AS121: 229.2327827 | AT121: 0.007801751095 | AU121: 0.01739231994 | AV121: 182.5811732 | AW121: 0 | AX121: 0.157 | AY121: 131.3695178 | AZ121: ='3.1 Índice_EE'!CN109 -> 0.004839410838 | BA121: 0.2117522788
A122: 2022-12-01 | B122: 180.5115297 | C122: 0.0069 | D122: 0.04537502653 | E122: 227.6627305 | F122: 0.0045 | G122: -0.03168822175 | H122: 226.9591956 | I122: 0.0031 | J122: -0.05117445052 | K122: 201.169575 | L122: 0.0009 | M122: 0.03792614372 | N122: 194.5228238 | O122: 0.0015 | P122: 0.07405995501 | Q122: 208.2775412 | R122: 0.0003 | S122: 0.007358884791 | T122: 200.8352144 | U122: 0.0027 | V122: 0.03846574322 | W122: 231.7978638 | X122: 0.0112 | Y122: 0.1455355362 | Z122: 179.713385 | AA122: 0.0062 | AB122: 0.05265675836 | AC122: 180.096293 | AD122: 0.0055 | AE122: 0.05802273203 | AF122: 100.6969994 | AG122: 0 | AH122: 125.8609081 | AI122: 0 | AJ122: 100.1478158 | AK122: 0 | AL122: 176.7921263 | AM122: -0.0019 | AN122: 300.6263938 | AO122: -0.022 | AP122: 108.9019078 | AQ122: 0 | AR122: 0.03617175405 | AS122: 226.3258333 | AT122: -0.01268121172 | AU122: 0.009516324846 | AV122: 182.5811732 | AW122: 0 | AX122: 0.157 | AY122: 131.8812934 | AZ122: ='3.1 Índice_EE'!CN110 -> 0.003895694956 | BA122: 0.2059163541
A123: 2023-01-01 | B123: 181.3418827 | C123: 0.0046 | D123: 0.03821136809 | E123: 228.1408222 | F123: 0.0021 | G123: -0.03602610428 | H123: 227.0953711 | I123: 0.0006 | J123: -0.05410671969 | K123: 202.094955 | L123: 0.0046 | M123: 0.03699285015 | N123: 195.8844836 | O123: 0.007 | P123: 0.07245127809 | Q123: 208.714924 | R123: 0.0021 | S123: 0.00705676776 | T123: 201.4778871 | U123: 0.0032 | V123: 0.03566943575 | W123: 234.3939999 | X123: 0.0112 | Y123: 0.1328476426 | Z123: 180.6658659 | AA123: 0.0053 | AB123: 0.04617050125 | AC123: 181.0868226 | AD123: 0.0055 | AE123: 0.05223543712 | AF123: 100.6969994 | AG123: 0 | AH123: 125.8609081 | AI123: 0 | AJ123: 103.3425312 | AK123: 0.0319 | AL123: 178.0650296 | AM123: 0.0072 | AN123: 291.9683536 | AO123: -0.0288 | AP123: 109.9668129 | AQ123: 0.009778571654 | AR123: 0.03617175405 | AS123: =0.4*AN123+0.6*AL123 -> 223.6263592 | AT123: =AS123/AS122-1 -> -0.01192737935 | AU123: 0.02248264373 | AV123: 211.2464174 | AW123: 0.157 | AX123: 0.157 | AY123: 131.8773249 | AZ123: ='3.1 Índice_EE'!CN111 -> -3.009148885e-05 | BA123: 0.2012367024
A124: 2023-02-01 | B124: 182.7382152 | C124: 0.0077 | D124: 0.03345746376 | E124: 228.0039377 | F124: -0.0006 | G124: -0.03804620725 | H124: 227.1862092 | I124: 0.0004 | J124: -0.05467391534 | K124: 202.1960025 | L124: 0.0005 | M124: 0.03224452534 | N124: 195.9236605 | O124: 0.0002 | P124: 0.06499630396 | Q124: 208.8610245 | R124: 0.0007 | S124: 0.004946380362 | T124: 201.9009906 | U124: 0.0021 | V124: 0.03236586498 | W124: 236.5504247 | X124: 0.0092 | Y124: 0.1203002795 | Z124: 182.1834592 | AA124: 0.0084 | AB124: 0.0406550296 | AC124: 182.4630825 | AD124: 0.0076 | AE124: 0.04647979823 | AF124: 100.6969994 | AG124: 0 | AH124: 128.2900236 | AI124: 0.0193 | AJ124: 103.3425312 | AK124: 0 | AL124: 179.2758718 | AM124: 0.0068 | AN124: 281.9538391 | AO124: -0.0343 | AP124: 110.7765181 | AQ124: 0.007363177621 | AR124: 0.02613759406 | AS124: 220.3470587 | AT124: -0.01466419479 | AU124: 0.03482539883 | AV124: 211.2464174 | AW124: 0 | AX124: 0 | AY124: 131.8918188 | AZ124: ='3.1 Índice_EE'!CN112 -> 0.0001099048166 | BA124: 0.2012728504
A125: 2023-03-01 | B125: 183.9077398 | C125: 0.0064 | D125: 0.02556064678 | E125: 228.1179397 | F125: 0.0005 | G125: -0.03746868846 | H125: 226.4137761 | I125: -0.0034 | J125: -0.05505189458 | K125: 202.8025905 | L125: 0.003 | M125: 0.03172866101 | N125: 196.8836864 | O125: 0.0049 | P125: 0.06478334729 | Q125: 209.1116577 | R125: 0.0012 | S125: 0.004243409975 | T125: 202.2644124 | U125: 0.0018 | V125: 0.03020243986 | W125: 239.3180646 | X125: 0.0117 | Y125: 0.1100874747 | Z125: 183.4769617 | AA125: 0.0071 | AB125: 0.0319863443 | AC125: 183.503122 | AD125: 0.0057 | AE125: 0.03858654052 | AF125: 100.6969994 | AG125: 0 | AH125: 130.047597 | AI125: 0.0137 | AJ125: 103.3425312 | AK125: 0 | AL125: 192.3450828 | AM125: 0.0729 | AN125: 272.8467301 | AO125: -0.0323 | AP125: 111.3623758 | AQ125: 0.00528864587 | AR125: 0.01863718752 | AS125: 224.5457417 | AT125: 0.01905486306 | AU125: 0.05022611921 | AV125: 211.2464174 | AW125: 0 | AX125: 0 | AY125: 131.8939376 | AZ125: ='3.1 Índice_EE'!CN113 -> 1.606430308e-05 | BA125: 0.2011408393
A126: 2023-04-01 | B126: 184.8824508 | C126: 0.0053 | D126: 0.01903879847 | E126: 225.9508192 | F126: -0.0095 | G126: -0.03794971361 | H126: 224.126997 | I126: -0.0101 | J126: -0.05182811016 | K126: 203.0865141 | L126: 0.0014 | M126: 0.02864273281 | N126: 196.8836864 | O126: 0 | P126: 0.05959134968 | Q126: 209.6971703 | R126: 0.0028 | S126: 0.00303976226 | T126: 202.7296206 | U126: 0.0023 | V126: 0.02835140732 | W126: 241.5197908 | X126: 0.0092 | Y126: 0.09724965375 | Z126: 184.5961712 | AA126: 0.0061 | AB126: 0.02471089694 | AC126: 184.5490898 | AD126: 0.0057 | AE126: 0.03270014967 | AF126: 100.6969994 | AG126: 0 | AH126: 130.3597112 | AI126: 0.0024 | AJ126: 103.3425312 | AK126: 0 | AL126: 189.248327 | AM126: -0.0161 | AN126: 269.354292 | AO126: -0.0128 | AP126: 111.4664139 | AQ126: 0.0009342300468 | AR126: 0.01327831733 | AS126: 221.290713 | AT126: -0.01449606095 | AU126: 0.03058839841 | AV126: 211.2464174 | AW126: 0 | AX126: 0 | AY126: 132.5779865 | AZ126: ='3.1 Índice_EE'!CN114 -> 0.005186355969 | BA126: 0.2011215441
A127: 2023-05-01 | B127: 185.5480276 | C127: 0.0036 | D127: 0.01366636673 | E127: 221.7933242 | F127: -0.0184 | G127: -0.0287225781 | H127: 218.904838 | I127: -0.0233 | J127: -0.04215386418 | K127: 204.2847246 | L127: 0.0059 | M127: 0.0272046463 | N127: 199.2856674 | O127: 0.0122 | P127: 0.05959134968 | Q127: 209.6552309 | R127: -0.0002 | S127: 0.0002390928001 | T127: 203.5405391 | U127: 0.004 | V127: 0.02599162658 | W127: 244.2248125 | X127: 0.0112 | Y127: 0.08724698152 | Z127: 185.0207424 | AA127: 0.0023 | AB127: 0.01849805878 | AC127: 185.4902902 | AD127: 0.0051 | AE127: 0.02684712108 | AF127: 100.6969994 | AG127: 0 | AH127: 132.9799414 | AI127: 0.0201 | AJ127: 103.3425312 | AK127: 0 | AL127: 187.8478894 | AM127: -0.0074 | AN127: 249.4220744 | AO127: -0.074 | AP127: 112.339824 | AQ127: 0.007835634381 | AR127: 0.01233256583 | AS127: 212.4775634 | AT127: -0.03982611604 | AU127: 0.04574761964 | AV127: 211.2464174 | AW127: 0 | AX127: 0 | AY127: 132.5797128 | AZ127: ='3.1 Índice_EE'!CN115 -> 1.302102484e-05 | BA127: 0.1949242416
A128: 2023-06-01 | B128: 185.3624796 | C128: -0.001 | D128: 0.0100302578 | E128: 217.512713 | F128: -0.0193 | G128: -0.01051607386 | H128: 215.7307178 | I128: -0.0145 | J128: -0.01930363897 | K128: 205.7351461 | L128: 0.0071 | M128: 0.02117968616 | N128: 202.1952381 | O128: 0.0146 | P128: 0.04682014392 | Q128: 209.5923343 | R128: -0.0003 | S128: 0.0004391806362 | T128: 205.2706336 | U128: 0.0085 | V128: 0.02190401054 | W128: 246.838018 | X128: 0.0107 | Y128: 0.075204689 | Z128: 184.8727258 | AA128: -0.0008 | AB128: 0.01616088873 | AC128: 185.5644863 | AD128: 0.0004 | AE128: 0.02163677353 | AF128: 100.6969994 | AG128: 0 | AH128: 132.9799414 | AI128: 0 | AJ128: 103.3425312 | AK128: 0 | AL128: 185.8567017 | AM128: -0.0106 | AN128: 232.5611421 | AO128: -0.0676 | AP128: 112.339824 | AQ128: 0 | AR128: 0.004461969093 | AS128: 204.5384779 | AT128: -0.03736434728 | AU128: 0.0891231652 | AV128: 211.2464174 | AW128: 0 | AX128: 0 | AY128: 132.3133912 | AZ128: ='3.1 Índice_EE'!CN116 -> -0.002008765493 | BA128: 0.1949086827
A129: 2023-07-01 | B129: =B128*(1+C129) -> 185.1956534 | C129: -0.0009 | D129: 0.0110412991 | E129: =E128*(1+F129) -> 215.9466215 | F129: -0.0072 | G129: 0.008956792234 | H129: =H128*(1+I129) -> 214.8677949 | I129: -0.004 | J129: -0.004874316562 | K129: =K128*(1+L129) -> 205.9408813 | L129: 0.001 | M129: 0.01398042514 | N129: =N128*(1+O129) -> 203.2062143 | O129: 0.005 | P129: 0.03175649904 | Q129: =Q128*(1+R129) -> 209.2360274 | R129: -0.0017 | S129: 0.000739402457 | T129: =T128*(1+U129) -> 205.393796 | U129: 0.0006 | V129: 0.01329103673 | W129: =W128*(1+X129) -> 249.4791848 | X129: 0.0107 | Y129: 0.06382179579 | Z129: =Z128*(1+AA129) -> 185.0945731 | AA129: 0.0012 | AB129: 0.01697446831 | AC129: =AC128*(1+AD129) -> 186.0840669 | AD129: 0.0028 | AE129: 0.02122828222 | AF129: =AF128*(1+AG129) -> 100.6969994 | AG129: 0 | AH129: =AH128*(1+AI129) -> 132.9799414 | AI129: 0 | AJ129: =AJ128*(1+AK129) -> 103.3425312 | AK129: 0 | AL129: =AL128*(1+AM129) -> 192.7333997 | AM129: 0.037 | AN129: =AN128*(1+AO129) -> 227.5610776 | AO129: -0.0215 | AP129: =AVERAGE(AF129,AH129,AJ129) -> 112.339824 | AQ129: =AP129/AP128-1 -> 0 | AR129: 0.004461969093 | AS129: =0.4*AN129+0.6*AL129 -> 206.6644709 | AT129: =AS129/AS128-1 -> 0.01039409786 | AU129: 0.1313970786 | AV129: =AV128*(1+AW129) -> 211.2464174 | AW129: 0 | AX129: 0 | AY129: =AY128*(1+AZ129) -> 157.2866852 | AZ129: ='3.1 Índice_EE'!CN117 -> 0.1887435108 | BA129: 0.1973138054
A130: 2023-08-01 | B130: 185.5660447 | C130: 0.002 | D130: 0.01195205595 | E130: 215.6442962 | F130: -0.0014 | G130: 0.01627396478 | H130: 214.9752288 | I130: 0.0005 | J130: -0.0008778278734 | K130: 206.2909808 | L130: 0.0017 | M130: 0.01296745768 | N130: 204.4457722 | O130: 0.0061 | P130: 0.02662338213 | Q130: 208.9430969 | R130: -0.0014 | S130: 0.002443556503 | T130: 205.8867411 | U130: 0.0024 | V130: 0.01268342667 | W130: 252.3232475 | X130: 0.0114 | Y130: 0.0525594101 | Z130: 185.5202906 | AA130: 0.0023 | AB130: 0.01575556163 | AC130: 186.7353611 | AD130: 0.0035 | AE130: 0.01837682711 | AF130: 100.6969994 | AG130: 0 | AH130: 132.9799414 | AI130: 0 | AJ130: 103.3425312 | AK130: 0 | AL130: 194.1018068 | AM130: 0.0071 | AN130: 252.2286984 | AO130: 0.1084 | AP130: 112.339824 | AQ130: 0 | AR130: 0.004461969093 | AS130: 217.3525635 | AT130: 0.05171712662 | AU130: 0.1197582022 | AV130: 211.2464174 | AW130: 0 | AX130: 0 | AY130: 158.8504984 | AZ130: ='3.1 Índice_EE'!CN118 -> 0.009942438514 | BA130: 0.007209540561
A131: 2023-09-01 | B131: 185.7701673 | C131: 0.0011 | D131: =B$134/B130-1 -> 0.009932191564 | E131: 216.4421801 | F131: 0.0037 | G131: =E$134/E130-1 -> 0.01769874302 | H131: 215.9426174 | I131: 0.0045 | J131: =H$134/H130-1 -> -0.001377139304 | K131: 206.9923701 | L131: 0.0034 | M131: =K$134/K130-1 -> 0.01124833551 | N131: 205.5293348 | O131: 0.0053 | P131: =N$134/N130-1 -> 0.02039894854 | Q131: 209.3818774 | R131: 0.0021 | S131: =Q$134/Q130-1 -> 0.003848945026 | T131: 206.3808693 | U131: 0.0024 | V131: =T$134/T130-1 -> 0.01025880554 | W131: 254.770783 | X131: 0.0097 | Y131: =W$134/W130-1 -> 0.04069548161 | Z131: 186.0026433 | AA131: 0.0026 | AB131: =Z$134/Z130-1 -> 0.01342468486 | AC131: 187.3889349 | AD131: 0.0035 | AE131: =AC$134/AC130-1 -> 0.01482493982 | AF131: 100.6969994 | AG131: 0 | AH131: 132.9799414 | AI131: 0 | AJ131: 103.3425312 | AK131: 0 | AL131: 200.6818581 | AM131: 0.0339 | AN131: 277.6281283 | AO131: 0.1007 | AP131: 112.339824 | AQ131: 0 | AR131: =AP$134/AP131-1 -> 0.004461969093 | AS131: 231.4603662 | AT131: 0.06490745956 | AU131: =AS$134/AS131-1 -> -0.0001992990754 | AV131: 211.2464174 | AW131: 0 | AX131: =AV$134/AV130-1 -> 0 | AY131: 158.5186958 | AZ131: ='3.1 Índice_EE'!CN119 -> -0.002088772846 | BA131: -0.002705993776
A132: 2023-10-01 | B132: 185.9930915 | C132: 0.0012 | D132: 0.008822486829 | E132: 217.524391 | F132: 0.005 | G132: 0.01394713861 | H132: 217.0439247 | I132: 0.0051 | J132: -0.005850810656 | K132: 207.4063548 | L132: 0.002 | M132: 0.007821741588 | N132: 206.2692404 | O132: 0.0036 | P132: 0.01501934601 | Q132: 209.5703211 | R132: 0.0009 | S132: 0.001745279938 | T132: 206.793631 | U132: 0.002 | V132: 0.007839989563 | W132: 257.3184908 | X132: 0.01 | Y132: 0.03069771379 | Z132: 186.4490497 | AA132: 0.0024 | AB132: 0.01079661366 | AC132: 187.7824516 | AD132: 0.0021 | AE132: 0.01128544077 | AF132: 99.96191126 | AG132: -0.0073 | AH132: 132.9799414 | AI132: 0 | AJ132: 103.3425312 | AK132: 0 | AL132: 200.4611081 | AM132: -0.0011 | AN132: 282.9585884 | AO132: 0.0192 | AP132: 112.0947946 | AQ132: -0.002181144286 | AR132: =AP$134/AP132-1 -> 0.00665763464 | AS132: 233.4601002 | AT132: 0.008639638967 | AU132: =AS$134/AS132-1 -> -0.008763226926 | AV132: 211.2464174 | AW132: 0 | AX132: 0 | AY132: 158.2157588 | AZ132: ='3.1 Índice_EE'!CN120 -> -0.00191104934 | BA132: -0.0006185128631
A133: 2023-11-01 | B133: 186.6997684 | C133: 0.003799479167 | D133: =B$134/B132-1 -> 0.007613350808 | E133: 218.4212441 | F133: 0.004123 | G133: =E$134/E132-1 -> 0.00890262548 | H133: 215.8901127 | I133: -0.005316030093 | J133: =H$134/H132-1 -> -0.01089524491 | K133: 208.0138106 | L133: 0.002928819444 | M133: =K$134/K132-1 -> 0.005810121345 | N133: 207.4412985 | O133: 0.005682175926 | P133: =N$134/N132-1 -> 0.01137838383 | Q133: 209.6669927 | R133: 0.0004612847222 | S133: =Q$134/Q132-1 -> 0.0008445198703 | T133: 207.3828972 | U133: 0.002849537037 | V133: =T$134/T132-1 -> 0.005828332898 | W133: 259.9860258 | X133: 0.01036666667 | Y133: =W$134/W132-1 -> 0.02049278593 | Z133: 187.0455002 | AA133: 0.003199 | AB133: =Z$134/Z132-1 -> 0.008376510039 | AC133: 188.6465769 | AD133: 0.004601736111 | AE133: =AC$134/AC132-1 -> 0.009166191771 | AF133: 100.1074519 | AG133: 0.001455960648 | AH133: 133.738258 | AI133: 0.005702488426 | AJ133: 103.5476673 | AK133: 0.001985011574 | AL133: 202.5018207 | AM133: 0.01018009259 | AN133: 277.5815401 | AO133: -0.01900295139 | AP133: 112.464459 | AQ133: 0.003297784136 | AR133: =AP$134/AP132-1 -> 0.00665763464 | AS133: 232.5337084 | AT133: -0.003968094482 | AU133: =AS$134/AS132-1 -> -0.008763226926 | AV133: 211.2464174 | AW133: 0 | AX133: =AV$134/AV132-1 -> 0 | AY133: 158.5278938 | AZ133: ='3.1 Índice_EE'!CN121 -> 0.001972844377 | BA133: =AY$134/AY132-1 -> 0.001295011307
A134: 2023-12-01 | B134: 187.4091222 | C134: 0.003799435764 | D134: =B$134/B133-1 -> 0.003799435764 | E134: 219.4609292 | F134: 0.00476 | G134: =E$134/E133-1 -> 0.00476 | H134: 214.679178 | I134: -0.0056090326 | J134: =H$134/H133-1 -> -0.0056090326 | K134: 208.6114109 | L134: 0.002872887731 | M134: =K$134/K133-1 -> 0.002872887731 | N134: 208.616251 | O134: 0.00566402392 | P134: =N$134/N133-1 -> 0.00566402392 | Q134: 209.7473074 | R134: 0.0003830584491 | S134: =Q$134/Q133-1 -> 0.0003830584491 | T134: 207.9988932 | U134: 0.00297033179 | V134: =T$134/T133-1 -> 0.00297033179 | W134: 262.5916636 | X134: 0.01002222222 | Y134: =W$134/W133-1 -> 0.01002222222 | Z134: 188.010842 | AA134: 0.005161 | AB134: =Z$134/Z133-1 -> 0.005161 | AC134: 189.5037016 | AD134: 0.004543547454 | AE134: =AC$134/AC133-1 -> 0.004543547454 | AF134: 100.2653504 | AG134: 0.001577290702 | AH134: 134.4875528 | AI134: 0.005602695795 | AJ134: 103.7703392 | AK134: 0.002150429205 | AL134: 204.4364084 | AM134: 0.009553433642 | AN134: 271.8809783 | AO134: -0.02053653067 | AP134: 112.8410808 | AQ134: 0.003348806862 | AR134: =AP$134/AP133-1 -> 0.003348806862 | AS134: 231.4142363 | AT134: -0.004814235787 | AU134: =AS$134/AS133-1 -> -0.004814235787 | AV134: 211.2464174 | AW134: 0 | AX134: =AV$134/AV133-1 -> 0 | AY134: 158.4206499 | AZ134: ='3.1 Índice_EE'!CN122 -> -0.0006764984441 | BA134: =AY$134/AY133-1 -> -0.0006764984441
B136: 2 | C136: 3 | D136: 4 | E136: 5 | F136: 6 | G136: 7 | H136: 8 | I136: 9 | J136: 10 | K136: 11 | L136: 12 | M136: 13 | N136: 14 | O136: 15 | P136: 16 | Q136: 17 | R136: 18 | S136: 19 | T136: 20 | U136: 21 | V136: 22 | W136: 23 | X136: 24 | Y136: 25 | Z136: 26 | AA136: 27 | AB136: 28 | AC136: 29 | AD136: 30 | AE136: 31 | AF136: 32 | AG136: 33 | AH136: 34 | AI136: 35 | AJ136: 36 | AK136: 37 | AL136: 38 | AM136: 39 | AN136: 40 | AO136: 41 | AP136: 42 | AQ136: 43 | AR136: 44 | AS136: 45 | AT136: 46 | AU136: 47
A138: Acumulado ANOS | B138: INPC | E138: IGP-M | H138: IGP-DI | K138: INCC | N138: INCC-DI MB | Q138: INCC-DI MS | T138: INCC-M | W138: SELIC | Z138: IPCA | AC138: IPCA 15 | AF138: IPCA BH Fixo | AH138: IPCA BH Cel | AJ138: IPCA BH Int | AL138: IPCA BH Gas | AN138: IPCA BH Die | AP138: IPCA BH Tel | AS138: IPCA BH Comb | AV138: ETM | AY138: IEE
A139: 2013 | B139: =B14/B2-1 -> 0.05562663707 | E139: =E14/E2-1 -> 0.05525658421 | H139: =H14/H2-1 -> 0.05527757994 | K139: =K14/K2-1 -> 0.08087493555 | N139: =N14/N2-1 -> 0.09759609658 | Q139: =Q14/Q2-1 -> 0.06334843158 | T139: =T14/T2-1 -> 0.08069430928 | W139: =W14/W2-1 -> 0.08213356184 | Z139: =Z14/Z2-1 -> 0.0591081808 | AC139: =AC14/AC2-1 -> 0.05848114629 | AF139: =AF14/AF2-1 -> -0.01638276918 | AH139: =AH14/AH2-1 -> 0.047244755 | AJ139: =AJ14/AJ2-1 -> 0 | AL139: =AL14/AL2-1 -> 0.03437497405 | AN139: =AN14/AN2-1 -> 0.1609860023 | AP139: =AP14/AP2-1 -> 0.01028732861 | AS139: =AS14/AS2-1 -> 0.08501938533 | AV139: =AV14/AV2-1 -> 0.0525
A140: 2014 | B140: =B26/B14-1 -> 0.06228269215 | E140: =E26/E14-1 -> 0.03674882508 | H140: =H26/H14-1 -> 0.03779997091 | K140: =K26/K14-1 -> 0.06944929719 | N140: =N26/N14-1 -> 0.08490093574 | Q140: =Q26/Q14-1 -> 0.05292316139 | T140: =T26/T14-1 -> 0.0674004472 | W140: =W26/W14-1 -> 0.1091009207 | Z140: =Z26/Z14-1 -> 0.06407616596 | AC140: =AC26/AC14-1 -> 0.06461048404 | AF140: =AF26/AF14-1 -> -0.03254488448 | AH140: =AH26/AH14-1 -> 0.02406816962 | AJ140: =AJ26/AJ14-1 -> 0 | AL140: =AL26/AL14-1 -> 0.02771410084 | AN140: =AN26/AN14-1 -> 0.06582471565 | AP140: =AP26/AP14-1 -> -0.002245712537 | AS140: =AS26/AS14-1 -> 0.04402565838 | AV140: =AV26/AV14-1 -> 0.0618
A141: 2015 | B141: =B38/B26-1 -> 0.112761662 | E141: =E38/E26-1 -> 0.1054429461 | H141: =H38/H26-1 -> 0.1067860742 | K141: =K38/K26-1 -> 0.07493890454 | N141: =N38/N26-1 -> 0.08110166043 | Q141: =Q38/Q26-1 -> 0.06777871601 | T141: =T38/T26-1 -> 0.07216996411 | W141: =W38/W26-1 -> 0.132857836 | Z141: =Z38/Z26-1 -> 0.10673498 | AC141: =AC38/AC26-1 -> 0.107065071 | AF141: =AF38/AF26-1 -> -0.025120305 | AH141: =AH38/AH26-1 -> 0.09079553367 | AJ141: =AJ38/AJ26-1 -> 0 | AL141: =AL38/AL26-1 -> 0.2181181318 | AN141: =AN38/AN26-1 -> 0.1193855889 | AP141: =AP38/AP26-1 -> 0.02429487485 | AS141: =AS38/AS26-1 -> 0.1749777073 | AV141: =AV38/AV26-1 -> 0.1504
A142: 2016 | B142: =B50/B38-1 -> 0.06579963613 | E142: =E50/E38-1 -> 0.0719070751 | H142: =H50/H38-1 -> 0.07153318977 | K142: =K50/K38-1 -> 0.06101646533 | N142: =N50/N38-1 -> 0.09356990973 | Q142: =Q50/Q38-1 -> 0.02465319327 | T142: =T50/T38-1 -> 0.06337445332 | W142: =W50/W38-1 -> 0.1402838763 | Z142: =Z50/Z38-1 -> 0.06288055054 | AC142: =AC50/AC38-1 -> 0.06583325421 | AF142: =AF50/AF38-1 -> -0.007871274845 | AH142: =AH50/AH38-1 -> 0.0029 | AJ142: =AJ50/AJ38-1 -> 0 | AL142: =AL50/AL38-1 -> 0.03038649247 | AN142: =AN50/AN38-1 -> 0.0307538596 | AP142: =AP50/AP38-1 -> -0.001262201459 | AS142: =AS50/AS38-1 -> 0.03053941605 | AV142: =AV50/AV38-1 -> 0.139
A143: 2017 | B143: =B62/B50-1 -> 0.02066930964 | E143: =E62/E50-1 -> -0.005325890366 | H143: =H62/H50-1 -> -0.004230711057 | K143: =K62/K50-1 -> 0.04246236578 | N143: =N62/N50-1 -> 0.05204171896 | Q143: =Q62/Q50-1 -> 0.03119438808 | T143: =T62/T50-1 -> 0.04025352747 | W143: =W62/W50-1 -> 0.09955642316 | Z143: =Z62/Z50-1 -> 0.02947349908 | AC143: =AC62/AC50-1 -> 0.02937093539 | AF143: =AF62/AF50-1 -> -0.05883723856 | AH143: =AH62/AH50-1 -> 0.06828885159 | AJ143: =AJ62/AJ50-1 -> 0.0104 | AL143: =AL62/AL50-1 -> 0.08684798703 | AN143: =AN62/AN50-1 -> 0.07102271066 | AP143: =AP62/AP50-1 -> 0.01175449055 | AS143: =AS62/AS50-1 -> 0.08025904264 | AV143: =AV62/AV50-1 -> 0.0869
A144: 2018 | B144: =B74/B62-1 -> 0.03433953868 | E144: =E74/E62-1 -> 0.07552135634 | H144: =H74/H62-1 -> 0.0710206239 | K144: =K74/K62-1 -> 0.03832393341 | N144: =N74/N62-1 -> 0.0204352805 | Q144: =Q74/Q62-1 -> 0.06058484991 | T144: =T74/T62-1 -> 0.03957735493 | W144: =W74/W62-1 -> 0.064215212 | Z144: =Z74/Z62-1 -> 0.03745482122 | AC144: =AC74/AC62-1 -> 0.03860544807 | AF144: =AF74/AF62-1 -> -0.01369463157 | AH144: =AH74/AH62-1 -> 0.0073 | AJ144: =AJ74/AJ62-1 -> 0.014 | AL144: =AL74/AL62-1 -> 0.1338051303 | AN144: =AN74/AN62-1 -> 0.09354738422 | AP144: =AP74/AP62-1 -> 0.003652430682 | AS144: =AS74/AS62-1 -> 0.1171869003 | AV144: =AV74/AV62-1 -> 0.0431
A145: 2019 | B145: =B86/B74-1 -> 0.04481588663 | E145: =E86/E74-1 -> 0.07317908281 | H145: =H86/H74-1 -> 0.07677588541 | K145: =K86/K74-1 -> 0.04143242256 | N145: =N86/N74-1 -> 0.04925770613 | Q145: =Q86/Q74-1 -> 0.03234538735 | T145: =T86/T74-1 -> 0.04132997711 | W145: =W86/W74-1 -> 0.05945940358 | Z145: =Z86/Z74-1 -> 0.04306039984 | AC145: =AC86/AC74-1 -> 0.03913212759 | AF145: =AF86/AF74-1 -> -0.01280027503 | AH145: =AH86/AH74-1 -> 0.02349333 | AJ145: =AJ86/AJ74-1 -> 0 | AL145: =AL86/AL74-1 -> 0.03495226864 | AN145: =AN86/AN74-1 -> 0.0639699392 | AP145: =AP86/AP74-1 -> 0.005960254069 | AS145: =AS86/AS74-1 -> 0.04667718156 | AV145: =AV86/AV74-1 -> 0.0838
A146: 2020 | B146: =B98/B86-1 -> 0.05447325281 | E146: =E98/E86-1 -> 0.2313905404 | H146: =H98/H86-1 -> 0.2307433448 | K146: =K98/K86-1 -> 0.08812907778 | N146: =N98/N86-1 -> 0.02572062048 | Q146: =Q98/Q86-1 -> 0.1627781052 | T146: =T98/T86-1 -> 0.0868439462 | W146: =W98/W86-1 -> 0.02753815782 | Z146: =Z98/Z86-1 -> 0.04517341501 | AC146: =AC98/AC86-1 -> 0.04227459099 | AF146: =AF98/AF86-1 -> 0.04694873941 | AH146: =AH98/AH86-1 -> 0.00368328 | AJ146: =AJ98/AJ86-1 -> 0.1218 | AL146: =AL98/AL86-1 -> -0.01430288785 | AN146: =AN98/AN86-1 -> -0.01824423697 | AP146: =AP98/AP86-1 -> 0.05352547479 | AS146: =AS98/AS86-1 -> -0.01592174522 | AV146: =AV98/AV86-1 -> 0.0304
A147: 2021 | B147: =B110/B98-1 -> 0.1016017767 | E147: =E110/E98-1 -> 0.1779252084 | H147: =H110/H98-1 -> 0.1774391627 | K147: =K110/K98-1 -> 0.1384443744 | N147: =N110/N98-1 -> 0.06835489073 | Q147: =Q110/Q98-1 -> 0.2127541225 | T147: =T110/T98-1 -> 0.1402738708 | W147: =W110/W98-1 -> 0.04435687759 | Z147: =Z110/Z98-1 -> 0.1006105489 | AC147: =AC110/AC98-1 -> 0.1042365308 | AF147: =AF110/AF98-1 -> 0.1189430041 | AH147: =AH110/AH98-1 -> 0 | AJ147: =AJ110/AJ98-1 -> 0 | AL147: =AL110/AL98-1 -> 0.4828798576 | AN147: =AN110/AN98-1 -> 0.4087868099 | AP147: =AP110/AP98-1 -> 0.03154793135 | AS147: =AS110/AS98-1 -> 0.452518935 | AV147: =AV110/AV98-1 -> -0.0152
A148: 2022 | B148: =B122/B110-1 -> 0.05932356277 | E148: =E122/E110-1 -> 0.0545842157 | H148: =H122/H110-1 -> 0.05005065231 | K148: =K122/K110-1 -> 0.09270812523 | N148: =N122/N110-1 -> 0.1193853468 | Q148: =Q122/Q110-1 -> 0.0679020586 | T148: =T122/T110-1 -> 0.09420581413 | W148: =W122/W110-1 -> 0.1238048663 | Z148: =Z122/Z110-1 -> 0.0578484196 | AC148: =AC122/AC110-1 -> 0.05932924483 | AF148: =AF122/AF110-1 -> 0.01912155081 | AH148: =AH122/AH110-1 -> -0.02952672363 | AJ148: =AJ122/AJ110-1 -> -0.12864575 | AL148: =AL122/AL110-1 -> -0.2892022566 | AN148: =AN122/AN110-1 -> 0.2217019738 | AP148: =AP122/AP110-1 -> -0.04870166703 | AS148: =AS122/AS110-1 -> -0.08615343253 | AV148: =AV122/AV110-1 -> 0 | AY148: =AY122/AY110-1 -> -0.1901144068
A149: 2023 | B149: =B134/B122-1 -> 0.03821136809 | E149: =E134/E122-1 -> -0.03602610428 | H149: =H134/H122-1 -> -0.05410671969 | K149: =K134/K122-1 -> 0.03699285015 | N149: =N134/N122-1 -> 0.07245127809 | Q149: =Q134/Q122-1 -> 0.00705676776 | T149: =T134/T122-1 -> 0.03566943575 | W149: =W134/W122-1 -> 0.1328476426 | Z149: =Z134/Z122-1 -> 0.04617050125 | AC149: =AC134/AC122-1 -> 0.05223543712 | AF149: =AF134/AF122-1 -> -0.004286611676 | AH149: =AH134/AH122-1 -> 0.06854109636 | AJ149: =AJ134/AJ122-1 -> 0.03617176614 | AL149: =AL134/AL122-1 -> 0.1563660256 | AN149: =AN134/AN122-1 -> -0.09561840249 | AP149: =AP134/AP122-1 -> 0.03617175405 | AS149: =AS134/AS122-1 -> 0.02248264373 | AV149: =AV134/AV122-1 -> 0.157 | AY149: =AY134/AY122-1 -> 0.2012367024
A151: Acumulado PRs | B151: INPC | E151: IGP-M | H151: IGP-DI | K151: INCC | N151: INCC-DI MB | Q151: INCC-DI MS | T151: INCC-M | W151: SELIC | Z151: IPCA | AC151: IPCA 15 | AF151: IPCA BH Fixo | AH151: IPCA BH Cel | AJ151: IPCA BH Int | AL151: IPCA BH Gas | AN151: IPCA BH Die | AP151: IPCA BH Tel | AS151: IPCA BH Comb | AV151: ETM | AY151: IEE
A152: PR2013/14
A153: PR2014/15
A154: PR2015/16
A155: PR2016/17 | W155: =W117/W104-1 -> 0.09825916382
A156: PR2017/18
A157: PR2018/19
A158: PR2019/20 | B158: =B88/B74-1 -> 0.04858059858 | E158: =E88/E74-1 -> 0.07789901027 | H158: =H88/H74-1 -> 0.07785275821 | K158: =K88/K74-1 -> 0.04883965233 | N158: =N88/N74-1 -> 0.052092024 | Q158: =Q88/Q74-1 -> 0.04508011099 | T158: =T88/T74-1 -> 0.04769156607 | W158: =W88/W74-1 -> 0.06656945682 | Z158: =Z88/Z74-1 -> 0.04786395375 | AC158: =AC88/AC74-1 -> 0.04881228762 | AF158: =AF88/AF74-1 -> -0.005001397199 | AH158: =AH88/AH74-1 -> 0.02349333 | AJ158: =AJ88/AJ74-1 -> 0 | AL158: =AL88/AL74-1 -> 0.03729614574 | AN158: =AN88/AN74-1 -> 0.06922010951 | AP158: =AP88/AP74-1 -> 0.00808134614 | AS158: =AS88/AS74-1 -> 0.05019537879 | AV158: =AV88/AV74-1 -> 0.0838
A159: PR2020/21 | B159: =B105/B88-1 -> 0.1033468711 | E159: =E105/E88-1 -> 0.4220656534 | H159: =H105/H88-1 -> 0.4253220651 | K159: =K105/K88-1 -> 0.1955709987 | N159: =N105/N88-1 -> 0.08473075242 | Q159: =Q105/Q88-1 -> 0.3271258042 | T159: =T105/T88-1 -> 0.1963181612 | W159: =W105/W88-1 -> 0.03743999622 | Z159: =Z105/Z88-1 -> 0.08992233283 | AC159: =AC105/AC88-1 -> 0.08302773577 | AF159: =AF105/AF88-1 -> 0.0364586953 | AH159: =AH105/AH88-1 -> 0.00368328 | AJ159: =AJ105/AJ88-1 -> 0.1218 | AL159: =AL105/AL88-1 -> 0.2492398125 | AN159: =AN105/AN88-1 -> 0.2147117741 | AP159: =AP105/AP88-1 -> 0.05069564351 | AS159: =AS105/AS88-1 -> 0.2350356379 | AV159: =AV105/AV88-1 -> 0.0304
A160: PR2021/22 | B160: =B117/B105-1 -> 0.101248045 | E160: =E117/E105-1 -> 0.1007475075 | H160: =H117/H105-1 -> 0.09102449006 | K160: =K117/K105-1 -> 0.1158079906 | N160: =N117/N105-1 -> 0.1090450219 | Q160: =Q117/Q105-1 -> 0.1225801445 | T160: =T117/T105-1 -> 0.1166655861 | W160: =W117/W105-1 -> 0.09431961321 | Z160: =Z117/Z105-1 -> 0.100692352 | AC160: =AC117/AC105-1 -> 0.1138543988 | AF160: =AF117/AF105-1 -> 0.1521057996 | AH160: =AH117/AH105-1 -> 0.0209 | AJ160: =AJ117/AJ105-1 -> 0 | AL160: =AL117/AL105-1 -> 0.04317346081 | AN160: =AN117/AN105-1 -> 0.6004527698 | AP160: =AP117/AP105-1 -> 0.048424895 | AS160: =AS117/AS105-1 -> 0.268654883 | AV160: =AV117/AV105-1 -> -0.0152 | AY160: =AY117/AY105-1 -> -0.1281235277
A161: PR2021/22 (17 meses) | B161: =B122/B105-1 -> 0.1112575131 | E161: =E122/E105-1 -> 0.07095019649 | H161: 0.06652022807 | K161: 0.12419857 | N161: 0.1277964754 | Q161: 0.1208935606 | T161: 0.126635959 | W161: 0.1547021861 | Z161: 0.1113592593 | AC161: 0.1153435236 | AF161: 0.1428518207 | AH161: -0.02952672363 | AJ161: -0.12864575 | AL161: -0.1702118456 | AN161: 0.3842132758 | AP161: -0.01811754102 | AS161: 0.05411474045 | AV161: =AV122/AV105-1 -> -0.0152 | AY161: -0.1276911857
A162: PR2023 | B162: =B134/B122-1 -> 0.03821136809 | E162: =E134/E122-1 -> -0.03602610428 | H162: =H134/H122-1 -> -0.05410671969 | K162: =K134/K122-1 -> 0.03699285015 | N162: =N134/N122-1 -> 0.07245127809 | Q162: =Q134/Q122-1 -> 0.00705676776 | T162: =T134/T122-1 -> 0.03566943575 | W162: =W134/W122-1 -> 0.1328476426 | Z162: =Z134/Z122-1 -> 0.04617050125 | AC162: =AC134/AC122-1 -> 0.05223543712 | AF162: =AF134/AF122-1 -> -0.004286611676 | AH162: =AH134/AH122-1 -> 0.06854109636 | AJ162: =AJ134/AJ122-1 -> 0.03617176614 | AL162: =AL134/AL122-1 -> 0.1563660256 | AN162: =AN134/AN122-1 -> -0.09561840249 | AP162: =AP134/AP122-1 -> 0.03617175405 | AS162: =AS134/AS122-1 -> 0.02248264373 | AV162: =AV134/AV122-1 -> 0.157 | AY162: =AY134/AY122-1 -> 0.2012367024
A164: Acum. do período | B164: INPC | E164: IGP-M | H164: IGP-DI | K164: INCC | N164: INCC-DI MB | Q164: INCC-DI MS | T164: INCC-M | W164: SELIC | Z164: IPCA | AC164: IPCA 15 | AF164: IPCA BH Fixo | AH164: IPCA BH Cel | AJ164: IPCA BH Int | AL164: IPCA BH Gas | AN164: IPCA BH Die | AP164: IPCA BH Tel | AS164: IPCA BH Comb | AV164: ETM | AY164: IEE
A165: 2016-2022 | B165: =(1+B142)*(1+B143)*(1+B144)*(1+B145)*(1+B146)*(1+B147)-1 -> 0.3656006461 | E165: =(1+E142)*(1+E143)*(1+E144)*(1+E145)*(1+E146)*(1+E147)-1 -> 0.7850184863 | H165: =(1+H142)*(1+H143)*(1+H144)*(1+H145)*(1+H146)*(1+H147)-1 -> 0.7831730129 | K165: =(1+K142)*(1+K143)*(1+K144)*(1+K145)*(1+K146)*(1+K147)-1 -> 0.4816263706 | N165: =(1+N142)*(1+N143)*(1+N144)*(1+N145)*(1+N146)*(1+N147)-1 -> 0.3498694728 | Q165: =(1+Q142)*(1+Q143)*(1+Q144)*(1+Q145)*(1+Q146)*(1+Q147)-1 -> 0.6313888306 | T165: =(1+T142)*(1+T143)*(1+T144)*(1+T145)*(1+T146)*(1+T147)-1 -> 0.4840446392 | W165: =(1+W142)*(1+W143)*(1+W144)*(1+W145)*(1+W146)*(1+W147)-1 -> 0.5170195421 | Z165: =(1+Z142)*(1+Z143)*(1+Z144)*(1+Z145)*(1+Z146)*(1+Z147)-1 -> 0.3620727607 | AC165: =(1+AC142)*(1+AC143)*(1+AC144)*(1+AC145)*(1+AC146)*(1+AC147)-1 -> 0.3627832835 | AF165: =(1+AF142)*(1+AF143)*(1+AF144)*(1+AF145)*(1+AF146)*(1+AF147)-1 -> 0.06508082395 | AH165: =(1+AH142)*(1+AH143)*(1+AH144)*(1+AH145)*(1+AH146)*(1+AH147)-1 -> 0.1086306154 | AJ165: =(1+AJ142)*(1+AJ143)*(1+AJ144)*(1+AJ145)*(1+AJ146)*(1+AJ147)-1 -> 0.1493352541 | AL165: =(1+AL142)*(1+AL143)*(1+AL144)*(1+AL145)*(1+AL146)*(1+AL147)-1 -> 0.9207779037 | AN165: =(1+AN142)*(1+AN143)*(1+AN144)*(1+AN145)*(1+AN146)*(1+AN147)-1 -> 0.7765169261 | AP165: =(1+AP142)*(1+AP143)*(1+AP144)*(1+AP145)*(1+AP146)*(1+AP147)-1 -> 0.1087285833 | AS165: =(1+AS142)*(1+AS143)*(1+AS144)*(1+AS145)*(1+AS146)*(1+AS147)-1 -> 0.860726516 | AV165: =(1+AV142)*(1+AV143)*(1+AV144)*(1+AV145)*(1+AV146)*(1+AV147)-1 -> 0.4201764112 | AY165: =(1+AY142)*(1+AY143)*(1+AY144)*(1+AY145)*(1+AY146)*(1+AY147)-1 -> 0
A166: 2017-2022 | B166: =(1+B143)*(1+B144)*(1+B145)*(1+B146)*(1+B147)-1 -> 0.2812920926 | E166: =(1+E143)*(1+E144)*(1+E145)*(1+E146)*(1+E147)-1 -> 0.665273537 | H166: =(1+H143)*(1+H144)*(1+H145)*(1+H146)*(1+H147)-1 -> 0.6641323198 | K166: =(1+K143)*(1+K144)*(1+K145)*(1+K146)*(1+K147)-1 -> 0.396421657 | N166: =(1+N143)*(1+N144)*(1+N145)*(1+N146)*(1+N147)-1 -> 0.234369619 | Q166: =(1+Q143)*(1+Q144)*(1+Q145)*(1+Q146)*(1+Q147)-1 -> 0.5921375557 | T166: =(1+T143)*(1+T144)*(1+T145)*(1+T146)*(1+T147)-1 -> 0.3955992967 | W166: =(1+W143)*(1+W144)*(1+W145)*(1+W146)*(1+W147)-1 -> 0.3303876111 | Z166: =(1+Z143)*(1+Z144)*(1+Z145)*(1+Z146)*(1+Z147)-1 -> 0.2814918478 | AC166: =(1+AC143)*(1+AC144)*(1+AC145)*(1+AC146)*(1+AC147)-1 -> 0.2786083359 | AF166: =(1+AF143)*(1+AF144)*(1+AF145)*(1+AF146)*(1+AF147)-1 -> 0.07353088056 | AH166: =(1+AH143)*(1+AH144)*(1+AH145)*(1+AH146)*(1+AH147)-1 -> 0.1054248833 | AJ166: =(1+AJ143)*(1+AJ144)*(1+AJ145)*(1+AJ146)*(1+AJ147)-1 -> 0.1493352541 | AL166: =(1+AL143)*(1+AL144)*(1+AL145)*(1+AL146)*(1+AL147)-1 -> 0.8641334274 | AN166: =(1+AN143)*(1+AN144)*(1+AN145)*(1+AN146)*(1+AN147)-1 -> 0.7235122717 | AP166: =(1+AP143)*(1+AP144)*(1+AP145)*(1+AP146)*(1+AP147)-1 -> 0.1101297907 | AS166: =(1+AS143)*(1+AS144)*(1+AS145)*(1+AS146)*(1+AS147)-1 -> 0.8055850044 | AV166: =(1+AV143)*(1+AV144)*(1+AV145)*(1+AV146)*(1+AV147)-1 -> 0.2468625208 | AY166: =(1+AY143)*(1+AY144)*(1+AY145)*(1+AY146)*(1+AY147)-1 -> 0
A167: 2018-2022 | B167: =(1+B144)*(1+B145)*(1+B146)*(1+B147)-1 -> 0.2553449785 | E167: =(1+E144)*(1+E145)*(1+E146)*(1+E147)-1 -> 0.6741900899 | H167: =(1+H144)*(1+H145)*(1+H146)*(1+H147)-1 -> 0.6712026956 | K167: =(1+K144)*(1+K145)*(1+K146)*(1+K147)-1 -> 0.3395415535 | N167: =(1+N144)*(1+N145)*(1+N146)*(1+N147)-1 -> 0.1733086215 | Q167: =(1+Q144)*(1+Q145)*(1+Q146)*(1+Q147)-1 -> 0.5439742245 | T167: =(1+T144)*(1+T145)*(1+T146)*(1+T147)-1 -> 0.3415953514 | W167: =(1+W144)*(1+W145)*(1+W146)*(1+W147)-1 -> 0.2099311896 | Z167: =(1+Z144)*(1+Z145)*(1+Z146)*(1+Z147)-1 -> 0.2448031435 | AC167: =(1+AC144)*(1+AC145)*(1+AC146)*(1+AC147)-1 -> 0.2421259353 | AF167: =(1+AF144)*(1+AF145)*(1+AF146)*(1+AF147)-1 -> 0.1406431752 | AH167: =(1+AH144)*(1+AH145)*(1+AH146)*(1+AH147)-1 -> 0.03476216345 | AJ167: =(1+AJ144)*(1+AJ145)*(1+AJ146)*(1+AJ147)-1 -> 0.1375052 | AL167: =(1+AL144)*(1+AL145)*(1+AL146)*(1+AL147)-1 -> 0.7151740166 | AN167: =(1+AN144)*(1+AN145)*(1+AN146)*(1+AN147)-1 -> 0.609221032 | AP167: =(1+AP144)*(1+AP145)*(1+AP146)*(1+AP147)-1 -> 0.09723238305 | AS167: =(1+AS144)*(1+AS145)*(1+AS146)*(1+AS147)-1 -> 0.6714370656 | AV167: =(1+AV144)*(1+AV145)*(1+AV146)*(1+AV147)-1 -> 0.1471731722 | AY167: =(1+AY144)*(1+AY145)*(1+AY146)*(1+AY147)-1 -> 0
A168: 2019-2022 | B168: =(1+B145)*(1+B146)*(1+B147)-1 -> 0.2136681733 | E168: =(1+E145)*(1+E146)*(1+E147)-1 -> 0.556631191 | H168: =(1+H145)*(1+H146)*(1+H147)-1 -> 0.5603833001 | K168: =(1+K145)*(1+K146)*(1+K147)-1 -> 0.2900998527 | N168: =(1+N145)*(1+N146)*(1+N147)-1 -> 0.1498118929 | Q168: =(1+Q145)*(1+Q146)*(1+Q147)-1 -> 0.4557762396 | T168: =(1+T145)*(1+T146)*(1+T147)-1 -> 0.2905199839 | W168: =(1+W145)*(1+W146)*(1+W147)-1 -> 0.1369234117 | Z168: =(1+Z145)*(1+Z146)*(1+Z147)-1 -> 0.1998625078 | AC168: =(1+AC145)*(1+AC146)*(1+AC147)-1 -> 0.195955536 | AF168: =(1+AF145)*(1+AF146)*(1+AF147)-1 -> 0.156480753 | AH168: =(1+AH145)*(1+AH146)*(1+AH147)-1 -> 0.02726314251 | AJ168: =(1+AJ145)*(1+AJ146)*(1+AJ147)-1 -> 0.1218 | AL168: =(1+AL145)*(1+AL146)*(1+AL147)-1 -> 0.5127590895 | AN168: =(1+AN145)*(1+AN146)*(1+AN147)-1 -> 0.4715604053 | AP168: =(1+AP145)*(1+AP146)*(1+AP147)-1 -> 0.09323940192 | AS168: =(1+AS145)*(1+AS146)*(1+AS147)-1 -> 0.4961123024 | AV168: =(1+AV145)*(1+AV146)*(1+AV147)-1 -> 0.0997729577 | AY168: =(1+AY145)*(1+AY146)*(1+AY147)-1 -> 0
A169: 2020-2022 | B169: =(1+B146)*(1+B147)-1 -> 0.1616096088 | E169: =(1+E146)*(1+E147)-1 -> 0.4504859589 | H169: =(1+H146)*(1+H147)-1 -> 0.4491254134 | K169: =(1+K146)*(1+K147)-1 -> 0.2387744272 | N169: =(1+N146)*(1+N147)-1 -> 0.09583364142 | Q169: =(1+Q146)*(1+Q147)-1 -> 0.4101639407 | T169: =(1+T146)*(1+T147)-1 -> 0.2392997535 | W169: =(1+W146)*(1+W147)-1 -> 0.07311654211 | Z169: =(1+Z146)*(1+Z147)-1 -> 0.150328886 | AC169: =(1+AC146)*(1+AC147)-1 -> 0.1509176785 | AF169: =(1+AF146)*(1+AF147)-1 -> 0.1714759676 | AH169: =(1+AH146)*(1+AH147)-1 -> 0.00368328 | AJ169: =(1+AJ146)*(1+AJ147)-1 -> 0.1218 | AL169: =(1+AL146)*(1+AL147)-1 -> 0.4616703933 | AN169: =(1+AN146)*(1+AN147)-1 -> 0.3830845695 | AP169: =(1+AP146)*(1+AP147)-1 -> 0.08676202414 | AS169: =(1+AS146)*(1+AS147)-1 -> 0.4293922985 | AV169: =(1+AV146)*(1+AV147)-1 -> 0.01473792 | AY169: =(1+AY146)*(1+AY147)-1 -> 0
A170: 2021-2022 | B170: =B147 -> 0.1016017767 | E170: =E147 -> 0.1779252084 | H170: =H147 -> 0.1774391627 | K170: =K147 -> 0.1384443744 | N170: =N147 -> 0.06835489073 | Q170: =Q147 -> 0.2127541225 | T170: =T147 -> 0.1402738708 | W170: =W147 -> 0.04435687759 | Z170: =Z147 -> 0.1006105489 | AC170: =AC147 -> 0.1042365308 | AF170: =AF147 -> 0.1189430041 | AH170: =AH147 -> 0 | AJ170: =AJ147 -> 0 | AL170: =AL147 -> 0.4828798576 | AN170: =AN147 -> 0.4087868099 | AP170: =AP147 -> 0.03154793135 | AS170: =AS147 -> 0.452518935 | AV170: =AV147 -> -0.0152 | AY170: =AY147 -> 0
A173: Ajuste índices itens não administráveis
A174: Mês | E174: IGP-M | F174: Δ% | G174: Acum até dez/23 | AF174: IPCA BH Fixo | AG174: Δ% | AH174: IPCA BH Cel | AI174: Δ% | AJ174: IPCA BH Int | AK174: Δ% | AL174: IPCA BH Gas | AM174: Δ% | AN174: IPCA BH Die | AO174: Δ% | AP174: IPCA BH Tel | AQ174: Δ% | AR174: Acum até dez/23 | AS174: IPCA BH Comb | AT174: Δ% | AU174: Acum até dez/23 | AY174: IEE | AZ174: Δ% | BA174: Acum até dez/22
A175: dez/22 inco | E175: =E122 -> 227.6627305 | F175: =F122 -> 0.0045 | G175: =E$188/E175-1 -> 0.00227799081 | AF175: =AF122 -> 100.6969994 | AG175: 0 | AH175: 125.8609081 | AI175: 0 | AJ175: 100.1478158 | AK175: 0 | AL175: 176.7921263 | AM175: -0.0019 | AN175: 300.6263938 | AO175: -0.022 | AP175: 108.9019078 | AQ175: 0 | AR175: =AP$188/AP175-1 -> 0.08156008855 | AS175: =AS122 -> 226.3258333 | AT175: =AT122 -> -0.01268121172 | AU175: =AS$188/AS175-1 -> 0.2267777445 | AY175: =AY122 -> 131.8812934 | AZ175: =AZ122 -> 0.003895694956 | BA175: =AY$188/AY175-1 -> 0.1957169241
A176: dez/22 prev | E176: 236.709049 | F176: 0.005952 | G176: =E$188/E176-1 -> -0.03602610428 | AF176: 95.07698217 | AG176: 0.005768 | AH176: 130.6375332 | AI176: 0.002399 | AJ176: 114.9335254 | AK176: 0 | AL176: 192.3129083 | AM176: -0.007145 | AN176: 398.673048 | AO176: 0.044017 | AP176: 113.5493469 | AQ176: 0.002524818392 | AR176: =AP$188/AP176-1 -> 0.03729312584 | AS176: 274.8569642 | AT176: 0.02191012633 | AU176: =AS$188/AS176-1 -> 0.01016721954 | AY176: 131.2752883 | AZ176: -9.110267078e-05 | BA176: =AY$188/AY176-1 -> 0.2012367024
A177: 2023-01-01 | E177: =E176*(1+F177) -> 237.206138 | F177: =F123 -> 0.0021 | G177: =E$188/E177-1 -> -0.03804620725 | AF177: =AF176*(1+AG177) -> 95.07698217 | AG177: =AG123 -> 0 | AH177: =AH176*(1+AI177) -> 130.6375332 | AI177: =AI123 -> 0 | AJ177: =AJ176*(1+AK177) -> 118.5999049 | AK177: =AK123 -> 0.0319 | AL177: =AL176*(1+AM177) -> 193.6975612 | AM177: =AM123 -> 0.0072 | AN177: =AN176*(1+AO177) -> 387.1912642 | AO177: =AO123 -> -0.0288 | AP177: =AVERAGE(AF177,AH177,AJ177) -> 114.7714734 | AQ177: =AP177/AP176-1 -> 0.01076295478 | AR177: =AP$188/AP177-1 -> 0.02624766858 | AS177: =0.4*AN177+0.6*AL177 -> 271.0950424 | AT177: =AS177/AS176-1 -> -0.01368683439 | AU177: =AS$188/AS177-1 -> 0.02418507099 | AY177: =AY176*(1+AZ177) -> 131.2713381 | AZ177: =AZ123 -> -3.009148885e-05 | BA177: =$AY$188/AY177-1 -> 0.2012728504
A178: 2023-02-01 | E178: 237.0638143 | F178: -0.0006 | G178: -0.03746868846 | AF178: 95.07698217 | AG178: 0 | AH178: 133.1588376 | AI178: 0.0193 | AJ178: 118.5999049 | AK178: 0 | AL178: 195.0147046 | AM178: 0.0068 | AN178: 373.9106039 | AO178: -0.0343 | AP178: 115.6119082 | AQ178: =AP178/AP177-1 -> 0.007322680209 | AR178: =AP$188/AP178-1 -> 0.01878741415 | AS178: 266.5730643 | AT178: -0.01668041605 | AU178: =AS$188/AS178-1 -> 0.0415587035 | AY178: 131.2857654 | AZ178: 0.0001099048166 | BA178: =$AY$188/AY178-1 -> 0.2011408393
A179: 2023-03-01 | E179: 237.1823462 | F179: 0.0005 | G179: -0.03794971361 | AF179: 95.07698217 | AG179: 0 | AH179: 134.9831137 | AI179: 0.0137 | AJ179: 118.5999049 | AK179: 0 | AL179: 209.2312766 | AM179: 0.0729 | AN179: 361.8332914 | AO179: -0.0323 | AP179: 116.2200002 | AQ179: 0.005259769814 | AR179: 0.01345686432 | AS179: 270.2720825 | AT179: 0.01387618883 | AU179: 0.02730364414 | AY179: 131.2878744 | AZ179: 1.606430308e-05 | BA179: 0.2011215441
A180: 2023-04-01 | E180: 234.9291139 | F180: -0.0095 | G180: -0.0287225781 | AF180: 95.07698217 | AG180: 0 | AH180: 135.3070731 | AI180: 0.0024 | AJ180: 118.5999049 | AK180: 0 | AL180: 205.862653 | AM180: -0.0161 | AN180: 357.2018252 | AO180: -0.0128 | AP180: 116.3279867 | AQ180: 0.0009291558313 | AR180: 0.01251607911 | AS180: 266.3983219 | AT180: -0.01433281805 | AU180: 0.04224190778 | AY180: 131.9687801 | AZ180: 0.005186355969 | BA180: 0.1949242416
A181: 2023-05-01 | E181: 230.6064182 | F181: -0.0184 | G181: -0.01051607386 | AF181: 95.07698217 | AG181: 0 | AH181: 138.0267453 | AI181: 0.0201 | AJ181: 118.5999049 | AK181: 0 | AL181: 204.3392694 | AM181: -0.0074 | AN181: 330.7688902 | AO181: -0.074 | AP181: 117.2345441 | AQ181: 0.007793115101 | AR181: 0.004686442022 | AS181: 254.9111177 | AT181: -0.04312040753 | AU181: 0.08920904571 | AY181: 131.9704984 | AZ181: 1.302102484e-05 | BA181: 0.1949086827
A182: 2023-06-01 | E182: 226.1557143 | F182: -0.0193 | G182: 0.008956792234 | AF182: 95.07698217 | AG182: 0 | AH182: 138.0267453 | AI182: 0 | AJ182: 118.5999049 | AK182: 0 | AL182: 202.1732732 | AM182: -0.0106 | AN182: 308.4089132 | AO182: -0.0676 | AP182: 117.2345441 | AQ182: 0 | AR182: 0.004686442022 | AS182: 244.6675292 | AT182: -0.04018494225 | AU182: 0.1348113753 | AY182: 131.7054007 | AZ182: -0.002008765493 | BA182: 0.1973138054
A183: 2023-07-01 | E183: 224.5273932 | F183: -0.0072 | G183: 0.01627396478 | AF183: 95.07698217 | AG183: 0 | AH183: 138.0267453 | AI183: 0 | AJ183: 118.5999049 | AK183: 0 | AL183: 209.6536843 | AM183: 0.037 | AN183: 301.7781215 | AO183: -0.0215 | AP183: =AVERAGE(AF183,AH183,AJ183) -> 117.2345441 | AQ183: 0 | AR183: 0.004686442022 | AS183: 246.5034592 | AT183: 0.007503774681 | AU183: 0.1263594279 | AY183: 156.5639404 | AZ183: 0.1887435108 | BA183: 0.007209540561
A184: 2023-08-01 | E184: 224.2130548 | F184: -0.0014 | G184: 0.01769874302 | AF184: 95.07698217 | AG184: 0 | AH184: 138.0267453 | AI184: 0 | AJ184: 118.5999049 | AK184: 0 | AL184: 211.1422254 | AM184: 0.0071 | AN184: 334.4908699 | AO184: 0.1084 | AP184: =AVERAGE(AF184,AH184,AJ184) -> 117.2345441 | AQ184: 0 | AR184: 0.004686442022 | AS184: 260.4816832 | AT184: 0.05670599549 | AU184: 0.0659156215 | AY184: 158.1205677 | AZ184: 0.009942438514 | BA184: -0.002705993776
A185: 2023-09-01 | E185: 225.0426431 | F185: 0.0037 | G185: 0.01394713861 | AF185: 95.07698217 | AG185: 0 | AH185: 138.0267453 | AI185: 0 | AJ185: 118.5999049 | AK185: 0 | AL185: 218.2999469 | AM185: 0.0339 | AN185: 368.1741005 | AO185: 0.1007 | AP185: =AVERAGE(AF185,AH185,AJ185) -> 117.2345441 | AQ185: 0 | AR185: 0.004686442022 | AS185: 278.2496083 | AT185: 0.0682118024 | AU185: -0.002149555823 | AY185: 157.7902898 | AZ185: -0.002088772846 | BA185: -0.0006185128631
A186: 2023-10-01 | E186: 226.1678563 | F186: 0.005 | G186: 0.00890262548 | AF186: 94.3829202 | AG186: -0.0073 | AH186: 138.0267453 | AI186: 0 | AJ186: 118.5999049 | AK186: 0 | AL186: 218.0598169 | AM186: -0.0011 | AN186: 375.2430433 | AO186: 0.0192 | AP186: =AVERAGE(AF186,AH186,AJ186) -> 117.0031901 | AQ186: -0.001973428495 | AR186: 0.006673039283 | AS186: 280.9331075 | AT186: 0.00964421529 | AU186: -0.01168111592 | AY186: 157.4887448 | AZ186: -0.00191104934 | BA186: 0.001295011307
A187: 2023-11-01 | E187: 227.1003464 | F187: 0.004123 | G187: 0.00476 | AF187: 94.52033802 | AG187: 0.001455960648 | AH187: 138.8138412 | AI187: 0.005702488426 | AJ187: 118.8353271 | AK187: 0.001985011574 | AL187: 220.279686 | AM187: 0.01018009259 | AN187: 368.1123179 | AO187: -0.01900295139 | AP187: =AVERAGE(AF187,AH187,AJ187) -> 117.3898354 | AQ187: 0.003304570636 | AR187: 0.003357373968 | AS187: 279.4127388 | AT187: -0.005411852884 | AU187: -0.006303375976 | AY187: 157.7994455 | AZ187: 0.001972844377 | BA187: =AY$188/AY187-1 -> -0.0006764984441
A188: 2023-12-01 | E188: 228.1813441 | F188: 0.00476 | G188: 0 | AF188: 94.66942407 | AG188: 0.001577290702 | AH188: 139.591573 | AI188: 0.005602695795 | AJ188: 119.090874 | AK188: 0.002150429205 | AL188: 222.3841134 | AM188: 0.009553433642 | AN188: 360.552568 | AO188: -0.02053653067 | AP188: 117.783957 | AQ188: 0.003357373968 | AR188: 0 | AS188: 277.6514953 | AT188: -0.006303375976 | AU188: 0 | AY188: 157.6926945 | AZ188: -0.0006764984441 | BA188: =AY$188/AY188-1 -> 0
E189: =(1+F190)/(1+F189)-1 -> -0.03821703704 | F189: =E134/E122-1 -> -0.03602610428 | G189: inc | AF189: =(1+AG190)/(1+AG189)-1 -> 0.05911017634 | AG189: =AF134/AF122-1 -> -0.004286611676 | AH189: =(1+AI190)/(1+AI189)-1 -> -0.03656395647 | AI189: =AH134/AH122-1 -> 0.06854109636 | AJ189: =(1+AK190)/(1+AK189)-1 -> -0.12864575 | AK189: =AJ134/AJ122-1 -> 0.03617176614 | AL189: =(1+AM190)/(1+AM189)-1 -> -0.08070587749 | AM189: =AL134/AL122-1 -> 0.1563660256 | AN189: =(1+AO190)/(1+AO189)-1 -> -0.2459324871 | AO189: =AN134/AN122-1 -> -0.09561840249 | AP189: =(1+AQ190)/(1+AQ189)-1 -> -0.04092880569 | AQ189: =AP134/AP122-1 -> 0.03617175405 | AR189: inc | AS189: =(1+AT190)/(1+AT189)-1 -> -0.1765686783 | AT189: =AS134/AS122-1 -> 0.02248264373 | AU189: inc | AY189: =(1+AZ190)/(1+AZ189)-1 -> 0.004616291796 | AZ189: =AY134/AY122-1 -> 0.2012367024 | BA189: inc
E190: =E175/E176-1 -> -0.03821703704 | F190: =E134/E176-1 -> -0.07286633036 | G190: prev | AF190: =AF175/AF176-1 -> 0.05911017634 | AG190: =AF134/AF176-1 -> 0.05457018229 | AH190: =AH175/AH176-1 -> -0.03656395647 | AI190: =AH134/AH176-1 -> 0.02947100622 | AJ190: =AJ175/AJ176-1 -> -0.12864575 | AK190: =AJ134/AJ176-1 -> -0.09712732785 | AL190: =AL175/AL176-1 -> -0.08070587749 | AM190: =AL134/AL176-1 -> 0.0630404908 | AN190: =AN175/AN176-1 -> -0.2459324871 | AO190: =AN134/AN176-1 -> -0.318035218 | AP190: =AP175/AP176-1 -> -0.04092880569 | AQ190: =AP134/AP176-1 -> -0.006237518335 | AR190: prev | AS190: =AS175/AS176-1 -> -0.1765686783 | AT190: =AS134/AS176-1 -> -0.1580557653 | AU190: prev | AY190: =AY175/AY176-1 -> 0.004616291796 | AZ190: =AY134/AY176-1 -> 0.2067819615 | BA190: prev

Sheet 3.1 Índice_EE
A1: ARSAE-MG
A2: Cálculo da variação de preços de energia elétrica incorrida mês a mês (IEE mensal), para correção inflacionária das despesas com energia elétrica
D5: Energia Elétrica - Cálculo da variação de preços incorrida mês a mês (IEE mensal), considerando variação de tarifas e bandeiras
D7: Perfil de consumo da Copasa (últimos 12 meses)
E8: AES | F8: AES | G8: AES | H8: AES | I8: AES | J8: AES | K8: AES | L8: AES | M8: AES | N8: AES | O8: AES | P8: AES | Q8: ADM | R8: ADM | S8: ADM | T8: ADM | U8: AES | V8: AES | W8: AES | X8: AES | Y8: ADM | Z8: ADM | AA8: ADM | AB8: ADM | AC8: AES | AD8: AES | AE8: AES | AF8: AES | AG8: ADM | AH8: ADM | AI8: ADM | AJ8: ADM | AK8: AES | AL8: AES | AM8: AES | AN8: AES | AO8: ADM | AP8: ADM | AQ8: ADM | AR8: ADM
E9: A2 | I9: A3 | M9: A4 | Q9: A4 | U9: A4 | Y9: A4 | AC9: A4 | AG9: A4 | AK9: B3 | AO9: B3
E10: AZ_AES | I10: AZ_AES | M10: AZ_AES | Q10: AZ_ADM | U10: VD_AES | Y10: VD_ADM | AC10: EQ_AES | AG10: EQ_ADM | AK10: EQ_AES | AO10: EQ_ADM
E11: D_P | F11: D_FP | G11: E_P | H11: E_FP | I11: D_P | J11: D_FP | K11: E_P | L11: E_FP | M11: D_P | N11: D_FP | O11: E_P | P11: E_FP | Q11: D_P | R11: D_FP | S11: E_P | T11: E_FP | U11: D_P | V11: D_FP | W11: E_P | X11: E_FP | Y11: D_P | Z11: D_FP | AA11: E_P | AB11: E_FP | AC11: D_P | AD11: D_FP | AE11: E_P | AF11: E_FP | AG11: D_P | AH11: D_FP | AI11: E_P | AJ11: E_FP | AK11: D_P | AL11: D_FP | AM11: E_P | AN11: E_FP | AO11: D_P | AP11: D_FP | AQ11: E_P | AR11: E_FP
E12: kW | F12: kW | G12: kWh | H12: kWh | I12: kW | J12: kW | K12: kWh | L12: kWh | M12: kW | N12: kW | O12: kWh | P12: kWh | Q12: kW | R12: kW | S12: kWh | T12: kWh | U12: kW | V12: kW | W12: kWh | X12: kWh | Y12: kW | Z12: kW | AA12: kWh | AB12: kWh | AC12: kW | AD12: kW | AE12: kWh | AF12: kWh | AG12: kW | AH12: kW | AI12: kWh | AJ12: kWh | AK12: kW | AL12: kW | AM12: kWh | AN12: kWh | AO12: kW | AP12: kW | AQ12: kWh | AR12: kWh
D13: 2022-09-01
D14: =EDATE(D13,1) -> 2022-10-01
D15: =EDATE(D14,1) -> 2022-11-01
D16: 2022-12-01
D17: 2023-01-01
D18: 2023-02-01
D19: 2023-03-01
D20: 2023-04-01
D21: 2023-05-01
D22: 2023-06-01
D23: 2023-07-01
D24: 2023-08-01
D25: Média | E25: 42358.91667 | F25: 48476 | G25: 651278.75 | H25: 25991257.64 | I25: 2657.666667 | J25: 3504.25 | K25: 58338.91667 | L25: 2510285.439 | M25: 19599.1725 | N25: 24803.51917 | O25: 891685.0833 | P25: 9986169.204 | Q25: 0 | R25: 0 | S25: 0 | T25: 0 | U25: 2753.8275 | V25: 64208.31333 | W25: 1810477.417 | X25: 22516711.29 | Y25: 0 | Z25: 1825.833333 | AA25: 45907.66667 | AB25: 450235.2633 | AC25: 5.333333333 | AD25: 11.75 | AE25: 594.5 | AF25: 4756 | AG25: 0 | AH25: 0 | AI25: 0 | AJ25: 0 | AK25: 0 | AL25: 0 | AM25: 0 | AN25: 15203868.28 | AO25: 0 | AP25: 0 | AQ25: 0 | AR25: 316196.3333
AT26: Faturamento simulado considerando tarifas e bandeiras realizadas e consumo médio dos últimos 12 meses (mesmo consumo todo mês para aferir apenas variação das tarifas e bandeiras)
AT28: Desconto AES: até mai/19 | AU28: 0.15 | AV28: 0.15 | AW28: 0.15 | AX28: 0.15 | AY28: 0.15 | AZ28: 0.15 | BA28: 0.15 | BB28: 0.15 | BC28: 0.15 | BD28: 0.15 | BE28: 0.15 | BF28: 0.15 | BG28: 0 | BH28: 0 | BI28: 0 | BJ28: 0 | BK28: 0.15 | BL28: 0.15 | BM28: 0.15 | BN28: 0.15 | BO28: 0 | BP28: 0 | BQ28: 0 | BR28: 0 | BS28: 0.15 | BT28: 0.15 | BU28: 0.15 | BV28: 0.15 | BW28: 0 | BX28: 0 | BY28: 0 | BZ28: 0 | CA28: 0.15 | CB28: 0.15 | CC28: 0.15 | CD28: 0.15 | CE28: 0 | CF28: 0 | CG28: 0 | CH28: 0
AT29: A partir Jun/19 | AU29: =AU28-(AU$28-0.8*AU$28) -> 0.12 | AV29: =AV28-(AV$28-0.8*AV$28) -> 0.12 | AW29: 0.12 | AX29: 0.12 | AY29: 0.12 | AZ29: 0.12 | BA29: 0.12 | BB29: 0.12 | BC29: 0.12 | BD29: 0.12 | BE29: 0.12 | BF29: 0.12 | BG29: 0 | BH29: 0 | BI29: 0 | BJ29: 0 | BK29: 0.12 | BL29: 0.12 | BM29: 0.12 | BN29: 0.12 | BO29: 0 | BP29: 0 | BQ29: 0 | BR29: 0 | BS29: 0.12 | BT29: 0.12 | BU29: 0.12 | BV29: 0.12 | BW29: 0 | BX29: 0 | BY29: 0 | BZ29: 0 | CA29: 0.12 | CB29: 0.12 | CC29: 0.12 | CD29: 0.12 | CE29: 0 | CF29: 0 | CG29: 0 | CH29: 0
AT30: A partir Set/20 | AU30: =AU29-(AU$28-0.8*AU$28) -> 0.09 | AV30: 0.09 | AW30: 0.09 | AX30: 0.09 | AY30: 0.09 | AZ30: 0.09 | BA30: 0.09 | BB30: 0.09 | BC30: 0.09 | BD30: 0.09 | BE30: 0.09 | BF30: 0.09 | BG30: 0 | BH30: 0 | BI30: 0 | BJ30: 0 | BK30: 0.09 | BL30: 0.09 | BM30: 0.09 | BN30: 0.09 | BO30: 0 | BP30: 0 | BQ30: 0 | BR30: 0 | BS30: 0.09 | BT30: 0.09 | BU30: 0.09 | BV30: 0.09 | BW30: 0 | BX30: 0 | BY30: 0 | BZ30: 0 | CA30: 0.09 | CB30: 0.09 | CC30: 0.09 | CD30: 0.09 | CE30: 0 | CF30: 0 | CG30: 0 | CH30: 0
AT31: A partir Jun/21 | AU31: =AU30-(AU$28-0.8*AU$28) -> 0.06 | AV31: 0.06 | AW31: 0.06 | AX31: 0.06 | AY31: 0.06 | AZ31: 0.06 | BA31: 0.06 | BB31: 0.06 | BC31: 0.06 | BD31: 0.06 | BE31: 0.06 | BF31: 0.06 | BG31: 0 | BH31: 0 | BI31: 0 | BJ31: 0 | BK31: 0.06 | BL31: 0.06 | BM31: 0.06 | BN31: 0.06 | BO31: 0 | BP31: 0 | BQ31: 0 | BR31: 0 | BS31: 0.06 | BT31: 0.06 | BU31: 0.06 | BV31: 0.06 | BW31: 0 | BX31: 0 | BY31: 0 | BZ31: 0 | CA31: 0.06 | CB31: 0.06 | CC31: 0.06 | CD31: 0.06 | CE31: 0 | CF31: 0 | CG31: 0 | CH31: 0
AT32: A partir Jul/22 | AU32: =AU31-(AU$28-0.8*AU$28) -> 0.03 | AV32: =AV31-(AV$28-0.8*AV$28) -> 0.03 | AW32: 0.03 | AX32: 0.03 | AY32: 0.03 | AZ32: 0.03 | BA32: 0.03 | BB32: 0.03 | BC32: 0.03 | BD32: 0.03 | BE32: 0.03 | BF32: 0.03 | BG32: 0 | BH32: 0 | BI32: 0 | BJ32: 0 | BK32: 0.03 | BL32: 0.03 | BM32: 0.03 | BN32: 0.03 | BO32: 0 | BP32: 0 | BQ32: 0 | BR32: 0 | BS32: 0.03 | BT32: 0.03 | BU32: 0.03 | BV32: 0.03 | BW32: 0 | BX32: 0 | BY32: 0 | BZ32: 0 | CA32: 0.03 | CB32: 0.03 | CC32: 0.03 | CD32: 0.03 | CE32: 0 | CF32: 0 | CG32: 0 | CH32: 0
AT33: A partir Jul/23 | AU33: 1 | AV33: 1 | AW33: 1000 | AX33: 1000 | AY33: 1 | AZ33: 1 | BA33: 1000 | BB33: 1000 | BC33: 1 | BD33: 1 | BE33: 1000 | BF33: 1000 | BG33: 1 | BH33: 1 | BI33: 1000 | BJ33: 1000 | BK33: 1 | BL33: 1 | BM33: 1000 | BN33: 1000 | BO33: 1 | BP33: 1 | BQ33: 1000 | BR33: 1000 | BS33: 1 | BT33: 1 | BU33: 1000 | BV33: 1000 | BW33: 1 | BX33: 1 | BY33: 1000 | BZ33: 1000 | CA33: 1 | CB33: 1 | CC33: 1000 | CD33: 1000 | CE33: 1 | CF33: 1 | CG33: 1000 | CH33: 1000 | CK33: Alíquota ICMS = | CL33: 0.18
B34: Tarifas e bandeiras de energia elétrica - CEMIG | BS34: Grupo A4-EQ não existe mais desde o reajuste 2018
B35: MÊS | C35: Bandeira | D35: Valor | E35: A2 | I35: A3 | M35: A4 | Q35: A4 | U35: A4 | Y35: A4 | AC35: A4 | AG35: A4 | AK35: B3 | AO35: B3 | AT35: MÊS | AU35: A2 | AY35: A3 | BC35: A4 | BG35: A4 | BK35: A4 | BO35: A4 | BS35: A4 | BW35: A4 | CA35: B3 | CE35: B3 | CK35: PIS/Cofins - Alíquota líquida incorrida | CL35: Total de tributos (PIS/Cofins + ICMS) R$ | CM35: TOTAL | CN35: Variação mensal
E36: AZ_AES | I36: AZ_AES | M36: AZ_AES | Q36: AZ_ADM | U36: VD_AES | Y36: VD_ADM | AC36: EQ_AES | AG36: EQ_ADM | AK36: EQ_AES | AO36: EQ_ADM | AU36: AZ_AES | AY36: AZ_AES | BC36: AZ_AES | BG36: AZ_ADM | BK36: VD_AES | BO36: VD_ADM | BS36: EQ_AES | BW36: EQ_ADM | CA36: EQ_AES | CE36: EQ_ADM | CI36: TOTAL | CJ36: Bandeiras
E37: D_P | F37: D_FP | G37: E_P | H37: E_FP | I37: D_P | J37: D_FP | K37: E_P | L37: E_FP | M37: D_P | N37: D_FP | O37: E_P | P37: E_FP | Q37: D_P | R37: D_FP | S37: E_P | T37: E_FP | U37: D_P | V37: D_FP | W37: E_P | X37: E_FP | Y37: D_P | Z37: D_FP | AA37: E_P | AB37: E_FP | AC37: D_P | AD37: D_FP | AE37: E_P | AF37: E_FP | AG37: D_P | AH37: D_FP | AI37: E_P | AJ37: E_FP | AK37: D_P | AL37: D_FP | AM37: E_P | AN37: E_FP | AO37: D_P | AP37: D_FP | AQ37: E_P | AR37: E_FP | AU37: D_P | AV37: D_FP | AW37: E_P | AX37: E_FP | AY37: D_P | AZ37: D_FP | BA37: E_P | BB37: E_FP | BC37: D_P | BD37: D_FP | BE37: E_P | BF37: E_FP | BG37: D_P | BH37: D_FP | BI37: E_P | BJ37: E_FP | BK37: D_P | BL37: D_FP | BM37: E_P | BN37: E_FP | BO37: D_P | BP37: D_FP | BQ37: E_P | BR37: E_FP | BS37: D_P | BT37: D_FP | BU37: E_P | BV37: E_FP | BW37: D_P | BX37: D_FP | BY37: E_P | BZ37: E_FP | CA37: D_P | CB37: D_FP | CC37: E_P | CD37: E_FP | CE37: D_P | CF37: D_FP | CG37: E_P | CH37: E_FP
E38: R$/kW | F38: R$/kW | G38: R$/MWh | H38: R$/MWh | I38: R$/kW | J38: R$/kW | K38: R$/MWh | L38: R$/MWh | M38: R$/kW | N38: R$/kW | O38: R$/MWh | P38: R$/MWh | Q38: R$/kW | R38: R$/kW | S38: R$/MWh | T38: R$/MWh | U38: R$/kW | V38: R$/kW | W38: R$/MWh | X38: R$/MWh | Y38: R$/kW | Z38: R$/kW | AA38: R$/MWh | AB38: R$/MWh | AC38: R$/kW | AD38: R$/kW | AE38: R$/MWh | AF38: R$/MWh | AG38: R$/kW | AH38: R$/kW | AI38: R$/MWh | AJ38: R$/MWh | AK38: R$/kW | AL38: R$/kW | AM38: R$/MWh | AN38: R$/MWh | AO38: R$/kW | AP38: R$/kW | AQ38: R$/MWh | AR38: R$/MWh | AU38: R$ | AV38: R$ | AW38: R$ | AX38: R$ | AY38: R$ | AZ38: R$ | BA38: R$ | BB38: R$ | BC38: R$ | BD38: R$ | BE38: R$ | BF38: R$ | BG38: R$ | BH38: R$ | BI38: R$ | BJ38: R$ | BK38: R$ | BL38: R$ | BM38: R$ | BN38: R$ | BO38: R$ | BP38: R$ | BQ38: R$ | BR38: R$ | BS38: R$ | BT38: R$ | BU38: R$ | BV38: R$ | BW38: R$ | BX38: R$ | BY38: R$ | BZ38: R$ | CA38: R$ | CB38: R$ | CC38: R$ | CD38: R$ | CE38: R$ | CF38: R$ | CG38: R$ | CH38: R$ | CI38: R$ | CJ38: R$ | CM38: R$
B39: 2017-01-01 | C39: Verde | D39: 0 | E39: 6.21 | F39: 2.06 | G39: 442.42 | H39: 313.28 | I39: 18.64 | J39: 5.26 | K39: 453.5 | L39: 324.36 | M39: 31.67 | N39: 9.06 | O39: 454.42 | P39: 325.28 | Q39: 31.67 | R39: 9.06 | S39: 454.42 | T39: 325.28 | V39: 9.06 | W39: 1221.63 | X39: 325.28 | Z39: 9.06 | AA39: 1221.63 | AB39: 325.28 | AD39: 31.86 | AF39: 336.04 | AH39: 31.86 | AJ39: 336.04 | AN39: 531.22 | AR39: 531.22 | AT39: 2017-01-01 | AU39: =E$25*E39*(1-AU$28)/AU$33 -> 223591.5416 | AV39: =F$25*F39*(1-AV$28)/AV$33 -> 84881.476 | AW39: =G$25*G39*(1-AW$28)/AW$33 -> 244917.9329 | AX39: =H$25*H39*(1-AX$28)/AX$33 -> 6921160.014 | AY39: =I$25*I39*(1-AY$28)/AY$33 -> 42108.07067 | AZ39: =J$25*J39*(1-AZ$28)/AZ$33 -> 15667.50175 | BA39: =K$25*K39*(1-BA$28)/BA$33 -> 22488.1939 | BB39: =L$25*L39*(1-BB$28)/BB$33 -> 692100.7574 | BC39: =M$25*M39*(1-BC$28)/BC$33 -> 527599.9241 | BD39: =N$25*N39*(1-BD$28)/BD$33 -> 191011.9011 | BE39: =O$25*O39*(1-BE$28)/BE$33 -> 344419.6052 | BF39: =P$25*P39*(1-BF$28)/BF$33 -> 2761055.951 | BG39: =Q$25*Q39*(1-BG$28)/BG$33 -> 0 | BH39: =R$25*R39*(1-BH$28)/BH$33 -> 0 | BI39: =S$25*S39*(1-BI$28)/BI$33 -> 0 | BJ39: =T$25*T39*(1-BJ$28)/BJ$33 -> 0 | BK39: =U$25*U39*(1-BK$28)/BK$33 -> 0 | BL39: =V$25*V39*(1-BL$28)/BL$33 -> 494468.221 | BM39: =W$25*W39*(1-BM$28)/BM$33 -> 1879973.498 | BN39: =X$25*X39*(1-BN$28)/BN$33 -> 6225600.47 | BO39: =Y$25*Y39*(1-BO$28)/BO$33 -> 0 | BP39: =Z$25*Z39*(1-BP$28)/BP$33 -> 16542.05 | BQ39: =AA$25*AA39*(1-BQ$28)/BQ$33 -> 56082.18283 | BR39: =AB$25*AB39*(1-BR$28)/BR$33 -> 146452.5265 | BS39: =AC$25*AC39*(1-BS$28)/BS$33 -> 0 | BT39: =AD$25*AD39*(1-BT$28)/BT$33 -> 318.20175 | BU39: =AE$25*AE39*(1-BU$28)/BU$33 -> 0 | BV39: =AF$25*AF39*(1-BV$28)/BV$33 -> 1358.475304 | BW39: =AG$25*AG39*(1-BW$28)/BW$33 -> 0 | BX39: =AH$25*AH39*(1-BX$28)/BX$33 -> 0 | BY39: =AI$25*AI39*(1-BY$28)/BY$33 -> 0 | BZ39: =AJ$25*AJ39*(1-BZ$28)/BZ$33 -> 0 | CA39: =AK$25*AK39*(1-CA$28)/CA$33 -> 0 | CB39: =AL$25*AL39*(1-CB$28)/CB$33 -> 0 | CC39: =AM$25*AM39*(1-CC$28)/CC$33 -> 0 | CD39: =AN$25*AN39*(1-CD$28)/CD$33 -> 6865109.069 | CE39: =AO$25*AO39*(1-CE$28)/CE$33 -> 0 | CF39: =AP$25*AP39*(1-CF$28)/CF$33 -> 0 | CG39: =AQ$25*AQ39*(1-CG$28)/CG$33 -> 0 | CH39: =AR$25*AR39*(1-CH$28)/CH$33 -> 167969.8162 | CI39: =SUM(AU39:CH39) -> 27924877.38 | CJ39: =SUMIF($E$12:$AR$12,"kWh",$E$25:$AR$25)*D39 -> 0 | CK39: 0.0408 | CL39: =(1/(1-CK39-$CL$33)-1)*(CI39+CJ39) -> 7913004.268 | CM39: =CI39+CJ39+CL39 -> 35837881.65
B40: 2017-02-01 | C40: Verde | D40: 0 | E40: 6.21 | F40: 2.06 | G40: 442.42 | H40: 313.28 | I40: 18.64 | J40: 5.26 | K40: 453.5 | L40: 324.36 | M40: 31.67 | N40: 9.06 | O40: 454.42 | P40: 325.28 | Q40: 31.67 | R40: 9.06 | S40: 454.42 | T40: 325.28 | V40: 9.06 | W40: 1221.63 | X40: 325.28 | Z40: 9.06 | AA40: 1221.63 | AB40: 325.28 | AD40: 31.86 | AF40: 336.04 | AH40: 31.86 | AJ40: 336.04 | AN40: 531.22 | AR40: 531.22 | AT40: 2017-02-01 | AU40: 223591.5416 | AV40: 84881.476 | AW40: 244917.9329 | AX40: 6921160.014 | AY40: 42108.07067 | AZ40: 15667.50175 | BA40: 22488.1939 | BB40: 692100.7574 | BC40: 527599.9241 | BD40: 191011.9011 | BE40: 344419.6052 | BF40: 2761055.951 | BG40: 0 | BH40: 0 | BI40: 0 | BJ40: 0 | BK40: 0 | BL40: 494468.221 | BM40: 1879973.498 | BN40: 6225600.47 | BO40: 0 | BP40: 16542.05 | BQ40: 56082.18283 | BR40: 146452.5265 | BS40: 0 | BT40: 318.20175 | BU40: 0 | BV40: 1358.475304 | BW40: 0 | BX40: 0 | BY40: 0 | BZ40: 0 | CA40: 0 | CB40: 0 | CC40: 0 | CD40: 6865109.069 | CE40: 0 | CF40: 0 | CG40: 0 | CH40: 167969.8162 | CI40: 27924877.38 | CJ40: 0 | CK40: 0.0466 | CL40: 8181765.211 | CM40: 36106642.59 | CN40: =CM40/CM39-1 -> 0.007499353504
B41: 2017-03-01 | C41: Amarela | D41: 0.02 | E41: 6.21 | F41: 2.06 | G41: 442.42 | H41: 313.28 | I41: 18.64 | J41: 5.26 | K41: 453.5 | L41: 324.36 | M41: 31.67 | N41: 9.06 | O41: 454.42 | P41: 325.28 | Q41: 31.67 | R41: 9.06 | S41: 454.42 | T41: 325.28 | V41: 9.06 | W41: 1221.63 | X41: 325.28 | Z41: 9.06 | AA41: 1221.63 | AB41: 325.28 | AD41: 31.86 | AF41: 336.04 | AH41: 31.86 | AJ41: 336.04 | AN41: 531.22 | AR41: 531.22 | AT41: 2017-03-01 | AU41: 223591.5416 | AV41: 84881.476 | AW41: 244917.9329 | AX41: 6921160.014 | AY41: 42108.07067 | AZ41: 15667.50175 | BA41: 22488.1939 | BB41: 692100.7574 | BC41: 527599.9241 | BD41: 191011.9011 | BE41: 344419.6052 | BF41: 2761055.951 | BG41: 0 | BH41: 0 | BI41: 0 | BJ41: 0 | BK41: 0 | BL41: 494468.221 | BM41: 1879973.498 | BN41: 6225600.47 | BO41: 0 | BP41: 16542.05 | BQ41: 56082.18283 | BR41: 146452.5265 | BS41: 0 | BT41: 318.20175 | BU41: 0 | BV41: 1358.475304 | BW41: 0 | BX41: 0 | BY41: 0 | BZ41: 0 | CA41: 0 | CB41: 0 | CC41: 0 | CD41: 6865109.069 | CE41: 0 | CF41: 0 | CG41: 0 | CH41: 167969.8162 | CI41: 27924877.38 | CJ41: 1608755.236 | CK41: 0.0658 | CL41: 9625254.438 | CM41: 39158887.05 | CN41: =CM41/CM40-1 -> 0.08453415336
B42: 2017-04-01 | C42: Vermelha 1 | D42: 0.03 | E42: 6.21 | F42: 2.06 | G42: 380.7 | H42: 251.57 | I42: 18.64 | J42: 5.26 | K42: 391.78 | L42: 262.65 | M42: 31.67 | N42: 9.06 | O42: 392.7 | P42: 263.57 | Q42: 31.67 | R42: 9.06 | S42: 392.7 | T42: 263.57 | V42: 9.06 | W42: 1159.91 | X42: 268.94 | Z42: 9.06 | AA42: 1159.91 | AB42: 268.94 | AD42: 31.86 | AF42: 274.33 | AH42: 31.86 | AJ42: 274.33 | AN42: 469.51 | AR42: 469.51 | AT42: 2017-04-01 | AU42: 223591.5416 | AV42: 84881.476 | AW42: 210750.5471 | AX42: 5557827.582 | AY42: 42108.07067 | AZ42: 15667.50175 | BA42: 19427.61766 | BB42: 560427.5001 | BC42: 527599.9241 | BD42: 191011.9011 | BE42: 297640.0224 | BF42: 2237246.425 | BG42: 0 | BH42: 0 | BI42: 0 | BJ42: 0 | BK42: 0 | BL42: 494468.221 | BM42: 1784992.231 | BN42: 5147297.684 | BO42: 0 | BP42: 16542.05 | BQ42: 53248.76164 | BR42: 121086.2717 | BS42: 0 | BT42: 318.20175 | BU42: 0 | BV42: 1109.006458 | BW42: 0 | BX42: 0 | BY42: 0 | BZ42: 0 | CA42: 0 | CB42: 0 | CC42: 0 | CD42: 6067612.965 | CE42: 0 | CF42: 0 | CG42: 0 | CH42: 148457.3405 | CI42: 23803312.84 | CJ42: 2413132.853 | CK42: 0.0638 | CL42: 8452220.921 | CM42: 34668666.62 | CN42: -0.1146667022
B43: 2017-05-01 | C43: Vermelha 1 | D43: 0.03 | E43: 6.21 | F43: 2.06 | G43: 437.04 | H43: 307.91 | I43: 18.64 | J43: 5.26 | K43: 448.12 | L43: 318.99 | M43: 31.67 | N43: 9.06 | O43: 449.04 | P43: 319.91 | Q43: 31.67 | R43: 9.06 | S43: 449.04 | T43: 319.91 | V43: 9.06 | W43: 1216.25 | X43: 325.28 | Z43: 9.06 | AA43: 1216.25 | AB43: 325.28 | AD43: 31.86 | AF43: 330.67 | AH43: 31.86 | AJ43: 330.67 | AN43: 525.85 | AR43: 525.85 | AT43: 2017-05-01 | AU43: 223591.5416 | AV43: 84881.476 | AW43: 241939.6352 | AX43: 6802522.919 | AY43: 42108.07067 | AZ43: 15667.50175 | BA43: 22221.41004 | BB43: 680642.5595 | BC43: 527599.9241 | BD43: 191011.9011 | BE43: 340341.9293 | BF43: 2715474.082 | BG43: 0 | BH43: 0 | BI43: 0 | BJ43: 0 | BK43: 0 | BL43: 494468.221 | BM43: 1871694.184 | BN43: 6225600.47 | BO43: 0 | BP43: 16542.05 | BQ43: 55835.19958 | BR43: 146452.5265 | BS43: 0 | BT43: 318.20175 | BU43: 0 | BV43: 1336.766542 | BW43: 0 | BX43: 0 | BY43: 0 | BZ43: 0 | CA43: 0 | CB43: 0 | CC43: 0 | CD43: 6795711.013 | CE43: 0 | CF43: 0 | CG43: 0 | CH43: 166271.8419 | CI43: 27662233.42 | CJ43: 2413132.853 | CK43: 0.0496 | CL43: 8963271.154 | CM43: 39038637.43 | CN43: 0.1260495786
B44: 2017-06-01 | C44: Verde | D44: 0 | E44: 9.49 | F44: 3.75 | G44: 380.6 | H44: 254.75 | I44: 20.78 | J44: 7.15 | K44: 392.23 | L44: 266.38 | M44: 34.21 | N44: 11.05 | O44: 393.96 | P44: 268.11 | Q44: 34.21 | R44: 11.05 | S44: 393.96 | T44: 268.11 | V44: 11.05 | W44: 1222.64 | X44: 268.11 | Z44: 11.05 | AA44: 1222.64 | AB44: 268.11 | AD44: 35.68 | AF44: 278.59 | AH44: 35.68 | AJ44: 278.59 | AN44: 494.14 | AR44: 494.14 | AT44: 2017-06-01 | AU44: 341688.2013 | AV44: 154517.25 | AW44: 210695.1884 | AX44: 5628081.951 | AY44: 46942.36633 | AZ44: 21297.07938 | BA44: 19449.93229 | BB44: 568386.3601 | BC44: 569914.5375 | BD44: 232967.0538 | BE44: 298595.0171 | BF44: 2275783.052 | BG44: 0 | BH44: 0 | BI44: 0 | BJ44: 0 | BK44: 0 | BL44: 603076.583 | BM44: 1881527.792 | BN44: 5131412.144 | BO44: 0 | BP44: 20175.45833 | BQ44: 56128.54957 | BR44: 120712.5765 | BS44: 0 | BT44: 356.354 | BU44: 0 | BV44: 1126.227934 | BW44: 0 | BX44: 0 | BY44: 0 | BZ44: 0 | CA44: 0 | CB44: 0 | CC44: 0 | CD44: 6385913.549 | CE44: 0 | CF44: 0 | CG44: 0 | CH44: 156245.2562 | CI44: 24724992.48 | CJ44: 0 | CK44: 0.0381 | CL44: 6896688.656 | CM44: 31621681.14 | CN44: -0.1899901427
B45: 2017-07-01 | C45: Amarela | D45: 0.02 | E45: 9.49 | F45: 3.75 | G45: 380.6 | H45: 254.75 | I45: 20.78 | J45: 7.15 | K45: 392.23 | L45: 266.38 | M45: 34.21 | N45: 11.05 | O45: 393.96 | P45: 268.11 | Q45: 34.21 | R45: 11.05 | S45: 393.96 | T45: 268.11 | V45: 11.05 | W45: 1222.64 | X45: 268.11 | Z45: 11.05 | AA45: 1222.64 | AB45: 268.11 | AD45: 35.68 | AF45: 278.59 | AH45: 35.68 | AJ45: 278.59 | AN45: 494.14 | AR45: 494.14 | AT45: 2017-07-01 | AU45: 341688.2013 | AV45: 154517.25 | AW45: =G$25*G45*(1-AW$28)/AW$33 -> 210695.1884 | AX45: 5628081.951 | AY45: 46942.36633 | AZ45: 21297.07938 | BA45: 19449.93229 | BB45: 568386.3601 | BC45: 569914.5375 | BD45: 232967.0538 | BE45: 298595.0171 | BF45: 2275783.052 | BG45: 0 | BH45: 0 | BI45: 0 | BJ45: 0 | BK45: 0 | BL45: 603076.583 | BM45: 1881527.792 | BN45: 5131412.144 | BO45: 0 | BP45: 20175.45833 | BQ45: 56128.54957 | BR45: 120712.5765 | BS45: 0 | BT45: 356.354 | BU45: 0 | BV45: 1126.227934 | BW45: 0 | BX45: 0 | BY45: 0 | BZ45: 0 | CA45: 0 | CB45: 0 | CC45: 0 | CD45: 6385913.549 | CE45: 0 | CF45: 0 | CG45: 0 | CH45: 156245.2562 | CI45: 24724992.48 | CJ45: 1608755.236 | CK45: 0.0705 | CL45: 8801339.296 | CM45: 35135087.01 | CN45: 0.1111074981
B46: 2017-08-01 | C46: Vermelha 1 | D46: 0.03 | E46: 9.49 | F46: 3.75 | G46: 380.6 | H46: 254.75 | I46: 20.78 | J46: 7.15 | K46: 392.23 | L46: 266.38 | M46: 34.21 | N46: 11.05 | O46: 393.96 | P46: 268.11 | Q46: 34.21 | R46: 11.05 | S46: 393.96 | T46: 268.11 | V46: 11.05 | W46: 1222.64 | X46: 268.11 | Z46: 11.05 | AA46: 1222.64 | AB46: 268.11 | AD46: 35.68 | AF46: 278.59 | AH46: 35.68 | AJ46: 278.59 | AN46: 494.14 | AR46: 494.14 | AT46: 2017-08-01 | AU46: 341688.2013 | AV46: 154517.25 | AW46: 210695.1884 | AX46: 5628081.951 | AY46: 46942.36633 | AZ46: 21297.07938 | BA46: 19449.93229 | BB46: 568386.3601 | BC46: 569914.5375 | BD46: 232967.0538 | BE46: 298595.0171 | BF46: 2275783.052 | BG46: 0 | BH46: 0 | BI46: 0 | BJ46: 0 | BK46: 0 | BL46: 603076.583 | BM46: 1881527.792 | BN46: 5131412.144 | BO46: 0 | BP46: 20175.45833 | BQ46: 56128.54957 | BR46: 120712.5765 | BS46: 0 | BT46: 356.354 | BU46: 0 | BV46: 1126.227934 | BW46: 0 | BX46: 0 | BY46: 0 | BZ46: 0 | CA46: 0 | CB46: 0 | CC46: 0 | CD46: 6385913.549 | CE46: 0 | CF46: 0 | CG46: 0 | CH46: 156245.2562 | CI46: 24724992.48 | CJ46: 2413132.853 | CK46: 0.0387 | CL46: 7596452.08 | CM46: 34734577.41 | CN46: -0.01139913495
B47: 2017-09-01 | C47: Amarela | D47: 0.02 | E47: 9.49 | F47: 3.75 | G47: 380.6 | H47: 254.75 | I47: 20.78 | J47: 7.15 | K47: 392.23 | L47: 266.38 | M47: 34.21 | N47: 11.05 | O47: 393.96 | P47: 268.11 | Q47: 34.21 | R47: 11.05 | S47: 393.96 | T47: 268.11 | V47: 11.05 | W47: 1222.64 | X47: 268.11 | Z47: 11.05 | AA47: 1222.64 | AB47: 268.11 | AD47: 35.68 | AF47: 278.59 | AH47: 35.68 | AJ47: 278.59 | AN47: 494.14 | AR47: 494.14 | AT47: 2017-09-01 | AU47: 341688.2013 | AV47: 154517.25 | AW47: 210695.1884 | AX47: 5628081.951 | AY47: 46942.36633 | AZ47: 21297.07938 | BA47: 19449.93229 | BB47: 568386.3601 | BC47: 569914.5375 | BD47: 232967.0538 | BE47: 298595.0171 | BF47: 2275783.052 | BG47: 0 | BH47: 0 | BI47: 0 | BJ47: 0 | BK47: 0 | BL47: 603076.583 | BM47: 1881527.792 | BN47: 5131412.144 | BO47: 0 | BP47: 20175.45833 | BQ47: 56128.54957 | BR47: 120712.5765 | BS47: 0 | BT47: 356.354 | BU47: 0 | BV47: 1126.227934 | BW47: 0 | BX47: 0 | BY47: 0 | BZ47: 0 | CA47: 0 | CB47: 0 | CC47: 0 | CD47: 6385913.549 | CE47: 0 | CF47: 0 | CG47: 0 | CH47: 156245.2562 | CI47: 24724992.48 | CJ47: 1608755.236 | CK47: 0.0387 | CL47: 7371292.238 | CM47: 33705039.95 | CN47: -0.02964013202
B48: 2017-10-01 | C48: Vermelha 2 | D48: 0.035 | E48: 9.49 | F48: 3.75 | G48: 380.6 | H48: 254.75 | I48: 20.78 | J48: 7.15 | K48: 392.23 | L48: 266.38 | M48: 34.21 | N48: 11.05 | O48: 393.96 | P48: 268.11 | Q48: 34.21 | R48: 11.05 | S48: 393.96 | T48: 268.11 | V48: 11.05 | W48: 1222.64 | X48: 268.11 | Z48: 11.05 | AA48: 1222.64 | AB48: 268.11 | AD48: 35.68 | AF48: 278.59 | AH48: 35.68 | AJ48: 278.59 | AN48: 494.14 | AR48: 494.14 | AT48: 2017-10-01 | AU48: 341688.2013 | AV48: 154517.25 | AW48: 210695.1884 | AX48: 5628081.951 | AY48: 46942.36633 | AZ48: 21297.07938 | BA48: 19449.93229 | BB48: 568386.3601 | BC48: 569914.5375 | BD48: 232967.0538 | BE48: 298595.0171 | BF48: 2275783.052 | BG48: 0 | BH48: 0 | BI48: 0 | BJ48: 0 | BK48: 0 | BL48: 603076.583 | BM48: 1881527.792 | BN48: 5131412.144 | BO48: 0 | BP48: 20175.45833 | BQ48: 56128.54957 | BR48: 120712.5765 | BS48: 0 | BT48: 356.354 | BU48: 0 | BV48: 1126.227934 | BW48: 0 | BX48: 0 | BY48: 0 | BZ48: 0 | CA48: 0 | CB48: 0 | CC48: 0 | CD48: 6385913.549 | CE48: 0 | CF48: 0 | CG48: 0 | CH48: 156245.2562 | CI48: 24724992.48 | CJ48: 2815321.662 | CK48: 0.0663 | CL48: 8999839.954 | CM48: 36540154.1 | CN48: 0.08411543635
B49: 2017-11-01 | C49: Vermelha 2 | D49: 0.05 | E49: 9.49 | F49: 3.75 | G49: 380.6 | H49: 254.75 | I49: 20.78 | J49: 7.15 | K49: 392.23 | L49: 266.38 | M49: 34.21 | N49: 11.05 | O49: 393.96 | P49: 268.11 | Q49: 34.21 | R49: 11.05 | S49: 393.96 | T49: 268.11 | V49: 11.05 | W49: 1222.64 | X49: 268.11 | Z49: 11.05 | AA49: 1222.64 | AB49: 268.11 | AD49: 35.68 | AF49: 278.59 | AH49: 35.68 | AJ49: 278.59 | AN49: 494.14 | AR49: 494.14 | AT49: 2017-11-01 | AU49: 341688.2013 | AV49: 154517.25 | AW49: 210695.1884 | AX49: 5628081.951 | AY49: 46942.36633 | AZ49: 21297.07938 | BA49: 19449.93229 | BB49: 568386.3601 | BC49: 569914.5375 | BD49: 232967.0538 | BE49: 298595.0171 | BF49: 2275783.052 | BG49: 0 | BH49: 0 | BI49: 0 | BJ49: 0 | BK49: 0 | BL49: 603076.583 | BM49: 1881527.792 | BN49: 5131412.144 | BO49: 0 | BP49: 20175.45833 | BQ49: 56128.54957 | BR49: 120712.5765 | BS49: 0 | BT49: 356.354 | BU49: 0 | BV49: 1126.227934 | BW49: 0 | BX49: 0 | BY49: 0 | BZ49: 0 | CA49: 0 | CB49: 0 | CC49: 0 | CD49: 6385913.549 | CE49: 0 | CF49: 0 | CG49: 0 | CH49: 156245.2562 | CI49: 24724992.48 | CJ49: 4021888.089 | CK49: 0.0771 | CL49: 9948610.841 | CM49: 38695491.41 | CN49: 0.05898544677
B50: 2017-12-01 | C50: Vermelha 1 | D50: 0.03 | E50: 9.49 | F50: 3.75 | G50: 380.6 | H50: 254.75 | I50: 20.78 | J50: 7.15 | K50: 392.23 | L50: 266.38 | M50: 34.21 | N50: 11.05 | O50: 393.96 | P50: 268.11 | Q50: 34.21 | R50: 11.05 | S50: 393.96 | T50: 268.11 | V50: 11.05 | W50: 1222.64 | X50: 268.11 | Z50: 11.05 | AA50: 1222.64 | AB50: 268.11 | AD50: 35.68 | AF50: 278.59 | AH50: 35.68 | AJ50: 278.59 | AN50: 494.14 | AR50: 494.14 | AT50: 2017-12-01 | AU50: 341688.2013 | AV50: 154517.25 | AW50: 210695.1884 | AX50: 5628081.951 | AY50: 46942.36633 | AZ50: 21297.07938 | BA50: 19449.93229 | BB50: 568386.3601 | BC50: 569914.5375 | BD50: 232967.0538 | BE50: 298595.0171 | BF50: 2275783.052 | BG50: 0 | BH50: 0 | BI50: 0 | BJ50: 0 | BK50: 0 | BL50: 603076.583 | BM50: 1881527.792 | BN50: 5131412.144 | BO50: 0 | BP50: 20175.45833 | BQ50: 56128.54957 | BR50: 120712.5765 | BS50: 0 | BT50: 356.354 | BU50: 0 | BV50: 1126.227934 | BW50: 0 | BX50: 0 | BY50: 0 | BZ50: 0 | CA50: 0 | CB50: 0 | CC50: 0 | CD50: 6385913.549 | CE50: 0 | CF50: 0 | CG50: 0 | CH50: 156245.2562 | CI50: 24724992.48 | CJ50: 2413132.853 | CK50: 0.063 | CL50: 8711445.781 | CM50: 35849571.11 | CN50: -0.07354656041
B51: 2018-01-01 | C51: Verde | D51: 0 | E51: 9.49 | F51: 3.75 | G51: 380.6 | H51: 254.75 | I51: 20.78 | J51: 7.15 | K51: 392.23 | L51: 266.38 | M51: 34.21 | N51: 11.05 | O51: 393.96 | P51: 268.11 | Q51: 34.21 | R51: 11.05 | S51: 393.96 | T51: 268.11 | V51: 11.05 | W51: 1222.64 | X51: 268.11 | Z51: 11.05 | AA51: 1222.64 | AB51: 268.11 | AD51: 35.68 | AF51: 278.59 | AH51: 35.68 | AJ51: 278.59 | AN51: 494.14 | AR51: 494.14 | AT51: 2018-01-01 | AU51: 341688.2013 | AV51: 154517.25 | AW51: 210695.1884 | AX51: 5628081.951 | AY51: 46942.36633 | AZ51: 21297.07938 | BA51: 19449.93229 | BB51: 568386.3601 | BC51: 569914.5375 | BD51: 232967.0538 | BE51: 298595.0171 | BF51: 2275783.052 | BG51: 0 | BH51: 0 | BI51: 0 | BJ51: 0 | BK51: 0 | BL51: 603076.583 | BM51: 1881527.792 | BN51: 5131412.144 | BO51: 0 | BP51: 20175.45833 | BQ51: 56128.54957 | BR51: 120712.5765 | BS51: 0 | BT51: 356.354 | BU51: 0 | BV51: 1126.227934 | BW51: 0 | BX51: 0 | BY51: 0 | BZ51: 0 | CA51: 0 | CB51: 0 | CC51: 0 | CD51: 6385913.549 | CE51: 0 | CF51: 0 | CG51: 0 | CH51: 156245.2562 | CI51: 24724992.48 | CJ51: 0 | CK51: 0.042 | CL51: 7055203.51 | CM51: 31780195.99 | CN51: -0.1135125191
B52: 2018-02-01 | C52: Verde | D52: 0 | E52: 9.49 | F52: 3.75 | G52: 380.6 | H52: 254.75 | I52: 20.78 | J52: 7.15 | K52: 392.23 | L52: 266.38 | M52: 34.21 | N52: 11.05 | O52: 393.96 | P52: 268.11 | Q52: 34.21 | R52: 11.05 | S52: 393.96 | T52: 268.11 | V52: 11.05 | W52: 1222.64 | X52: 268.11 | Z52: 11.05 | AA52: 1222.64 | AB52: 268.11 | AD52: 35.68 | AF52: 278.59 | AH52: 35.68 | AJ52: 278.59 | AN52: 494.14 | AR52: 494.14 | AT52: 2018-02-01 | AU52: 341688.2013 | AV52: 154517.25 | AW52: 210695.1884 | AX52: 5628081.951 | AY52: 46942.36633 | AZ52: 21297.07938 | BA52: 19449.93229 | BB52: 568386.3601 | BC52: 569914.5375 | BD52: 232967.0538 | BE52: 298595.0171 | BF52: 2275783.052 | BG52: 0 | BH52: 0 | BI52: 0 | BJ52: 0 | BK52: 0 | BL52: 603076.583 | BM52: 1881527.792 | BN52: 5131412.144 | BO52: 0 | BP52: 20175.45833 | BQ52: 56128.54957 | BR52: 120712.5765 | BS52: 0 | BT52: 356.354 | BU52: 0 | BV52: 1126.227934 | BW52: 0 | BX52: 0 | BY52: 0 | BZ52: 0 | CA52: 0 | CB52: 0 | CC52: 0 | CD52: 6385913.549 | CE52: 0 | CF52: 0 | CG52: 0 | CH52: 156245.2562 | CI52: 24724992.48 | CJ52: 0 | CK52: 0.0398 | CL52: 6965590.037 | CM52: 31690582.52 | CN52: -0.002819789797
B53: 2018-03-01 | C53: Verde | D53: 0 | E53: 9.49 | F53: 3.75 | G53: 380.6 | H53: 254.75 | I53: 20.78 | J53: 7.15 | K53: 392.23 | L53: 266.38 | M53: 34.21 | N53: 11.05 | O53: 393.96 | P53: 268.11 | Q53: 34.21 | R53: 11.05 | S53: 393.96 | T53: 268.11 | V53: 11.05 | W53: 1222.64 | X53: 268.11 | Z53: 11.05 | AA53: 1222.64 | AB53: 268.11 | AD53: 35.68 | AF53: 278.59 | AH53: 35.68 | AJ53: 278.59 | AN53: 494.14 | AR53: 494.14 | AT53: 2018-03-01 | AU53: 341688.2013 | AV53: 154517.25 | AW53: 210695.1884 | AX53: 5628081.951 | AY53: 46942.36633 | AZ53: 21297.07938 | BA53: 19449.93229 | BB53: 568386.3601 | BC53: 569914.5375 | BD53: 232967.0538 | BE53: 298595.0171 | BF53: 2275783.052 | BG53: 0 | BH53: 0 | BI53: 0 | BJ53: 0 | BK53: 0 | BL53: 603076.583 | BM53: 1881527.792 | BN53: 5131412.144 | BO53: 0 | BP53: 20175.45833 | BQ53: 56128.54957 | BR53: 120712.5765 | BS53: 0 | BT53: 356.354 | BU53: 0 | BV53: 1126.227934 | BW53: 0 | BX53: 0 | BY53: 0 | BZ53: 0 | CA53: 0 | CB53: 0 | CC53: 0 | CD53: 6385913.549 | CE53: 0 | CF53: 0 | CG53: 0 | CH53: 156245.2562 | CI53: 24724992.48 | CJ53: 0 | CK53: 0.0684 | CL53: 8171485.008 | CM53: 32896477.49 | CN53: 0.0380521554
B54: 2018-04-01 | C54: Verde | D54: 0 | E54: 9.49 | F54: 3.75 | G54: 380.6 | H54: 254.75 | I54: 20.78 | J54: 7.15 | K54: 392.23 | L54: 266.38 | M54: 34.21 | N54: 11.05 | O54: 393.96 | P54: 268.11 | Q54: 34.21 | R54: 11.05 | S54: 393.96 | T54: 268.11 | V54: 11.05 | W54: 1222.64 | X54: 268.11 | Z54: 11.05 | AA54: 1222.64 | AB54: 268.11 | AD54: 35.68 | AF54: 278.59 | AH54: 35.68 | AJ54: 278.59 | AN54: 494.14 | AR54: 494.14 | AT54: 2018-04-01 | AU54: 341688.2013 | AV54: 154517.25 | AW54: 210695.1884 | AX54: 5628081.951 | AY54: 46942.36633 | AZ54: 21297.07938 | BA54: 19449.93229 | BB54: 568386.3601 | BC54: 569914.5375 | BD54: 232967.0538 | BE54: 298595.0171 | BF54: 2275783.052 | BG54: 0 | BH54: 0 | BI54: 0 | BJ54: 0 | BK54: 0 | BL54: 603076.583 | BM54: 1881527.792 | BN54: 5131412.144 | BO54: 0 | BP54: 20175.45833 | BQ54: 56128.54957 | BR54: 120712.5765 | BS54: 0 | BT54: 356.354 | BU54: 0 | BV54: 1126.227934 | BW54: 0 | BX54: 0 | BY54: 0 | BZ54: 0 | CA54: 0 | CB54: 0 | CC54: 0 | CD54: 6385913.549 | CE54: 0 | CF54: 0 | CG54: 0 | CH54: 156245.2562 | CI54: 24724992.48 | CJ54: 0 | CK54: 0.067 | CL54: 8110322.898 | CM54: 32835315.38 | CN54: -0.001859229748
B55: 2018-05-01 | C55: Amarela | D55: 0.01 | E55: 9.49 | F55: 3.75 | G55: 380.6 | H55: 254.75 | I55: 20.78 | J55: 7.15 | K55: 392.23 | L55: 266.38 | M55: 34.21 | N55: 11.05 | O55: 393.96 | P55: 268.11 | Q55: 34.21 | R55: 11.05 | S55: 393.96 | T55: 268.11 | V55: 11.05 | W55: 1222.64 | X55: 268.11 | Z55: 11.05 | AA55: 1222.64 | AB55: 268.11 | AD55: 35.68 | AF55: 278.59 | AH55: 35.68 | AJ55: 278.59 | AN55: 494.14 | AR55: 494.14 | AT55: 2018-05-01 | AU55: 341688.2013 | AV55: 154517.25 | AW55: 210695.1884 | AX55: 5628081.951 | AY55: 46942.36633 | AZ55: 21297.07938 | BA55: 19449.93229 | BB55: 568386.3601 | BC55: 569914.5375 | BD55: 232967.0538 | BE55: 298595.0171 | BF55: 2275783.052 | BG55: 0 | BH55: 0 | BI55: 0 | BJ55: 0 | BK55: 0 | BL55: 603076.583 | BM55: 1881527.792 | BN55: 5131412.144 | BO55: 0 | BP55: 20175.45833 | BQ55: 56128.54957 | BR55: 120712.5765 | BS55: 0 | BT55: 356.354 | BU55: 0 | BV55: 1126.227934 | BW55: 0 | BX55: 0 | BY55: 0 | BZ55: 0 | CA55: 0 | CB55: 0 | CC55: 0 | CD55: 6385913.549 | CE55: 0 | CF55: 0 | CG55: 0 | CH55: 156245.2562 | CI55: 24724992.48 | CJ55: 804377.6178 | CK55: 0.0355 | CL55: 7012848 | CM55: 32542218.1 | CN55: -0.008926281878
B56: 2018-06-01 | C56: Vermelha 2 | D56: 0.05 | E56: 9.82 | F56: 4.21 | G56: 459.59 | H56: 304.88 | I56: 21.156 | J56: 7.71 | K56: 470.58 | L56: 315.87 | M56: 44.28 | N56: 14.59 | O56: 477.53 | P56: 322.82 | Q56: 44.28 | R56: 14.59 | S56: 477.53 | T56: 322.82 | V56: 14.59 | W56: 1543.33 | X56: 322.82 | Z56: 14.59 | AA56: 1543.33 | AB56: 322.82 | AD56: 46.47 | AF56: 335.71 | AH56: 46.47 | AJ56: 335.71 | AN56: 586.84 | AR56: 586.84 | AT56: 2018-06-01 | AU56: 353569.8774 | AV56: 173471.366 | AW56: 254423.0206 | AX56: 6735582.435 | AY56: 47791.7566 | AZ56: 22965.10237 | BA56: 23335.15829 | BB56: 673985.2825 | BC56: 737673.6546 | BD56: 307600.8429 | BE56: 361935.4212 | BF56: 2740174.871 | BG56: 0 | BH56: 0 | BI56: 0 | BJ56: 0 | BK56: 0 | BL56: 796279.3978 | BM56: 2375039.495 | BN56: 6178518.027 | BO56: 0 | BP56: 26638.90833 | BQ56: 70850.6792 | BR56: 145344.9477 | BS56: 0 | BT56: 464.119125 | BU56: 0 | BV56: 1357.141246 | BW56: 0 | BX56: 0 | BY56: 0 | BZ56: 0 | CA56: 0 | CB56: 0 | CC56: 0 | CD56: 7583902.35 | CE56: 0 | CF56: 0 | CG56: 0 | CH56: 185556.6563 | CI56: 29796460.51 | CJ56: 4021888.089 | CK56: 0.0246 | CL56: 8699062.262 | CM56: 42517410.86 | CN56: 0.3065308189
B57: 2018-07-01 | C57: Vermelha 2 | D57: 0.05 | E57: 9.82 | F57: 4.21 | G57: 459.59 | H57: 304.88 | I57: 21.156 | J57: 7.71 | K57: 470.58 | L57: 315.87 | M57: 44.28 | N57: 14.59 | O57: 477.53 | P57: 322.82 | Q57: 44.28 | R57: 14.59 | S57: 477.53 | T57: 322.82 | V57: 14.59 | W57: 1543.33 | X57: 322.82 | Z57: 14.59 | AA57: 1543.33 | AB57: 322.82 | AD57: 46.47 | AF57: 335.71 | AH57: 46.47 | AJ57: 335.71 | AN57: 586.84 | AR57: 586.84 | AT57: 2018-07-01 | AU57: 353569.8774 | AV57: 173471.366 | AW57: 254423.0206 | AX57: 6735582.435 | AY57: 47791.7566 | AZ57: 22965.10237 | BA57: 23335.15829 | BB57: 673985.2825 | BC57: 737673.6546 | BD57: 307600.8429 | BE57: 361935.4212 | BF57: 2740174.871 | BG57: 0 | BH57: 0 | BI57: 0 | BJ57: 0 | BK57: 0 | BL57: 796279.3978 | BM57: 2375039.495 | BN57: 6178518.027 | BO57: 0 | BP57: 26638.90833 | BQ57: 70850.6792 | BR57: 145344.9477 | BS57: 0 | BT57: 464.119125 | BU57: 0 | BV57: 1357.141246 | BW57: 0 | BX57: 0 | BY57: 0 | BZ57: 0 | CA57: 0 | CB57: 0 | CC57: 0 | CD57: 7583902.35 | CE57: 0 | CF57: 0 | CG57: 0 | CH57: 185556.6563 | CI57: 29796460.51 | CJ57: 4021888.089 | CK57: 0.0722 | CL57: 11405439.31 | CM57: 45223787.91 | CN57: 0.06365338326
B58: 2018-08-01 | C58: Vermelha 2 | D58: 0.05 | E58: 9.82 | F58: 4.21 | G58: 459.59 | H58: 304.88 | I58: 21.156 | J58: 7.71 | K58: 470.58 | L58: 315.87 | M58: 44.28 | N58: 14.59 | O58: 477.53 | P58: 322.82 | Q58: 44.28 | R58: 14.59 | S58: 477.53 | T58: 322.82 | V58: 14.59 | W58: 1543.33 | X58: 322.82 | Z58: 14.59 | AA58: 1543.33 | AB58: 322.82 | AD58: 46.47 | AF58: 335.71 | AH58: 46.47 | AJ58: 335.71 | AN58: 586.84 | AR58: 586.84 | AT58: 2018-08-01 | AU58: 353569.8774 | AV58: 173471.366 | AW58: 254423.0206 | AX58: 6735582.435 | AY58: 47791.7566 | AZ58: 22965.10237 | BA58: 23335.15829 | BB58: 673985.2825 | BC58: 737673.6546 | BD58: 307600.8429 | BE58: 361935.4212 | BF58: 2740174.871 | BG58: 0 | BH58: 0 | BI58: 0 | BJ58: 0 | BK58: 0 | BL58: 796279.3978 | BM58: 2375039.495 | BN58: 6178518.027 | BO58: 0 | BP58: 26638.90833 | BQ58: 70850.6792 | BR58: 145344.9477 | BS58: 0 | BT58: 464.119125 | BU58: 0 | BV58: 1357.141246 | BW58: 0 | BX58: 0 | BY58: 0 | BZ58: 0 | CA58: 0 | CB58: 0 | CC58: 0 | CD58: 7583902.35 | CE58: 0 | CF58: 0 | CG58: 0 | CH58: 185556.6563 | CI58: 29796460.51 | CJ58: 4021888.089 | CK58: 0.0899 | CL58: 12501811.1 | CM58: 46320159.7 | CN58: 0.02424325435
B59: 2018-09-01 | C59: Vermelha 2 | D59: 0.05 | E59: 9.82 | F59: 4.21 | G59: 459.59 | H59: 304.88 | I59: 21.156 | J59: 7.71 | K59: 470.58 | L59: 315.87 | M59: 44.28 | N59: 14.59 | O59: 477.53 | P59: 322.82 | Q59: 44.28 | R59: 14.59 | S59: 477.53 | T59: 322.82 | V59: 14.59 | W59: 1543.33 | X59: 322.82 | Z59: 14.59 | AA59: 1543.33 | AB59: 322.82 | AD59: 46.47 | AF59: 335.71 | AH59: 46.47 | AJ59: 335.71 | AN59: 586.84 | AR59: 586.84 | AT59: 2018-09-01 | AU59: 353569.8774 | AV59: 173471.366 | AW59: 254423.0206 | AX59: 6735582.435 | AY59: 47791.7566 | AZ59: 22965.10237 | BA59: 23335.15829 | BB59: 673985.2825 | BC59: 737673.6546 | BD59: 307600.8429 | BE59: 361935.4212 | BF59: 2740174.871 | BG59: 0 | BH59: 0 | BI59: 0 | BJ59: 0 | BK59: 0 | BL59: 796279.3978 | BM59: 2375039.495 | BN59: 6178518.027 | BO59: 0 | BP59: 26638.90833 | BQ59: 70850.6792 | BR59: 145344.9477 | BS59: 0 | BT59: 464.119125 | BU59: 0 | BV59: 1357.141246 | BW59: 0 | BX59: 0 | BY59: 0 | BZ59: 0 | CA59: 0 | CB59: 0 | CC59: 0 | CD59: 7583902.35 | CE59: 0 | CF59: 0 | CG59: 0 | CH59: 185556.6563 | CI59: 29796460.51 | CJ59: 4021888.089 | CK59: 0.04 | CL59: 9538508.579 | CM59: 43356857.18 | CN59: -0.06397435897
B60: 2018-10-01 | C60: Vermelha 2 | D60: 0.05 | E60: 9.82 | F60: 4.21 | G60: 459.59 | H60: 304.88 | I60: 21.156 | J60: 7.71 | K60: 470.58 | L60: 315.87 | M60: 44.28 | N60: 14.59 | O60: 477.53 | P60: 322.82 | Q60: 44.28 | R60: 14.59 | S60: 477.53 | T60: 322.82 | V60: 14.59 | W60: 1543.33 | X60: 322.82 | Z60: 14.59 | AA60: 1543.33 | AB60: 322.82 | AD60: 46.47 | AF60: 335.71 | AH60: 46.47 | AJ60: 335.71 | AN60: 586.84 | AR60: 586.84 | AT60: 2018-10-01 | AU60: 353569.8774 | AV60: 173471.366 | AW60: 254423.0206 | AX60: 6735582.435 | AY60: 47791.7566 | AZ60: 22965.10237 | BA60: 23335.15829 | BB60: 673985.2825 | BC60: 737673.6546 | BD60: 307600.8429 | BE60: 361935.4212 | BF60: 2740174.871 | BG60: 0 | BH60: 0 | BI60: 0 | BJ60: 0 | BK60: 0 | BL60: 796279.3978 | BM60: 2375039.495 | BN60: 6178518.027 | BO60: 0 | BP60: 26638.90833 | BQ60: 70850.6792 | BR60: 145344.9477 | BS60: 0 | BT60: 464.119125 | BU60: 0 | BV60: 1357.141246 | BW60: 0 | BX60: 0 | BY60: 0 | BZ60: 0 | CA60: 0 | CB60: 0 | CC60: 0 | CD60: 7583902.35 | CE60: 0 | CF60: 0 | CG60: 0 | CH60: 185556.6563 | CI60: 29796460.51 | CJ60: 4021888.089 | CK60: 0.0251 | CL60: 8725806.136 | CM60: 42544154.73 | CN60: -0.01874449616
B61: 2018-11-01 | C61: Amarela | D61: 0.01 | E61: 9.82 | F61: 4.21 | G61: 459.59 | H61: 304.88 | I61: 21.156 | J61: 7.71 | K61: 470.58 | L61: 315.87 | M61: 44.28 | N61: 14.59 | O61: 477.53 | P61: 322.82 | Q61: 44.28 | R61: 14.59 | S61: 477.53 | T61: 322.82 | V61: 14.59 | W61: 1543.33 | X61: 322.82 | Z61: 14.59 | AA61: 1543.33 | AB61: 322.82 | AD61: 46.47 | AF61: 335.71 | AH61: 46.47 | AJ61: 335.71 | AN61: 586.84 | AR61: 586.84 | AT61: 2018-11-01 | AU61: 353569.8774 | AV61: 173471.366 | AW61: 254423.0206 | AX61: 6735582.435 | AY61: 47791.7566 | AZ61: 22965.10237 | BA61: 23335.15829 | BB61: 673985.2825 | BC61: 737673.6546 | BD61: 307600.8429 | BE61: 361935.4212 | BF61: 2740174.871 | BG61: 0 | BH61: 0 | BI61: 0 | BJ61: 0 | BK61: 0 | BL61: 796279.3978 | BM61: 2375039.495 | BN61: 6178518.027 | BO61: 0 | BP61: 26638.90833 | BQ61: 70850.6792 | BR61: 145344.9477 | BS61: 0 | BT61: 464.119125 | BU61: 0 | BV61: 1357.141246 | BW61: 0 | BX61: 0 | BY61: 0 | BZ61: 0 | CA61: 0 | CB61: 0 | CC61: 0 | CD61: 7583902.35 | CE61: 0 | CF61: 0 | CG61: 0 | CH61: 185556.6563 | CI61: 29796460.51 | CJ61: 804377.6178 | CK61: 0.0567 | CL61: 9489346.764 | CM61: 40090184.89 | CN61: -0.05768054057
B62: 2018-12-01 | C62: Verde | D62: 0 | E62: 9.82 | F62: 4.21 | G62: 459.59 | H62: 304.88 | I62: 21.156 | J62: 7.71 | K62: 470.58 | L62: 315.87 | M62: 44.28 | N62: 14.59 | O62: 477.53 | P62: 322.82 | Q62: 44.28 | R62: 14.59 | S62: 477.53 | T62: 322.82 | V62: 14.59 | W62: 1543.33 | X62: 322.82 | Z62: 14.59 | AA62: 1543.33 | AB62: 322.82 | AD62: 46.47 | AF62: 335.71 | AH62: 46.47 | AJ62: 335.71 | AN62: 586.84 | AR62: 586.84 | AT62: 2018-12-01 | AU62: 353569.8774 | AV62: 173471.366 | AW62: 254423.0206 | AX62: 6735582.435 | AY62: 47791.7566 | AZ62: 22965.10237 | BA62: 23335.15829 | BB62: 673985.2825 | BC62: 737673.6546 | BD62: 307600.8429 | BE62: 361935.4212 | BF62: 2740174.871 | BG62: 0 | BH62: 0 | BI62: 0 | BJ62: 0 | BK62: 0 | BL62: 796279.3978 | BM62: 2375039.495 | BN62: 6178518.027 | BO62: 0 | BP62: 26638.90833 | BQ62: 70850.6792 | BR62: 145344.9477 | BS62: 0 | BT62: 464.119125 | BU62: 0 | BV62: 1357.141246 | BW62: 0 | BX62: 0 | BY62: 0 | BZ62: 0 | CA62: 0 | CB62: 0 | CC62: 0 | CD62: 7583902.35 | CE62: 0 | CF62: 0 | CG62: 0 | CH62: 185556.6563 | CI62: =SUM(AU62:CH62) -> 29796460.51 | CJ62: 0 | CK62: 0.0804 | CL62: 10490803.57 | CM62: 40287264.07 | CN62: 0.0049158961
B63: 2019-01-01 | C63: Verde | D63: 0 | E63: 9.82 | F63: 4.21 | G63: 459.59 | H63: 304.88 | I63: 21.156 | J63: 7.71 | K63: 470.58 | L63: 315.87 | M63: 44.28 | N63: 14.59 | O63: 477.53 | P63: 322.82 | Q63: 44.28 | R63: 14.59 | S63: 477.53 | T63: 322.82 | V63: 14.59 | W63: 1543.33 | X63: 322.82 | Z63: 14.59 | AA63: 1543.33 | AB63: 322.82 | AD63: 46.47 | AF63: 335.71 | AH63: 46.47 | AJ63: 335.71 | AN63: 586.84 | AR63: 586.84 | AT63: 2019-01-01 | AU63: 353569.8774 | AV63: 173471.366 | AW63: 254423.0206 | AX63: 6735582.435 | AY63: 47791.7566 | AZ63: 22965.10237 | BA63: 23335.15829 | BB63: 673985.2825 | BC63: 737673.6546 | BD63: 307600.8429 | BE63: 361935.4212 | BF63: 2740174.871 | BG63: 0 | BH63: 0 | BI63: 0 | BJ63: 0 | BK63: 0 | BL63: 796279.3978 | BM63: 2375039.495 | BN63: 6178518.027 | BO63: 0 | BP63: 26638.90833 | BQ63: 70850.6792 | BR63: 145344.9477 | BS63: 0 | BT63: 464.119125 | BU63: 0 | BV63: 1357.141246 | BW63: 0 | BX63: 0 | BY63: 0 | BZ63: 0 | CA63: 0 | CB63: 0 | CC63: 0 | CD63: 7583902.35 | CE63: 0 | CF63: 0 | CG63: 0 | CH63: 185556.6563 | CI63: 29796460.51 | CJ63: 0 | CK63: 0.0731 | CL63: 10097046.67 | CM63: 39893507.18 | CN63: -0.009773731423
B64: 2019-02-01 | C64: Verde | D64: 0 | E64: 9.82 | F64: 4.21 | G64: 459.59 | H64: 304.88 | I64: 21.156 | J64: 7.71 | K64: 470.58 | L64: 315.87 | M64: 44.28 | N64: 14.59 | O64: 477.53 | P64: 322.82 | Q64: 44.28 | R64: 14.59 | S64: 477.53 | T64: 322.82 | V64: 14.59 | W64: 1543.33 | X64: 322.82 | Z64: 14.59 | AA64: 1543.33 | AB64: 322.82 | AD64: 46.47 | AF64: 335.71 | AH64: 46.47 | AJ64: 335.71 | AN64: 586.84 | AR64: 586.84 | AT64: 2019-02-01 | AU64: 353569.8774 | AV64: 173471.366 | AW64: 254423.0206 | AX64: 6735582.435 | AY64: 47791.7566 | AZ64: 22965.10237 | BA64: 23335.15829 | BB64: 673985.2825 | BC64: 737673.6546 | BD64: 307600.8429 | BE64: 361935.4212 | BF64: 2740174.871 | BG64: 0 | BH64: 0 | BI64: 0 | BJ64: 0 | BK64: 0 | BL64: 796279.3978 | BM64: 2375039.495 | BN64: 6178518.027 | BO64: 0 | BP64: 26638.90833 | BQ64: 70850.6792 | BR64: 145344.9477 | BS64: 0 | BT64: 464.119125 | BU64: 0 | BV64: 1357.141246 | BW64: 0 | BX64: 0 | BY64: 0 | BZ64: 0 | CA64: 0 | CB64: 0 | CC64: 0 | CD64: 7583902.35 | CE64: 0 | CF64: 0 | CG64: 0 | CH64: 185556.6563 | CI64: 29796460.51 | CJ64: 0 | CK64: 0.0873 | CL64: 10870197.75 | CM64: 40666658.26 | CN64: 0.01938037396
B65: 2019-03-01 | C65: Verde | D65: 0 | E65: 9.82 | F65: 4.21 | G65: 459.59 | H65: 304.88 | I65: 21.156 | J65: 7.71 | K65: 470.58 | L65: 315.87 | M65: 44.28 | N65: 14.59 | O65: 477.53 | P65: 322.82 | Q65: 44.28 | R65: 14.59 | S65: 477.53 | T65: 322.82 | V65: 14.59 | W65: 1543.33 | X65: 322.82 | Z65: 14.59 | AA65: 1543.33 | AB65: 322.82 | AD65: 46.47 | AF65: 335.71 | AH65: 46.47 | AJ65: 335.71 | AN65: 586.84 | AR65: 586.84 | AT65: 2019-03-01 | AU65: 353569.8774 | AV65: 173471.366 | AW65: 254423.0206 | AX65: 6735582.435 | AY65: 47791.7566 | AZ65: 22965.10237 | BA65: 23335.15829 | BB65: 673985.2825 | BC65: 737673.6546 | BD65: 307600.8429 | BE65: 361935.4212 | BF65: 2740174.871 | BG65: 0 | BH65: 0 | BI65: 0 | BJ65: 0 | BK65: 0 | BL65: 796279.3978 | BM65: 2375039.495 | BN65: 6178518.027 | BO65: 0 | BP65: 26638.90833 | BQ65: 70850.6792 | BR65: 145344.9477 | BS65: 0 | BT65: 464.119125 | BU65: 0 | BV65: 1357.141246 | BW65: 0 | BX65: 0 | BY65: 0 | BZ65: 0 | CA65: 0 | CB65: 0 | CC65: 0 | CD65: 7583902.35 | CE65: 0 | CF65: 0 | CG65: 0 | CH65: 185556.6563 | CI65: 29796460.51 | CJ65: 0 | CK65: 0.041 | CL65: 8453167.872 | CM65: 38249628.38 | CN65: -0.0594351733
B66: 2019-04-01 | C66: Verde | D66: 0 | E66: 9.82 | F66: 4.21 | G66: 459.59 | H66: 304.88 | I66: 21.156 | J66: 7.71 | K66: 470.58 | L66: 315.87 | M66: 44.28 | N66: 14.59 | O66: 477.53 | P66: 322.82 | Q66: 44.28 | R66: 14.59 | S66: 477.53 | T66: 322.82 | V66: 14.59 | W66: 1543.33 | X66: 322.82 | Z66: 14.59 | AA66: 1543.33 | AB66: 322.82 | AD66: 46.47 | AF66: 335.71 | AH66: 46.47 | AJ66: 335.71 | AN66: 586.84 | AR66: 586.84 | AT66: 2019-04-01 | AU66: 353569.8774 | AV66: 173471.366 | AW66: 254423.0206 | AX66: 6735582.435 | AY66: 47791.7566 | AZ66: 22965.10237 | BA66: 23335.15829 | BB66: 673985.2825 | BC66: 737673.6546 | BD66: 307600.8429 | BE66: 361935.4212 | BF66: 2740174.871 | BG66: 0 | BH66: 0 | BI66: 0 | BJ66: 0 | BK66: 0 | BL66: 796279.3978 | BM66: 2375039.495 | BN66: 6178518.027 | BO66: 0 | BP66: 26638.90833 | BQ66: 70850.6792 | BR66: 145344.9477 | BS66: 0 | BT66: 464.119125 | BU66: 0 | BV66: 1357.141246 | BW66: 0 | BX66: 0 | BY66: 0 | BZ66: 0 | CA66: 0 | CB66: 0 | CC66: 0 | CD66: 7583902.35 | CE66: 0 | CF66: 0 | CG66: 0 | CH66: 185556.6563 | CI66: 29796460.51 | CJ66: 0 | CK66: 0.0415 | CL66: 8477734.108 | CM66: 38274194.62 | CN66: 0.0006422607579
B67: 2019-05-01 | C67: Amarela | D67: 0.01 | E67: 9.82 | F67: 4.21 | G67: 459.59 | H67: 304.88 | I67: 21.156 | J67: 7.71 | K67: 470.58 | L67: 315.87 | M67: 44.28 | N67: 14.59 | O67: 477.53 | P67: 322.82 | Q67: 44.28 | R67: 14.59 | S67: 477.53 | T67: 322.82 | V67: 14.59 | W67: 1543.33 | X67: 322.82 | Z67: 14.59 | AA67: 1543.33 | AB67: 322.82 | AD67: 46.47 | AF67: 335.71 | AH67: 46.47 | AJ67: 335.71 | AN67: 586.84 | AR67: 586.84 | AT67: 2019-05-01 | AU67: 353569.8774 | AV67: 173471.366 | AW67: 254423.0206 | AX67: 6735582.435 | AY67: 47791.7566 | AZ67: 22965.10237 | BA67: 23335.15829 | BB67: 673985.2825 | BC67: 737673.6546 | BD67: 307600.8429 | BE67: 361935.4212 | BF67: 2740174.871 | BG67: 0 | BH67: 0 | BI67: 0 | BJ67: 0 | BK67: 0 | BL67: 796279.3978 | BM67: 2375039.495 | BN67: 6178518.027 | BO67: 0 | BP67: 26638.90833 | BQ67: 70850.6792 | BR67: 145344.9477 | BS67: 0 | BT67: 464.119125 | BU67: 0 | BV67: 1357.141246 | BW67: 0 | BX67: 0 | BY67: 0 | BZ67: 0 | CA67: 0 | CB67: 0 | CC67: 0 | CD67: 7583902.35 | CE67: 0 | CF67: 0 | CG67: 0 | CH67: 185556.6563 | CI67: 29796460.51 | CJ67: 804377.6178 | CK67: 0.037 | CL67: 8480692.048 | CM67: 39081530.18 | CN67: 0.02109346953
B68: 2019-06-01 | C68: Verde | D68: 0 | E68: 9.81 | F68: 3.7 | G68: 510.05 | H68: 332.46 | I68: 20.16 | J68: 6.68 | K68: 522.19 | L68: 344.6 | M68: 43.85 | N68: 13.95 | O68: 534.25 | P68: 356.66 | Q68: 43.85 | R68: 13.95 | S68: 534.25 | T68: 356.66 | V68: 13.95 | W68: 1599.69 | X68: 356.66 | Z68: 13.95 | AA68: 1599.69 | AB68: 356.66 | AD68: 45.52 | AE68: 0 | AF68: 371.46 | AG68: 0 | AH68: 45.52 | AI68: 0 | AJ68: 371.46 | AN68: 628.33 | AR68: 628.33 | AT68: 2019-06-01 | AU68: =E$25*E68*(1-AU$29)/AU$33 -> 365676.0558 | AV68: =F$25*F68*(1-AV$29)/AV$33 -> 157837.856 | AW68: =G$25*G68*(1-AW$29)/AW$33 -> 292322.5593 | AX68: =H$25*H68*(1-AX$29)/AX$33 -> 7604127.093 | AY68: =I$25*I68*(1-AY$29)/AY$33 -> 47149.1328 | AZ68: =J$25*J68*(1-AZ$29)/AZ$33 -> 20599.3832 | BA68: =K$25*K68*(1-BA$29)/BA$33 -> 26808.31903 | BB68: =L$25*L68*(1-BB$29)/BB$33 -> 761239.039 | BC68: =M$25*M68*(1-BC$29)/BC$33 -> 756292.8684 | BD68: =N$25*N68*(1-BD$29)/BD$33 -> 304488.0013 | BE68: =O$25*O68*(1-BE$29)/BE$33 -> 419216.8251 | BF68: =P$25*P68*(1-BF$29)/BF$33 -> 3134267.055 | BG68: =Q$25*Q68*(1-BG$29)/BG$33 -> 0 | BH68: =R$25*R68*(1-BH$29)/BH$33 -> 0 | BI68: =S$25*S68*(1-BI$29)/BI$33 -> 0 | BJ68: =T$25*T68*(1-BJ$29)/BJ$33 -> 0 | BK68: =U$25*U68*(1-BK$29)/BK$33 -> 0 | BL68: =V$25*V68*(1-BL$29)/BL$33 -> 788221.2545 | BM68: =W$25*W68*(1-BM$29)/BM$33 -> 2548658.304 | BN68: =X$25*X68*(1-BN$29)/BN$33 -> 7067113.018 | BO68: =Y$25*Y68*(1-BO$29)/BO$33 -> 0 | BP68: =Z$25*Z68*(1-BP$29)/BP$33 -> 25470.375 | BQ68: =AA$25*AA68*(1-BQ$29)/BQ$33 -> 73438.03529 | BR68: =AB$25*AB68*(1-BR$29)/BR$33 -> 160580.909 | BS68: =AC$25*AC68*(1-BS$29)/BS$33 -> 0 | BT68: =AD$25*AD68*(1-BT$29)/BT$33 -> 470.6768 | BU68: =AE$25*AE68*(1-BU$29)/BU$33 -> 0 | BV68: =AF$25*AF68*(1-BV$29)/BV$33 -> 1554.664109 | BW68: =AG$25*AG68*(1-BW$29)/BW$33 -> 0 | BX68: =AH$25*AH68*(1-BX$29)/BX$33 -> 0 | BY68: =AI$25*AI68*(1-BY$29)/BY$33 -> 0 | BZ68: =AJ$25*AJ68*(1-BZ$29)/BZ$33 -> 0 | CA68: =AK$25*AK68*(1-CA$29)/CA$33 -> 0 | CB68: =AL$25*AL68*(1-CB$29)/CB$33 -> 0 | CC68: =AM$25*AM68*(1-CC$29)/CC$33 -> 0 | CD68: =AN$25*AN68*(1-CD$29)/CD$33 -> 8406680.967 | CE68: =AO$25*AO68*(1-CE$29)/CE$33 -> 0 | CF68: =AP$25*AP68*(1-CF$29)/CF$33 -> 0 | CG68: =AQ$25*AQ68*(1-CG$29)/CG$33 -> 0 | CH68: =AR$25*AR68*(1-CH$29)/CH$33 -> 198675.6421 | CI68: 33160888.03 | CJ68: 0 | CK68: 0.0324 | CL68: 8942829.632 | CM68: 42103717.67 | CN68: 0.07733032657
B69: 2019-07-01 | C69: Amarela | D69: 0.015 | E69: 9.81 | F69: 3.7 | G69: 510.05 | H69: 332.46 | I69: 20.16 | J69: 6.68 | K69: 522.19 | L69: 344.6 | M69: 43.85 | N69: 13.95 | O69: 534.25 | P69: 356.66 | Q69: 43.85 | R69: 13.95 | S69: 534.25 | T69: 356.66 | V69: 13.95 | W69: 1599.69 | X69: 356.66 | Z69: 13.95 | AA69: 1599.69 | AB69: 356.66 | AD69: 45.52 | AF69: 371.46 | AH69: 45.52 | AJ69: 371.46 | AN69: 628.33 | AR69: 628.33 | AT69: 2019-07-01 | AU69: 365676.0558 | AV69: 157837.856 | AW69: 292322.5593 | AX69: 7604127.093 | AY69: 47149.1328 | AZ69: 20599.3832 | BA69: 26808.31903 | BB69: 761239.039 | BC69: 756292.8684 | BD69: 304488.0013 | BE69: 419216.8251 | BF69: 3134267.055 | BG69: 0 | BH69: 0 | BI69: 0 | BJ69: 0 | BK69: 0 | BL69: 788221.2545 | BM69: 2548658.304 | BN69: 7067113.018 | BO69: 0 | BP69: 25470.375 | BQ69: 73438.03529 | BR69: 160580.909 | BS69: 0 | BT69: 470.6768 | BU69: 0 | BV69: 1554.664109 | BW69: 0 | BX69: 0 | BY69: 0 | BZ69: 0 | CA69: 0 | CB69: 0 | CC69: 0 | CD69: 8406680.967 | CE69: 0 | CF69: 0 | CG69: 0 | CH69: 198675.6421 | CI69: 33160888.03 | CJ69: 1206566.427 | CK69: 0.06802776178 | CL69: =(1/((1-CK69)*(1-$CL$33))-1)*(CI69+CJ69) -> 10603337.71 | CM69: 44970792.17 | CN69: 0.06809551885
B70: 2019-08-01 | C70: Vermelha 1 | D70: 0.015 | E70: 9.81 | F70: 3.7 | G70: 510.05 | H70: 332.46 | I70: 20.16 | J70: 6.68 | K70: 522.19 | L70: 344.6 | M70: 43.85 | N70: 13.95 | O70: 534.25 | P70: 356.66 | Q70: 43.85 | R70: 13.95 | S70: 534.25 | T70: 356.66 | V70: 13.95 | W70: 1599.69 | X70: 356.66 | Z70: 13.95 | AA70: 1599.69 | AB70: 356.66 | AD70: 45.52 | AF70: 371.46 | AH70: 45.52 | AJ70: 371.46 | AN70: 628.33 | AR70: 628.33 | AT70: 2019-08-01 | AU70: 365676.0558 | AV70: 157837.856 | AW70: 292322.5593 | AX70: 7604127.093 | AY70: 47149.1328 | AZ70: 20599.3832 | BA70: 26808.31903 | BB70: 761239.039 | BC70: 756292.8684 | BD70: 304488.0013 | BE70: 419216.8251 | BF70: 3134267.055 | BG70: 0 | BH70: 0 | BI70: 0 | BJ70: 0 | BK70: 0 | BL70: 788221.2545 | BM70: 2548658.304 | BN70: 7067113.018 | BO70: 0 | BP70: 25470.375 | BQ70: 73438.03529 | BR70: 160580.909 | BS70: 0 | BT70: 470.6768 | BU70: 0 | BV70: 1554.664109 | BW70: 0 | BX70: 0 | BY70: 0 | BZ70: 0 | CA70: 0 | CB70: 0 | CC70: 0 | CD70: 8406680.967 | CE70: 0 | CF70: 0 | CG70: 0 | CH70: 198675.6421 | CI70: 33160888.03 | CJ70: 1206566.427 | CK70: 0.0704 | CL70: 10718098.28 | CM70: 45085552.74 | CN70: 0.002551891375
B71: 2019-09-01 | C71: Vermelha 1 | D71: 0.015 | E71: 9.81 | F71: 3.7 | G71: 510.05 | H71: 332.46 | I71: 20.16 | J71: 6.68 | K71: 522.19 | L71: 344.6 | M71: 43.85 | N71: 13.95 | O71: 534.25 | P71: 356.66 | Q71: 43.85 | R71: 13.95 | S71: 534.25 | T71: 356.66 | V71: 13.95 | W71: 1599.69 | X71: 356.66 | Z71: 13.95 | AA71: 1599.69 | AB71: 356.66 | AD71: 45.52 | AF71: 371.46 | AH71: 45.52 | AJ71: 371.46 | AN71: 628.33 | AR71: 628.33 | AT71: 2019-09-01 | AU71: 365676.0558 | AV71: 157837.856 | AW71: 292322.5593 | AX71: 7604127.093 | AY71: 47149.1328 | AZ71: 20599.3832 | BA71: 26808.31903 | BB71: 761239.039 | BC71: 756292.8684 | BD71: 304488.0013 | BE71: 419216.8251 | BF71: 3134267.055 | BG71: 0 | BH71: 0 | BI71: 0 | BJ71: 0 | BK71: 0 | BL71: 788221.2545 | BM71: 2548658.304 | BN71: 7067113.018 | BO71: 0 | BP71: 25470.375 | BQ71: 73438.03529 | BR71: 160580.909 | BS71: 0 | BT71: 470.6768 | BU71: 0 | BV71: 1554.664109 | BW71: 0 | BX71: 0 | BY71: 0 | BZ71: 0 | CA71: 0 | CB71: 0 | CC71: 0 | CD71: 8406680.967 | CE71: 0 | CF71: 0 | CG71: 0 | CH71: 198675.6421 | CI71: 33160888.03 | CJ71: =SUMIF($E$12:$AR$12,"kWh",$E$25:$AR$25)*D71 -> 1206566.427 | CK71: 0.05733035327 | CL71: 10093009.47 | CM71: 44460463.93 | CN71: -0.01386450362
B72: 2019-10-01 | C72: Amarela | D72: 0.015 | E72: 9.81 | F72: 3.7 | G72: 510.05 | H72: 332.46 | I72: 20.16 | J72: 6.68 | K72: 522.19 | L72: 344.6 | M72: 43.85 | N72: 13.95 | O72: 534.25 | P72: 356.66 | Q72: 43.85 | R72: 13.95 | S72: 534.25 | T72: 356.66 | V72: 13.95 | W72: 1599.69 | X72: 356.66 | Z72: 13.95 | AA72: 1599.69 | AB72: 356.66 | AD72: 45.52 | AF72: 371.46 | AH72: 45.52 | AJ72: 371.46 | AN72: 628.33 | AR72: 628.33 | AT72: 2019-10-01 | AU72: 365676.0558 | AV72: 157837.856 | AW72: 292322.5593 | AX72: 7604127.093 | AY72: 47149.1328 | AZ72: 20599.3832 | BA72: 26808.31903 | BB72: 761239.039 | BC72: 756292.8684 | BD72: 304488.0013 | BE72: 419216.8251 | BF72: 3134267.055 | BG72: 0 | BH72: 0 | BI72: 0 | BJ72: 0 | BK72: 0 | BL72: 788221.2545 | BM72: 2548658.304 | BN72: 7067113.018 | BO72: 0 | BP72: 25470.375 | BQ72: 73438.03529 | BR72: 160580.909 | BS72: 0 | BT72: 470.6768 | BU72: 0 | BV72: 1554.664109 | BW72: 0 | BX72: 0 | BY72: 0 | BZ72: 0 | CA72: 0 | CB72: 0 | CC72: 0 | CD72: 8406680.967 | CE72: 0 | CF72: 0 | CG72: 0 | CH72: 198675.6421 | CI72: 33160888.03 | CJ72: 1206566.427 | CK72: 0.04990283621 | CL72: 9745433.597 | CM72: 44112888.06 | CN72: -0.007817639437
B73: 2019-11-01 | C73: Vermelha 1 | D73: 0.04169 | E73: 9.81 | F73: 3.7 | G73: 510.05 | H73: 332.46 | I73: 20.16 | J73: 6.68 | K73: 522.19 | L73: 344.6 | M73: 43.85 | N73: 13.95 | O73: 534.25 | P73: 356.66 | Q73: 43.85 | R73: 13.95 | S73: 534.25 | T73: 356.66 | V73: 13.95 | W73: 1599.69 | X73: 356.66 | Z73: 13.95 | AA73: 1599.69 | AB73: 356.66 | AD73: 45.52 | AF73: 371.46 | AH73: 45.52 | AJ73: 371.46 | AN73: 628.33 | AR73: 628.33 | AT73: 2019-11-01 | AU73: 365676.0558 | AV73: 157837.856 | AW73: 292322.5593 | AX73: 7604127.093 | AY73: 47149.1328 | AZ73: 20599.3832 | BA73: 26808.31903 | BB73: 761239.039 | BC73: 756292.8684 | BD73: 304488.0013 | BE73: 419216.8251 | BF73: 3134267.055 | BG73: 0 | BH73: 0 | BI73: 0 | BJ73: 0 | BK73: 0 | BL73: 788221.2545 | BM73: 2548658.304 | BN73: 7067113.018 | BO73: 0 | BP73: 25470.375 | BQ73: 73438.03529 | BR73: 160580.909 | BS73: 0 | BT73: 470.6768 | BU73: 0 | BV73: 1554.664109 | BW73: 0 | BX73: 0 | BY73: 0 | BZ73: 0 | CA73: 0 | CB73: 0 | CC73: 0 | CD73: 8406680.967 | CE73: 0 | CF73: 0 | CG73: 0 | CH73: 198675.6421 | CI73: 33160888.03 | CJ73: 3353450.288 | CK73: 0.04020498713 | CL73: 9880652.57 | CM73: 46394990.89 | CN73: 0.05173324476
B74: 2019-12-01 | C74: Amarela | D74: 0.01343 | E74: 9.81 | F74: 3.7 | G74: 510.05 | H74: 332.46 | I74: 20.16 | J74: 6.68 | K74: 522.19 | L74: 344.6 | M74: 43.85 | N74: 13.95 | O74: 534.25 | P74: 356.66 | Q74: 43.85 | R74: 13.95 | S74: 534.25 | T74: 356.66 | V74: 13.95 | W74: 1599.69 | X74: 356.66 | Z74: 13.95 | AA74: 1599.69 | AB74: 356.66 | AD74: 45.52 | AF74: 371.46 | AH74: 45.52 | AJ74: 371.46 | AN74: 628.33 | AR74: 628.33 | AT74: 2019-12-01 | AU74: 365676.0558 | AV74: 157837.856 | AW74: 292322.5593 | AX74: 7604127.093 | AY74: 47149.1328 | AZ74: 20599.3832 | BA74: 26808.31903 | BB74: 761239.039 | BC74: 756292.8684 | BD74: 304488.0013 | BE74: 419216.8251 | BF74: 3134267.055 | BG74: 0 | BH74: 0 | BI74: 0 | BJ74: 0 | BK74: 0 | BL74: 788221.2545 | BM74: 2548658.304 | BN74: 7067113.018 | BO74: 0 | BP74: 25470.375 | BQ74: 73438.03529 | BR74: 160580.909 | BS74: 0 | BT74: 470.6768 | BU74: 0 | BV74: 1554.664109 | BW74: 0 | BX74: 0 | BY74: 0 | BZ74: 0 | CA74: 0 | CB74: 0 | CC74: 0 | CD74: 8406680.967 | CE74: 0 | CF74: 0 | CG74: 0 | CH74: 198675.6421 | CI74: 33160888.03 | CJ74: 1080279.141 | CK74: 0.04022452705 | CL74: 9266426.134 | CM74: 43507593.31 | CN74: -0.06223511479
B75: 2020-01-01 | C75: Amarela | D75: 0.01343 | E75: 9.81 | F75: 3.7 | G75: 510.05 | H75: 332.46 | I75: 20.16 | J75: 6.68 | K75: 522.19 | L75: 344.6 | M75: 43.85 | N75: 13.95 | O75: 534.25 | P75: 356.66 | Q75: 43.85 | R75: 13.95 | S75: 534.25 | T75: 356.66 | V75: 13.95 | W75: 1599.69 | X75: 356.66 | Z75: 13.95 | AA75: 1599.69 | AB75: 356.66 | AD75: 45.52 | AF75: 371.46 | AH75: 45.52 | AJ75: 371.46 | AN75: 628.33 | AR75: 628.33 | AT75: 2020-01-01 | AU75: 365676.0558 | AV75: 157837.856 | AW75: 292322.5593 | AX75: 7604127.093 | AY75: 47149.1328 | AZ75: 20599.3832 | BA75: 26808.31903 | BB75: 761239.039 | BC75: 756292.8684 | BD75: 304488.0013 | BE75: 419216.8251 | BF75: 3134267.055 | BG75: 0 | BH75: 0 | BI75: 0 | BJ75: 0 | BK75: 0 | BL75: 788221.2545 | BM75: 2548658.304 | BN75: 7067113.018 | BO75: 0 | BP75: 25470.375 | BQ75: 73438.03529 | BR75: 160580.909 | BS75: 0 | BT75: 470.6768 | BU75: 0 | BV75: 1554.664109 | BW75: 0 | BX75: 0 | BY75: 0 | BZ75: 0 | CA75: 0 | CB75: 0 | CC75: 0 | CD75: 8406680.967 | CE75: 0 | CF75: 0 | CG75: 0 | CH75: 198675.6421 | CI75: 33160888.03 | CJ75: 1080279.141 | CK75: 0.04022452705 | CL75: 9266426.134 | CM75: 43507593.31 | CN75: 0
B76: 2020-02-01 | C76: Verde | D76: 0 | E76: 9.81 | F76: 3.7 | G76: 510.05 | H76: 332.46 | I76: 20.16 | J76: 6.68 | K76: 522.19 | L76: 344.6 | M76: 43.85 | N76: 13.95 | O76: 534.25 | P76: 356.66 | Q76: 43.85 | R76: 13.95 | S76: 534.25 | T76: 356.66 | V76: 13.95 | W76: 1599.69 | X76: 356.66 | Z76: 13.95 | AA76: 1599.69 | AB76: 356.66 | AD76: 45.52 | AF76: 371.46 | AH76: 45.52 | AJ76: 371.46 | AN76: 628.33 | AR76: 628.33 | AT76: 2020-02-01 | AU76: 365676.0558 | AV76: 157837.856 | AW76: 292322.5593 | AX76: 7604127.093 | AY76: 47149.1328 | AZ76: 20599.3832 | BA76: 26808.31903 | BB76: 761239.039 | BC76: 756292.8684 | BD76: 304488.0013 | BE76: 419216.8251 | BF76: 3134267.055 | BG76: 0 | BH76: 0 | BI76: 0 | BJ76: 0 | BK76: 0 | BL76: 788221.2545 | BM76: 2548658.304 | BN76: 7067113.018 | BO76: 0 | BP76: 25470.375 | BQ76: 73438.03529 | BR76: 160580.909 | BS76: 0 | BT76: 470.6768 | BU76: 0 | BV76: 1554.664109 | BW76: 0 | BX76: 0 | BY76: 0 | BZ76: 0 | CA76: 0 | CB76: 0 | CC76: 0 | CD76: 8406680.967 | CE76: 0 | CF76: 0 | CG76: 0 | CH76: 198675.6421 | CI76: 33160888.03 | CJ76: 0 | CK76: 0.05186762355 | CL76: 9491497.185 | CM76: 42652385.22 | CN76: -0.01965652487
B77: 2020-03-01 | C77: Verde | D77: 0 | E77: 9.81 | F77: 3.7 | G77: 510.05 | H77: 332.46 | I77: 20.16 | J77: 6.68 | K77: 522.19 | L77: 344.6 | M77: 43.85 | N77: 13.95 | O77: 534.25 | P77: 356.66 | Q77: 43.85 | R77: 13.95 | S77: 534.25 | T77: 356.66 | V77: 13.95 | W77: 1599.69 | X77: 356.66 | Z77: 13.95 | AA77: 1599.69 | AB77: 356.66 | AD77: 45.52 | AF77: 371.46 | AH77: 45.52 | AJ77: 371.46 | AN77: 628.33 | AR77: 628.33 | AT77: 2020-03-01 | AU77: 365676.0558 | AV77: 157837.856 | AW77: 292322.5593 | AX77: 7604127.093 | AY77: 47149.1328 | AZ77: 20599.3832 | BA77: 26808.31903 | BB77: 761239.039 | BC77: 756292.8684 | BD77: 304488.0013 | BE77: 419216.8251 | BF77: 3134267.055 | BG77: 0 | BH77: 0 | BI77: 0 | BJ77: 0 | BK77: 0 | BL77: 788221.2545 | BM77: 2548658.304 | BN77: 7067113.018 | BO77: 0 | BP77: 25470.375 | BQ77: 73438.03529 | BR77: 160580.909 | BS77: 0 | BT77: 470.6768 | BU77: 0 | BV77: 1554.664109 | BW77: 0 | BX77: 0 | BY77: 0 | BZ77: 0 | CA77: 0 | CB77: 0 | CC77: 0 | CD77: 8406680.967 | CE77: 0 | CF77: 0 | CG77: 0 | CH77: 198675.6421 | CI77: 33160888.03 | CJ77: 0 | CK77: 0.05066854765 | CL77: 9437624.065 | CM77: 42598512.1 | CN77: -0.001263074025
B78: 2020-04-01 | C78: Verde | D78: 0 | E78: 9.81 | F78: 3.7 | G78: 510.05 | H78: 332.46 | I78: 20.16 | J78: 6.68 | K78: 522.19 | L78: 344.6 | M78: 43.85 | N78: 13.95 | O78: 534.25 | P78: 356.66 | Q78: 43.85 | R78: 13.95 | S78: 534.25 | T78: 356.66 | V78: 13.95 | W78: 1599.69 | X78: 356.66 | Z78: 13.95 | AA78: 1599.69 | AB78: 356.66 | AD78: 45.52 | AF78: 371.46 | AH78: 45.52 | AJ78: 371.46 | AN78: 628.33 | AR78: 628.33 | AT78: 2020-04-01 | AU78: 365676.0558 | AV78: 157837.856 | AW78: 292322.5593 | AX78: 7604127.093 | AY78: 47149.1328 | AZ78: 20599.3832 | BA78: 26808.31903 | BB78: 761239.039 | BC78: 756292.8684 | BD78: 304488.0013 | BE78: 419216.8251 | BF78: 3134267.055 | BG78: 0 | BH78: 0 | BI78: 0 | BJ78: 0 | BK78: 0 | BL78: 788221.2545 | BM78: 2548658.304 | BN78: 7067113.018 | BO78: 0 | BP78: 25470.375 | BQ78: 73438.03529 | BR78: 160580.909 | BS78: 0 | BT78: 470.6768 | BU78: 0 | BV78: 1554.664109 | BW78: 0 | BX78: 0 | BY78: 0 | BZ78: 0 | CA78: 0 | CB78: 0 | CC78: 0 | CD78: 8406680.967 | CE78: 0 | CF78: 0 | CG78: 0 | CH78: 198675.6421 | CI78: 33160888.03 | CJ78: 0 | CK78: 0.04141756344 | CL78: 9026518.929 | CM78: 42187406.96 | CN78: -0.009650692372
B79: 2020-05-01 | C79: Verde | D79: 0 | E79: 9.81 | F79: 3.7 | G79: 510.05 | H79: 332.46 | I79: 20.16 | J79: 6.68 | K79: 522.19 | L79: 344.6 | M79: 43.85 | N79: 13.95 | O79: 534.25 | P79: 356.66 | Q79: 43.85 | R79: 13.95 | S79: 534.25 | T79: 356.66 | V79: 13.95 | W79: 1599.69 | X79: 356.66 | Z79: 13.95 | AA79: 1599.69 | AB79: 356.66 | AD79: 45.52 | AF79: 371.46 | AH79: 45.52 | AJ79: 371.46 | AN79: 628.33 | AR79: 628.33 | AT79: 2020-05-01 | AU79: 365676.0558 | AV79: 157837.856 | AW79: 292322.5593 | AX79: 7604127.093 | AY79: 47149.1328 | AZ79: 20599.3832 | BA79: 26808.31903 | BB79: 761239.039 | BC79: 756292.8684 | BD79: 304488.0013 | BE79: 419216.8251 | BF79: 3134267.055 | BG79: 0 | BH79: 0 | BI79: 0 | BJ79: 0 | BK79: 0 | BL79: 788221.2545 | BM79: 2548658.304 | BN79: 7067113.018 | BO79: 0 | BP79: 25470.375 | BQ79: 73438.03529 | BR79: 160580.909 | BS79: 0 | BT79: 470.6768 | BU79: 0 | BV79: 1554.664109 | BW79: 0 | BX79: 0 | BY79: 0 | BZ79: 0 | CA79: 0 | CB79: 0 | CC79: 0 | CD79: 8406680.967 | CE79: 0 | CF79: 0 | CG79: 0 | CH79: 198675.6421 | CI79: 33160888.03 | CJ79: 0 | CK79: 0.03992336197 | CL79: 8960861.165 | CM79: 42121749.2 | CN79: -0.00155633563
B80: 2020-06-01 | C80: Verde | D80: 0 | E80: 9.81 | F80: 3.7 | G80: 510.05 | H80: 332.46 | I80: 20.16 | J80: 6.68 | K80: 522.19 | L80: 344.6 | M80: 43.85 | N80: 13.95 | O80: 534.25 | P80: 356.66 | Q80: 43.85 | R80: 13.95 | S80: 534.25 | T80: 356.66 | V80: 13.95 | W80: 1599.69 | X80: 356.66 | Z80: 13.95 | AA80: 1599.69 | AB80: 356.66 | AN80: 628.33 | AR80: 628.33 | AT80: 2020-06-01 | AU80: 365676.0558 | AV80: 157837.856 | AW80: 292322.5593 | AX80: 7604127.093 | AY80: 47149.1328 | AZ80: 20599.3832 | BA80: 26808.31903 | BB80: 761239.039 | BC80: 756292.8684 | BD80: 304488.0013 | BE80: 419216.8251 | BF80: 3134267.055 | BG80: 0 | BH80: 0 | BI80: 0 | BJ80: 0 | BK80: 0 | BL80: 788221.2545 | BM80: 2548658.304 | BN80: 7067113.018 | BO80: 0 | BP80: 25470.375 | BQ80: 73438.03529 | BR80: 160580.909 | BS80: 0 | BT80: 0 | BU80: 0 | BV80: 0 | BW80: 0 | BX80: 0 | BY80: 0 | BZ80: 0 | CA80: 0 | CB80: 0 | CC80: 0 | CD80: 8406680.967 | CE80: 0 | CF80: 0 | CG80: 0 | CH80: 198675.6421 | CI80: 33158862.69 | CJ80: 0 | CK80: 0.0420879108 | CL80: 9055488.589 | CM80: 42214351.28 | CN80: 0.002198438694
B81: 2020-07-01 | C81: Verde | D81: 0 | E81: 9.81 | F81: 3.7 | G81: 510.05 | H81: 332.46 | I81: 20.16 | J81: 6.68 | K81: 522.19 | L81: 344.6 | M81: 43.85 | N81: 13.95 | O81: 534.25 | P81: 356.66 | Q81: 43.85 | R81: 13.95 | S81: 534.25 | T81: 356.66 | V81: 13.95 | W81: 1599.69 | X81: 356.66 | Z81: 13.95 | AA81: 1599.69 | AB81: 356.66 | AN81: 628.33 | AR81: 628.33 | AT81: 2020-07-01 | AU81: 365676.0558 | AV81: 157837.856 | AW81: 292322.5593 | AX81: 7604127.093 | AY81: 47149.1328 | AZ81: 20599.3832 | BA81: 26808.31903 | BB81: 761239.039 | BC81: 756292.8684 | BD81: 304488.0013 | BE81: 419216.8251 | BF81: 3134267.055 | BG81: 0 | BH81: 0 | BI81: 0 | BJ81: 0 | BK81: 0 | BL81: 788221.2545 | BM81: 2548658.304 | BN81: 7067113.018 | BO81: 0 | BP81: 25470.375 | BQ81: 73438.03529 | BR81: 160580.909 | BS81: 0 | BT81: 0 | BU81: 0 | BV81: 0 | BW81: 0 | BX81: 0 | BY81: 0 | BZ81: 0 | CA81: 0 | CB81: 0 | CC81: 0 | CD81: 8406680.967 | CE81: 0 | CF81: 0 | CG81: 0 | CH81: 198675.6421 | CI81: 33158862.69 | CJ81: 0 | CK81: 0.0401 | CL81: 8968064.519 | CM81: 42126927.21 | CN81: -0.002070956138
B82: 2020-08-01 | C82: Verde | D82: 0 | E82: 9.81 | F82: 3.7 | G82: 510.05 | H82: 332.46 | I82: 20.16 | J82: 6.68 | K82: 522.19 | L82: 344.6 | M82: 43.85 | N82: 13.95 | O82: 534.25 | P82: 356.66 | Q82: 43.85 | R82: 13.95 | S82: 534.25 | T82: 356.66 | V82: 13.95 | W82: 1599.69 | X82: 356.66 | Z82: 13.95 | AA82: 1599.69 | AB82: 356.66 | AN82: 628.33 | AR82: 628.33 | AT82: 2020-08-01 | AU82: 365676.0558 | AV82: 157837.856 | AW82: 292322.5593 | AX82: 7604127.093 | AY82: 47149.1328 | AZ82: 20599.3832 | BA82: 26808.31903 | BB82: 761239.039 | BC82: 756292.8684 | BD82: 304488.0013 | BE82: 419216.8251 | BF82: 3134267.055 | BG82: 0 | BH82: 0 | BI82: 0 | BJ82: 0 | BK82: 0 | BL82: 788221.2545 | BM82: 2548658.304 | BN82: 7067113.018 | BO82: 0 | BP82: 25470.375 | BQ82: 73438.03529 | BR82: 160580.909 | BS82: 0 | BT82: 0 | BU82: 0 | BV82: 0 | BW82: 0 | BX82: 0 | BY82: 0 | BZ82: 0 | CA82: 0 | CB82: 0 | CC82: 0 | CD82: 8406680.967 | CE82: 0 | CF82: 0 | CG82: 0 | CH82: 198675.6421 | CI82: 33158862.69 | CJ82: 0 | CK82: 0.0487 | CL82: 9348902.923 | CM82: 42507765.62 | CN82: 0.009040260696
B83: 2020-09-01 | C83: Verde | D83: 0 | E83: 11.93 | F83: 5 | G83: 485.79 | H83: 315.08 | I83: 21.28 | J83: 7.61 | K83: 497.2 | L83: 326.49 | M83: 44.89 | N83: 14.68 | O83: 511.88 | P83: 341.17 | Q83: 44.89 | R83: 14.68 | S83: 511.88 | T83: 341.17 | V83: 14.68 | W83: 1600.78 | X83: 341.17 | Z83: 14.68 | AA83: 1600.78 | AB83: 341.17 | AN83: 618.12 | AR83: 618.12 | AT83: 2020-09-01 | AU83: =E$25*E83*(1-AU$30)/AU$33 -> 459861.107 | AV83: =F$25*F83*(1-AV$30)/AV$33 -> 220565.8 | AW83: =G$25*G83*(1-AW$30)/AW$33 -> 287910.0806 | AX83: =H$25*H83*(1-AX$30)/AX$33 -> 7452286.166 | AY83: =I$25*I83*(1-AY$30)/AY$33 -> 51465.18347 | AZ83: =J$25*J83*(1-AZ$30)/AZ$33 -> 24267.28168 | BA83: =K$25*K83*(1-BA$30)/BA$33 -> 26395.55952 | BB83: =L$25*L83*(1-BB$30)/BB$33 -> 745820.6148 | BC83: =M$25*M83*(1-BC$30)/BC$33 -> 800624.2367 | BD83: =N$25*N83*(1-BD$30)/BD$33 -> 331345.2518 | BE83: =O$25*O83*(1-BE$30)/BE$33 -> 415356.542 | BF83: =P$25*P83*(1-BF$30)/BF$33 -> 3100353.026 | BG83: =Q$25*Q83*(1-BG$30)/BG$33 -> 0 | BH83: =R$25*R83*(1-BH$30)/BH$33 -> 0 | BI83: =S$25*S83*(1-BI$30)/BI$33 -> 0 | BJ83: =T$25*T83*(1-BJ$30)/BJ$33 -> 0 | BK83: =U$25*U83*(1-BK$30)/BK$33 -> 0 | BL83: =V$25*V83*(1-BL$30)/BL$33 -> 857746.0162 | BM83: =W$25*W83*(1-BM$30)/BM$33 -> 2637340.196 | BN83: =X$25*X83*(1-BN$30)/BN$33 -> 6990644.015 | BO83: =Y$25*Y83*(1-BO$30)/BO$33 -> 0 | BP83: =Z$25*Z83*(1-BP$30)/BP$33 -> 26803.23333 | BQ83: =AA$25*AA83*(1-BQ$30)/BQ$33 -> 73488.07465 | BR83: =AB$25*AB83*(1-BR$30)/BR$33 -> 153606.7648 | BS83: =AC$25*AC83*(1-BS$30)/BS$33 -> 0 | BT83: =AD$25*AD83*(1-BT$30)/BT$33 -> 0 | BU83: =AE$25*AE83*(1-BU$30)/BU$33 -> 0 | BV83: =AF$25*AF83*(1-BV$30)/BV$33 -> 0 | BW83: =AG$25*AG83*(1-BW$30)/BW$33 -> 0 | BX83: =AH$25*AH83*(1-BX$30)/BX$33 -> 0 | BY83: =AI$25*AI83*(1-BY$30)/BY$33 -> 0 | BZ83: =AJ$25*AJ83*(1-BZ$30)/BZ$33 -> 0 | CA83: =AK$25*AK83*(1-CA$30)/CA$33 -> 0 | CB83: =AL$25*AL83*(1-CB$30)/CB$33 -> 0 | CC83: =AM$25*AM83*(1-CC$30)/CC$33 -> 0 | CD83: =AN$25*AN83*(1-CD$30)/CD$33 -> 8552011.703 | CE83: =AO$25*AO83*(1-CE$30)/CE$33 -> 0 | CF83: =AP$25*AP83*(1-CF$30)/CF$33 -> 0 | CG83: =AQ$25*AQ83*(1-CG$30)/CG$33 -> 0 | CH83: =AR$25*AR83*(1-CH$30)/CH$33 -> 195447.2776 | CI83: 33403338.13 | CJ83: 0 | CK83: 0.04 | CL83: 9029764.169 | CM83: 42433102.3 | CN83: -0.001756463012
B84: 2020-10-01 | C84: Verde | D84: 0 | E84: 11.93 | F84: 5 | G84: 485.79 | H84: 315.08 | I84: 21.28 | J84: 7.61 | K84: 497.2 | L84: 326.49 | M84: 44.89 | N84: 14.68 | O84: 511.88 | P84: 341.17 | Q84: 44.89 | R84: 14.68 | S84: 511.88 | T84: 341.17 | V84: 14.68 | W84: 1600.78 | X84: 341.17 | Z84: 14.68 | AA84: 1600.78 | AB84: 341.17 | AN84: 618.12 | AR84: 618.12 | AT84: 2020-10-01 | AU84: 459861.107 | AV84: 220565.8 | AW84: 287910.0806 | AX84: 7452286.166 | AY84: 51465.18347 | AZ84: 24267.28168 | BA84: 26395.55952 | BB84: 745820.6148 | BC84: 800624.2367 | BD84: 331345.2518 | BE84: 415356.542 | BF84: 3100353.026 | BG84: 0 | BH84: 0 | BI84: 0 | BJ84: 0 | BK84: 0 | BL84: 857746.0162 | BM84: 2637340.196 | BN84: 6990644.015 | BO84: 0 | BP84: 26803.23333 | BQ84: 73488.07465 | BR84: 153606.7648 | BS84: 0 | BT84: 0 | BU84: 0 | BV84: 0 | BW84: 0 | BX84: 0 | BY84: 0 | BZ84: 0 | CA84: 0 | CB84: 0 | CC84: 0 | CD84: 8552011.703 | CE84: 0 | CF84: 0 | CG84: 0 | CH84: 195447.2776 | CI84: 33403338.13 | CJ84: 0 | CK84: =0.77%+3.56% -> 0.0433 | CL84: 9176131.095 | CM84: 42579469.22 | CN84: 0.003449357165
B85: 2020-11-01 | C85: Verde | D85: 0 | E85: 11.93 | F85: 5 | G85: 485.79 | H85: 315.08 | I85: 21.28 | J85: 7.61 | K85: 497.2 | L85: 326.49 | M85: 44.89 | N85: 14.68 | O85: 511.88 | P85: 341.17 | Q85: 44.89 | R85: 14.68 | S85: 511.88 | T85: 341.17 | V85: 14.68 | W85: 1600.78 | X85: 341.17 | Z85: 14.68 | AA85: 1600.78 | AB85: 341.17 | AN85: 618.12 | AR85: 618.12 | AT85: 2020-11-01 | AU85: 459861.107 | AV85: 220565.8 | AW85: 287910.0806 | AX85: 7452286.166 | AY85: 51465.18347 | AZ85: 24267.28168 | BA85: 26395.55952 | BB85: 745820.6148 | BC85: 800624.2367 | BD85: 331345.2518 | BE85: 415356.542 | BF85: 3100353.026 | BG85: 0 | BH85: 0 | BI85: 0 | BJ85: 0 | BK85: 0 | BL85: 857746.0162 | BM85: 2637340.196 | BN85: 6990644.015 | BO85: 0 | BP85: 26803.23333 | BQ85: 73488.07465 | BR85: 153606.7648 | BS85: 0 | BT85: 0 | BU85: 0 | BV85: 0 | BW85: 0 | BX85: 0 | BY85: 0 | BZ85: 0 | CA85: 0 | CB85: 0 | CC85: 0 | CD85: 8552011.703 | CE85: 0 | CF85: 0 | CG85: 0 | CH85: 195447.2776 | CI85: =SUM(AU85:CH85) -> 33403338.13 | CJ85: 0 | CK85: 0.04252458481 | CL85: 9141647.946 | CM85: 42544986.08 | CN85: -0.0008098538932
B86: 2020-12-01 | C86: Vermelha 2 | D86: 0.06243 | E86: 11.93 | F86: 5 | G86: 485.79 | H86: 315.08 | I86: 21.28 | J86: 7.61 | K86: 497.2 | L86: 326.49 | M86: 44.89 | N86: 14.68 | O86: 511.88 | P86: 341.17 | Q86: 44.89 | R86: 14.68 | S86: 511.88 | T86: 341.17 | V86: 14.68 | W86: 1600.78 | X86: 341.17 | Z86: 14.68 | AA86: 1600.78 | AB86: 341.17 | AN86: 618.12 | AR86: 618.12 | AT86: 2020-12-01 | AU86: 459861.107 | AV86: 220565.8 | AW86: 287910.0806 | AX86: 7452286.166 | AY86: 51465.18347 | AZ86: 24267.28168 | BA86: 26395.55952 | BB86: 745820.6148 | BC86: 800624.2367 | BD86: 331345.2518 | BE86: 415356.542 | BF86: 3100353.026 | BG86: 0 | BH86: 0 | BI86: 0 | BJ86: 0 | BK86: 0 | BL86: 857746.0162 | BM86: 2637340.196 | BN86: 6990644.015 | BO86: 0 | BP86: 26803.23333 | BQ86: 73488.07465 | BR86: 153606.7648 | BS86: 0 | BT86: 0 | BU86: 0 | BV86: 0 | BW86: 0 | BX86: 0 | BY86: 0 | BZ86: 0 | CA86: 0 | CB86: 0 | CC86: 0 | CD86: 8552011.703 | CE86: 0 | CF86: 0 | CG86: 0 | CH86: 195447.2776 | CI86: 33403338.13 | CJ86: 5021729.468 | CK86: 0.03998723873 | CL86: 10386615.36 | CM86: 48811682.95 | CN86: 0.1472957793
B87: 2021-01-01 | C87: Amarela | D87: 0.01343 | E87: 11.93 | F87: 5 | G87: 485.79 | H87: 315.08 | I87: 21.28 | J87: 7.61 | K87: 497.2 | L87: 326.49 | M87: 44.89 | N87: 14.68 | O87: 511.88 | P87: 341.17 | Q87: 44.89 | R87: 14.68 | S87: 511.88 | T87: 341.17 | V87: 14.68 | W87: 1600.78 | X87: 341.17 | Z87: 14.68 | AA87: 1600.78 | AB87: 341.17 | AN87: 618.12 | AR87: 618.12 | AT87: 2021-01-01 | AU87: 459861.107 | AV87: 220565.8 | AW87: 287910.0806 | AX87: 7452286.166 | AY87: 51465.18347 | AZ87: 24267.28168 | BA87: 26395.55952 | BB87: 745820.6148 | BC87: 800624.2367 | BD87: 331345.2518 | BE87: 415356.542 | BF87: 3100353.026 | BG87: 0 | BH87: 0 | BI87: 0 | BJ87: 0 | BK87: 0 | BL87: 857746.0162 | BM87: 2637340.196 | BN87: 6990644.015 | BO87: 0 | BP87: 26803.23333 | BQ87: 73488.07465 | BR87: 153606.7648 | BS87: 0 | BT87: 0 | BU87: 0 | BV87: 0 | BW87: 0 | BX87: 0 | BY87: 0 | BZ87: 0 | CA87: 0 | CB87: 0 | CC87: 0 | CD87: 8552011.703 | CE87: 0 | CF87: 0 | CG87: 0 | CH87: 195447.2776 | CI87: =SUM(AU87:CH87) -> 33403338.13 | CJ87: 1080279.141 | CK87: 0.04634103726 | CL87: 9613060.301 | CM87: 44096677.57 | CN87: -0.09659583723
B88: 2021-02-01 | C88: Amarela | D88: 0.01343 | E88: 11.93 | F88: 5 | G88: 485.79 | H88: 315.08 | I88: 21.28 | J88: 7.61 | K88: 497.2 | L88: 326.49 | M88: 44.89 | N88: 14.68 | O88: 511.88 | P88: 341.17 | Q88: 44.89 | R88: 14.68 | S88: 511.88 | T88: 341.17 | V88: 14.68 | W88: 1600.78 | X88: 341.17 | Z88: 14.68 | AA88: 1600.78 | AB88: 341.17 | AN88: 618.12 | AR88: 618.12 | AT88: 2021-02-01 | AU88: 459861.107 | AV88: 220565.8 | AW88: 287910.0806 | AX88: 7452286.166 | AY88: 51465.18347 | AZ88: 24267.28168 | BA88: 26395.55952 | BB88: 745820.6148 | BC88: 800624.2367 | BD88: 331345.2518 | BE88: 415356.542 | BF88: 3100353.026 | BG88: 0 | BH88: 0 | BI88: 0 | BJ88: 0 | BK88: 0 | BL88: 857746.0162 | BM88: 2637340.196 | BN88: 6990644.015 | BO88: 0 | BP88: 26803.23333 | BQ88: 73488.07465 | BR88: 153606.7648 | BS88: 0 | BT88: 0 | BU88: 0 | BV88: 0 | BW88: 0 | BX88: 0 | BY88: 0 | BZ88: 0 | CA88: 0 | CB88: 0 | CC88: 0 | CD88: 8552011.703 | CE88: 0 | CF88: 0 | CG88: 0 | CH88: 195447.2776 | CI88: 33403338.13 | CJ88: 1080279.141 | CK88: 0.04292779159 | CL88: 9455796.521 | CM88: 43939413.79 | CN88: -0.003566340798
B89: 2021-03-01 | C89: Amarela | D89: 0.01343 | E89: 11.93 | F89: 5 | G89: 485.79 | H89: 315.08 | I89: 21.28 | J89: 7.61 | K89: 497.2 | L89: 326.49 | M89: 44.89 | N89: 14.68 | O89: 511.88 | P89: 341.17 | Q89: 44.89 | R89: 14.68 | S89: 511.88 | T89: 341.17 | V89: 14.68 | W89: 1600.78 | X89: 341.17 | Z89: 14.68 | AA89: 1600.78 | AB89: 341.17 | AN89: 618.12 | AR89: 618.12 | AT89: 2021-03-01 | AU89: 459861.107 | AV89: 220565.8 | AW89: 287910.0806 | AX89: 7452286.166 | AY89: 51465.18347 | AZ89: 24267.28168 | BA89: 26395.55952 | BB89: 745820.6148 | BC89: 800624.2367 | BD89: 331345.2518 | BE89: 415356.542 | BF89: 3100353.026 | BG89: 0 | BH89: 0 | BI89: 0 | BJ89: 0 | BK89: 0 | BL89: 857746.0162 | BM89: 2637340.196 | BN89: 6990644.015 | BO89: 0 | BP89: 26803.23333 | BQ89: 73488.07465 | BR89: 153606.7648 | BS89: 0 | BT89: 0 | BU89: 0 | BV89: 0 | BW89: 0 | BX89: 0 | BY89: 0 | BZ89: 0 | CA89: 0 | CB89: 0 | CC89: 0 | CD89: 8552011.703 | CE89: 0 | CF89: 0 | CG89: 0 | CH89: 195447.2776 | CI89: 33403338.13 | CJ89: 1080279.141 | CK89: 0.03994360866 | CL89: 9319217.826 | CM89: 43802835.1 | CN89: -0.003108341307
B90: 2021-04-01 | C90: Amarela | D90: 0.01343 | E90: 11.93 | F90: 5 | G90: 485.79 | H90: 315.08 | I90: 21.28 | J90: 7.61 | K90: 497.2 | L90: 326.49 | M90: 44.89 | N90: 14.68 | O90: 511.88 | P90: 341.17 | Q90: 44.89 | R90: 14.68 | S90: 511.88 | T90: 341.17 | V90: 14.68 | W90: 1600.78 | X90: 341.17 | Z90: 14.68 | AA90: 1600.78 | AB90: 341.17 | AN90: 618.12 | AR90: 618.12 | AT90: 2021-04-01 | AU90: 459861.107 | AV90: 220565.8 | AW90: 287910.0806 | AX90: 7452286.166 | AY90: 51465.18347 | AZ90: 24267.28168 | BA90: 26395.55952 | BB90: 745820.6148 | BC90: 800624.2367 | BD90: 331345.2518 | BE90: 415356.542 | BF90: 3100353.026 | BG90: 0 | BH90: 0 | BI90: 0 | BJ90: 0 | BK90: 0 | BL90: 857746.0162 | BM90: 2637340.196 | BN90: 6990644.015 | BO90: 0 | BP90: 26803.23333 | BQ90: 73488.07465 | BR90: 153606.7648 | BS90: 0 | BT90: 0 | BU90: 0 | BV90: 0 | BW90: 0 | BX90: 0 | BY90: 0 | BZ90: 0 | CA90: 0 | CB90: 0 | CC90: 0 | CD90: 8552011.703 | CE90: 0 | CF90: 0 | CG90: 0 | CH90: 195447.2776 | CI90: 33403338.13 | CJ90: 1080279.141 | CK90: 0.04877722996 | CL90: 9725997.047 | CM90: 44209614.32 | CN90: 0.009286595714
B91: 2021-05-01 | C91: Vermelha 1 | D91: 0.04169 | E91: 11.93 | F91: 5 | G91: 485.79 | H91: 315.08 | I91: 21.28 | J91: 7.61 | K91: 497.2 | L91: 326.49 | M91: 44.89 | N91: 14.68 | O91: 511.88 | P91: 341.17 | Q91: 44.89 | R91: 14.68 | S91: 511.88 | T91: 341.17 | V91: 14.68 | W91: 1600.78 | X91: 341.17 | Z91: 14.68 | AA91: 1600.78 | AB91: 341.17 | AN91: 618.12 | AR91: 618.12 | AT91: 2021-05-01 | AU91: 459861.107 | AV91: 220565.8 | AW91: 287910.0806 | AX91: 7452286.166 | AY91: 51465.18347 | AZ91: 24267.28168 | BA91: 26395.55952 | BB91: 745820.6148 | BC91: 800624.2367 | BD91: 331345.2518 | BE91: 415356.542 | BF91: 3100353.026 | BG91: 0 | BH91: 0 | BI91: 0 | BJ91: 0 | BK91: 0 | BL91: 857746.0162 | BM91: 2637340.196 | BN91: 6990644.015 | BO91: 0 | BP91: 26803.23333 | BQ91: 73488.07465 | BR91: 153606.7648 | BS91: 0 | BT91: 0 | BU91: 0 | BV91: 0 | BW91: 0 | BX91: 0 | BY91: 0 | BZ91: 0 | CA91: 0 | CB91: 0 | CC91: 0 | CD91: 8552011.703 | CE91: 0 | CF91: 0 | CG91: 0 | CH91: 195447.2776 | CI91: 33403338.13 | CJ91: 3353450.288 | CK91: 0.04004000899 | CL91: 9938232.363 | CM91: 46695020.78 | CN91: 0.05621868689
B92: 2021-06-01 | C92: Vermelha 2 | D92: 0.06243 | E92: 13.98 | F92: 6.07 | G92: 469.82 | H92: 320.8 | I92: 21.54 | J92: 7.94 | K92: 479.48 | L92: 330.46 | M92: 44.9 | N92: 14.86 | O92: 495.66 | P92: 346.64 | Q92: 44.9 | R92: 14.86 | S92: 495.66 | T92: 346.64 | V92: 14.86 | W92: 1583.06 | X92: 346.64 | Z92: 14.86 | AA92: 1583.06 | AB92: 346.64 | AN92: 618.05 | AR92: 618.05 | AT92: 2021-06-01 | AU92: =E$25*E92*(1-AU$31)/AU$33 -> 556646.9957 | AV92: =F$25*F92*(1-AV$31)/AV$33 -> 276594.3608 | AW92: =G$25*G92*(1-AW$31)/AW$33 -> 287624.7554 | AX92: =H$25*H92*(1-AX$31)/AX$33 -> 7837715.724 | AY92: =I$25*I92*(1-AY$31)/AY$33 -> 53811.3716 | AZ92: =J$25*J92*(1-AZ$31)/AZ$33 -> 26154.3203 | BA92: =K$25*K92*(1-BA$31)/BA$33 -> 26294.00314 | BB92: =L$25*L92*(1-BB$31)/BB$33 -> 779775.9908 | BC92: =M$25*M92*(1-BC$31)/BC$33 -> 827202.6745 | BD92: =N$25*N92*(1-BD$31)/BD$33 -> 346465.4771 | BE92: =O$25*O92*(1-BE$31)/BE$33 -> 415454.2707 | BF92: =P$25*P92*(1-BF$31)/BF$33 -> 3253909.351 | BG92: =Q$25*Q92*(1-BG$31)/BG$33 -> 0 | BH92: =R$25*R92*(1-BH$31)/BH$33 -> 0 | BI92: =S$25*S92*(1-BI$31)/BI$33 -> 0 | BJ92: =T$25*T92*(1-BJ$31)/BJ$33 -> 0 | BK92: =U$25*U92*(1-BK$31)/BK$33 -> 0 | BL92: =V$25*V92*(1-BL$31)/BL$33 -> 896887.404 | BM92: =W$25*W92*(1-BM$31)/BM$33 -> 2694128.716 | BN92: =X$25*X92*(1-BN$31)/BN$33 -> 7336881.233 | BO92: =Y$25*Y92*(1-BO$31)/BO$33 -> 0 | BP92: =Z$25*Z92*(1-BP$31)/BP$33 -> 27131.88333 | BQ92: =AA$25*AA92*(1-BQ$31)/BQ$33 -> 72674.59079 | BR92: =AB$25*AB92*(1-BR$31)/BR$33 -> 156069.5517 | BS92: =AC$25*AC92*(1-BS$31)/BS$33 -> 0 | BT92: =AD$25*AD92*(1-BT$31)/BT$33 -> 0 | BU92: =AE$25*AE92*(1-BU$31)/BU$33 -> 0 | BV92: =AF$25*AF92*(1-BV$31)/BV$33 -> 0 | BW92: =AG$25*AG92*(1-BW$31)/BW$33 -> 0 | BX92: =AH$25*AH92*(1-BX$31)/BX$33 -> 0 | BY92: =AI$25*AI92*(1-BY$31)/BY$33 -> 0 | BZ92: =AJ$25*AJ92*(1-BZ$31)/BZ$33 -> 0 | CA92: =AK$25*AK92*(1-CA$31)/CA$33 -> 0 | CB92: =AL$25*AL92*(1-CB$31)/CB$33 -> 0 | CC92: =AM$25*AM92*(1-CC$31)/CC$33 -> 0 | CD92: =AN$25*AN92*(1-CD$31)/CD$33 -> 8832945.74 | CE92: =AO$25*AO92*(1-CE$31)/CE$33 -> 0 | CF92: =AP$25*AP92*(1-CF$31)/CF$33 -> 0 | CG92: =AQ$25*AQ92*(1-CG$31)/CG$33 -> 0 | CH92: =AR$25*AR92*(1-CH$31)/CH$33 -> 195425.1438 | CI92: 34899793.56 | CJ92: 5021729.468 | CK92: 0.04335763439 | CL92: 10969788.01 | CM92: 50891311.03 | CN92: 0.08986590398
B93: 2021-07-01 | C93: Vermelha 2 | D93: 0.09492 | E93: 13.98 | F93: 6.07 | G93: 469.82 | H93: 320.8 | I93: 21.54 | J93: 7.94 | K93: 479.48 | L93: 330.46 | M93: 44.9 | N93: 14.86 | O93: 495.66 | P93: 346.64 | Q93: 44.9 | R93: 14.86 | S93: 495.66 | T93: 346.64 | V93: 14.86 | W93: 1583.06 | X93: 346.64 | Z93: 14.86 | AA93: 1583.06 | AB93: 346.64 | AN93: 618.05 | AR93: 618.05 | AT93: 2021-07-01 | AU93: 556646.9957 | AV93: 276594.3608 | AW93: 287624.7554 | AX93: 7837715.724 | AY93: 53811.3716 | AZ93: 26154.3203 | BA93: 26294.00314 | BB93: 779775.9908 | BC93: 827202.6745 | BD93: 346465.4771 | BE93: 415454.2707 | BF93: 3253909.351 | BG93: 0 | BH93: 0 | BI93: 0 | BJ93: 0 | BK93: 0 | BL93: 896887.404 | BM93: 2694128.716 | BN93: 7336881.233 | BO93: 0 | BP93: 27131.88333 | BQ93: 72674.59079 | BR93: 156069.5517 | BS93: 0 | BT93: 0 | BU93: 0 | BV93: 0 | BW93: 0 | BX93: 0 | BY93: 0 | BZ93: 0 | CA93: 0 | CB93: 0 | CC93: 0 | CD93: 8832945.74 | CE93: 0 | CF93: 0 | CG93: 0 | CH93: 195425.1438 | CI93: 34899793.56 | CJ93: 7635152.348 | CK93: 0.04263672274 | CL93: =(1/((1-CK93)*(1-$CL$33))-1)*(CI93+CJ93) -> 11647083.51 | CM93: =CI93+CJ93+CL93 -> 54182029.42 | CN93: 0.064661694
B94: 2021-08-01 | C94: Vermelha 2 | D94: 0.09492 | E94: 13.98 | F94: 6.07 | G94: 469.82 | H94: 320.8 | I94: 21.54 | J94: 7.94 | K94: 479.48 | L94: 330.46 | M94: 44.9 | N94: 14.86 | O94: 495.66 | P94: 346.64 | Q94: 44.9 | R94: 14.86 | S94: 495.66 | T94: 346.64 | V94: 14.86 | W94: 1583.06 | X94: 346.64 | Z94: 14.86 | AA94: 1583.06 | AB94: 346.64 | AN94: 618.05 | AR94: 618.05 | AT94: 2021-08-01 | AU94: 556646.9957 | AV94: 276594.3608 | AW94: 287624.7554 | AX94: 7837715.724 | AY94: 53811.3716 | AZ94: 26154.3203 | BA94: 26294.00314 | BB94: 779775.9908 | BC94: 827202.6745 | BD94: 346465.4771 | BE94: 415454.2707 | BF94: 3253909.351 | BG94: 0 | BH94: 0 | BI94: 0 | BJ94: 0 | BK94: 0 | BL94: 896887.404 | BM94: 2694128.716 | BN94: 7336881.233 | BO94: 0 | BP94: 27131.88333 | BQ94: 72674.59079 | BR94: 156069.5517 | BS94: 0 | BT94: 0 | BU94: 0 | BV94: 0 | BW94: 0 | BX94: 0 | BY94: 0 | BZ94: 0 | CA94: 0 | CB94: 0 | CC94: 0 | CD94: 8832945.74 | CE94: 0 | CF94: 0 | CG94: 0 | CH94: 195425.1438 | CI94: =SUM(AU94:CH94) -> 34899793.56 | CJ94: 7635152.348 | CK94: 0.04431533053 | CL94: =(1/((1-CK94)*(1-$CL$33))-1)*(CI94+CJ94) -> 11742251.28 | CM94: =CI94+CJ94+CL94 -> 54277197.18 | CN94: 0.001756445246
B95: 2021-09-01 | C95: Escassez Hídrica | D95: 0.142 | E95: 13.98 | F95: 6.07 | G95: 469.82 | H95: 320.8 | I95: 21.54 | J95: 7.94 | K95: 479.48 | L95: 330.46 | M95: 44.9 | N95: 14.86 | O95: 495.66 | P95: 346.64 | Q95: 44.9 | R95: 14.86 | S95: 495.66 | T95: 346.64 | V95: 14.86 | W95: 1583.06 | X95: 346.64 | Z95: 14.86 | AA95: 1583.06 | AB95: 346.64 | AN95: 618.05 | AR95: 618.05 | AT95: 2021-09-01 | AU95: 556646.9957 | AV95: 276594.3608 | AW95: 287624.7554 | AX95: 7837715.724 | AY95: 53811.3716 | AZ95: 26154.3203 | BA95: 26294.00314 | BB95: 779775.9908 | BC95: 827202.6745 | BD95: 346465.4771 | BE95: 415454.2707 | BF95: 3253909.351 | BG95: 0 | BH95: 0 | BI95: 0 | BJ95: 0 | BK95: 0 | BL95: 896887.404 | BM95: 2694128.716 | BN95: 7336881.233 | BO95: 0 | BP95: 27131.88333 | BQ95: 72674.59079 | BR95: 156069.5517 | BS95: 0 | BT95: 0 | BU95: 0 | BV95: 0 | BW95: 0 | BX95: 0 | BY95: 0 | BZ95: 0 | CA95: 0 | CB95: 0 | CC95: 0 | CD95: 8832945.74 | CE95: 0 | CF95: 0 | CG95: 0 | CH95: 195425.1438 | CI95: 34899793.56 | CJ95: 11422162.17 | CK95: 0.03678388988 | CL95: 12325516.34 | CM95: 58647472.07 | CN95: =CM95/CM94-1 -> 0.0805176964
B96: 2021-10-01 | C96: Escassez Hídrica | D96: 0.142 | E96: 13.98 | F96: 6.07 | G96: 469.82 | H96: 320.8 | I96: 21.54 | J96: 7.94 | K96: 479.48 | L96: 330.46 | M96: 44.9 | N96: 14.86 | O96: 495.66 | P96: 346.64 | Q96: 44.9 | R96: 14.86 | S96: 495.66 | T96: 346.64 | V96: 14.86 | W96: 1583.06 | X96: 346.64 | Z96: 14.86 | AA96: 1583.06 | AB96: 346.64 | AN96: 618.05 | AR96: 618.05 | AT96: 2021-10-01 | AU96: 556646.9957 | AV96: 276594.3608 | AW96: 287624.7554 | AX96: 7837715.724 | AY96: 53811.3716 | AZ96: 26154.3203 | BA96: 26294.00314 | BB96: 779775.9908 | BC96: 827202.6745 | BD96: 346465.4771 | BE96: 415454.2707 | BF96: 3253909.351 | BG96: 0 | BH96: 0 | BI96: 0 | BJ96: 0 | BK96: 0 | BL96: 896887.404 | BM96: 2694128.716 | BN96: 7336881.233 | BO96: 0 | BP96: 27131.88333 | BQ96: 72674.59079 | BR96: 156069.5517 | BS96: 0 | BT96: 0 | BU96: 0 | BV96: 0 | BW96: 0 | BX96: 0 | BY96: 0 | BZ96: 0 | CA96: 0 | CB96: 0 | CC96: 0 | CD96: 8832945.74 | CE96: 0 | CF96: 0 | CG96: 0 | CH96: 195425.1438 | CI96: 34899793.56 | CJ96: 11422162.17 | CK96: 0.03948796635 | CL96: 12490623.33 | CM96: 58812579.06 | CN96: =CM96/CM95-1 -> 0.00281524476
B97: 2021-11-01 | C97: Escassez Hídrica | D97: 0.142 | E97: 13.98 | F97: 6.07 | G97: 469.82 | H97: 320.8 | I97: 21.54 | J97: 7.94 | K97: 479.48 | L97: 330.46 | M97: 44.9 | N97: 14.86 | O97: 495.66 | P97: 346.64 | Q97: 44.9 | R97: 14.86 | S97: 495.66 | T97: 346.64 | V97: 14.86 | W97: 1583.06 | X97: 346.64 | Z97: 14.86 | AA97: 1583.06 | AB97: 346.64 | AN97: 618.05 | AR97: 618.05 | AT97: 2021-11-01 | AU97: 556646.9957 | AV97: 276594.3608 | AW97: 287624.7554 | AX97: 7837715.724 | AY97: 53811.3716 | AZ97: 26154.3203 | BA97: 26294.00314 | BB97: 779775.9908 | BC97: 827202.6745 | BD97: 346465.4771 | BE97: 415454.2707 | BF97: 3253909.351 | BG97: 0 | BH97: 0 | BI97: 0 | BJ97: 0 | BK97: 0 | BL97: 896887.404 | BM97: 2694128.716 | BN97: 7336881.233 | BO97: 0 | BP97: 27131.88333 | BQ97: 72674.59079 | BR97: 156069.5517 | BS97: 0 | BT97: 0 | BU97: 0 | BV97: 0 | BW97: 0 | BX97: 0 | BY97: 0 | BZ97: 0 | CA97: 0 | CB97: 0 | CC97: 0 | CD97: 8832945.74 | CE97: 0 | CF97: 0 | CG97: 0 | CH97: 195425.1438 | CI97: 34899793.56 | CJ97: 11422162.17 | CK97: 0.04139427218 | CL97: 12607579.4 | CM97: 58929535.13 | CN97: =CM97/CM96-1 -> 0.001988623452
B98: 2021-12-01 | C98: Escassez Hídrica | D98: 0.142 | E98: 13.98 | F98: 6.07 | G98: 469.82 | H98: 320.8 | I98: 21.54 | J98: 7.94 | K98: 479.48 | L98: 330.46 | M98: 44.9 | N98: 14.86 | O98: 495.66 | P98: 346.64 | Q98: 44.9 | R98: 14.86 | S98: 495.66 | T98: 346.64 | V98: 14.86 | W98: 1583.06 | X98: 346.64 | Z98: 14.86 | AA98: 1583.06 | AB98: 346.64 | AN98: 618.05 | AR98: 618.05 | AT98: 2021-12-01 | AU98: 556646.9957 | AV98: 276594.3608 | AW98: 287624.7554 | AX98: 7837715.724 | AY98: 53811.3716 | AZ98: 26154.3203 | BA98: 26294.00314 | BB98: 779775.9908 | BC98: 827202.6745 | BD98: 346465.4771 | BE98: 415454.2707 | BF98: 3253909.351 | BG98: 0 | BH98: 0 | BI98: 0 | BJ98: 0 | BK98: 0 | BL98: 896887.404 | BM98: 2694128.716 | BN98: 7336881.233 | BO98: 0 | BP98: 27131.88333 | BQ98: 72674.59079 | BR98: 156069.5517 | BS98: 0 | BT98: 0 | BU98: 0 | BV98: 0 | BW98: 0 | BX98: 0 | BY98: 0 | BZ98: 0 | CA98: 0 | CB98: 0 | CC98: 0 | CD98: 8832945.74 | CE98: 0 | CF98: 0 | CG98: 0 | CH98: 195425.1438 | CI98: 34899793.56 | CJ98: 11422162.17 | CK98: 0.03200931136 | CL98: 12036239.84 | CM98: 58358195.57 | CN98: -0.009695300717
B99: 2022-01-01 | C99: Escassez Hídrica | D99: 0.142 | E99: 13.98 | F99: 6.07 | G99: 469.82 | H99: 320.8 | I99: 21.54 | J99: 7.94 | K99: 479.48 | L99: 330.46 | M99: 44.9 | N99: 14.86 | O99: 495.66 | P99: 346.64 | Q99: 44.9 | R99: 14.86 | S99: 495.66 | T99: 346.64 | V99: 14.86 | W99: 1583.06 | X99: 346.64 | Z99: 14.86 | AA99: 1583.06 | AB99: 346.64 | AN99: 618.05 | AR99: 618.05 | AT99: 2022-01-01 | AU99: 556646.9957 | AV99: 276594.3608 | AW99: 287624.7554 | AX99: 7837715.724 | AY99: 53811.3716 | AZ99: 26154.3203 | BA99: 26294.00314 | BB99: 779775.9908 | BC99: 827202.6745 | BD99: 346465.4771 | BE99: 415454.2707 | BF99: 3253909.351 | BG99: 0 | BH99: 0 | BI99: 0 | BJ99: 0 | BK99: 0 | BL99: 896887.404 | BM99: 2694128.716 | BN99: 7336881.233 | BO99: 0 | BP99: 27131.88333 | BQ99: 72674.59079 | BR99: 156069.5517 | BS99: 0 | BT99: 0 | BU99: 0 | BV99: 0 | BW99: 0 | BX99: 0 | BY99: 0 | BZ99: 0 | CA99: 0 | CB99: 0 | CC99: 0 | CD99: 8832945.74 | CE99: 0 | CF99: 0 | CG99: 0 | CH99: 195425.1438 | CI99: 34899793.56 | CJ99: 11422162.17 | CK99: 0.04116324086 | CL99: 12593380.35 | CM99: 58915336.08 | CN99: 0.00954691131
B100: 2022-02-01 | C100: Escassez Hídrica | D100: 0.142 | E100: 13.98 | F100: 6.07 | G100: 469.82 | H100: 320.8 | I100: 21.54 | J100: 7.94 | K100: 479.48 | L100: 330.46 | M100: 44.9 | N100: 14.86 | O100: 495.66 | P100: 346.64 | Q100: 44.9 | R100: 14.86 | S100: 495.66 | T100: 346.64 | V100: 14.86 | W100: 1583.06 | X100: 346.64 | Z100: 14.86 | AA100: 1583.06 | AB100: 346.64 | AN100: 618.05 | AR100: 618.05 | AT100: 2022-02-01 | AU100: 556646.9957 | AV100: 276594.3608 | AW100: 287624.7554 | AX100: 7837715.724 | AY100: 53811.3716 | AZ100: 26154.3203 | BA100: 26294.00314 | BB100: 779775.9908 | BC100: 827202.6745 | BD100: 346465.4771 | BE100: 415454.2707 | BF100: 3253909.351 | BG100: 0 | BH100: 0 | BI100: 0 | BJ100: 0 | BK100: 0 | BL100: 896887.404 | BM100: 2694128.716 | BN100: 7336881.233 | BO100: 0 | BP100: 27131.88333 | BQ100: 72674.59079 | BR100: 156069.5517 | BS100: 0 | BT100: 0 | BU100: 0 | BV100: 0 | BW100: 0 | BX100: 0 | BY100: 0 | BZ100: 0 | CA100: 0 | CB100: 0 | CC100: 0 | CD100: 8832945.74 | CE100: 0 | CF100: 0 | CG100: 0 | CH100: 195425.1438 | CI100: 34899793.56 | CJ100: 11422162.17 | CK100: 0.03324054108 | CL100: 12110562.71 | CM100: 58432518.44 | CN100: -0.008195109663
B101: 2022-03-01 | C101: Escassez Hídrica | D101: 0.142 | E101: 13.98 | F101: 6.07 | G101: 469.82 | H101: 320.8 | I101: 21.54 | J101: 7.94 | K101: 479.48 | L101: 330.46 | M101: 44.9 | N101: 14.86 | O101: 495.66 | P101: 346.64 | Q101: 44.9 | R101: 14.86 | S101: 495.66 | T101: 346.64 | V101: 14.86 | W101: 1583.06 | X101: 346.64 | Z101: 14.86 | AA101: 1583.06 | AB101: 346.64 | AN101: 618.05 | AR101: 618.05 | AT101: 2022-03-01 | AU101: 556646.9957 | AV101: 276594.3608 | AW101: 287624.7554 | AX101: 7837715.724 | AY101: 53811.3716 | AZ101: 26154.3203 | BA101: 26294.00314 | BB101: 779775.9908 | BC101: 827202.6745 | BD101: 346465.4771 | BE101: 415454.2707 | BF101: 3253909.351 | BG101: 0 | BH101: 0 | BI101: 0 | BJ101: 0 | BK101: 0 | BL101: 896887.404 | BM101: 2694128.716 | BN101: 7336881.233 | BO101: 0 | BP101: 27131.88333 | BQ101: 72674.59079 | BR101: 156069.5517 | BS101: 0 | BT101: 0 | BU101: 0 | BV101: 0 | BW101: 0 | BX101: 0 | BY101: 0 | BZ101: 0 | CA101: 0 | CB101: 0 | CC101: 0 | CD101: 8832945.74 | CE101: 0 | CF101: 0 | CG101: 0 | CH101: 195425.1438 | CI101: 34899793.56 | CJ101: 11422162.17 | CK101: 0.0429040674 | CL101: 12700539.29 | CM101: 59022495.02 | CN101: 0.01009671653
B102: 2022-04-01 | C102: Verde | D102: 0 | E102: 13.98 | F102: 6.07 | G102: 469.82 | H102: 320.8 | I102: 21.54 | J102: 7.94 | K102: 479.48 | L102: 330.46 | M102: 44.9 | N102: 14.86 | O102: 495.66 | P102: 346.64 | Q102: 44.9 | R102: 14.86 | S102: 495.66 | T102: 346.64 | V102: 14.86 | W102: 1583.06 | X102: 346.64 | Z102: 14.86 | AA102: 1583.06 | AB102: 346.64 | AN102: 618.05 | AR102: 618.05 | AT102: 2022-04-01 | AU102: 556646.9957 | AV102: 276594.3608 | AW102: 287624.7554 | AX102: 7837715.724 | AY102: 53811.3716 | AZ102: 26154.3203 | BA102: 26294.00314 | BB102: 779775.9908 | BC102: 827202.6745 | BD102: 346465.4771 | BE102: 415454.2707 | BF102: 3253909.351 | BG102: 0 | BH102: 0 | BI102: 0 | BJ102: 0 | BK102: 0 | BL102: 896887.404 | BM102: 2694128.716 | BN102: 7336881.233 | BO102: 0 | BP102: 27131.88333 | BQ102: 72674.59079 | BR102: 156069.5517 | BS102: 0 | BT102: 0 | BU102: 0 | BV102: 0 | BW102: 0 | BX102: 0 | BY102: 0 | BZ102: 0 | CA102: 0 | CB102: 0 | CC102: 0 | CD102: 8832945.74 | CE102: 0 | CF102: 0 | CG102: 0 | CH102: 195425.1438 | CI102: 34899793.56 | CJ102: 0 | CK102: 0.03972942415 | CL102: 9421801.752 | CM102: 44321595.31 | CN102: -0.2490728273
B103: 2022-05-01 | C103: Verde | D103: 0 | E103: 13.98 | F103: 6.07 | G103: 469.82 | H103: 320.8 | I103: 21.54 | J103: 7.94 | K103: 479.48 | L103: 330.46 | M103: 44.9 | N103: 14.86 | O103: 495.66 | P103: 346.64 | Q103: 44.9 | R103: 14.86 | S103: 495.66 | T103: 346.64 | V103: 14.86 | W103: 1583.06 | X103: 346.64 | Z103: 14.86 | AA103: 1583.06 | AB103: 346.64 | AN103: 618.05 | AR103: 618.05 | AT103: 2022-05-01 | AU103: 556646.9957 | AV103: 276594.3608 | AW103: 287624.7554 | AX103: 7837715.724 | AY103: 53811.3716 | AZ103: 26154.3203 | BA103: 26294.00314 | BB103: 779775.9908 | BC103: 827202.6745 | BD103: 346465.4771 | BE103: 415454.2707 | BF103: 3253909.351 | BG103: 0 | BH103: 0 | BI103: 0 | BJ103: 0 | BK103: 0 | BL103: 896887.404 | BM103: 2694128.716 | BN103: 7336881.233 | BO103: 0 | BP103: 27131.88333 | BQ103: 72674.59079 | BR103: 156069.5517 | BS103: 0 | BT103: 0 | BU103: 0 | BV103: 0 | BW103: 0 | BX103: 0 | BY103: 0 | BZ103: 0 | CA103: 0 | CB103: 0 | CC103: 0 | CD103: 8832945.74 | CE103: 0 | CF103: 0 | CG103: 0 | CH103: 195425.1438 | CI103: 34899793.56 | CJ103: =SUMIF($E$12:$AR$12,"kWh",$E$25:$AR$25)*D103 -> 0 | CK103: 0.04218136551 | CL103: 9535261.596 | CM103: 44435055.15 | CN103: 0.002559922381
B104: 2022-06-01 | C104: Verde | D104: 0 | E104: 13.98 | F104: 6.07 | G104: 469.82 | H104: 320.8 | I104: 21.54 | J104: 7.94 | K104: 479.48 | L104: 330.46 | M104: 44.9 | N104: 14.86 | O104: 495.66 | P104: 346.64 | Q104: 44.9 | R104: 14.86 | S104: 495.66 | T104: 346.64 | V104: 14.86 | W104: 1583.06 | X104: 346.64 | Z104: 14.86 | AA104: 1583.06 | AB104: 346.64 | AN104: 618.05 | AR104: 618.05 | AT104: 2022-06-01 | AU104: 556646.9957 | AV104: 276594.3608 | AW104: 287624.7554 | AX104: 7837715.724 | AY104: 53811.3716 | AZ104: 26154.3203 | BA104: 26294.00314 | BB104: 779775.9908 | BC104: 827202.6745 | BD104: 346465.4771 | BE104: 415454.2707 | BF104: 3253909.351 | BG104: 0 | BH104: 0 | BI104: 0 | BJ104: 0 | BK104: 0 | BL104: 896887.404 | BM104: 2694128.716 | BN104: 7336881.233 | BO104: 0 | BP104: 27131.88333 | BQ104: 72674.59079 | BR104: 156069.5517 | BS104: 0 | BT104: 0 | BU104: 0 | BV104: 0 | BW104: 0 | BX104: 0 | BY104: 0 | BZ104: 0 | CA104: 0 | CB104: 0 | CC104: 0 | CD104: 8832945.74 | CE104: 0 | CF104: 0 | CG104: 0 | CH104: 195425.1438 | CI104: 34899793.56 | CJ104: 0 | CK104: 0.04238355261 | CL104: 9544643.427 | CM104: 44444436.98 | CN104: 0.0002111357883
